Workbook

Sheet Home
B2: HOME | E2: INPUT | G2: PROGETTO/VERIFICA
F15: info:
F16: rosario.gigliotti@uniroma1.it
F17: ing.carlofontana@libero.it

Sheet INPUT-1
B2: HOME
B4: INPUT | D4: Rettangolare | J4: Doppio asse di simmetria
B6: PROGETTO/VERIFICA
B9: Sezione
B11: Materiali
D12: Generica | J12: singolo asse di simmetria
B13: Dettagli costruttivi
D20: Circolare | K20: tubolare

Sheet INPUT-1.1.1
B2: Sezione | D2: CARATTERISTICHE GEOMETRICHE
U4: Vertici sezione | X4: max y | Y4: max z
B5: SEZIONE RETTANGOLARE | D5: Dimensioni | U5: y | V5: z | X5: =MAX(U6:U10) -> 0.15 | Y5: =MAX(V6:V10) -> 0.15
U6: =$F$8/2 -> 0.15 | V6: =$F$7/2 -> 0.15
E7: Base (Lz) | F7: 0.3 | G7: [m] | U7: =$F$8/2 -> 0.15 | V7: =-$F$7/2 -> -0.15 | X7: punto Max
B8: Caratteristiche Geometriche | E8: Altezza (Ly) | F8: 0.3 | G8: [m] | U8: =-$F$8/2 -> -0.15 | V8: =-$F$7/2 -> -0.15 | X8: y | Y8: z
U9: =-$F$8/2 -> -0.15 | V9: =$F$7/2 -> 0.15 | X9: =MAX(X5:Y5) -> 0.15 | Y9: =X9 -> 0.15
U10: =$F$8/2 -> 0.15 | V10: =$F$7/2 -> 0.15 | X10: =-X9 -> -0.15 | Y10: =-Y9 -> -0.15
B11: Armatura Longitudinale
B14: Armatura Trasversale
B17: Fibre

Sheet INPUT-1.1.2
B2: Sezione | D2: GENERA ARMATURA LONGITUDINALE
U4: Vertici sezione | X4: barre n° | Y4: f | Z4: z | AA4: y
B5: SEZIONE RETTANGOLARE | E5: Copriferro | G5: 0.046 | H5: [m] | U5: y | V5: z | X5: - | Y5: [mm] | Z5: [m] | AA5: [m]
U6: ='INPUT-1.1.1'!U6 -> 0.15 | V6: ='INPUT-1.1.1'!V6 -> 0.15 | X6: 1 | Z6: =IF($X6<=F$13,($V$6-$G$5)-(2*$V$6-2*$G$5)/($F$13-1)*($F$13-$X6),IF($X6<=(F$13+F$14),($V$6-$G$5)-(2*$V$6-2*$G$5)/($F$14-1)*($F$14-($X6-$F$13)),IF($X6<=(F$13+F$14+F$15),($V$6-$G$5)-(2*$V$6-2*$G$5)/($F$15-1)*($F$15-($X6-$F$13-$F$14)),IF($X6<=(F$13+F$14+F$15+F$16),($V$6-$G$5)-(2*$V$6-2*$G$5)/($F$16-1)*($F$16-($X6-$F$13-$F$14-$F$15)),IF($X6<=(F$13+F$14+F$15+F$16+F$17),($V$6-$G$5)-(2*$V$6-2*$G$5)/($F$17-1)*($F$17-($X6-$F$13-$F$14-$F$15-$F$16)),IF($X6<=(F$13+F$14+F$15+F$16+F$17+F$18),($V$6-$G$5)-(2*$V$6-2*$G$5)/($F$18-1)*($F$18-($X6-$F$13-$F$14-$F$15-$F$16-$F$17)),IF($X6<=(F$13+F$14+F$15+F$16+F$17+F$18+F$19),($V$6-$G$5)-(2*$V$6-2*$G$5)/($F$19-1)*($F$19-($X6-$F$13-$F$14-$F$15-$F$16-$F$17-$F$18)),IF($X6<=(F$13+F$14+F$15+F$16+F$17+F$18+F$19+F$20),($V$6-$G$5)-(2*$V$6-2*$G$5)/($F$20-1)*($F$20-($X6-$F$13-$F$14-$F$15-$F$16-$F$17-$F$18-$F$19)),IF($X6<=(F$13+F$14+F$15+F$16+F$17+F$18+F$19+F$20+F$21),($V$6-$G$5)-(2*$V$6-2*$G$5)/($F$21-1)*($F$21-($X6-$F$13-$F$14-$F$15-$F$16-$F$17-$F$18-$F$19-$F$20)),IF($X6<=(F$13+F$14+F$15+F$16+F$17+F$18+F$19+F$20+F$21+F$22),($V$6-$G$5)-(2*$V$6-2*$G$5)/($F$22-1)*($F$22-($X6-$F$13-$F$14-$F$15-$F$16-$F$17-$F$18-$F$19-$F$20-$F$21)),IF($X6<=(F$13+F$14+F$15+F$16+F$17+F$18+F$19+F$20+F$21+F$22+F$23),($V$6-$G$5)-(2*$V$6-2*$G$5)/($F$23-1)*($F$23-($X6-$F$13-$F$14-$F$15-$F$16-$F$17-$F$18-$F$19-$F$20-$F$21-F$22)),IF($X6<=(F$13+F$14+F$15+F$16+F$17+F$18+F$19+F$20+F$21+F$22+F$23+F$24),($V$6-$G$5)-(2*$V$6-2*$G$5)/($F$24-1)*($F$24-($X6-$F$13-$F$14-$F$15-$F$16-$F$17-$F$18-$F$19-$F$20-$F$21-F$22-F$23)),IF($X6<=(F$13+F$14+F$15+F$16+F$17+F$18+F$19+F$20+F$21+F$22+F$23+F$24+F$25),($V$6-$G$5)-(2*$V$6-2*$G$5)/($F$25-1)*($F$25-($X6-$F$13-$F$14-$F$15-$F$16-$F$17-$F$18-$F$19-$F$20-$F$21-F$22-F$23-F$24)),IF($X6<=(F$13+F$14+F$15+F$16+F$17+F$18+F$19+F$20+F$21+F$22+F$23+F$24+F$25+F$26),($V$6-$G$5)-(2*$V$6-2*$G$5)/($F$26-1)*($F$26-($X6-$F$13-$F$14-$F$15-$F$16-$F$17-$F$18-$F$19-$F$20-$F$21-F$22-F$23-F$24-F$25)),IF($X6<=(F$13+F$14+F$15+F$16+F$17+F$18+F$19+F$20+F$21+F$22+F$23+F$24+F$25+F$26+F$27),($V$6-$G$5)-(2*$V$6-2*$G$5)/($F$27-1)*($F$27-($X6-$F$13-$F$14-$F$15-$F$16-$F$17-$F$18-$F$19-$F$20-$F$21-F$22-F$23-F$24-F$25-F$26)),0))))))))))))))) -> -0.104 | AA6: =IF($X6<=F$13,H$13,IF($X6<=(F$13+F$14),H$14,IF($X6<=(F$13+F$14+F$15),H$15,IF($X6<=(F$13+F$14+F$15+F$16),H$16,IF($X6<=(F$13+F$14+F$15+F$16+F$17),H$17,IF($X6<=(F$13+F$14+F$15+F$16+F$17+F$18),H$18,IF($X6<=(F$13+F$14+F$15+F$16+F$17+F$18+F$19),H$19,IF($X6<=(F$13+F$14+F$15+F$16+F$17+F$18+F$19+F$20),H$20,IF($X6<=(F$13+F$14+F$15+F$16+F$17+F$18+F$19+F$20+F$21),H$21,IF($X6<=(F$13+F$14+F$15+F$16+F$17+F$18+F$19+F$20+F$21+F$22),H$22,IF($X6<=(F$13+F$14+F$15+F$16+F$17+F$18+F$19+F$20+F$21+F$22+F$23),H$23,IF($X6<=(F$13+F$14+F$15+F$16+F$17+F$18+F$19+F$20+F$21+F$22+F$23+F$24),H$24,IF($X6<=(F$13+F$14+F$15+F$16+F$17+F$18+F$19+F$20+F$21+F$22+F$23+F$24+F$25),H$25,IF($X6<=(F$13+F$14+F$15+F$16+F$17+F$18+F$19+F$20+F$21+F$22+F$23+F$24+F$25+F$26),H$26,IF($X6<=(F$13+F$14+F$15+F$16+F$17+F$18+F$19+F$20+F$21+F$22+F$23+F$24+F$25+F$26+F$27),H$27,0))))))))))))))) -> 0.104
U7: ='INPUT-1.1.1'!U7 -> 0.15 | V7: ='INPUT-1.1.1'!V7 -> -0.15 | X7: =1+X6 -> 2 | Z7: =IF($X7<=F$13,($V$6-$G$5)-(2*$V$6-2*$G$5)/($F$13-1)*($F$13-$X7),IF($X7<=(F$13+F$14),($V$6-$G$5)-(2*$V$6-2*$G$5)/($F$14-1)*($F$14-($X7-$F$13)),IF($X7<=(F$13+F$14+F$15),($V$6-$G$5)-(2*$V$6-2*$G$5)/($F$15-1)*($F$15-($X7-$F$13-$F$14)),IF($X7<=(F$13+F$14+F$15+F$16),($V$6-$G$5)-(2*$V$6-2*$G$5)/($F$16-1)*($F$16-($X7-$F$13-$F$14-$F$15)),IF($X7<=(F$13+F$14+F$15+F$16+F$17),($V$6-$G$5)-(2*$V$6-2*$G$5)/($F$17-1)*($F$17-($X7-$F$13-$F$14-$F$15-$F$16)),IF($X7<=(F$13+F$14+F$15+F$16+F$17+F$18),($V$6-$G$5)-(2*$V$6-2*$G$5)/($F$18-1)*($F$18-($X7-$F$13-$F$14-$F$15-$F$16-$F$17)),IF($X7<=(F$13+F$14+F$15+F$16+F$17+F$18+F$19),($V$6-$G$5)-(2*$V$6-2*$G$5)/($F$19-1)*($F$19-($X7-$F$13-$F$14-$F$15-$F$16-$F$17-$F$18)),IF($X7<=(F$13+F$14+F$15+F$16+F$17+F$18+F$19+F$20),($V$6-$G$5)-(2*$V$6-2*$G$5)/($F$20-1)*($F$20-($X7-$F$13-$F$14-$F$15-$F$16-$F$17-$F$18-$F$19)),IF($X7<=(F$13+F$14+F$15+F$16+F$17+F$18+F$19+F$20+F$21),($V$6-$G$5)-(2*$V$6-2*$G$5)/($F$21-1)*($F$21-($X7-$F$13-$F$14-$F$15-$F$16-$F$17-$F$18-$F$19-$F$20)),IF($X7<=(F$13+F$14+F$15+F$16+F$17+F$18+F$19+F$20+F$21+F$22),($V$6-$G$5)-(2*$V$6-2*$G$5)/($F$22-1)*($F$22-($X7-$F$13-$F$14-$F$15-$F$16-$F$17-$F$18-$F$19-$F$20-$F$21)),IF($X7<=(F$13+F$14+F$15+F$16+F$17+F$18+F$19+F$20+F$21+F$22+F$23),($V$6-$G$5)-(2*$V$6-2*$G$5)/($F$23-1)*($F$23-($X7-$F$13-$F$14-$F$15-$F$16-$F$17-$F$18-$F$19-$F$20-$F$21-F$22)),IF($X7<=(F$13+F$14+F$15+F$16+F$17+F$18+F$19+F$20+F$21+F$22+F$23+F$24),($V$6-$G$5)-(2*$V$6-2*$G$5)/($F$24-1)*($F$24-($X7-$F$13-$F$14-$F$15-$F$16-$F$17-$F$18-$F$19-$F$20-$F$21-F$22-F$23)),IF($X7<=(F$13+F$14+F$15+F$16+F$17+F$18+F$19+F$20+F$21+F$22+F$23+F$24+F$25),($V$6-$G$5)-(2*$V$6-2*$G$5)/($F$25-1)*($F$25-($X7-$F$13-$F$14-$F$15-$F$16-$F$17-$F$18-$F$19-$F$20-$F$21-F$22-F$23-F$24)),IF($X7<=(F$13+F$14+F$15+F$16+F$17+F$18+F$19+F$20+F$21+F$22+F$23+F$24+F$25+F$26),($V$6-$G$5)-(2*$V$6-2*$G$5)/($F$26-1)*($F$26-($X7-$F$13-$F$14-$F$15-$F$16-$F$17-$F$18-$F$19-$F$20-$F$21-F$22-F$23-F$24-F$25)),IF($X7<=(F$13+F$14+F$15+F$16+F$17+F$18+F$19+F$20+F$21+F$22+F$23+F$24+F$25+F$26+F$27),($V$6-$G$5)-(2*$V$6-2*$G$5)/($F$27-1)*($F$27-($X7-$F$13-$F$14-$F$15-$F$16-$F$17-$F$18-$F$19-$F$20-$F$21-F$22-F$23-F$24-F$25-F$26)),Z6))))))))))))))) -> 0 | AA7: =IF($X7<=F$13,H$13,IF($X7<=(F$13+F$14),H$14,IF($X7<=(F$13+F$14+F$15),H$15,IF($X7<=(F$13+F$14+F$15+F$16),H$16,IF($X7<=(F$13+F$14+F$15+F$16+F$17),H$17,IF($X7<=(F$13+F$14+F$15+F$16+F$17+F$18),H$18,IF($X7<=(F$13+F$14+F$15+F$16+F$17+F$18+F$19),H$19,IF($X7<=(F$13+F$14+F$15+F$16+F$17+F$18+F$19+F$20),H$20,IF($X7<=(F$13+F$14+F$15+F$16+F$17+F$18+F$19+F$20+F$21),H$21,IF($X7<=(F$13+F$14+F$15+F$16+F$17+F$18+F$19+F$20+F$21+F$22),H$22,IF($X7<=(F$13+F$14+F$15+F$16+F$17+F$18+F$19+F$20+F$21+F$22+F$23),H$23,IF($X7<=(F$13+F$14+F$15+F$16+F$17+F$18+F$19+F$20+F$21+F$22+F$23+F$24),H$24,IF($X7<=(F$13+F$14+F$15+F$16+F$17+F$18+F$19+F$20+F$21+F$22+F$23+F$24+F$25),H$25,IF($X7<=(F$13+F$14+F$15+F$16+F$17+F$18+F$19+F$20+F$21+F$22+F$23+F$24+F$25+F$26),H$26,IF($X7<=(F$13+F$14+F$15+F$16+F$17+F$18+F$19+F$20+F$21+F$22+F$23+F$24+F$25+F$26+F$27),H$27,AA6))))))))))))))) -> 0.104
B8: Caratteristiche Geometriche | E8: N° strati di armatura | G8: 3 | U8: ='INPUT-1.1.1'!U8 -> -0.15 | V8: ='INPUT-1.1.1'!V8 -> -0.15 | X8: =1+X7 -> 3 | Z8: 0.104 | AA8: 0.104
U9: ='INPUT-1.1.1'!U9 -> -0.15 | V9: ='INPUT-1.1.1'!V9 -> 0.15 | X9: 4 | Z9: -0.104 | AA9: 0
U10: ='INPUT-1.1.1'!U10 -> 0.15 | V10: ='INPUT-1.1.1'!V10 -> 0.15 | X10: 5 | Z10: 0.104 | AA10: 0
B11: Armatura Longitudinale | E11: Strato | F11: n° barre | G11: fmax | H11: Y | X11: 6 | Z11: -0.104 | AA11: -0.104
B12: Genera armatura | E12: - | F12: - | G12: [mm] | H12: [m] | X12: 7 | Z12: 0 | AA12: -0.104
E13: 1 | F13: 3 | G13: 16 | H13: 0.104 | X13: 8 | Z13: 0.104 | AA13: -0.104
E14: 2 | F14: 2 | G14: 16 | H14: 0 | X14: 9 | Z14: 0.104 | AA14: -0.104
B15: Armatura Trasversale | E15: 3 | F15: 3 | G15: 16 | H15: -0.104 | X15: 10 | Z15: 0.104 | AA15: -0.104
X16: 11 | Z16: 0.104 | AA16: -0.104
X17: 12 | Z17: 0.104 | AA17: -0.104
B18: Fibre | X18: 13 | Z18: 0.104 | AA18: -0.104
X19: 14 | Z19: 0.104 | AA19: -0.104
X20: 15 | Z20: 0.104 | AA20: -0.104
X21: 16 | Z21: 0.104 | AA21: -0.104
X22: 17 | Z22: 0.104 | AA22: -0.104
X23: 18 | Z23: 0.104 | AA23: -0.104
X24: 19 | Z24: 0.104 | AA24: -0.104
X25: 20 | Z25: 0.104 | AA25: -0.104
X26: 21 | Z26: 0.104 | AA26: -0.104
X27: 22 | Z27: 0.104 | AA27: -0.104
X28: 23 | Z28: 0.104 | AA28: -0.104
X29: 24 | Z29: 0.104 | AA29: -0.104
X30: 25 | Z30: 0.104 | AA30: -0.104
X31: 26 | Z31: 0.104 | AA31: -0.104
X32: 27 | Z32: 0.104 | AA32: -0.104
X33: 28 | Z33: 0.104 | AA33: -0.104
X34: 29 | Z34: 0.104 | AA34: -0.104
X35: 30 | Z35: 0.104 | AA35: -0.104
X36: 31 | Z36: 0.104 | AA36: -0.104
X37: 32 | Z37: 0.104 | AA37: -0.104
X38: 33 | Z38: 0.104 | AA38: -0.104
X39: 34 | Z39: 0.104 | AA39: -0.104
X40: 35 | Z40: 0.104 | AA40: -0.104
X41: 36 | Z41: 0.104 | AA41: -0.104
X42: 37 | Z42: 0.104 | AA42: -0.104
X43: 38 | Z43: 0.104 | AA43: -0.104
X44: 39 | Z44: 0.104 | AA44: -0.104
X45: 40 | Z45: 0.104 | AA45: -0.104
X46: 41 | Z46: 0.104 | AA46: -0.104
X47: 42 | Z47: 0.104 | AA47: -0.104
X48: 43 | Z48: 0.104 | AA48: -0.104
X49: 44 | Z49: 0.104 | AA49: -0.104
X50: 45 | Z50: 0.104 | AA50: -0.104
X51: 46 | Z51: 0.104 | AA51: -0.104
X52: 47 | Z52: 0.104 | AA52: -0.104
X53: 48 | Z53: 0.104 | AA53: -0.104
X54: 49 | Z54: 0.104 | AA54: -0.104
X55: 50 | Z55: 0.104 | AA55: -0.104
X56: 51 | Z56: 0.104 | AA56: -0.104
X57: 52 | Z57: 0.104 | AA57: -0.104
X58: 53 | Z58: 0.104 | AA58: -0.104
X59: 54 | Z59: 0.104 | AA59: -0.104
X60: 55 | Z60: 0.104 | AA60: -0.104
X61: 56 | Z61: 0.104 | AA61: -0.104
X62: 57 | Z62: 0.104 | AA62: -0.104
X63: 58 | Z63: 0.104 | AA63: -0.104
X64: 59 | Z64: 0.104 | AA64: -0.104
X65: 60 | Z65: 0.104 | AA65: -0.104
X66: 61 | Z66: 0.104 | AA66: -0.104
X67: 62 | Z67: 0.104 | AA67: -0.104
X68: 63 | Z68: 0.104 | AA68: -0.104
X69: 64 | Z69: 0.104 | AA69: -0.104
X70: 65 | Z70: 0.104 | AA70: -0.104
X71: 66 | Z71: =IF($X71<=F$13,($V$6-$G$5)-(2*$V$6-2*$G$5)/($F$13-1)*($F$13-$X71),IF($X71<=(F$13+F$14),($V$6-$G$5)-(2*$V$6-2*$G$5)/($F$14-1)*($F$14-($X71-$F$13)),IF($X71<=(F$13+F$14+F$15),($V$6-$G$5)-(2*$V$6-2*$G$5)/($F$15-1)*($F$15-($X71-$F$13-$F$14)),IF($X71<=(F$13+F$14+F$15+F$16),($V$6-$G$5)-(2*$V$6-2*$G$5)/($F$16-1)*($F$16-($X71-$F$13-$F$14-$F$15)),IF($X71<=(F$13+F$14+F$15+F$16+F$17),($V$6-$G$5)-(2*$V$6-2*$G$5)/($F$17-1)*($F$17-($X71-$F$13-$F$14-$F$15-$F$16)),IF($X71<=(F$13+F$14+F$15+F$16+F$17+F$18),($V$6-$G$5)-(2*$V$6-2*$G$5)/($F$18-1)*($F$18-($X71-$F$13-$F$14-$F$15-$F$16-$F$17)),IF($X71<=(F$13+F$14+F$15+F$16+F$17+F$18+F$19),($V$6-$G$5)-(2*$V$6-2*$G$5)/($F$19-1)*($F$19-($X71-$F$13-$F$14-$F$15-$F$16-$F$17-$F$18)),IF($X71<=(F$13+F$14+F$15+F$16+F$17+F$18+F$19+F$20),($V$6-$G$5)-(2*$V$6-2*$G$5)/($F$20-1)*($F$20-($X71-$F$13-$F$14-$F$15-$F$16-$F$17-$F$18-$F$19)),IF($X71<=(F$13+F$14+F$15+F$16+F$17+F$18+F$19+F$20+F$21),($V$6-$G$5)-(2*$V$6-2*$G$5)/($F$21-1)*($F$21-($X71-$F$13-$F$14-$F$15-$F$16-$F$17-$F$18-$F$19-$F$20)),IF($X71<=(F$13+F$14+F$15+F$16+F$17+F$18+F$19+F$20+F$21+F$22),($V$6-$G$5)-(2*$V$6-2*$G$5)/($F$22-1)*($F$22-($X71-$F$13-$F$14-$F$15-$F$16-$F$17-$F$18-$F$19-$F$20-$F$21)),IF($X71<=(F$13+F$14+F$15+F$16+F$17+F$18+F$19+F$20+F$21+F$22+F$23),($V$6-$G$5)-(2*$V$6-2*$G$5)/($F$23-1)*($F$23-($X71-$F$13-$F$14-$F$15-$F$16-$F$17-$F$18-$F$19-$F$20-$F$21-F$22)),IF($X71<=(F$13+F$14+F$15+F$16+F$17+F$18+F$19+F$20+F$21+F$22+F$23+F$24),($V$6-$G$5)-(2*$V$6-2*$G$5)/($F$24-1)*($F$24-($X71-$F$13-$F$14-$F$15-$F$16-$F$17-$F$18-$F$19-$F$20-$F$21-F$22-F$23)),IF($X71<=(F$13+F$14+F$15+F$16+F$17+F$18+F$19+F$20+F$21+F$22+F$23+F$24+F$25),($V$6-$G$5)-(2*$V$6-2*$G$5)/($F$25-1)*($F$25-($X71-$F$13-$F$14-$F$15-$F$16-$F$17-$F$18-$F$19-$F$20-$F$21-F$22-F$23-F$24)),IF($X71<=(F$13+F$14+F$15+F$16+F$17+F$18+F$19+F$20+F$21+F$22+F$23+F$24+F$25+F$26),($V$6-$G$5)-(2*$V$6-2*$G$5)/($F$26-1)*($F$26-($X71-$F$13-$F$14-$F$15-$F$16-$F$17-$F$18-$F$19-$F$20-$F$21-F$22-F$23-F$24-F$25)),IF($X71<=(F$13+F$14+F$15+F$16+F$17+F$18+F$19+F$20+F$21+F$22+F$23+F$24+F$25+F$26+F$27),($V$6-$G$5)-(2*$V$6-2*$G$5)/($F$27-1)*($F$27-($X71-$F$13-$F$14-$F$15-$F$16-$F$17-$F$18-$F$19-$F$20-$F$21-F$22-F$23-F$24-F$25-F$26)),Z70))))))))))))))) -> 0.104 | AA71: =IF($X71<=F$13,H$13,IF($X71<=(F$13+F$14),H$14,IF($X71<=(F$13+F$14+F$15),H$15,IF($X71<=(F$13+F$14+F$15+F$16),H$16,IF($X71<=(F$13+F$14+F$15+F$16+F$17),H$17,IF($X71<=(F$13+F$14+F$15+F$16+F$17+F$18),H$18,IF($X71<=(F$13+F$14+F$15+F$16+F$17+F$18+F$19),H$19,IF($X71<=(F$13+F$14+F$15+F$16+F$17+F$18+F$19+F$20),H$20,IF($X71<=(F$13+F$14+F$15+F$16+F$17+F$18+F$19+F$20+F$21),H$21,IF($X71<=(F$13+F$14+F$15+F$16+F$17+F$18+F$19+F$20+F$21+F$22),H$22,IF($X71<=(F$13+F$14+F$15+F$16+F$17+F$18+F$19+F$20+F$21+F$22+F$23),H$23,IF($X71<=(F$13+F$14+F$15+F$16+F$17+F$18+F$19+F$20+F$21+F$22+F$23+F$24),H$24,IF($X71<=(F$13+F$14+F$15+F$16+F$17+F$18+F$19+F$20+F$21+F$22+F$23+F$24+F$25),H$25,IF($X71<=(F$13+F$14+F$15+F$16+F$17+F$18+F$19+F$20+F$21+F$22+F$23+F$24+F$25+F$26),H$26,IF($X71<=(F$13+F$14+F$15+F$16+F$17+F$18+F$19+F$20+F$21+F$22+F$23+F$24+F$25+F$26+F$27),H$27,AA70))))))))))))))) -> -0.104
X72: =1+X71 -> 67 | Z72: 0.104 | AA72: -0.104
X73: 68 | Z73: 0.104 | AA73: -0.104
X74: 69 | Z74: 0.104 | AA74: -0.104
X75: 70 | Z75: 0.104 | AA75: -0.104
X76: 71 | Z76: 0.104 | AA76: -0.104
X77: 72 | Z77: 0.104 | AA77: -0.104
X78: 73 | Z78: 0.104 | AA78: -0.104
X79: 74 | Z79: 0.104 | AA79: -0.104
X80: 75 | Z80: 0.104 | AA80: -0.104
X81: 76 | Z81: 0.104 | AA81: -0.104
X82: 77 | Z82: 0.104 | AA82: -0.104
X83: 78 | Z83: 0.104 | AA83: -0.104
X84: 79 | Z84: 0.104 | AA84: -0.104
X85: 80 | Z85: 0.104 | AA85: -0.104
X86: 81 | Z86: 0.104 | AA86: -0.104
X87: 82 | Z87: 0.104 | AA87: -0.104
X88: 83 | Z88: 0.104 | AA88: -0.104
X89: 84 | Z89: 0.104 | AA89: -0.104
X90: 85 | Z90: 0.104 | AA90: -0.104
X91: 86 | Z91: 0.104 | AA91: -0.104
X92: 87 | Z92: 0.104 | AA92: -0.104
X93: 88 | Z93: 0.104 | AA93: -0.104
X94: 89 | Z94: 0.104 | AA94: -0.104
X95: 90 | Z95: 0.104 | AA95: -0.104
X96: 91 | Z96: 0.104 | AA96: -0.104
X97: 92 | Z97: 0.104 | AA97: -0.104
X98: 93 | Z98: 0.104 | AA98: -0.104
X99: 94 | Z99: 0.104 | AA99: -0.104
X100: 95 | Z100: 0.104 | AA100: -0.104
X101: 96 | Z101: 0.104 | AA101: -0.104
X102: 97 | Z102: 0.104 | AA102: -0.104
X103: 98 | Z103: 0.104 | AA103: -0.104
X104: 99 | Z104: 0.104 | AA104: -0.104
X105: 100 | Z105: 0.104 | AA105: -0.104
X106: 101 | Z106: 0.104 | AA106: -0.104
X107: 102 | Z107: 0.104 | AA107: -0.104
X108: 103 | Z108: 0.104 | AA108: -0.104
X109: 104 | Z109: 0.104 | AA109: -0.104
X110: 105 | Z110: 0.104 | AA110: -0.104
X111: 106 | Z111: 0.104 | AA111: -0.104
X112: 107 | Z112: 0.104 | AA112: -0.104
X113: 108 | Z113: 0.104 | AA113: -0.104
X114: 109 | Z114: 0.104 | AA114: -0.104
X115: 110 | Z115: 0.104 | AA115: -0.104
X116: 111 | Z116: 0.104 | AA116: -0.104
X117: 112 | Z117: 0.104 | AA117: -0.104
X118: 113 | Z118: 0.104 | AA118: -0.104
X119: 114 | Z119: 0.104 | AA119: -0.104
X120: 115 | Z120: 0.104 | AA120: -0.104
X121: 116 | Z121: 0.104 | AA121: -0.104
X122: 117 | Z122: 0.104 | AA122: -0.104
X123: 118 | Z123: 0.104 | AA123: -0.104
X124: 119 | Z124: 0.104 | AA124: -0.104
X125: 120 | Z125: 0.104 | AA125: -0.104

Sheet INPUT-1.1.2b
B2: Sezione | D2: EDITA ARMATURA LONGITUDINALE | U2: edita | V2: 1
U4: Vertici sezione
B5: SEZIONE RETTANGOLARE | E5: Conferma le modifiche | U5: y | V5: z
U6: ='INPUT-1.1.1'!U6 -> 0.15 | V6: ='INPUT-1.1.1'!V6 -> 0.15
E7: Id | F7: f | G7: Y | H7: Z | I7: W | U7: ='INPUT-1.1.1'!U7 -> 0.15 | V7: ='INPUT-1.1.1'!V7 -> -0.15
B8: Caratteristiche Geometriche | E8: - | F8: [mm] | G8: [m] | H8: [m] | I8: [m2] | U8: ='INPUT-1.1.1'!U8 -> -0.15 | V8: ='INPUT-1.1.1'!V8 -> -0.15
E9: S1 | F9: 16 | G9: 0.104 | H9: 0.104 | I9: =(PI()*F9^2/4)/1000000 -> 0.0002010619298 | U9: ='INPUT-1.1.1'!U9 -> -0.15 | V9: ='INPUT-1.1.1'!V9 -> 0.15
E10: S2 | F10: 16 | G10: 0.104 | H10: 0 | I10: 0.0002010619298 | U10: ='INPUT-1.1.1'!U10 -> 0.15 | V10: ='INPUT-1.1.1'!V10 -> 0.15
B11: Armatura Longitudinale | E11: S3 | F11: 16 | G11: 0.104 | H11: -0.104 | I11: 0.0002010619298
B12: Genera armatura | E12: S4 | F12: 16 | G12: 0 | H12: 0.104 | I12: 0.0002010619298
B13: Edita armatura | E13: S5 | F13: 16 | G13: 0 | H13: -0.104 | I13: 0.0002010619298
E14: S6 | F14: 16 | G14: -0.104 | H14: 0.104 | I14: 0.0002010619298
B15: Armatura Trasversale | E15: S7 | F15: 16 | G15: -0.104 | H15: 0 | I15: 0.0002010619298
E16: S8 | F16: 16 | G16: -0.104 | H16: -0.104 | I16: 0.0002010619298
B18: Fibre

Sheet INPUT-1.1.3
B2: Sezione | D2: ARMATURA TRASVERSALE
U4: Vertici sezione
B5: SEZIONE RETTANGOLARE | D5: Tipologia di armatura : | F5: 1 | U5: Y | V5: Z
U6: =$G$8/2 -> 4 | V6: =$F$7/2 -> 0
D7: Conferma le modifiche | U7: =$G$8/2 -> 4 | V7: =-$F$7/2 -> 0
B8: Caratteristiche Geometriche | F8: φ | G8: 8 | H8: [mm] | U8: =-$G$8/2 -> -4 | V8: =-$F$7/2 -> 0
F9: =IF($F$5=3,"passo","passo") -> passo | G9: 15 | H9: [cm] | U9: =-$G$8/2 -> -4 | V9: =$F$7/2 -> 0
F10: fy | G10: 391.3 | H10: [N/mm2] | U10: =$G$8/2 -> 4 | V10: =$F$7/2 -> 0
B11: Armatura Longitudinale
E13: numero bracci orizzontali | G13: 3
B14: Armatura Trasversale | E14: distanza netta tra i bracci | G14: 9.6 | H14: [cm]
E16: numero bracci verticali | G16: 3
B17: Fibre | E17: distanza netta tra i bracci | G17: 9.6 | H17: [cm]

Sheet INPUT-1.1.4
B2: Sezione | D2: GENERAZIONE FIBRE
B5: SEZIONE RETTANGOLARE | D5: Numero di fibre del nucleo
E7: Numero di fibre in direzione y | H7: 10
B8: Caratteristiche Geometriche | E8: Numero di fibre in direzione z | H8: 10
B11: Armatura Longitudinale
B14: Armatura Trasversale
B17: Fibre

Sheet INPUT-2
B2: HOME | D2: CALCESTRUZZO | I2: ACCIAIO
D3: Definisci parametri e modelli | I3: Definisci parametri e modello
B4: INPUT
B6: PROGETTO/VERIFICA
B9: Sezione
B11: Materiali
B13: Dettagli costruttivi
D16: Modello cls copriferro | F16: =INDEX(Legami!V3:V6,Legami!W2,1) -> Mander non confinato | I16: Modello acciaio | K16: =INDEX(Legami!S3:S6,Legami!T2,1) -> B450C NTC2008 mod.(b)
D17: Modello cls nucleo | F17: =INDEX(Legami!Y3:Y9,Legami!Z2,1) -> Braga-Gigliotti-Laterza
D19: LEGAMI DEFINITI DALL'UTENTE | I19: COEFFICIENTI DI SICUREZZA
D20: Dati di input | I20: gc | J20: 1 | K20: gs | L20: 1
D21: Grafici

Sheet INPUT-2.1.1
B2: Materiali | D2: PARAMETRI CALCESTRUZZO | K2: LEGAMI sc-ec
D4: Caratteristiche meccaniche
B5: CALCESTRUZZO
E6: fck | F6: 24.9 | G6: [N/mm2]
B7: Confronto modelli | E7: ε'c | F7: 0.002
D10: Modelli
D11: Legame cls copriferro | H11: visualizza/edita
B12: Torna alla pagina "Materiali" | D12: Legame cls nucleo | H12: visualizza/edita
Z44: 1

Sheet INPUT-2.1.2
B2: Materiali | D2: CALCESTRUZZO
D3: Legami costitutivi calcestruzzo non confinato e calcestruzzo confinato
B5: CALCESTRUZZO
B7: Parametri
B12: Torna alla pagina "Materiali"

Sheet INPUT-2.2.1
B2: Materiali | D2: PARAMETRI ACCIAIO | K2: LEGAMI sc-ec
D4: Caratteristiche meccaniche
B5: ACCIAIO
E6: fyk | F6: 450 | G6: [N/mm2]
B7: Confronto modelli | E7: Es | F7: 206000 | G7: [N/mm2]
B12: Torna alla pagina "Materiali" | D12: Modello acciaio | H12: visualizza/edita

Sheet INPUT-2.2.2
B2: Materiali | D2: ACCIAIO
D3: Legami costitutivi dell'acciaio
B5: ACCIAIO
B7: Parametri
B12: Torna alla pagina "Materiali"

Sheet INPUT-2.3.1
B2: Materiali
D3: COPRIFERRO | G3: NUCLEO | J3: ACCIAIO
D4: ec | E4: sc | G4: ec | H4: sc | J4: es | K4: ss
B5: Legami utente: DATI | D5: -0.012 | E5: 0 | G5: -0.02574 | H5: 0 | J5: -0.1140291262 | K5: -45
D6: -0.004 | E6: 0 | G6: -0.0254201 | H6: -20.4799 | J6: -0.09 | K6: -540
B7: GRAFICI | D7: -0.00398771 | E7: -19.9769 | G7: -0.0252752 | H7: -20.5212 | J7: -0.08111111111 | K7: -534.8528137
D8: -0.00386878 | E8: -20.3341 | G8: -0.0251313 | H8: -20.5626 | J8: -0.07222222222 | K8: -529.3725393
D9: -0.00375004 | E9: -20.6955 | G9: -0.0249885 | H9: -20.6039 | J9: -0.06333333333 | K9: -523.4846923
D10: -0.00363217 | E10: -21.0578 | G10: -0.0248465 | H10: -20.6452 | J10: -0.05444444444 | K10: -517.0820393
D11: -0.0035152 | E11: -21.4196 | G11: -0.0247074 | H11: -20.686 | J11: -0.04555555556 | K11: -510
B12: Torna alla pagina "Materiali" | D12: -0.00339631 | E12: -21.7881 | G12: -0.0245697 | H12: -20.7266 | J12: -0.03666666667 | K12: -501.9615242
D13: -0.00325787 | E13: -22.2154 | G13: -0.0244323 | H13: -20.7674 | J13: -0.02777777778 | K13: -492.4264069
B14: Parametri Calcestruzzo | D14: -0.00312127 | E14: -22.6316 | G14: -0.0242631 | H14: -20.8181 | J14: -0.01888888889 | K14: -480
B15: Parametri Acciaio | D15: -0.00298661 | E15: -23.032 | G15: -0.0240862 | H15: -20.8714 | J15: -0.01 | K15: -450
D16: -0.00285409 | E16: -23.4109 | G16: -0.0238698 | H16: -20.9373 | J16: -0.002184466019 | K16: -450
D17: -0.00273236 | E17: -23.7402 | G17: -0.0237352 | H17: -20.9787 | J17: 0 | K17: 0
D18: -0.002619 | E18: -24.0251 | G18: -0.0236009 | H18: -21.0202 | J18: 0.002184466019 | K18: 450
D19: -0.00250607 | E19: -24.2823 | G19: -0.0234669 | H19: -21.0619 | J19: 0.01 | K19: 450
D20: -0.00239429 | E20: -24.5039 | G20: -0.0233332 | H20: -21.1038 | J20: 0.01888888889 | K20: 480
D21: -0.00228314 | E21: -24.6842 | G21: -0.0231997 | H21: -21.1459 | J21: 0.02777777778 | K21: 492.4264069
D22: -0.00217279 | E22: -24.8151 | G22: -0.0230665 | H22: -21.1882 | J22: 0.03666666667 | K22: 501.9615242
D23: -0.00206304 | E23: -24.8881 | G23: -0.0229336 | H23: -21.2306 | J23: 0.04555555556 | K23: 510
D24: -0.00195404 | E24: -24.8933 | G24: -0.0228009 | H24: -21.2733 | J24: 0.05444444444 | K24: 517.0820393
D25: -0.00184533 | E25: -24.8199 | G25: -0.0226339 | H25: -21.3274 | J25: 0.06333333333 | K25: 523.4846923
D26: -0.00173692 | E26: -24.6553 | G26: -0.0224496 | H26: -21.3877 | J26: 0.07222222222 | K26: 529.3725393
D27: -0.00162857 | E27: -24.3855 | G27: -0.0222666 | H27: -21.4481 | J27: 0.08111111111 | K27: 534.8528137
D28: -0.00151984 | E28: -23.9934 | G28: -0.0220851 | H28: -21.5085 | J28: 0.09 | K28: 540
D29: -0.0014104 | E29: -23.4596 | G29: -0.0218617 | H29: -21.5837 | J29: 0.1140291262 | K29: 45
D30: -0.00129954 | E30: -22.7593 | G30: -0.0217268 | H30: -21.6296
D31: -0.00118637 | E31: -21.8607 | G31: -0.0215939 | H31: -21.675
D32: -0.00106951 | E32: -20.7203 | G32: -0.0214614 | H32: -21.7206
D33: -0.000946366 | E33: -19.2675 | G33: -0.0213292 | H33: -21.7665
D34: -0.000812822 | E34: -17.3863 | G34: -0.0211974 | H34: -21.8125
D35: -0.000676984 | E35: -15.1413 | G35: -0.0210659 | H35: -21.8588
D36: -0.000543329 | E36: -12.6163 | G36: -0.0209347 | H36: -21.9052
D37: -0.000411599 | E37: -9.84795 | G37: -0.0208039 | H37: -21.9519
D38: 0 | E38: 0 | G38: -0.0206733 | H38: -21.9987
G39: -0.0205431 | H39: -22.0458
G40: -0.0204131 | H40: -22.0931
G41: -0.0202835 | H41: -22.1406
G42: -0.0201542 | H42: -22.1884
G43: -0.0200251 | H43: -22.2364
G44: -0.0198544 | H44: -22.3004
G45: -0.019645 | H45: -22.3796
G46: -0.019518 | H46: -22.4282
G47: -0.0193912 | H47: -22.477
G48: -0.0192596 | H48: -22.528
G49: -0.0191231 | H49: -22.5813
G50: -0.0189863 | H50: -22.6352
G51: -0.0188507 | H51: -22.689
G52: -0.0187162 | H52: -22.7427
G53: -0.0185828 | H53: -22.7964
G54: -0.0184246 | H54: -22.8606
G55: -0.018248 | H55: -22.933
G56: -0.0180347 | H56: -23.0214
G57: -0.0179092 | H57: -23.0739
G58: -0.017784 | H58: -23.1267
G59: -0.0176592 | H59: -23.1797
G60: -0.0175347 | H60: -23.2329
G61: -0.0174104 | H61: -23.2865
G62: -0.0172865 | H62: -23.3402
G63: -0.0171629 | H63: -23.3943
G64: -0.0170396 | H64: -23.4485
G65: -0.0169165 | H65: -23.5031
G66: -0.0167938 | H66: -23.5579
G67: -0.0166713 | H67: -23.613
G68: -0.0165239 | H68: -23.6799
G69: -0.0163202 | H69: -23.7733
G70: -0.0161995 | H70: -23.8291
G71: -0.016079 | H71: -23.8853
G72: -0.0159588 | H72: -23.9417
G73: -0.0158389 | H73: -23.9985
G74: -0.0157191 | H74: -24.0555
G75: -0.0155962 | H75: -24.1145
G76: -0.0154728 | H76: -24.1742
G77: -0.0153483 | H77: -24.2348
G78: -0.0152245 | H78: -24.2956
G79: -0.0150636 | H79: -24.3752
G80: -0.0148586 | H80: -24.4779
G81: -0.0147541 | H81: -24.5308
G82: -0.0146495 | H82: -24.5839
G83: -0.0145449 | H83: -24.6375
G84: -0.0144404 | H84: -24.6914
G85: -0.0143359 | H85: -24.7456
G86: -0.0142314 | H86: -24.8001
G87: -0.0141269 | H87: -24.855
G88: -0.0140224 | H88: -24.9103
G89: -0.013918 | H89: -24.9659
G90: -0.0138135 | H90: -25.0218
G91: -0.0137091 | H91: -25.0781
G92: -0.0136047 | H92: -25.1348
G93: -0.0135003 | H93: -25.1918
G94: -0.013396 | H94: -25.2491
G95: -0.0132916 | H95: -25.3068
G96: -0.0131873 | H96: -25.3649
G97: -0.013036 | H97: -25.4499
G98: -0.0129316 | H98: -25.5089
G99: -0.0128273 | H99: -25.5683
G100: -0.012723 | H100: -25.628
G101: -0.0126188 | H101: -25.6881
G102: -0.0125146 | H102: -25.7486
G103: -0.0124104 | H103: -25.8094
G104: -0.0123062 | H104: -25.8706
G105: -0.0122021 | H105: -25.9322
G106: -0.012098 | H106: -25.9941
G107: -0.011994 | H107: -26.0564
G108: -0.01189 | H108: -26.119
G109: -0.0117857 | H109: -26.1823
G110: -0.0116813 | H110: -26.2459
G111: -0.011533 | H111: -26.337
G112: -0.0114291 | H112: -26.4013
G113: -0.0113253 | H113: -26.466
G114: -0.0112214 | H114: -26.5311
G115: -0.0111172 | H115: -26.5967
G116: -0.0110131 | H116: -26.6627
G117: -0.0109081 | H117: -26.7296
G118: -0.0108031 | H118: -26.7969
G119: -0.0106981 | H119: -26.8646
G120: -0.0105933 | H120: -26.9326
G121: -0.0104525 | H121: -27.0244
G122: -0.0103478 | H122: -27.0932
G123: -0.0102431 | H123: -27.1623
G124: -0.0101384 | H124: -27.2318
G125: -0.0100338 | H125: -27.3015
G126: -0.00992933 | H126: -27.3715
G127: -0.00982491 | H127: -27.4419
G128: -0.00972057 | H128: -27.5125
G129: -0.00958225 | H129: -27.6065
G130: -0.00947802 | H130: -27.6778
G131: -0.00937388 | H131: -27.7492
G132: -0.00926984 | H132: -27.8209
G133: -0.00916588 | H133: -27.8928
G134: -0.00906203 | H134: -27.9649
G135: -0.00895828 | H135: -28.0371
G136: -0.00885463 | H136: -28.1095
G137: -0.0087182 | H137: -28.2051
G138: -0.00861472 | H138: -28.2778
G139: -0.00851135 | H139: -28.3505
G140: -0.00840811 | H140: -28.4233
G141: -0.00830499 | H141: -28.4961
G142: -0.00817077 | H142: -28.591
G143: -0.00806786 | H143: -28.6638
G144: -0.00796509 | H144: -28.7365
G145: -0.00786246 | H145: -28.809
G146: -0.00775998 | H146: -28.8814
G147: -0.00765764 | H147: -28.9536
G148: -0.00752526 | H148: -29.0467
G149: -0.0074232 | H149: -29.1182
G150: -0.0073213 | H150: -29.1894
G151: -0.00721958 | H151: -29.2601
G152: -0.00708898 | H152: -29.3503
G153: -0.00698758 | H153: -29.4198
G154: -0.00688636 | H154: -29.4887
G155: -0.00678534 | H155: -29.5568
G156: -0.00665636 | H156: -29.6428
G157: -0.00655571 | H157: -29.709
G158: -0.00645528 | H158: -29.7742
G159: -0.00632793 | H159: -29.8554
G160: -0.00622789 | H160: -29.918
G161: -0.00612808 | H161: -29.9792
G162: -0.00600236 | H162: -30.0544
G163: -0.00590299 | H163: -30.1121
G164: -0.00580388 | H164: -30.1681
G165: -0.00567974 | H165: -30.2356
G166: -0.00558107 | H166: -30.287
G167: -0.0054822 | H167: -30.3364
G168: -0.00535957 | H168: -30.3942
G169: -0.00526045 | H169: -30.4381
G170: -0.0051395 | H170: -30.4876
G171: -0.00504048 | H171: -30.5245
G172: -0.00492072 | H172: -30.5645
G173: -0.00482233 | H173: -30.5932
G174: -0.00470353 | H174: -30.6222
G175: -0.00458584 | H175: -30.6444
G176: -0.00448846 | H176: -30.6573
G177: -0.00437169 | H177: -30.6656
G178: -0.0042378 | H178: -30.6645
G179: -0.00410364 | H179: -30.6509
G180: -0.00397054 | H180: -30.6234
G181: -0.00373447 | H181: -30.5354
G182: -0.00350068 | H182: -30.3895
G183: -0.00338515 | H183: -30.292
G184: -0.00303911 | H184: -29.8772
G185: -0.0029518 | H185: -29.7386
G186: -0.00286468 | H186: -29.5845
G187: -0.00277843 | H187: -29.4151
G188: -0.00269308 | H188: -29.2297
G189: -0.00260581 | H189: -29.0206
G190: -0.00249899 | H190: -28.7353
G191: -0.002394 | H191: -28.4205
G192: -0.00229096 | H192: -28.0753
G193: -0.00219007 | H193: -27.699
G194: -0.00209995 | H194: -27.3281
G195: -0.00201822 | H195: -26.9609
G196: -0.00193691 | H196: -26.5642
G197: -0.00185675 | H197: -26.1403
G198: -0.00177722 | H198: -25.6852
G199: -0.00169848 | H199: -25.1981
G200: -0.00162036 | H200: -24.6765
G201: -0.00154298 | H201: -24.1195
... 14 more rows

Sheet INPUT-2.3.2
B2: Materiali | D2: CALCESTRUZZO | I2: ACCIAIO
B5: Legami utente: GRAFICI
B7: DATI
B12: Torna alla pagina "Materiali"
D18: Calcestruzzo non confinato | F18: Calcestruzzo confinato | I18: Punti notevoli legame acciaio
D19: fc0 | E19: ec0 | F19: fcc | G19: ecc | I19: fy | J19: ey | K19: fmax | L19: eu

Sheet Legami (hidden)
A1: n° punti | B1: =COUNTA(A5:A2135) -> 5 | D1: n° punti | E1: =COUNTA(D5:D2135) -> 25 | G1: n° punti | H1: =COUNTA(G5:G2135) -> 51
A2: Legame Acciaio | D2: Legame NC | G2: Legame CC | J2: Acciaio | S2: Legami Acciaio | T2: 3 | V2: Legami cls copriferro | W2: 2 | Y2: Legami cls nucleo | Z2: 5
A3: s | B3: e | D3: s | E3: e | G3: s | H3: e | J3: Legame: | K3: =INDEX(S3:T6,MATCH(T2,T3:T6,0),1) -> B450C NTC2008 mod.(b) | S3: ad incrudimento parabolico | T3: 1 | V3: NTC2008 mod.(a) | W3: 1 | Y3: Mander confinato | Z3: 1
A4: MPa | B4: % | D4: MPa | E4: % | G4: MPa | J4: numero di punti: 5 | S4: B450C NTC2008 mod.(a) | T4: 2 | V4: Mander non confinato | W4: 2 | Y4: EC2 confinato | Z4: 2
A5: -450 | B5: -0.2 | D5: 0 | E5: -0.01200239763 | G5: -9.066440672 | H5: -0.01417356032 | J5: info | S5: B450C NTC2008 mod.(b) | T5: 3 | V5: Kent-Park | W5: 3 | Y5: Mander non confinato | Z5: 3
A6: -450 | B6: -0.002184466019 | D6: 0 | E6: -0.00400079921 | G6: -9.449292904 | H6: -0.0138101357 | S6: da utente | T6: 4 | V6: da utente | W6: 4 | Y6: NTC2008 mod.(a) | Z6: 4
A7: 0 | B7: 0 | D7: -19.94025968 | E7: -0.004 | G7: -9.841857926 | H7: -0.01344671107 | Y7: Braga-Gigliotti-Laterza | Z7: 5
A8: 450 | B8: 0.002184466019 | D8: -20.5429511 | E8: -0.0038 | G8: -10.24540841 | H8: -0.01308328645 | Y8: kent-Park confinato | Z8: 6
A9: 450 | B9: 0.2 | D9: -21.15713733 | E9: -0.0036 | G9: -10.66113946 | H9: -0.01271986183 | Y9: da utente | Z9: 7
D10: -21.77665123 | E10: -0.0034 | G10: -11.09019718 | H10: -0.0123564372
D11: -22.39265277 | E11: -0.0032 | G11: -11.53369953 | H11: -0.01199301258
D12: -22.99273274 | E12: -0.003 | G12: -11.99275136 | H12: -0.01162958795
D13: -23.55976003 | E13: -0.0028 | G13: -12.4684549 | H13: -0.01126616333
D14: -24.07043152 | E14: -0.0026 | G14: -12.96191623 | H14: -0.01090273871
D15: -24.49350939 | E15: -0.0024 | G15: -13.47424803 | H15: -0.01053931408
D16: -24.78779304 | E16: -0.0022 | G16: -14.00656843 | H16: -0.01017588946
D17: -24.9 | E17: -0.002 | G17: -14.55999563 | H17: -0.009812464837
D18: -24.76295902 | E18: -0.0018 | G18: -15.13563714 | H18: -0.009449040213
D19: -24.29488497 | E19: -0.0016 | G19: -15.73457248 | H19: -0.00908561559
D20: -23.40101049 | E20: -0.0014 | G20: -16.35782662 | H20: -0.008722190966
D21: -21.97938329 | E21: -0.0012 | G21: -17.00633027 | H21: -0.008358766343
D22: -19.93286386 | E22: -0.001 | G22: -17.6808623 | H22: -0.007995341719
D23: -17.18861842 | E23: -0.0008 | G23: -18.3819749 | H23: -0.007631917095
D24: -13.72388426 | E24: -0.0006 | G24: -19.10992891 | H24: -0.007268492472
D25: -9.592264475 | E25: -0.0004 | G25: -19.86472283 | H25: -0.006905067848
D26: -4.939933988 | E26: -0.0002 | G26: -20.64625139 | H26: -0.006541643225
D27: 0 | E27: 0 | G27: -21.45369071 | H27: -0.006178218601 | J27: Calcestruzzo copriferro
D28: 3.107566618 | E28: 0.0001245520183 | G28: -22.27898582 | H28: -0.005814793977 | J28: Legame: | K28: =INDEX(V3:W6,MATCH(W2,W3:W6,0),1) -> Mander non confinato
D29: 0 | E29: 0.001370072202 | G29: -23.08039066 | H29: -0.005451369354 | J29: numero di punti: 25
G30: -23.73936741 | H30: -0.00508794473 | J30: info
G31: -24.25896104 | H31: -0.004724520107
G32: -24.77503302 | H32: -0.004361095483 | J32: Calcestruzzo nucleo
G33: -25.27665812 | H33: -0.00399767086 | J33: Legame: | K33: =INDEX(Y3:Z9,MATCH(Z2,Z3:Z9,0),1) -> Braga-Gigliotti-Laterza
G34: -25.74608236 | H34: -0.003634246236 | J34: numero di punti: 40
G35: -26.15466526 | H35: -0.003270821612 | J35: info
G36: -26.45623467 | H36: -0.002907396989
G37: -26.57417112 | H37: -0.002543972365
G38: -26.13719867 | H38: -0.002180547742
G39: -25.33347212 | H39: -0.001817123118
G40: -23.8518035 | H40: -0.001453698494
G41: -21.04943668 | H41: -0.001090273871
G42: -16.30408303 | H42: -0.0007268492472
G43: -9.225410089 | H43: -0.0003634246236
G44: 0 | H44: 0
G1836: -21.4507 | H1836: -0.00123526
G1837: -20.6451 | H1837: -0.00115744
G1838: -19.7635 | H1838: -0.00107819
G1839: -18.7878 | H1839: -0.000996646
G1840: -17.6891 | H1840: -0.000911411
G1841: -16.4142 | H1841: -0.000819886
G1842: -14.8714 | H1842: -0.000717961
G1843: -13.1525 | H1843: -0.000613743
G1844: -11.3245 | H1844: -0.000511709
G1845: -9.38738 | H1845: -0.000411599
G1846: 0 | H1846: 0

Sheet acciaio B450C incr. par.
B2: ε | C2: σ
B3: - | C3: [N/mm2] | I3: Acciaio ad incrudimento parabolico
B4: =-$J$33 -> -0.1140291262 | C4: =-$J$34 -> -45 | I4: info legame
B5: =-$J$31 -> -0.09 | C5: =-$J$28 -> -540
B6: -0.08428571429 | C6: =SIGN(B6)*($J$27+($J$28-$J$27)*((ABS(B6)-$J$30)/($J$31-$J$30))^0.5) -> -536.72617 | I6: NUMERO DI PUNTI DEL LEGAME COSTITUTIVO
B7: -0.07857142857 | C7: -533.323809 | I7: 35
B8: -0.07285714286 | C8: -529.7764734 | I8: =IF(MOD(I7,2)=0,"ATTENZIONE: immettere un numero dispari",IF(I7<9,"ATTENZIONE: immettere un numero dispari maggiore di 7","")) -> 
B9: -0.06714285714 | C9: -526.0638829
B10: -0.06142857143 | C10: -522.1605353 | I10: Passo di discretizzazione della ε nel tratto non lineare
B11: -0.05571428571 | C11: -518.0336051 | I11: =(J31-J30)/(0.5*(I7-1)-3) -> 0.005714285714
B12: -0.05 | C12: -513.6396103
B13: -0.04428571429 | C13: -508.9188304
B14: -0.03857142857 | C14: -503.7852874
B15: -0.03285714286 | C15: -498.1070235
B16: -0.02714285714 | C16: -491.6619045
B17: -0.02142857143 | C17: -484.0168026
B18: -0.01571428571 | C18: -474.0535118 | I18: Ritorna alla pagina "parametri dell'acciaio"
B19: =-$J$30 -> -0.01 | C19: =-$J$27 -> -450
B20: =-$J$29 -> -0.002184466019 | C20: =-$J$27 -> -450
B21: 0 | C21: 0 | I21: Acciaio ad incrudimento parabolico
B22: =$J$29 -> 0.002184466019 | C22: =$J$27 -> 450
B23: =$J$30 -> 0.01 | C23: =$J$27 -> 450 | I23: fy | J23: ='INPUT-2.2.1'!$F$6 -> 450 | K23: [N/mm2]
B24: 0.01571428571 | C24: =SIGN(B24)*($J$27+($J$28-$J$27)*((ABS(B24)-$J$30)/($J$31-$J$30))^0.5) -> 474.0535118 | F24: EQUAZIONI MODELLO | I24: fu | J24: =540 -> 540 | K24: [N/mm2]
B25: 0.02142857143 | C25: 484.0168026 | I25: γs | J25: ='INPUT-2'!$L$20 -> 1 | K25: -
B26: 0.02714285714 | C26: 491.6619045 | I26: E | J26: ='INPUT-2.2.1'!$F$7 -> 206000 | K26: [N/mm2]
B27: 0.03285714286 | C27: 498.1070235 | I27: fyd | J27: =J23/J25 -> 450 | K27: [N/mm2]
B28: 0.03857142857 | C28: 503.7852874 | I28: fud | J28: =J24/J25 -> 540 | K28: [N/mm2]
B29: 0.04428571429 | C29: 508.9188304 | I29: εy | J29: =J27/J26 -> 0.002184466019 | K29: -
B30: 0.05 | C30: 513.6396103 | I30: εsh | J30: 0.01 | K30: -
B31: 0.05571428571 | C31: 518.0336051 | I31: εu | J31: 0.09 | K31: -
B32: 0.06142857143 | C32: 522.1605353 | I32: ifin | J32: 0.1 | K32: -
B33: 0.06714285714 | C33: 526.0638829 | I33: εu1 | J33: =J31+(J28-J34)/(J32*J26) -> 0.1140291262
B34: 0.07285714286 | C34: 529.7764734 | I34: fu1 | J34: =J36*J27 -> 45
B35: 0.07857142857 | C35: 533.323809 | I35: εu1/εu | J35: =J33/J32 -> 1.140291262
B36: 0.08428571429 | C36: 536.72617 | I36: fu1/f y | J36: 0.1 | K36: -
B37: 0.09 | C37: 540
B38: =$J$33 -> 0.1140291262 | C38: =$J$34 -> 45

Sheet acciaio B450C NTC2008 mod.(a)
B2: ε | C2: σ
B3: - | C3: [N/mm2] | I3: Acciaio - NTC2008 modello (a)
B4: =-$J$35-$J$35/10000 -> -0.06750675 | C4: 0 | I4: info legame
B5: =-$J$35 -> -0.0675 | C5: =-$J$32 -> -540
B6: =-$J$33 -> -0.002184466019 | C6: =-$J$31 -> -450
B7: 0 | C7: 0
B8: =$J$33 -> 0.002184466019 | C8: =$J$31 -> 450
B9: =$J$35 -> 0.0675 | C9: =$J$32 -> 540
B10: =$J$35+0.000001 -> 0.067501 | C10: 0
I12: Ritorna alla pagina "parametri dell'acciaio"
I24: Acciaio B450C - elasto/plastico incrudente
I26: E | J26: ='INPUT-2.2.1'!$F$7 -> 206000 | K26: [N/mm2]
I27: fy nom | J27: ='INPUT-2.2.1'!$F$6 -> 450 | K27: [N/mm2]
I28: ft nom | J28: =540 -> 540 | K28: [N/mm2]
I29: ft /f y | J29: =J28/J27 -> 1.2 | K29: -
I30: γs | J30: ='INPUT-2'!$L$20 -> 1 | K30: -
I31: fyd | J31: =J27/J30 -> 450 | K31: [N/mm2]
I32: fud | J32: =J28/J30 -> 540 | K32: [N/mm2]
I33: εyd | J33: =J31/J26 -> 0.002184466019 | K33: -
I34: εuk (Agtk) | J34: 0.075 | K34: -
I35: εud | J35: =J36*J34 -> 0.0675 | K35: -
I36: k | J36: 0.9 | K36: -

Sheet acciaio B450C NTC2008 mod.(b)
B2: ε | C2: σ
B3: - | C3: [N/mm2] | I3: Acciaio - NTC2008 modello (b)
B4: =-0.2 -> -0.2 | C4: =-$J$29 -> -450 | I4: info legame
B5: =-$J$30 -> -0.002184466019 | C5: =-$J$29 -> -450
B6: 0 | C6: 0
B7: =$J$30 -> 0.002184466019 | C7: =$J$29 -> 450
B8: =0.2 -> 0.2 | C8: =$J$29 -> 450
I12: Ritorna alla pagina "parametri dell'acciaio"
I24: Acciaio B450C - elastico/indefinitamente plastico
I26: E | J26: ='INPUT-2.2.1'!$F$7 -> 206000 | K26: [N/mm2]
I27: fyk | J27: ='INPUT-2.2.1'!$F$6 -> 450 | K27: [N/mm2]
I28: γs | J28: ='INPUT-2'!$L$20 -> 1 | K28: -
I29: fyd | J29: =J27/J28 -> 450 | K29: [N/mm2]
I30: εyd | J30: =J29/J26 -> 0.002184466019 | K30: -

Sheet cls NTC2008 mod.(a)
B2: ε | C2: σ
B3: - | C3: [N/mm2] | I3: Calcestruzzo - NTC2008 modello (a)
B4: =-$J$30-$J$30/100000 -> -0.003500035 | C4: 0 | I4: info legame
B5: =-$J$30 -> -0.0035 | C5: =-$J$34 -> -21.165
B6: =-$J$29 -> -0.002 | C6: =-$J$34 -> -21.165 | I6: NUMERO DI PUNTI DEL LEGAME COSTITUTIVO | BD6: 0
B7: -0.00192 | C7: =IF(B7<-$J$29,-$J$34,-($J$34*ABS(B7)/$J$29)*(2-ABS(B7)/$J$29)) -> -21.131136 | I7: 28 | BD7: 0
B8: -0.00184 | C8: -21.029544 | BD8: 0
B9: -0.00176 | C9: -20.860224 | BD9: 0
B10: -0.00168 | C10: -20.623176 | I10: Passo di discretizzazione della ε nel tratto non lineare | BD10: 0
B11: -0.0016 | C11: -20.3184 | I11: =J29/(I7-3) -> 8e-05 | BD11: 0
B12: -0.00152 | C12: -19.945896 | BD12: 0
B13: -0.00144 | C13: -19.505664 | BD13: 0
B14: -0.00136 | C14: -18.997704 | BD14: 0
B15: -0.00128 | C15: -18.422016 | BD15: 0
B16: -0.0012 | C16: -17.7786 | BD16: 0
B17: -0.00112 | C17: -17.067456 | BD17: 0
B18: -0.00104 | C18: -16.288584 | I18: Ritorna alla pagina "parametri del calcestruzzo" | BD18: 0
B19: -0.00096 | C19: -15.441984 | AR19: 0 | BD19: 0
B20: -0.00088 | C20: -14.527656 | BD20: 0
B21: -0.0008 | C21: -13.5456 | F21: EQUAZIONI MODELLO | BD21: 0
B22: -0.00072 | C22: -12.495816 | I22: NTC2008 modello (a) - parabola-rettangolo | BD22: 0
B23: -0.00064 | C23: -11.378304 | BD23: 0
B24: -0.00056 | C24: -10.193064 | BD24: 0
B25: -0.00048 | C25: -8.940096 | BD25: 0
B26: -0.0004 | C26: -7.6194 | I26: E | J26: =22000*(J28/10)^0.3 -> 31447.16144 | K26: [N/mm2] | BD26: 0
B27: -0.00032 | C27: -6.230976 | I27: fck | J27: ='INPUT-2.1.1'!$F$6 -> 24.9 | K27: [N/mm2] | BD27: 0
B28: -0.00024 | C28: -4.774824 | I28: fcm | J28: =J27+8 -> 32.9 | K28: [N/mm2] | BD28: 0
B29: -0.00016 | C29: -3.250944 | I29: εc2 | J29: =IF(J27>50, 0.002+0.000085*(J27-50)^0.53,0.002) -> 0.002 | K29: - | BD29: 0
B30: -8e-05 | C30: -1.659336 | I30: εcu | J30: =IF(J27>50,0.0026+0.035*((90-J27)/100)^4,0.0035) -> 0.0035 | K30: - | BD30: 0
B31: 0 | C31: 0 | I31: γc | J31: ='INPUT-2'!$J$20 -> 1 | K31: -
I32: αcc | J32: 0.85 | K32: -
I33: fcd | J33: =J27/J31 -> 24.9 | K33: [N/mm2]
I34: αcc∙fcd | J34: =J32*J33 -> 21.165 | K34: [N/mm2]
I35: fctm | J35: =IF(J27>50,2.12*(LN(1+J28/10)),0.3*J27^(2/3)) -> 2.558119448 | K35: [N/mm2]
I36: fcfm | J36: =1.2*J35 -> 3.069743338 | K36: [N/mm2]

Sheet Mander non confinato
B2: ε | C2: σ
B3: - | C3: [N/mm2] | I3: Mander per calcestruzzo non confinato
B4: =-$J$35 -> -0.01200239763 | C4: =-$J$34 -> 0 | I4: info legame
B5: =-$J$29 -> -0.00400079921 | C5: =-$J$34 -> 0
B6: -0.004 | C6: =IF(ABS(B6)<2*$J$28,($J$27*(B6/$J$28)*$J$30)/($J$30-1+(ABS(B6)/$J$28)^$J$30),IF(ABS(B6)>$J$29,$J$34,(((SIGN(B6)*2*$J$27*$J$30)/($J$30-1+2^$J$30))*(($J$29-ABS(B6))/($J$29-2*$J$28))))) -> -19.94025968 | I6: NUMERO DI PUNTI DEL LEGAME COSTITUTIVO | BD6: 0
B7: -0.0038 | C7: -20.5429511 | I7: 25 | BD7: 0
B8: -0.0036 | C8: -21.15713733 | BD8: 0
B9: -0.0034 | C9: -21.77665123 | BD9: 0
B10: -0.0032 | C10: -22.39265277 | I10: Passo di discretizzazione della ε nel tratto non lineare | BD10: 0
B11: -0.003 | C11: -22.99273274 | I11: =2*J28/(I7-5) -> 0.0002 | BD11: 0
B12: -0.0028 | C12: -23.55976003 | BD12: 0
B13: -0.0026 | C13: -24.07043152 | BD13: 0
B14: -0.0024 | C14: -24.49350939 | BD14: 0
B15: -0.0022 | C15: -24.78779304 | BD15: 0
B16: -0.002 | C16: -24.9 | BD16: 0
B17: -0.0018 | C17: -24.76295902 | BD17: 0
B18: -0.0016 | C18: -24.29488497 | I18: Ritorna alla pagina "parametri del calcestruzzo" | BD18: 0
B19: -0.0014 | C19: -23.40101049 | AR19: 0 | BD19: 0
B20: -0.0012 | C20: -21.97938329 | BD20: 0
B21: -0.001 | C21: -19.93286386 | F21: EQUAZIONI MODELLO | BD21: 0
B22: -0.0008 | C22: -17.18861842 | I22: Mander per calcestruzzo non confinato | BD22: 0
B23: -0.0006 | C23: -13.72388426 | BD23: 0
B24: -0.0004 | C24: -9.592264475 | I24: f 'c | J24: ='INPUT-2.1.1'!$F$6 -> 24.9 | K24: [N/mm2] | BD24: 0
B25: -0.0002 | C25: -4.939933988 | I25: γc | J25: ='INPUT-2'!$J$20 -> 1 | K25: - | BD25: 0
B26: 0 | C26: 0 | I26: E | J26: =5000*SQRT(J24) -> 24949.9499 | K26: [N/mm2] | BD26: 0
B27: =$J$31/$J$26 -> 0.0001245520183 | C27: =$J$31 -> 3.107566618 | I27: f 'cd | J27: =J24/J25 -> 24.9 | K27: [N/mm2] | BD27: 0
B28: =$J$31/($J$32*$J$26)+$J$31/$J$26 -> 0.001370072202 | C28: 0 | I28: ε'c | J28: ='INPUT-2.1.1'!$F$7 -> 0.002 | K28: - | BD28: 0
I29: εu | J29: =IF(J33<>0,(((2*J27*J30)/(J30-1+2^J30))-J34)/(J33*J26)+2*J28,10*J28) -> 0.00400079921 | K29: - | BD29: 0
I30: r | J30: =J26/(J26-(J24/J28)) -> 1.996003992 | K30: - | BD30: 0
I31: ftd | J31: =((7.5*SQRT(J24*10^6/(6.8947579*10^3))*6.8947579*10^3)/10^6)/J25 -> 3.107566618 | K31: [N/mm2]
I32: itraz | J32: 0.1 | K32: -
I33: ifin | J33: 1000 | K33: -
I34: fu1 | J34: =J37*J27 -> 0 | K34: [N/mm2]
I35: εu1 | J35: =J36*J29 -> 0.01200239763 | K35: [N/mm2]
I36: εu1/εu | J36: 3 | K36: -
I37: fu1/f 'cd | J37: 0 | K37: -

Sheet Kent-Park
B2: ε | C2: σ | N2: COLLEGAMENTI DAL FILE DI INPUT | T2: RAPPORTO VOLUMETRICO DI ARMATURA TRASVERSALE, DEFORMAZIONE ULTIMA | AD2: CALCOLO DELLA DEFORMAZIONE ULTIMA DEL CALCESTRUZZO CONFINATO (εcu) CON LA FORMULA DI MANDER
B3: - | C3: [N/mm2] | I3: Kent-Park per calcestruzzo confinato
B4: =-$J$33-$J$33/1000000 -> -0.005064552086 | C4: =-0.2*$J$29 -> -4.98 | I4: info legame | T4: CALCOLO DEL RAPPORTO VOLUMETRICO DI ARMATURA TRASVERSALE - nuclei rettangolari | AD4: armatura | AF4: acciaio | AI4: calcestruzzo
B5: =-$J$32 -> -0.005064547022 | C5: =-0.2*$J$29 -> -4.98 | AD5: ρs | AE5: ρcc | AF5: fy | AG5: Es | AH5: εsy | AI5: f'co | AJ5: fcc | AK5: εcc | AL5: Z | AM5: εcu
B6: =-$J$31 -> -0.002 | C6: =-$J$29 -> -24.9 | I6: NUMERO DI PUNTI DEL LEGAME COSTITUTIVO | T6: Ast | U6: Astx | V6: Asty | W6: hc | X6: bc | Y6: ρx | Z6: ρy | AA6: ρs | AD6: - | AE6: - | AF6: [N/mm2] | AG6: [N/mm2] | AH6: - | AI6: [N/mm2] | AJ6: [N/mm2] | AK6: - | AL6: - | AM6: -
B7: =B6+ $I$11 -> -0.001957446809 | C7: =-$J$29*(2*(ABS(B7)/$J$31)-(ABS(B7)/$J$31)^2) -> -24.88872793 | I7: 50 | T7: [mm2] | U7: [mm2] | V7: [mm2] | W7: [mm] | X7: [mm] | Y7: - | Z7: - | AA7: - | AD7: =$J$37 -> 0 | AE7: =P36/(W8*X8) -> 0.02988435342 | AF7: =$P$42 -> 450 | AG7: =$Q$42 -> 206000 | AH7: =AF7/AG7 -> 0.002184466019 | AI7: =$J$24 -> 24.9 | AJ7: =$J$28 -> 24.9 | AK7: =$J$31 -> 0.002 | AL7: =$J$36 -> 261.05 | AM7: 0.003623625256
B8: -0.001914893617 | C8: -24.85491172 | T8: =PI()*J44^2/4 -> 50.26548246 | U8: =T8*K48 -> 150.7964474 | V8: =T8*K51 -> 150.7964474 | W8: =P25*1000-2*P27*1000 -> 232 | X8: =P26*1000-2*P27*1000 -> 232 | Y8: =U8/(W8*10*J45) -> 0.004333231246 | Z8: =V8/(X8*10*J45) -> 0.004333231246 | AA8: =Y8+Z8 -> 0.008666462493
B9: -0.001872340426 | C9: -24.79855138
B10: -0.001829787234 | C10: -24.7196469 | I10: Passo di discretizzazione della ε nel tratto non lineare | AD10: Ush | AE10: Ucc | AF10: Usc | AG10: Uco | AI10: errore
B11: -0.001787234043 | C11: -24.61819828 | I11: =J31/(I7-3) -> 4.255319149e-05 | T11: CALCOLO DEL RAPPORTO VOLUMETRICO DI ARMATURA TRASVERSALE - nuclei circolari | AD11: =110*AD7 -> 0 | AE11: =AG19+AM19 -> 0.06642753789 | AF11: =IF(AM7<AH7,AE7*0.5*AF7*AH7,AE7*(0.5*AF7*AH7+AF7*(AM7-AH7))) -> 0.03404205924 | AG11: =0.017*SQRT(AI7) -> 0.08482982966 | AI11: =AD11-AE11-AF11+AG11 -> -0.01563976748
B12: -0.001744680851 | C12: -24.49420552
B13: -0.00170212766 | C13: -24.34766863 | T13: ds | U13: Asp | V13: ρs
B14: -0.001659574468 | C14: -24.1785876 | T14: [mm] | U14: [mm2] | V14: - | AD14: intervalli | AE14: εcu max | AF14: Δε
B15: -0.001617021277 | C15: -23.98696243 | T15: =300 -> 300 | U15: =PI()*J44^2/4 -> 50.26548246 | V15: =(PI()*U15*T15)/(PI()*T15^2/4*10*J45) -> 0.004468042885 | AD15: 500 | AE15: 0.1 | AF15: =AE15/AD15 -> 0.0002
B16: -0.001574468085 | C16: -23.77279312
B17: -0.001531914894 | C17: -23.53607967 | AD17: ε | AE17: σ | AF17: ai | AG17: ∑ai | AI17: aiu | AJ17: εiu | AK17: σiu | AL17: σ(εcu) | AM17: Δai
B18: -0.001489361702 | C18: -23.27682209 | I18: Ritorna alla pagina "parametri del calcestruzzo" | AD18: - | AE18: [N/mm2] | AF18: [N/mm2] | AG18: [N/mm2] | AI18: - | AJ18: - | AK18: [N/mm2] | AL18: [N/mm2] | AM18: [N/mm2]
B19: -0.001446808511 | C19: -22.99502037 | AD19: 0 | AE19: 0 | AF19: =(AE20+AE19)*(AD20-AD19)/2 -> 0.0004731 | AG19: =SUM(AF19:AF518) -> 0.0660867912 | AI19: =MATCH(0,AF19:AF518,0)-1 -> 19 | AJ19: =INDEX(AD19:AD519,$AI$19) -> 0.0036 | AK19: =INDEX(AE19:AE519,$AI$19) -> 14.499768 | AL19: =IF(AM7>$AM$7,0,IF(AM7<$AK$7,$AJ$7*(2*AM7/$AK$7-(AM7/$AK$7)^2),MAX($AJ$7*(1-$AL$7*(AM7-$AK$7)),0.2*$AJ$7))) -> 14.34620041 | AM19: =(AL19+AK19)*(AM7-AJ19)/2 -> 0.0003407466942
B20: -0.001404255319 | C20: -22.69067451 | AD20: =AD19+$AF$15 -> 0.0002 | AE20: =IF(AD20>$AM$7,0,IF(AD20<$AK$7,$AJ$7*(2*AD20/$AK$7-(AD20/$AK$7)^2),MAX($AJ$7*(1-$AL$7*(AD20-$AK$7)),0.2*$AJ$7))) -> 4.731 | AF20: =(AE21+AE20)*(AD21-AD20)/2 -> 0.0013695
B21: -0.001361702128 | C21: -22.36378452 | F21: EQUAZIONI MODELLO | T21: Armatura di confinamento | Y21: Rapporto volumetrico di armatura | AD21: =AD20+$AF$15 -> 0.0004 | AE21: =IF(AD21>$AM$7,0,IF(AD21<$AK$7,$AJ$7*(2*AD21/$AK$7-(AD21/$AK$7)^2),MAX($AJ$7*(1-$AL$7*(AD21-$AK$7)),0.2*$AJ$7))) -> 8.964 | AF21: 0.0021663
B22: -0.001319148936 | C22: -22.01435038 | I22: Kent-Park per calcestruzzo confinato | AD22: 0.0006 | AE22: 12.699 | AF22: 0.0028635
B23: -0.001276595745 | C23: -21.64237211 | AD23: 0.0008 | AE23: 15.936 | AF23: 0.0034611
B24: -0.001234042553 | C24: -21.24784971 | I24: f' c | J24: ='INPUT-2.1.1'!$F$6 -> 24.9 | K24: [N/mm2] | N24: Proprietà della sezione | T24: Tipo di armatura | Y24: ρs | AA24: 2 | AD24: 0.001 | AE24: 18.675 | AF24: 0.0039591
B25: -0.001191489362 | C25: -20.83078316 | I25: γc | J25: ='INPUT-2'!$J$20 -> 1 | K25: - | N25: Altezza | O25: LY | P25: =SezRett!C2 -> 0.3 | Q25: m | T25: staffe rettangolari + legature | W25: 1 | Y25: da sezione | AA25: 1 | AD25: 0.0012 | AE25: 20.916 | AF25: 0.0043575
B26: -0.00114893617 | C26: -20.39117248 | I26: E | J26: =5000*SQRT(J24) -> 24949.9499 | K26: [N/mm2] | N26: Base | O26: LZ | P26: =SezRett!C3 -> 0.3 | Q26: m | T26: staffe circolari | W26: 2 | Y26: da utente | AA26: 2 | AD26: 0.0014 | AE26: 22.659 | AF26: 0.0046563
B27: -0.001106382979 | C27: -19.92901766 | I27: K | J27: =1+J37*J46/J24 -> 1 | K27: - | N27: Copriferro | O27: c | P27: =SezRett!C4 -> 0.034 | Q27: m | T27: a spirale | W27: 3 | AD27: 0.0016 | AE27: 23.904 | AF27: 0.0048555
B28: -0.001063829787 | C28: -19.4443187 | I28: f cc | J28: =J27*J24 -> 24.9 | K28: [N/mm2] | N28: Diametro staffa | O28: fst | P28: =SezRett!C5 -> 8 | Q28: mm | T28: da sezione | W28: 4 | AD28: 0.0018 | AE28: 24.651 | AF28: 0.0049551
B29: -0.001021276596 | C29: -18.9370756 | I29: f cc,d | J29: =J28/J25 -> 24.9 | K29: [N/mm2] | N29: n° fibre Y | O29: nY | P29: =SezRett!C6 -> 10 | AD29: 0.002 | AE29: 24.9 | AF29: 0.0048499971
B30: -0.0009787234043 | C30: -18.40728837 | I30: εc0 | J30: ='INPUT-2.1.1'!$F$7 -> 0.002 | K30: - | N30: n° fibre Z | O30: nZ | P30: =SezRett!C7 -> 10 | T30: Tipologia scelta | W30: ='INPUT-1.1.3'!$F$5 -> 1 | AD30: 0.0022 | AE30: 23.599971 | AF30: 0.0045899913
B31: -0.0009361702128 | C31: -17.85495699 | I31: εcc | J31: =J27*J30 -> 0.002 | K31: - | N31: n° strati barre | O31: nL | P31: =SezRett!C8 -> 3 | AD31: 0.0024 | AE31: 22.299942 | AF31: 0.0043299855
B32: -0.0008936170213 | C32: -17.28008148 | I32: ε20c | J32: =(0.8/J36)+J31 -> 0.005064547022 | K32: - | AD32: 0.0026 | AE32: 20.999913 | AF32: 0.0040699797
B33: -0.0008510638298 | C33: -16.68266184 | I33: εcu | J33: =IF(AA36=1,IF(W39>J32,W39,J32),IF(AA36=2,IF(U39>J32,U39,J32),J34)) -> 0.005064547022 | K33: - | AD33: 0.0028 | AE33: 19.699884 | AF33: 0.0038099739
B34: -0.0008085106383 | C34: -16.06269805 | I34: εcu utente | J34: 0.04 | K34: - | N34: Armatura Longitudinale | T34: DEFORMAZIONE ULTIMA CALCESTRUZZO | AD34: 0.003 | AE34: 18.399855 | AF34: 0.0035499681
B35: -0.0007659574468 | C35: -15.42019013 | I35: r | J35: =(P26-2*P27)/(J45/100) -> 1.546666667 | K35: - | AD35: 0.0032 | AE35: 17.099826 | AF35: 0.0032899623
B36: -0.0007234042553 | C36: -14.75513807 | I36: Z | J36: =0.5/((3+0.29*J24)/(145*J24-1000)+0.75*J37*J35^0.5-J31) -> 261.05 | K36: - | N36: Area totale | O36: As tot | P36: =SUM(SezRett!P4:P1003)*1000000 -> 1608.495439 | Q36: [mm2] | T36: (Scott et al. 1982) | W36: (Mander) | Y36: deformazione ultima | AA36: 2 | AD36: 0.0034 | AE36: 15.799797 | AF36: 0.0030299565
B37: -0.0006808510638 | C37: -14.06754187 | I37: ρs | J37: =IF(AA24=2,J38,IF(W30=1,AA8,IF(W30<4,V15,""))) -> 0 | K37: - | T37: ρs | U37: εcu | W37: εcu | Y37: Mander | AA37: 1 | AD37: 0.0036 | AE37: 14.499768 | AF37: 0.0014499768
B38: -0.0006382978723 | C38: -13.35740154 | I38: ρs,utente | J38: 0 | K38: (Default = 0) | N38: Diametro rappresentativo f | P38: =SezRett!$M$4 -> 16 | Q38: [mm] | T38: - | U38: - | W38: - | Y38: Scott | AA38: 2 | AD38: 0.0038 | AE38: 0 | AF38: 0
B39: -0.0005957446809 | C39: -12.62471707 | T39: =$J$37 -> 0 | U39: =0.004+0.9*T39*(J46/300) -> 0.004 | W39: =$AM$7 -> 0.003623625256 | Y39: Utente | AA39: 3 | AD39: 0.004 | AE39: 0 | AF39: 0
B40: -0.0005531914894 | C40: -11.86948846 | P40: fy | Q40: Es | AD40: 0.0042 | AE40: 0 | AF40: 0
B41: -0.0005106382979 | C41: -11.09171571 | I41: Tipo di armatura di confinamento | P41: [N/mm2] | Q41: [N/mm2] | AD41: 0.0044 | AE41: 0 | AF41: 0
B42: -0.0004680851064 | C42: -10.29139882 | P42: ='INPUT-2.2.1'!$F$6 -> 450 | Q42: ='INPUT-2.2.1'!$F$7 -> 206000 | AD42: 0.0046 | AE42: 0 | AF42: 0
B43: -0.0004255319149 | C43: -9.4685378 | AD43: 0.0048 | AE43: 0 | AF43: 0
B44: -0.0003829787234 | C44: -8.623132639 | I44: φ | J44: ='INPUT-1.1.3'!G8 -> 8 | K44: [mm] | AD44: 0.005 | AE44: 0 | AF44: 0
B45: -0.0003404255319 | C45: -7.755183341 | I45: =IF($W$30=3,"Passo spirale","passo staffe") -> passo staffe | J45: ='INPUT-1.1.3'!G9 -> 15 | K45: [cm] | AD45: 0.0052 | AE45: 0 | AF45: 0
B46: -0.0002978723404 | C46: -6.864689905 | I46: fy | J46: ='INPUT-1.1.3'!G10 -> 391.3 | K46: [N/mm2] | AD46: 0.0054 | AE46: 0 | AF46: 0
B47: -0.0002553191489 | C47: -5.951652331 | AD47: 0.0056 | AE47: 0 | AF47: 0
B48: -0.0002127659574 | C48: -5.01607062 | I48: =IF($W$30=1, "numero bracci in direzione z","") -> numero bracci in direzione z | K48: ='INPUT-1.1.3'!G13 -> 3 | AD48: 0.0058 | AE48: 0 | AF48: 0
B49: -0.000170212766 | C49: -4.057944771 | I49: =IF($W$30=1, "distanza netta tra i bracci [cm]","") -> distanza netta tra i bracci [cm] | K49: ='INPUT-1.1.3'!G14 -> 9.6 | AD49: 0.006 | AE49: 0 | AF49: 0
B50: -0.0001276595745 | C50: -3.077274785 | AD50: 0.0062 | AE50: 0 | AF50: 0
B51: -8.510638298e-05 | C51: -2.074060661 | I51: =IF($W$30=1, "numero bracci in direzione y","") -> numero bracci in direzione y | K51: ='INPUT-1.1.3'!G16 -> 3 | AD51: 0.0064 | AE51: 0 | AF51: 0
B52: -4.255319149e-05 | C52: -1.048302399 | I52: =IF($W$30=1, "distanza netta tra i bracci [cm]","") -> distanza netta tra i bracci [cm] | K52: ='INPUT-1.1.3'!G17 -> 9.6 | AD52: 0.0066 | AE52: 0 | AF52: 0
B53: 0 | C53: 0 | AD53: 0.0068 | AE53: 0 | AF53: 0
AD54: 0.007 | AE54: 0 | AF54: 0
AD55: 0.0072 | AE55: 0 | AF55: 0
AD56: 0.0074 | AE56: 0 | AF56: 0
AD57: 0.0076 | AE57: 0 | AF57: 0
AD58: 0.0078 | AE58: 0 | AF58: 0
AD59: 0.008 | AE59: 0 | AF59: 0
AD60: 0.0082 | AE60: 0 | AF60: 0
AD61: 0.0084 | AE61: 0 | AF61: 0
AD62: 0.0086 | AE62: 0 | AF62: 0
AD63: 0.0088 | AE63: 0 | AF63: 0
AD64: 0.009 | AE64: 0 | AF64: 0
AD65: 0.0092 | AE65: 0 | AF65: 0
AD66: 0.0094 | AE66: 0 | AF66: 0
AD67: 0.0096 | AE67: 0 | AF67: 0
AD68: 0.0098 | AE68: 0 | AF68: 0
AD69: 0.01 | AE69: 0 | AF69: 0
AD70: 0.0102 | AE70: 0 | AF70: 0
AD71: 0.0104 | AE71: 0 | AF71: 0
AD72: 0.0106 | AE72: 0 | AF72: 0
AD73: 0.0108 | AE73: 0 | AF73: 0
AD74: 0.011 | AE74: 0 | AF74: 0
AD75: 0.0112 | AE75: 0 | AF75: 0
AD76: 0.0114 | AE76: 0 | AF76: 0
AD77: 0.0116 | AE77: 0 | AF77: 0
AD78: 0.0118 | AE78: 0 | AF78: 0
AD79: 0.012 | AE79: 0 | AF79: 0
AD80: 0.0122 | AE80: 0 | AF80: 0
AD81: 0.0124 | AE81: 0 | AF81: 0
AD82: 0.0126 | AE82: 0 | AF82: 0
AD83: 0.0128 | AE83: 0 | AF83: 0
AD84: 0.013 | AE84: 0 | AF84: =(AE85+AE84)*(AD85-AD84)/2 -> 0
AD85: =AD84+$AF$15 -> 0.0132 | AE85: =IF(AD85>$AM$7,0,IF(AD85<$AK$7,$AJ$7*(2*AD85/$AK$7-(AD85/$AK$7)^2),MAX($AJ$7*(1-$AL$7*(AD85-$AK$7)),0.2*$AJ$7))) -> 0 | AF85: 0
AD86: 0.0134 | AE86: 0 | AF86: 0
AD87: 0.0136 | AE87: 0 | AF87: 0
AD88: 0.0138 | AE88: 0 | AF88: 0
AD89: 0.014 | AE89: 0 | AF89: 0
AD90: 0.0142 | AE90: 0 | AF90: 0
AD91: 0.0144 | AE91: 0 | AF91: 0
AD92: 0.0146 | AE92: 0 | AF92: 0
AD93: 0.0148 | AE93: 0 | AF93: 0
AD94: 0.015 | AE94: 0 | AF94: 0
AD95: 0.0152 | AE95: 0 | AF95: 0
AD96: 0.0154 | AE96: 0 | AF96: 0
AD97: 0.0156 | AE97: 0 | AF97: 0
AD98: 0.0158 | AE98: 0 | AF98: 0
AD99: 0.016 | AE99: 0 | AF99: 0
AD100: 0.0162 | AE100: 0 | AF100: 0
AD101: 0.0164 | AE101: 0 | AF101: 0
AD102: 0.0166 | AE102: 0 | AF102: 0
AD103: 0.0168 | AE103: 0 | AF103: 0
AD104: 0.017 | AE104: 0 | AF104: 0
AD105: 0.0172 | AE105: 0 | AF105: 0
AD106: 0.0174 | AE106: 0 | AF106: 0
AD107: 0.0176 | AE107: 0 | AF107: 0
AD108: 0.0178 | AE108: 0 | AF108: 0
AD109: 0.018 | AE109: 0 | AF109: 0
AD110: 0.0182 | AE110: 0 | AF110: 0
AD111: 0.0184 | AE111: 0 | AF111: 0
AD112: 0.0186 | AE112: 0 | AF112: 0
AD113: 0.0188 | AE113: 0 | AF113: 0
AD114: 0.019 | AE114: 0 | AF114: 0
AD115: 0.0192 | AE115: 0 | AF115: 0
AD116: 0.0194 | AE116: 0 | AF116: 0
AD117: 0.0196 | AE117: 0 | AF117: 0
AD118: 0.0198 | AE118: 0 | AF118: 0
AD119: 0.02 | AE119: 0 | AF119: 0
AD120: 0.0202 | AE120: 0 | AF120: 0
AD121: 0.0204 | AE121: 0 | AF121: 0
AD122: 0.0206 | AE122: 0 | AF122: 0
AD123: 0.0208 | AE123: 0 | AF123: 0
AD124: 0.021 | AE124: 0 | AF124: 0
AD125: 0.0212 | AE125: 0 | AF125: 0
AD126: 0.0214 | AE126: 0 | AF126: 0
AD127: 0.0216 | AE127: 0 | AF127: 0
AD128: 0.0218 | AE128: 0 | AF128: 0
AD129: 0.022 | AE129: 0 | AF129: 0
AD130: 0.0222 | AE130: 0 | AF130: 0
AD131: 0.0224 | AE131: 0 | AF131: 0
AD132: 0.0226 | AE132: 0 | AF132: 0
AD133: 0.0228 | AE133: 0 | AF133: 0
AD134: 0.023 | AE134: 0 | AF134: 0
AD135: 0.0232 | AE135: 0 | AF135: 0
AD136: 0.0234 | AE136: 0 | AF136: 0
AD137: 0.0236 | AE137: 0 | AF137: 0
AD138: 0.0238 | AE138: 0 | AF138: 0
AD139: 0.024 | AE139: 0 | AF139: 0
AD140: 0.0242 | AE140: 0 | AF140: 0
AD141: 0.0244 | AE141: 0 | AF141: 0
AD142: 0.0246 | AE142: 0 | AF142: 0
AD143: 0.0248 | AE143: 0 | AF143: 0
AD144: 0.025 | AE144: 0 | AF144: 0
AD145: 0.0252 | AE145: 0 | AF145: 0
AD146: 0.0254 | AE146: 0 | AF146: 0
AD147: 0.0256 | AE147: 0 | AF147: 0
AD148: 0.0258 | AE148: 0 | AF148: =(AE149+AE148)*(AD149-AD148)/2 -> 0
AD149: =AD148+$AF$15 -> 0.026 | AE149: =IF(AD149>$AM$7,0,IF(AD149<$AK$7,$AJ$7*(2*AD149/$AK$7-(AD149/$AK$7)^2),MAX($AJ$7*(1-$AL$7*(AD149-$AK$7)),0.2*$AJ$7))) -> 0 | AF149: 0
AD150: 0.0262 | AE150: 0 | AF150: 0
AD151: 0.0264 | AE151: 0 | AF151: 0
AD152: 0.0266 | AE152: 0 | AF152: 0
AD153: 0.0268 | AE153: 0 | AF153: 0
AD154: 0.027 | AE154: 0 | AF154: 0
AD155: 0.0272 | AE155: 0 | AF155: 0
AD156: 0.0274 | AE156: 0 | AF156: 0
AD157: 0.0276 | AE157: 0 | AF157: 0
AD158: 0.0278 | AE158: 0 | AF158: 0
AD159: 0.028 | AE159: 0 | AF159: 0
AD160: 0.0282 | AE160: 0 | AF160: 0
AD161: 0.0284 | AE161: 0 | AF161: 0
AD162: 0.0286 | AE162: 0 | AF162: 0
AD163: 0.0288 | AE163: 0 | AF163: 0
AD164: 0.029 | AE164: 0 | AF164: 0
AD165: 0.0292 | AE165: 0 | AF165: 0
AD166: 0.0294 | AE166: 0 | AF166: 0
AD167: 0.0296 | AE167: 0 | AF167: 0
AD168: 0.0298 | AE168: 0 | AF168: 0
AD169: 0.03 | AE169: 0 | AF169: 0
AD170: 0.0302 | AE170: 0 | AF170: 0
AD171: 0.0304 | AE171: 0 | AF171: 0
AD172: 0.0306 | AE172: 0 | AF172: 0
AD173: 0.0308 | AE173: 0 | AF173: 0
AD174: 0.031 | AE174: 0 | AF174: 0
AD175: 0.0312 | AE175: 0 | AF175: 0
AD176: 0.0314 | AE176: 0 | AF176: 0
AD177: 0.0316 | AE177: 0 | AF177: 0
AD178: 0.0318 | AE178: 0 | AF178: 0
AD179: 0.032 | AE179: 0 | AF179: 0
AD180: 0.0322 | AE180: 0 | AF180: 0
AD181: 0.0324 | AE181: 0 | AF181: 0
AD182: 0.0326 | AE182: 0 | AF182: 0
AD183: 0.0328 | AE183: 0 | AF183: 0
AD184: 0.033 | AE184: 0 | AF184: 0
AD185: 0.0332 | AE185: 0 | AF185: 0
AD186: 0.0334 | AE186: 0 | AF186: 0
AD187: 0.0336 | AE187: 0 | AF187: 0
AD188: 0.0338 | AE188: 0 | AF188: 0
AD189: 0.034 | AE189: 0 | AF189: 0
AD190: 0.0342 | AE190: 0 | AF190: 0
AD191: 0.0344 | AE191: 0 | AF191: 0
AD192: 0.0346 | AE192: 0 | AF192: 0
AD193: 0.0348 | AE193: 0 | AF193: 0
AD194: 0.035 | AE194: 0 | AF194: 0
AD195: 0.0352 | AE195: 0 | AF195: 0
AD196: 0.0354 | AE196: 0 | AF196: 0
AD197: 0.0356 | AE197: 0 | AF197: 0
AD198: 0.0358 | AE198: 0 | AF198: 0
AD199: 0.036 | AE199: 0 | AF199: 0
AD200: 0.0362 | AE200: 0 | AF200: 0
AD201: 0.0364 | AE201: 0 | AF201: 0
... 318 more rows

Sheet Mander confinato
B2: ε | C2: σ | N2: COLLEGAMENTI DAL FILE DI INPUT | T2: PRESSIONI DI CONFINAMENTO, TENSIONE MASSIMA, DEFORMAZIONE ULTIMA | AD2: INTERPOLAZIONE DEL GRAFICO DI MANDER | BH2: f'l,min/f'c | BI2: 0 | BJ2: 0.02 | BK2: 0.04 | BL2: 0.06 | BM2: 0.08 | BN2: 0.1 | BO2: 0.12 | BP2: 0.14 | BQ2: 0.16 | BR2: 0.18 | BS2: 0.2 | BT2: 0.22 | BU2: 0.24 | BV2: 0.26 | BW2: 0.28 | BX2: 0.3 | CB2: CALCOLO DELLA DEFORMAZIONE ULTIMA DEL CALCESTRUZZO CONFINATO (εcu) CON LA FORMULA DI MANDER
B3: - | C3: [N/mm2] | I3: Mander per calcestruzzo confinato | BH3: a | BI3: -3.162 | BJ3: -3.093 | BK3: -3.147 | BL3: -2.749 | BM3: -3.987 | BN3: -4.114 | BO3: -3.92 | BP3: -3.355 | BQ3: -4.761 | BR3: -2.321 | BS3: -1.25 | BT3: -0.178 | BU3: 0 | BV3: -5 | BW3: 0 | BX3: 0
B4: =-$J$32-$J$32/100000 -> -0.02871063307 | C4: 0 | I4: info legame | T4: CALCOLO DELLE PRESSIONI DI CONFINAMENTO SU NUCLEI RETTANGOLARI | AD4: fcc/f'c | AE4: f'l,max/f'c | AV4: curva | AW4: coefficienti equazione | BA4: f'l max / f'c | BB4: f'l min / f'c | BH4: b | BI4: 2.025 | BJ4: 1.985 | BK4: 2.108 | BL4: 2.093 | BM4: 2.697 | BN4: 2.816 | BO4: 2.919 | BP4: 2.661 | BQ4: 3.376 | BR4: 2.267 | BS4: 1.862 | BT4: 1.467 | BU4: 1.34 | BV4: 4.05 | BW4: 1.25 | BX4: 0 | CB4: armatura | CD4: acciaio | CG4: calcestruzzo
B5: -0.02871034597 | C5: =IF(B5<=0,($J$29*(B5/$J$31)*$J$33)/($J$33-1+(ABS(B5)/$J$31)^$J$33),0) -> -18.28451031 | AD5: f'l,min/f'c | AE5: 0 | AF5: 0.02 | AG5: 0.04 | AH5: 0.06 | AI5: 0.08 | AJ5: 0.1 | AK5: 0.12 | AL5: 0.14 | AM5: 0.16 | AN5: 0.18 | AO5: 0.2 | AP5: 0.22 | AQ5: 0.24 | AR5: 0.26 | AS5: 0.28 | AT5: 0.3 | AV5: f'l,min/f'c | AW5: a | AX5: b | AY5: c | BA5: [N/mm2] | BB5: [N/mm2] | BF5: PUNTO FINALE | BH5: c | BI5: 1 | BJ5: 1.108 | BK5: 1.189 | BL5: 1.261 | BM5: 1.276 | BN5: 1.329 | BO5: 1.366 | BP5: 1.448 | BQ5: 1.418 | BR5: 1.581 | BS5: 1.656 | BT5: 1.729 | BU5: 1.785 | BV5: 1.459 | BW5: 1.884 | BX5: 2.3 | CB5: ρs | CC5: ρcc | CD5: fy | CE5: Es | CF5: εsy | CG5: f'co | CH5: f'cc | CI5: ε'cc | CJ5: r | CK5: εcu
B6: -0.0276061019 | C6: -18.56150685 | I6: NUMERO DI PUNTI DEL LEGAME COSTITUTIVO | T6: Ast | U6: Astx | V6: Asty | W6: dc | X6: bc | Y6: Ac | Z6: ρcc | AA6: Acc | AD6: 0 | AE6: 1 | AF6: 1.042 | AG6: 1.091 | AH6: 1.12 | AI6: 1.147 | AJ6: 1.172 | AK6: 1.195 | AL6: 1.21 | AM6: 1.23 | AN6: 1.243 | AO6: 1.257 | AP6: 1.268 | AQ6: 1.28 | AR6: 1.286 | AS6: 1.292 | AT6: 1.3 | AV6: 0 | AW6: -3.162 | AX6: 2.025 | AY6: 1 | BA6: =V60 -> 0.02994573086 | BB6: =W60 -> 0.02994573086 | BF6: 0 | BG6: =BG7 -> 1.206756435 | BH6: fl max / f'c | CB6: - | CC6: - | CD6: [N/mm2] | CE6: [N/mm2] | CF6: - | CG6: [N/mm2] | CH6: [N/mm2] | CI6: - | CJ6: - | CK6: -
B7: -0.02650185782 | C7: -18.8526385 | I7: 30 | T7: [mm2] | U7: [mm2] | V7: [mm2] | W7: [mm] | X7: [mm] | Y7: [mm2] | Z7: - | AA7: [mm2] | AD7: =AD6+0.02 -> 0.02 | AF7: 1.13 | AG7: 1.19 | AH7: 1.224 | AI7: 1.254 | AJ7: 1.28 | AK7: 1.3 | AL7: 1.325 | AM7: 1.344 | AN7: 1.363 | AO7: 1.378 | AP7: 1.392 | AQ7: 1.403 | AR7: 1.413 | AS7: 1.424 | AT7: 1.43 | AV7: =AV6+0.02 -> 0.02 | AW7: -3.093 | AX7: 1.985 | AY7: 1.108 | BF7: =BA6 -> 0.02994573086 | BG7: =BC17 -> 1.206756435 | BH7: 0 | BI7: =BI$3*$BH7^2+BI$4*$BH7+BI$5 -> 1 | CB7: =IF(OR(W44=2,W44=3),U30,AA13) -> 0.008666462493 | CC7: =$Z$8 -> 0.02988435342 | CD7: =$P$42 -> 450 | CE7: =$Q$42 -> 206000 | CF7: =CD7/CE7 -> 0.002184466019 | CG7: =$J$24 -> 24.9 | CH7: =$J$28 -> 30.04823523 | CI7: =$J$31 -> 0.00406756435 | CJ7: =$J$33 -> 1.420623943 | CK7: 0.02871034597
B8: -0.02539761374 | C8: -19.1591231 | T8: =PI()*J41^2/4 -> 50.26548246 | U8: =T8*K51 -> 150.7964474 | V8: =T8*K54 -> 150.7964474 | W8: =P25*1000-2*P27*1000 -> 232 | X8: =P26*1000-2*P27*1000 -> 232 | Y8: =W8*X8 -> 53824 | Z8: =P36/Y8 -> 0.02988435342 | AA8: =Y8*(1-Z8) -> 52215.50456 | AD8: =AD7+0.02 -> 0.04 | AG8: 1.26 | AH8: 1.304 | AI8: 1.343 | AJ8: 1.375 | AK8: 1.4 | AL8: 1.43 | AM8: 1.447 | AN8: 1.465 | AO8: 1.48 | AP8: 1.496 | AQ8: 1.507 | AR8: 1.523 | AS8: 1.536 | AT8: 1.545 | AV8: =AV7+0.02 -> 0.04 | AW8: -3.147 | AX8: 2.108 | AY8: 1.189 | BA8: curva inf | BB8: coefficienti equazione | BF8: =BF7 -> 0.02994573086 | BG8: 1 | BH8: 0.02 | BI8: =BI$3*$BH8^2+BI$4*$BH8+BI$5 -> 1.0392352 | BJ8: 1.1464628
B9: -0.02429336967 | C9: -19.48232244 | AD9: 0.06 | AH9: 1.37 | AI9: 1.415 | AJ9: 1.45 | AK9: 1.477 | AL9: 1.5 | AM9: 1.525 | AN9: 1.549 | AO9: 1.568 | AP9: 1.588 | AQ9: 1.604 | AR9: 1.621 | AS9: 1.633 | AT9: 1.644 | AV9: 0.06 | AW9: -2.749 | AX9: 2.093 | AY9: 1.261 | BA9: f'l,min1/f'c | BB9: a1 | BC9: b1 | BD9: c1 | BH9: 0.04 | BI9: 1.0759408 | BJ9: 1.1824512 | BK9: 1.2682848
B10: -0.02318912559 | C10: -19.82376271 | I10: Passo di discretizzazione della ε nel tratto non lineare | AD10: 0.08 | AI10: 1.463 | AJ10: 1.507 | AK10: 1.545 | AL10: 1.576 | AM10: 1.609 | AN10: 1.633 | AO10: 1.655 | AP10: 1.675 | AQ10: 1.692 | AR10: 1.705 | AS10: 1.72 | AT10: 1.729 | AV10: 0.08 | AW10: -3.987 | AX10: 2.697 | AY10: 1.276 | BA10: =INDEX($AV$6:$AY$21,MATCH($BB$6,$AV$6:$AV$21,1),1) -> 0.02 | BB10: =INDEX($AV$6:$AY$21,MATCH($BB$6,$AV$6:$AV$21,1),2) -> -3.093 | BC10: =INDEX($AV$6:$AY$21,MATCH($BB$6,$AV$6:$AV$21,1),3) -> 1.985 | BD10: =INDEX($AV$6:$AY$21,MATCH($BB$6,$AV$6:$AV$21,1),4) -> 1.108 | BH10: 0.06 | BI10: 1.1101168 | BJ10: 1.2159652 | BK10: 1.3041508 | BL10: 1.3766836 | CB10: Ush | CC10: Ucc | CD10: Usc | CE10: Uco | CG10: errore
B11: -0.02208488152 | C11: -20.18515746 | I11: =J32/(I7-4) -> 0.001104244076 | T11: w'x | U11: aix | V11: aix tot | W11: w'y | X11: aiy | Y11: aiy tot | AA11: ρs | AD11: 0.1 | AJ11: 1.565 | AK11: 1.611 | AL11: 1.649 | AM11: 1.677 | AN11: 1.703 | AO11: 1.726 | AP11: 1.75 | AQ11: 1.766 | AR11: 1.784 | AS11: 1.795 | AT11: 1.807 | AV11: 0.1 | AW11: -4.114 | AX11: 2.816 | AY11: 1.329 | BH11: 0.08 | BI11: 1.1417632 | BJ11: 1.2470048 | BK11: 1.3374992 | BL11: 1.4108464 | BM11: 1.4662432 | CB11: =110*CB7 -> 0.9533108742 | CC11: =CE19+CK19 -> 0.6658718272 | CD11: =IF(CK7<CF7,CC7*0.5*CD7*CF7,CC7*(0.5*CD7*CF7+CD7*(CK7-CF7))) -> 0.3714072519 | CE11: =0.017*SQRT(CG7) -> 0.08482982966 | CG11: =CB11-CC11-CD11+CE11 -> 0.0008616247615
B12: -0.02098063744 | C12: -20.56843353 | T12: [mm] | U12: [mm2] | V12: [mm2] | W12: [mm] | X12: [mm2] | Y12: [mm2] | AA12: - | AD12: 0.12 | AK12: 1.658 | AL12: 1.699 | AM12: 1.736 | AN12: 1.765 | AO12: 1.795 | AP12: 1.818 | AQ12: 1.84 | AR12: 1.859 | AS12: 1.875 | AT12: 1.892 | AV12: 0.12 | AW12: -3.92 | AX12: 2.919 | AY12: 1.366 | BA12: curva sup | BB12: coefficienti equazione | BH12: 0.1 | BI12: 1.17088 | BJ12: 1.27557 | BK12: 1.36833 | BL12: 1.44281 | BM12: 1.50583 | BN12: 1.56946
B13: -0.01987639336 | C13: -20.97575918 | T13: =$K$52*10 -> 96 | U13: =T13^2/6 -> 1536 | V13: =U13*(K51-1) -> 3072 | W13: =$K$55*10 -> 96 | X13: =W13^2/6 -> 1536 | Y13: =X13*(K54-1) -> 3072 | AA13: =X18+Y18 -> 0.008666462493 | AD13: 0.14 | AL13: 1.753 | AM13: 1.79 | AN13: 1.821 | AO13: 1.847 | AP13: 1.87 | AQ13: 1.893 | AR13: 1.913 | AS13: 1.93 | AT13: 1.946 | AV13: 0.14 | AW13: -3.355 | AX13: 2.661 | AY13: 1.448 | BA13: f'l,min2/f'c | BB13: a2 | BC13: b2 | BD13: c2 | BH13: 0.12 | BI13: 1.1974672 | BJ13: 1.3016608 | BK13: 1.3966432 | BL13: 1.4725744 | BM13: 1.5422272 | BN13: 1.6076784 | BO13: 1.659832
B14: -0.01877214929 | C14: -21.40957354 | AD14: 0.16 | AM14: 1.836 | AN14: 1.872 | AO14: 1.904 | AP14: 1.932 | AQ14: 1.953 | AR14: 1.973 | AS14: 1.991 | AT14: 2.003 | AV14: 0.16 | AW14: -4.761 | AX14: 3.376 | AY14: 1.418 | BA14: =INDEX($AV$6:$AY$21,MATCH($BB$6,$AV$6:$AV$21,1)+1,1) -> 0.04 | BB14: =INDEX($AV$6:$AY$21,MATCH($BB$6,$AV$6:$AV$21,1)+1,2) -> -3.147 | BC14: =INDEX($AV$6:$AY$21,MATCH($BB$6,$AV$6:$AV$21,1)+1,3) -> 2.108 | BD14: =INDEX($AV$6:$AY$21,MATCH($BB$6,$AV$6:$AV$21,1)+1,4) -> 1.189 | BH14: 0.14 | BI14: 1.2215248 | BJ14: 1.3252772 | BK14: 1.4224388 | BL14: 1.5001396 | BM14: 1.5754348 | BN14: 1.6426056 | BO14: 1.697828 | BP14: 1.754782 | CB14: intervalli | CC14: εcu max | CD14: Δε
B15: -0.01766790521 | C15: -21.87261487 | AD15: 0.18 | AN15: 1.916 | AO15: 1.94 | AP15: 1.967 | AQ15: 1.993 | AR15: 2.015 | AS15: 2.035 | AT15: 2.052 | AV15: 0.18 | AW15: -2.321 | AX15: 2.267 | AY15: 1.581 | BH15: 0.16 | BI15: 1.2430528 | BJ15: 1.3464192 | BK15: 1.4457168 | BL15: 1.5255056 | BM15: 1.6054528 | BN15: 1.6742416 | BO15: 1.732688 | BP15: 1.787872 | BQ15: 1.8362784 | CB15: 500 | CC15: 0.05 | CD15: =CC15/CB15 -> 0.0001
B16: -0.01656366114 | C16: -22.36794224 | T16: Ai | U16: s' | V16: Ae | W16: ke | X16: ρx | Y16: ρy | Z16: f'lx | AA16: f'ly | AD16: 0.2 | AO16: 1.98 | AP16: 2.005 | AQ16: 2.03 | AR16: 2.058 | AS16: 2.081 | AT16: 2.102 | AV16: 0.2 | AW16: -1.25 | AX16: 1.862 | AY16: 1.656 | BA16: f'cc1/f'c | BB16: f'cc1/f'c | BC16: f'cc/f'c | BH16: 0.18 | BI16: 1.2620512 | BJ16: 1.3650868 | BK16: 1.4664772 | BL16: 1.5486724 | BM16: 1.6322812 | BN16: 1.7025864 | BO16: 1.764412 | BP16: 1.818278 | BQ16: 1.8714236 | BR16: 1.9138596
B17: -0.01545941706 | C17: -22.89894074 | T17: [mm2] | U17: [mm] | V17: [mm2] | W17: - | X17: - | Y17: - | Z17: [N/mm2] | AA17: [N/mm2] | AD17: 0.22 | AP17: 2.044 | AQ17: 2.07 | AR17: 2.099 | AS17: 2.127 | AT17: 2.153 | AV17: 0.22 | AW17: -0.178 | AX17: 1.467 | AY17: 1.729 | BA17: =BB10*$BA$6^2+BC10*$BA$6+BD10 -> 1.164668638 | BB17: =BB14*$BA$6^2+BC14*$BA$6+BD14 -> 1.249303538 | BC17: =BA17+((BB17-BA17)/(BA14-BA10))*(BB6-BA10) -> 1.206756435 | BH17: 0.2 | BI17: 1.27852 | BJ17: 1.38128 | BK17: 1.48472 | BL17: 1.56964 | BM17: 1.65592 | BN17: 1.72764 | BO17: 1.793 | BP17: 1.846 | BQ17: 1.90276 | BR17: 1.94156 | BS17: 1.9784 | CB17: ε | CC17: σ | CD17: ai | CE17: ∑ai | CG17: aiu | CH17: εiu | CI17: σiu | CJ17: σ(εcu) | CK17: Δai
B18: -0.01435517299 | C18: -23.46929005 | I18: Ritorna alla pagina "parametri del calcestruzzo" | T18: =V13+Y13 -> 6144 | U18: =10*$J$42-$J$41 -> 142 | V18: =(Y8-T18)*(1-U18/(2*X8))*(1-U18/(2*W8)) -> 22962.12247 | W18: =V18/AA8 -> 0.4397567862 | X18: =U8/(W8*10*J42) -> 0.004333231246 | Y18: =V8/(X8*10*J42) -> 0.004333231246 | Z18: =X18*$J$43*W18 -> 0.7456486984 | AA18: =Y18*$J$43*W18 -> 0.7456486984 | AD18: 0.24 | AQ18: 2.107 | AR18: 2.133 | AS18: 2.161 | AT18: 2.187 | AV18: 0.24 | AW18: 0 | AX18: 1.34 | AY18: 1.785 | BH18: 0.22 | BI18: 1.2924592 | BJ18: 1.3949988 | BK18: 1.5004452 | BL18: 1.5884084 | BM18: 1.6763692 | BN18: 1.7494024 | BO18: 1.818452 | BP18: 1.871038 | BQ18: 1.9302876 | BR18: 1.9674036 | BS18: 2.00514 | BT18: 2.0431248 | CB18: - | CC18: [N/mm2] | CD18: [N/mm2] | CE18: [N/mm2] | CG18: - | CH18: - | CI18: [N/mm2] | CJ18: [N/mm2] | CK18: [N/mm2]
B19: -0.01325092891 | C19: -24.08285825 | AD19: =AD18+0.02 -> 0.26 | AR19: 2.174 | AS19: 2.201 | AT19: 2.224 | AV19: =AV18+0.02 -> 0.26 | AW19: -5 | AX19: 4.05 | AY19: 1.459 | BH19: 0.24 | BI19: 1.3038688 | BJ19: 1.4062432 | BK19: 1.5136528 | BL19: 1.6049776 | BM19: 1.6936288 | BN19: 1.7678736 | BO19: 1.840768 | BP19: 1.893392 | BQ19: 1.9540064 | BR19: 1.9913904 | BS19: 2.03088 | BT19: 2.0708272 | BU19: 2.1066 | CB19: 0 | CC19: 0 | CD19: =(CC20+CC19)*(CB20-CB19)/2 -> 0.000123234172 | CE19: =SUM(CD19:CD518) -> 0.6656826431 | CG19: =MATCH(0,CD19:CD518,0)-1 -> 288 | CH19: =INDEX(CB19:CB519,$CG$19) -> 0.0287 | CI19: =INDEX(CC19:CC519,$CG$19) -> 18.28704342 | CJ19: =($CH$7*$CJ$7*($CK$7/$CI$7))/($CJ$7-1+($CK$7/$CI$7)^$CJ$7) -> 18.28451031 | CK19: =(CJ19+CI19)*(CK7-CH19)/2 -> 0.0001891841233
B20: -0.01214668483 | C20: -24.74344512 | AD20: 0.28 | AS20: 2.234 | AT20: 2.259 | AV20: 0.28 | AW20: 0 | AX20: 1.25 | AY20: 1.884 | BH20: 0.26 | BI20: 1.3127488 | BJ20: 1.4150132 | BK20: 1.5243428 | BL20: 1.6193476 | BM20: 1.7076988 | BN20: 1.7830536 | BO20: 1.859948 | BP20: 1.913062 | BQ20: 1.9739164 | BR20: 2.0135204 | BS20: 2.05562 | BT20: 2.0983872 | BU20: 2.1334 | BV20: 2.174 | CB20: =CB19+$CD$15 -> 0.0001 | CC20: =IF(CB20<=$CK$7,($CH$7*$CJ$7*(CB20/$CI$7))/($CJ$7-1+(CB20/$CI$7)^$CJ$7),0) -> 2.464683441 | CD20: =(CC21+CC20)*(CB21-CB20)/2 -> 0.0003647812531
B21: -0.01104244076 | C21: -25.45422414 | AD21: 0.3 | AT21: 2.3 | AV21: 0.3 | AW21: 0 | AX21: 0 | AY21: 2.3 | BH21: 0.28 | BI21: 1.3190992 | BJ21: 1.4213088 | BK21: 1.5325152 | BL21: 1.6315184 | BM21: 1.7185792 | BN21: 1.7949424 | BO21: 1.875992 | BP21: 1.930048 | BQ21: 1.9900176 | BR21: 2.0337936 | BS21: 2.07936 | BT21: 2.1258048 | BU21: 2.1602 | BV21: 2.201 | BW21: 2.234 | CB21: =CB20+$CD$15 -> 0.0002 | CC21: =IF(CB21<=$CK$7,($CH$7*$CJ$7*(CB21/$CI$7))/($CJ$7-1+(CB21/$CI$7)^$CJ$7),0) -> 4.830941621 | CD21: 0.0005950901854
B22: -0.009938196682 | C22: -26.21657264 | I22: Mander per calcestruzzo confinato | T22: CALCOLO DELLE PRESSIONI DI CONFINAMENTO SU NUCLEI CIRCOLARI | BH22: 0.3 | BI22: 1.32292 | BJ22: 1.42513 | BK22: 1.53817 | BL22: 1.64149 | BM22: 1.72627 | BN22: 1.80354 | BO22: 1.8889 | BP22: 1.94435 | BQ22: 2.00231 | BR22: 2.05221 | BS22: 2.1021 | BT22: 2.15308 | BU22: 2.187 | BV22: 2.224 | BW22: 2.259 | BX22: 2.3 | CB22: 0.0003 | CC22: 7.070862088 | CD22: 0.0008121250383
B23: -0.008833952607 | C23: -27.02762897 | CB23: 0.0004 | CC23: 9.171638678 | CD23: 0.001014998794
B24: -0.007729708531 | C24: -27.87510538 | F24: DETERMINAZIONE DI f'cc PER NUCLEI CONFINATI AVENTI FORMA RETTANGOLARE | I24: f 'c | J24: ='INPUT-2.1.1'!$F$6 -> 24.9 | K24: [N/mm2] | N24: Proprietà della sezione | T24: ds | U24: s' | V24: Ae | W24: Ac | X24: ρcc | Y24: Acc | Z24: ke | BH24: f'l,min/f'c | BI24: 0 | BJ24: =BI24+0.02 -> 0.02 | BK24: 0.04 | BL24: 0.06 | BM24: 0.08 | BN24: 0.1 | BO24: 0.12 | BP24: 0.14 | BQ24: 0.16 | BR24: 0.18 | BS24: 0.2 | BT24: 0.22 | BU24: 0.24 | BV24: 0.26 | BW24: 0.28 | BX24: 0.3 | CB24: 0.0005 | CC24: 11.1283372 | CD24: 0.00120346696
B25: -0.006625464455 | C25: -28.72590643 | I25: γc | J25: ='INPUT-2'!$J$20 -> 1 | K25: - | N25: Altezza | O25: LY | P25: =SezRett!C2 -> 0.3 | Q25: m | T25: [mm] | U25: [mm] | V25: [mm2] | W25: [mm2] | X25: - | Y25: [mm2] | Z25: - | BH25: a | BI25: -3.162 | BJ25: -3.093 | BK25: -3.147 | BL25: -2.749 | BM25: -3.987 | BN25: -4.114 | BO25: -3.92 | BP25: -3.355 | BQ25: -4.761 | BR25: -2.321 | BS25: -1.25 | BT25: -0.178 | BU25: 0 | BV25: -5 | BW25: 0 | BX25: 0 | CB25: 0.0006 | CC25: 12.941002 | CD25: 0.001377697711
B26: -0.005521220379 | C26: -29.49994104 | I26: E | J26: =5000*SQRT(J24) -> 24949.9499 | K26: [N/mm2] | N26: Base | O26: LZ | P26: =SezRett!C3 -> 0.3 | Q26: m | T26: =300 -> 300 | U26: =10*$J$42-$J$41 -> 142 | V26: =(PI()/4)*(T26-U26/2)^2 -> 41187.06509 | W26: =PI()*T26^2/4 -> 70685.83471 | X26: =P36/W26 -> 0.02275555556 | Y26: =W26*(1-X26) -> 69077.33927 | Z26: =V26/Y26 -> 0.5962456795 | BH26: b | BI26: 2.025 | BJ26: 1.985 | BK26: 2.108 | BL26: 2.093 | BM26: 2.697 | BN26: 2.816 | BO26: 2.919 | BP26: 2.661 | BQ26: 3.376 | BR26: 2.267 | BS26: 1.862 | BT26: 1.467 | BU26: 1.34 | BV26: 4.05 | BW26: 1.25 | BX26: 0 | CB26: 0.0007 | CC26: 14.61295222 | CD26: 0.001538129737
B27: -0.004416976303 | C27: -30.0060402 | I27: Esec | J27: =J28/J31 -> 7387.279621 | K27: [N/mm2] | N27: Copriferro | O27: c | P27: =SezRett!C4 -> 0.034 | Q27: m | BH27: c | BI27: 1 | BJ27: 1.108 | BK27: 1.189 | BL27: 1.261 | BM27: 1.276 | BN27: 1.329 | BO27: 1.366 | BP27: 1.448 | BQ27: 1.418 | BR27: 1.581 | BS27: 1.656 | BT27: 1.729 | BU27: 1.785 | BV27: 1.459 | BW27: 1.884 | BX27: 2.3 | CB27: 0.0008 | CC27: 16.14964251 | CD27: 0.001685375214
B28: -0.003312732227 | C28: -29.7732054 | I28: f 'cc | J28: =IF(OR(W44=2,W44=3),Y30,J57*J24) -> 30.04823523 | K28: [N/mm2] | N28: Diametro staffa | O28: fst | P28: =SezRett!C5 -> 8 | Q28: mm | T28: Asp | U28: ρs | V28: fl | W28: f'l | Y28: f'cc | CB28: 0.0009 | CC28: 17.55786176 | CD28: 0.001820151071
B29: -0.002208488152 | C29: -27.57301785 | I29: f 'cc,d | J29: =J28/J25 -> 30.04823523 | K29: [N/mm2] | N29: n° fibre Y | O29: nY | P29: =SezRett!C6 -> 10 | T29: [mm2] | U29: - | V29: [N/mm2] | W29: [N/mm2] | Y29: [N/mm2] | CB29: 0.001 | CC29: 18.84515965 | CD29: 0.001943229794
B30: -0.001104244076 | C30: -20.06689343 | I30: ε'c | J30: ='INPUT-2.1.1'!$F$7 -> 0.002 | K30: - | N30: n° fibre Z | O30: nZ | P30: =SezRett!C7 -> 10 | T30: =PI()*J41^2/4 -> 50.26548246 | U30: =(PI()*T30*T26)/(PI()*T26^2/4*10*J42) -> 0.004468042885 | V30: =U30*J43/2 -> 0.8741725905 | W30: =Z26*V30 -> 0.5212216302 | Y30: =$J$24*(-1.254+2.254*SQRT(1+7.94*W30/$J$24)-2*W30/J24) -> 28.34245276 | CB30: 0.0011 | CC30: 20.01943623 | CD30: 0.002055404373
B31: 0 | C31: 0 | I31: ε'cc | J31: =J30*(5*(J28/J24-1)+1) -> 0.00406756435 | K31: - | N31: n° strati barre | O31: nL | P31: =SezRett!C8 -> 3 | CB31: 0.0012 | CC31: 21.08865122 | CD31: 0.002157463667
B32: =$J$34/$J$26 -> 0.0001245520183 | C32: =$J$34 -> 3.107566618 | I32: εcu | J32: =IF(AA51=1,W53,U53) -> 0.02871034597 | K32: - | CB32: 0.0013 | CC32: 22.06062213 | CD32: 0.002250175529
B33: =$J$34/($J$35*$J$26)+$J$34/$J$26 -> 0.001370072202 | C33: 0 | I33: r | J33: =J26/(J26-J27) -> 1.420623943 | K33: - | CB33: 0.0014 | CC33: 22.94288845 | CD33: 0.002334275658
I34: ftd | J34: =((7.5*SQRT(J24*10^6/(6.8947579*10^3))*6.8947579*10^3)/10^6)/J25 -> 3.107566618 | K34: [N/mm2] | N34: Armatura Longitudinale | CB34: 0.0015 | CC34: 23.74262472 | CD34: 0.002410460703
I35: it | J35: =0.1 -> 0.1 | K35: - | T35: Armatura di confinamento | CB35: 0.0016 | CC35: 24.46658933 | CD35: 0.002479384432
N36: Area totale | O36: As tot | P36: =SUM(SezRett!P4:P1003)*1000000 -> 1608.495439 | Q36: [mm2] | CB36: 0.0017 | CC36: 25.12109931 | CD36: 0.002541656141
CB37: 0.0018 | CC37: 25.71202352 | CD37: 0.002597840611
I38: Tipo di armatura di confinamento | N38: Diametro rappresentativo f | P38: =SezRett!$M$4 -> 16 | Q38: [mm] | T38: Tipo di armatura | CB38: 0.0019 | CC38: 26.2447887 | CD38: 0.002648459149
T39: staffe rettangolari + legature | W39: 1 | CB39: 0.002 | CC39: 26.72439428 | CD39: 0.002693991344
P40: fy | Q40: Es | T40: staffe circolari | W40: 2 | CB40: 0.0021 | CC40: 27.1554326 | CD40: 0.002734877257
I41: φ | J41: ='INPUT-1.1.3'!G8 -> 8 | K41: [mm] | P41: [N/mm2] | Q41: [N/mm2] | T41: a spirale | W41: 3 | CB41: 0.0022 | CC41: 27.54211255 | CD41: 0.002771519872
I42: =IF($W$44=3,"Passo spirale","passo staffe") -> passo staffe | J42: ='INPUT-1.1.3'!G9 -> 15 | K42: [cm] | P42: ='INPUT-2.2.1'!$F$6 -> 450 | Q42: ='INPUT-2.2.1'!$F$7 -> 206000 | T42: da sezione | W42: 4 | CB42: 0.0023 | CC42: 27.88828489 | CD42: 0.002804287648
I43: fy | J43: ='INPUT-1.1.3'!G10 -> 391.3 | K43: [N/mm2] | CB43: 0.0024 | CC43: 28.19746807 | CD43: 0.002833517091
T44: Tipologia scelta | W44: ='INPUT-1.1.3'!$F$5 -> 1 | CB44: 0.0025 | CC44: 28.47287374 | CD44: 0.002859515261
I45: =IF(OR($W$44 = 2, $W$44 = 3),"Pressione di confinamento","Pressioni di confinamento") -> Pressioni di confinamento | CB45: 0.0026 | CC45: 28.71743147 | CD45: 0.00288256219
I46: =IF(OR($W$44=2,$W$44=3),W28,Z16) -> f'lx | J46: =IF(OR($W$44=2,$W$44=3),W30,Z18) -> 0.7456486984 | K46: [N/mm2] | CB46: 0.0027 | CC46: 28.93381232 | CD46: =(CC47+CC46)*(CB47-CB46)/2 -> 0.002902913164
I47: fly | J47: =$AA$18 -> 0.7456486984 | K47: [N/mm2] | CB47: 0.0028 | CC47: 29.12445096 | CD47: 0.002920800868
I48: flx/f 'c | J48: =J46/$J$24 -> 0.02994573086 | K48: - | T48: DEFORMAZIONE ULTIMA CALCESTRUZZO | CB48: 0.0029 | CC48: 29.29156639 | CD48: 0.002936437373
I49: fly/f 'c | J49: =J47/$J$24 -> 0.02994573086 | K49: - | CB49: 0.003 | CC49: 29.43718108 | CD49: 0.002950015984
T50: (Scott et al. 1982) | W50: (Mander) | CB50: 0.0031 | CC50: 29.56313861 | CD50: 0.002961712926
I51: =IF($W$44=1, "numero bracci in direzione z","") -> numero bracci in direzione z | K51: ='INPUT-1.1.3'!G13 -> 3 | T51: ρs | U51: εcu | W51: εcu | Y51: deformazione ultima | AA51: 1 | CB51: 0.0032 | CC51: 29.67111991 | CD51: 0.002971688898
I52: =IF($W$44=1, "distanza netta tra i bracci [cm]","") -> distanza netta tra i bracci [cm] | K52: ='INPUT-1.1.3'!G14 -> 9.6 | T52: - | U52: - | W52: - | Y52: Mander | AA52: 1 | CB52: 0.0033 | CC52: 29.76265804 | CD52: 0.002980090489
T53: =IF(OR(W44=2,W44=3),U30,AA13) -> 0.008666462493 | U53: =0.004+0.9*T53*(J43/300) -> 0.01417356032 | W53: =$CK$7 -> 0.02871034597 | Y53: Scott | AA53: 2 | CB53: 0.0034 | CC53: 29.83915174 | CD53: 0.002987051471
I54: =IF($W$44=1, "numero bracci in direzione y","") -> numero bracci in direzione y | K54: ='INPUT-1.1.3'!G16 -> 3 | CB54: 0.0035 | CC54: 29.90187768 | CD54: 0.002992693968
I55: =IF($W$44=1, "distanza netta tra i bracci [cm]","") -> distanza netta tra i bracci [cm] | K55: ='INPUT-1.1.3'!G17 -> 9.6 | T55: TENSIONE MASSIMA CALCESTRUZZO (Nuclei rettangolari) | CB55: 0.0036 | CC55: 29.95200168 | CD55: 0.002997129525
T56: Vedi grafico allegato | CB56: 0.0037 | CC56: 29.99058883 | CD56: 0.003000460077
F57: EQUAZIONI MODELLO | I57: f 'cc / f 'c | J57: =$BC$17 -> 1.206756435 | K57: [N/mm2] | CB57: 0.0038 | CC57: 30.01861271 | CD57: 0.003002778821
T58: f'l max | U58: f'l min | V58: f'l max / f'c | W58: f'l min / f'c | CB58: 0.0039 | CC58: 30.03696371 | CD58: 0.003004171013
T59: [N/mm2] | U59: [N/mm2] | V59: [N/mm2] | W59: [N/mm2] | CB59: 0.004 | CC59: 30.04645655 | CD59: 0.003004714687
T60: =MAX(Z18:AA18) -> 0.7456486984 | U60: =MIN(Z18:AA18) -> 0.7456486984 | V60: =T60/$J$24 -> 0.02994573086 | W60: =U60/$J$24 -> 0.02994573086 | CB60: 0.0041 | CC60: 30.04783718 | CD60: 0.003004481305
CB61: 0.0042 | CC61: 30.04178892 | CD61: 0.00300353635
CB62: 0.0043 | CC62: 30.02893808 | CD62: 0.003001939854
CB63: 0.0044 | CC63: 30.00985901 | CD63: 0.002999746889
CB64: 0.0045 | CC64: 29.98507876 | CD64: 0.002997007996
CB65: 0.0046 | CC65: 29.95508117 | CD65: 0.002993769592
CB66: 0.0047 | CC66: 29.92031067 | CD66: 0.002990074321
CB67: 0.0048 | CC67: 29.88117575 | CD67: 0.002985961386
CB68: 0.0049 | CC68: 29.83805197 | CD68: 0.002981466842
CB69: 0.005 | CC69: 29.79128487 | CD69: 0.002976623868
CB70: 0.0051 | CC70: 29.74119248 | CD70: 0.002971463006
CB71: 0.0052 | CC71: 29.68806764 | CD71: 0.002966012389
CB72: 0.0053 | CC72: 29.63218014 | CD72: 0.002960297939
CB73: 0.0054 | CC73: 29.57377864 | CD73: 0.002954343551
CB74: 0.0055 | CC74: 29.51309238 | CD74: 0.002948171262
CB75: 0.0056 | CC75: 29.45033286 | CD75: 0.002941801402
CB76: 0.0057 | CC76: 29.38569518 | CD76: 0.002935252732
CB77: 0.0058 | CC77: 29.31935946 | CD77: 0.002928542574
CB78: 0.0059 | CC78: 29.25149202 | CD78: 0.002921686924
CB79: 0.006 | CC79: 29.18224646 | CD79: 0.002914700558
CB80: 0.0061 | CC80: 29.1117647 | CD80: 0.002907597129
CB81: 0.0062 | CC81: 29.04017788 | CD81: 0.002900389255
CB82: 0.0063 | CC82: 28.96760723 | CD82: 0.002893088603
CB83: 0.0064 | CC83: 28.89416483 | CD83: 0.002885705957
CB84: 0.0065 | CC84: 28.81995431 | CD84: =(CC85+CC84)*(CB85-CB84)/2 -> 0.002878251292
CB85: =CB84+$CD$15 -> 0.0066 | CC85: =IF(CB85<=$CK$7,($CH$7*$CJ$7*(CB85/$CI$7))/($CJ$7-1+(CB85/$CI$7)^$CJ$7),0) -> 28.74507152 | CD85: 0.002870733831
CB86: 0.0067 | CC86: 28.6696051 | CD86: 0.002863162108
CB87: 0.0068 | CC87: 28.59363706 | CD87: 0.002855544015
CB88: 0.0069 | CC88: 28.51724324 | CD88: 0.002847886853
CB89: 0.007 | CC89: 28.44049382 | CD89: 0.002840197376
CB90: 0.0071 | CC90: 28.3634537 | CD90: 0.002832481831
CB91: 0.0072 | CC91: 28.28618292 | CD91: 0.002824745998
CB92: 0.0073 | CC92: 28.20873703 | CD92: 0.00281699522
CB93: 0.0074 | CC93: 28.13116736 | CD93: 0.002809234439
CB94: 0.0075 | CC94: 28.05352141 | CD94: 0.002801468224
CB95: 0.0076 | CC95: 27.97584306 | CD95: 0.002793700797
CB96: 0.0077 | CC96: 27.89817288 | CD96: 0.00278593606
CB97: 0.0078 | CC97: 27.82054833 | CD97: 0.002778177617
CB98: 0.0079 | CC98: 27.74300401 | CD98: 0.002770428794
CB99: 0.008 | CC99: 27.66557187 | CD99: 0.002762692662
CB100: 0.0081 | CC100: 27.58828137 | CD100: 0.002754972052
CB101: 0.0082 | CC101: 27.51115967 | CD101: 0.002747269574
CB102: 0.0083 | CC102: 27.43423181 | CD102: 0.002739587631
CB103: 0.0084 | CC103: 27.35752081 | CD103: 0.002731928435
CB104: 0.0085 | CC104: 27.28104789 | CD104: 0.00272429402
CB105: 0.0086 | CC105: 27.20483251 | CD105: 0.002716686253
CB106: 0.0087 | CC106: 27.12889256 | CD106: 0.002709106849
CB107: 0.0088 | CC107: 27.05324442 | CD107: 0.002701557376
CB108: 0.0089 | CC108: 26.97790311 | CD108: 0.002694039272
CB109: 0.009 | CC109: 26.90288234 | CD109: 0.002686553849
CB110: 0.0091 | CC110: 26.82819463 | CD110: 0.002679102301
CB111: 0.0092 | CC111: 26.75385139 | CD111: 0.002671685719
CB112: 0.0093 | CC112: 26.67986298 | CD112: 0.002664305089
CB113: 0.0094 | CC113: 26.6062388 | CD113: 0.002656961306
CB114: 0.0095 | CC114: 26.53298732 | CD114: 0.002649655177
CB115: 0.0096 | CC115: 26.46011621 | CD115: 0.002642387428
CB116: 0.0097 | CC116: 26.38763234 | CD116: 0.002635158709
CB117: 0.0098 | CC117: 26.31554184 | CD117: 0.002627969601
CB118: 0.0099 | CC118: 26.24385018 | CD118: 0.002620820618
CB119: 0.01 | CC119: 26.17256218 | CD119: 0.002613712213
CB120: 0.0101 | CC120: 26.10168207 | CD120: 0.002606644782
CB121: 0.0102 | CC121: 26.03121356 | CD121: 0.002599618669
CB122: 0.0103 | CC122: 25.96115982 | CD122: 0.002592634169
CB123: 0.0104 | CC123: 25.89152356 | CD123: 0.002585691529
CB124: 0.0105 | CC124: 25.82230702 | CD124: 0.002578790954
CB125: 0.0106 | CC125: 25.75351207 | CD125: 0.002571932611
CB126: 0.0107 | CC126: 25.68514016 | CD126: 0.002565116628
CB127: 0.0108 | CC127: 25.61719241 | CD127: 0.002558343099
CB128: 0.0109 | CC128: 25.54966958 | CD128: 0.002551612087
CB129: 0.011 | CC129: 25.48257216 | CD129: 0.002544923623
CB130: 0.0111 | CC130: 25.41590031 | CD130: 0.002538277713
CB131: 0.0112 | CC131: 25.34965396 | CD131: 0.002531674336
CB132: 0.0113 | CC132: 25.28383277 | CD132: 0.002525113447
CB133: 0.0114 | CC133: 25.21843618 | CD133: 0.00251859498
CB134: 0.0115 | CC134: 25.15346342 | CD134: 0.002512118847
CB135: 0.0116 | CC135: 25.08891352 | CD135: 0.002505684942
CB136: 0.0117 | CC136: 25.02478532 | CD136: 0.002499293141
CB137: 0.0118 | CC137: 24.9610775 | CD137: 0.002492943305
CB138: 0.0119 | CC138: 24.8977886 | CD138: 0.002486635279
CB139: 0.012 | CC139: 24.83491698 | CD139: 0.002480368893
CB140: 0.0121 | CC140: 24.77246089 | CD140: 0.002474143967
CB141: 0.0122 | CC141: 24.71041845 | CD141: 0.002467960307
CB142: 0.0123 | CC142: 24.64878769 | CD142: 0.002461817709
CB143: 0.0124 | CC143: 24.5875665 | CD143: 0.00245571596
CB144: 0.0125 | CC144: 24.5267527 | CD144: 0.002449654836
CB145: 0.0126 | CC145: 24.46634402 | CD145: 0.002443634107
CB146: 0.0127 | CC146: 24.40633811 | CD146: 0.002437653533
CB147: 0.0128 | CC147: 24.34673254 | CD147: 0.002431712869
CB148: 0.0129 | CC148: 24.28752483 | CD148: =(CC149+CC148)*(CB149-CB148)/2 -> 0.002425811862
CB149: =CB148+$CD$15 -> 0.013 | CC149: =IF(CB149<=$CK$7,($CH$7*$CJ$7*(CB149/$CI$7))/($CJ$7-1+(CB149/$CI$7)^$CJ$7),0) -> 24.22871242 | CD149: 0.002419950257
CB150: 0.0131 | CC150: 24.17029272 | CD150: 0.002414127789
CB151: 0.0132 | CC151: 24.11226307 | CD151: 0.002408344193
CB152: 0.0133 | CC152: 24.05462078 | CD152: 0.002402599196
CB153: 0.0134 | CC153: 23.99736313 | CD153: 0.002396892524
CB154: 0.0135 | CC154: 23.94048734 | CD154: 0.002391223899
CB155: 0.0136 | CC155: 23.88399063 | CD155: 0.00238559304
CB156: 0.0137 | CC156: 23.82787017 | CD156: 0.002379999665
CB157: 0.0138 | CC157: 23.77212313 | CD157: 0.002374443488
CB158: 0.0139 | CC158: 23.71674663 | CD158: 0.002368924222
CB159: 0.014 | CC159: 23.66173781 | CD159: 0.00236344158
CB160: 0.0141 | CC160: 23.60709378 | CD160: 0.00235799527
CB161: 0.0142 | CC161: 23.55281163 | CD161: 0.002352585005
CB162: 0.0143 | CC162: 23.49888846 | CD162: 0.002347210491
CB163: 0.0144 | CC163: 23.44532136 | CD163: 0.002341871439
CB164: 0.0145 | CC164: 23.39210742 | CD164: 0.002336567557
CB165: 0.0146 | CC165: 23.33924372 | CD165: 0.002331298553
CB166: 0.0147 | CC166: 23.28672734 | CD166: 0.002326064137
CB167: 0.0148 | CC167: 23.23455539 | CD167: 0.002320864017
CB168: 0.0149 | CC168: 23.18272494 | CD168: 0.002315697903
CB169: 0.015 | CC169: 23.13123311 | CD169: 0.002310565506
CB170: 0.0151 | CC170: 23.08007701 | CD170: 0.002305466537
CB171: 0.0152 | CC171: 23.02925374 | CD171: 0.002300400709
CB172: 0.0153 | CC172: 22.97876044 | CD172: 0.002295367735
CB173: 0.0154 | CC173: 22.92859426 | CD173: 0.00229036733
CB174: 0.0155 | CC174: 22.87875233 | CD174: 0.002285399209
CB175: 0.0156 | CC175: 22.82923184 | CD175: 0.00228046309
CB176: 0.0157 | CC176: 22.78002996 | CD176: 0.002275558692
CB177: 0.0158 | CC177: 22.73114389 | CD177: 0.002270685736
CB178: 0.0159 | CC178: 22.68257083 | CD178: 0.002265843943
CB179: 0.016 | CC179: 22.63430803 | CD179: 0.002261033038
CB180: 0.0161 | CC180: 22.58635272 | CD180: 0.002256252745
CB181: 0.0162 | CC181: 22.53870218 | CD181: 0.002251502793
CB182: 0.0163 | CC182: 22.49135369 | CD182: 0.002246782911
CB183: 0.0164 | CC183: 22.44430454 | CD183: 0.00224209283
CB184: 0.0165 | CC184: 22.39755207 | CD184: 0.002237432284
CB185: 0.0166 | CC185: 22.35109361 | CD185: 0.002232801007
CB186: 0.0167 | CC186: 22.30492653 | CD186: 0.002228198738
CB187: 0.0168 | CC187: 22.25904822 | CD187: 0.002223625214
CB188: 0.0169 | CC188: 22.21345607 | CD188: 0.002219080179
CB189: 0.017 | CC189: 22.16814752 | CD189: 0.002214563376
CB190: 0.0171 | CC190: 22.12312001 | CD190: 0.002210074551
CB191: 0.0172 | CC191: 22.07837101 | CD191: 0.002205613451
CB192: 0.0173 | CC192: 22.03389801 | CD192: 0.002201179827
CB193: 0.0174 | CC193: 21.98969853 | CD193: 0.002196773431
CB194: 0.0175 | CC194: 21.94577009 | CD194: 0.002192394018
CB195: 0.0176 | CC195: 21.90211027 | CD195: 0.002188041345
CB196: 0.0177 | CC196: 21.85871663 | CD196: 0.00218371517
CB197: 0.0178 | CC197: 21.81558678 | CD197: 0.002179415256
CB198: 0.0179 | CC198: 21.77271834 | CD198: 0.002175141365
CB199: 0.018 | CC199: 21.73010896 | CD199: 0.002170893264
CB200: 0.0181 | CC200: 21.68775631 | CD200: 0.002166670719
CB201: 0.0182 | CC201: 21.64565808 | CD201: 0.002162473503
... 318 more rows

Sheet EC2 confinato
B2: ε | C2: σ | N2: COLLEGAMENTI DAL FILE DI INPUT | T2: PRESSIONI DI CONFINAMENTO, TENSIONE MASSIMA, DEFORMAZIONE ULTIMA | AD2: INTERPOLAZIONE DEL GRAFICO DI MANDER | BH2: f'l,min/f'c | BI2: 0 | BJ2: 0.02 | BK2: 0.04 | BL2: 0.06 | BM2: 0.08 | BN2: 0.1 | BO2: 0.12 | BP2: 0.14 | BQ2: 0.16 | BR2: 0.18 | BS2: 0.2 | BT2: 0.22 | BU2: 0.24 | BV2: 0.26 | BW2: 0.28 | BX2: 0.3
B3: - | C3: [N/mm2] | I3: EC2 per calcestruzzo confinato | BH3: a | BI3: -3.162 | BJ3: -3.093 | BK3: -3.147 | BL3: -2.749 | BM3: -3.987 | BN3: -4.114 | BO3: -3.92 | BP3: -3.355 | BQ3: -4.761 | BR3: -2.321 | BS3: -1.25 | BT3: -0.178 | BU3: 0 | BV3: -5 | BW3: 0 | BX3: 0
B4: =-$J$31-$J$31/100000 -> -0.009489241063 | C4: 0 | I4: info legame | T4: CALCOLO DELLE PRESSIONI DI CONFINAMENTO SU NUCLEI RETTANGOLARI | AD4: fcc/f'c | AE4: f'l,max/f'c | AV4: curva | AW4: coefficienti equazione | BA4: f'l max / f'c | BB4: f'l min / f'c | BH4: b | BI4: 2.025 | BJ4: 1.985 | BK4: 2.108 | BL4: 2.093 | BM4: 2.697 | BN4: 2.816 | BO4: 2.919 | BP4: 2.661 | BQ4: 3.376 | BR4: 2.267 | BS4: 1.862 | BT4: 1.467 | BU4: 1.34 | BV4: 4.05 | BW4: 1.25 | BX4: 0
B5: =-$J$31 -> -0.009489146172 | C5: =-$J$25/$J$26 -> -28.62824349 | AD5: f'l,min/f'c | AE5: 0 | AF5: 0.02 | AG5: 0.04 | AH5: 0.06 | AI5: 0.08 | AJ5: 0.1 | AK5: 0.12 | AL5: 0.14 | AM5: 0.16 | AN5: 0.18 | AO5: 0.2 | AP5: 0.22 | AQ5: 0.24 | AR5: 0.26 | AS5: 0.28 | AT5: 0.3 | AV5: f'l,min/f'c | AW5: a | AX5: b | AY5: c | BA5: [N/mm2] | BB5: [N/mm2] | BF5: PUNTO FINALE | BH5: c | BI5: 1 | BJ5: 1.108 | BK5: 1.189 | BL5: 1.261 | BM5: 1.276 | BN5: 1.329 | BO5: 1.366 | BP5: 1.448 | BQ5: 1.418 | BR5: 1.581 | BS5: 1.656 | BT5: 1.729 | BU5: 1.785 | BV5: 1.459 | BW5: 1.884 | BX5: 2.3
B6: =-$J$29 -> -0.002643751957 | C6: =-$J$25/$J$26 -> -28.62824349 | I6: NUMERO DI PUNTI DEL LEGAME COSTITUTIVO | T6: Ast | U6: Astx | V6: Asty | W6: dc | X6: bc | Y6: Ac | Z6: ρcc | AA6: Acc | AD6: 0 | AE6: 1 | AF6: 1.042 | AG6: 1.091 | AH6: 1.12 | AI6: 1.147 | AJ6: 1.172 | AK6: 1.195 | AL6: 1.21 | AM6: 1.23 | AN6: 1.243 | AO6: 1.257 | AP6: 1.268 | AQ6: 1.28 | AR6: 1.286 | AS6: 1.292 | AT6: 1.3 | AV6: 0 | AW6: -3.162 | AX6: 2.025 | AY6: 1 | BA6: =V60 -> 0.02994573086 | BB6: =W60 -> 0.02994573086 | BF6: 0 | BG6: =BG7 -> 1.206756435 | BH6: fl max / f'c
B7: -0.002545835218 | C7: =IF(B7<-$J$29,-$J$25/$J$26,-(($J$25/$J$26)*ABS(B7)/$J$29)*(2-ABS(B7)/$J$29)) -> -28.58897292 | I7: 30 | T7: [mm2] | U7: [mm2] | V7: [mm2] | W7: [mm] | X7: [mm] | Y7: [mm2] | Z7: - | AA7: [mm2] | AD7: =AD6+0.02 -> 0.02 | AF7: 1.13 | AG7: 1.19 | AH7: 1.224 | AI7: 1.254 | AJ7: 1.28 | AK7: 1.3 | AL7: 1.325 | AM7: 1.344 | AN7: 1.363 | AO7: 1.378 | AP7: 1.392 | AQ7: 1.403 | AR7: 1.413 | AS7: 1.424 | AT7: 1.43 | AV7: =AV6+0.02 -> 0.02 | AW7: -3.093 | AX7: 1.985 | AY7: 1.108 | BF7: =BA6 -> 0.02994573086 | BG7: =BC17 -> 1.206756435 | BH7: 0 | BI7: =BI$3*$BH7^2+BI$4*$BH7+BI$5 -> 1
B8: -0.002447918479 | C8: -28.47116122 | T8: =PI()*J38^2/4 -> 50.26548246 | U8: =T8*K48 -> 150.7964474 | V8: =T8*K51 -> 150.7964474 | W8: =P25*1000-2*P27*1000 -> 232 | X8: =P26*1000-2*P27*1000 -> 232 | Y8: =W8*X8 -> 53824 | Z8: =P36/Y8 -> 0.02988435342 | AA8: =Y8*(1-Z8) -> 52215.50456 | AD8: =AD7+0.02 -> 0.04 | AG8: 1.26 | AH8: 1.304 | AI8: 1.343 | AJ8: 1.375 | AK8: 1.4 | AL8: 1.43 | AM8: 1.447 | AN8: 1.465 | AO8: 1.48 | AP8: 1.496 | AQ8: 1.507 | AR8: 1.523 | AS8: 1.536 | AT8: 1.545 | AV8: =AV7+0.02 -> 0.04 | AW8: -3.147 | AX8: 2.108 | AY8: 1.189 | BA8: curva inf | BB8: coefficienti equazione | BF8: =BF7 -> 0.02994573086 | BG8: 1 | BH8: 0.02 | BI8: =BI$3*$BH8^2+BI$4*$BH8+BI$5 -> 1.0392352 | BJ8: 1.1464628
B9: -0.00235000174 | C9: -28.27480839 | AD9: 0.06 | AH9: 1.37 | AI9: 1.415 | AJ9: 1.45 | AK9: 1.477 | AL9: 1.5 | AM9: 1.525 | AN9: 1.549 | AO9: 1.568 | AP9: 1.588 | AQ9: 1.604 | AR9: 1.621 | AS9: 1.633 | AT9: 1.644 | AV9: 0.06 | AW9: -2.749 | AX9: 2.093 | AY9: 1.261 | BA9: f'l,min1/f'c | BB9: a1 | BC9: b1 | BD9: c1 | BH9: 0.04 | BI9: 1.0759408 | BJ9: 1.1824512 | BK9: 1.2682848
B10: -0.002252085 | C10: -27.99991442 | I10: Passo di discretizzazione della ε nel tratto non lineare | AD10: 0.08 | AI10: 1.463 | AJ10: 1.507 | AK10: 1.545 | AL10: 1.576 | AM10: 1.609 | AN10: 1.633 | AO10: 1.655 | AP10: 1.675 | AQ10: 1.692 | AR10: 1.705 | AS10: 1.72 | AT10: 1.729 | AV10: 0.08 | AW10: -3.987 | AX10: 2.697 | AY10: 1.276 | BA10: =INDEX($AV$6:$AY$21,MATCH($BB$6,$AV$6:$AV$21,1),1) -> 0.02 | BB10: =INDEX($AV$6:$AY$21,MATCH($BB$6,$AV$6:$AV$21,1),2) -> -3.093 | BC10: =INDEX($AV$6:$AY$21,MATCH($BB$6,$AV$6:$AV$21,1),3) -> 1.985 | BD10: =INDEX($AV$6:$AY$21,MATCH($BB$6,$AV$6:$AV$21,1),4) -> 1.108 | BH10: 0.06 | BI10: 1.1101168 | BJ10: 1.2159652 | BK10: 1.3041508 | BL10: 1.3766836
B11: -0.002154168261 | C11: -27.64647931 | I11: =J29/(I7-3) -> 9.791673915e-05 | T11: w'x | U11: aix | V11: aix tot | W11: w'y | X11: aiy | Y11: aiy tot | AA11: ρs | AD11: 0.1 | AJ11: 1.565 | AK11: 1.611 | AL11: 1.649 | AM11: 1.677 | AN11: 1.703 | AO11: 1.726 | AP11: 1.75 | AQ11: 1.766 | AR11: 1.784 | AS11: 1.795 | AT11: 1.807 | AV11: 0.1 | AW11: -4.114 | AX11: 2.816 | AY11: 1.329 | BH11: 0.08 | BI11: 1.1417632 | BJ11: 1.2470048 | BK11: 1.3374992 | BL11: 1.4108464 | BM11: 1.4662432
B12: -0.002056251522 | C12: -27.21450307 | T12: [mm] | U12: [mm2] | V12: [mm2] | W12: [mm] | X12: [mm2] | Y12: [mm2] | AA12: - | AD12: 0.12 | AK12: 1.658 | AL12: 1.699 | AM12: 1.736 | AN12: 1.765 | AO12: 1.795 | AP12: 1.818 | AQ12: 1.84 | AR12: 1.859 | AS12: 1.875 | AT12: 1.892 | AV12: 0.12 | AW12: -3.92 | AX12: 2.919 | AY12: 1.366 | BA12: curva sup | BB12: coefficienti equazione | BH12: 0.1 | BI12: 1.17088 | BJ12: 1.27557 | BK12: 1.36833 | BL12: 1.44281 | BM12: 1.50583 | BN12: 1.56946
B13: -0.001958334783 | C13: -26.7039857 | T13: =$K$49*10 -> 96 | U13: =T13^2/6 -> 1536 | V13: =U13*(K48-1) -> 3072 | W13: =$K$52*10 -> 96 | X13: =W13^2/6 -> 1536 | Y13: =X13*(K51-1) -> 3072 | AA13: =X18+Y18 -> 0.008666462493 | AD13: 0.14 | AL13: 1.753 | AM13: 1.79 | AN13: 1.821 | AO13: 1.847 | AP13: 1.87 | AQ13: 1.893 | AR13: 1.913 | AS13: 1.93 | AT13: 1.946 | AV13: 0.14 | AW13: -3.355 | AX13: 2.661 | AY13: 1.448 | BA13: f'l,min2/f'c | BB13: a2 | BC13: b2 | BD13: c2 | BH13: 0.12 | BI13: 1.1974672 | BJ13: 1.3016608 | BK13: 1.3966432 | BL13: 1.4725744 | BM13: 1.5422272 | BN13: 1.6076784 | BO13: 1.659832
B14: -0.001860418044 | C14: -26.11492719 | AD14: 0.16 | AM14: 1.836 | AN14: 1.872 | AO14: 1.904 | AP14: 1.932 | AQ14: 1.953 | AR14: 1.973 | AS14: 1.991 | AT14: 2.003 | AV14: 0.16 | AW14: -4.761 | AX14: 3.376 | AY14: 1.418 | BA14: =INDEX($AV$6:$AY$21,MATCH($BB$6,$AV$6:$AV$21,1)+1,1) -> 0.04 | BB14: =INDEX($AV$6:$AY$21,MATCH($BB$6,$AV$6:$AV$21,1)+1,2) -> -3.147 | BC14: =INDEX($AV$6:$AY$21,MATCH($BB$6,$AV$6:$AV$21,1)+1,3) -> 2.108 | BD14: =INDEX($AV$6:$AY$21,MATCH($BB$6,$AV$6:$AV$21,1)+1,4) -> 1.189 | BH14: 0.14 | BI14: 1.2215248 | BJ14: 1.3252772 | BK14: 1.4224388 | BL14: 1.5001396 | BM14: 1.5754348 | BN14: 1.6426056 | BO14: 1.697828 | BP14: 1.754782
B15: -0.001762501305 | C15: -25.44732755 | AD15: 0.18 | AN15: 1.916 | AO15: 1.94 | AP15: 1.967 | AQ15: 1.993 | AR15: 2.015 | AS15: 2.035 | AT15: 2.052 | AV15: 0.18 | AW15: -2.321 | AX15: 2.267 | AY15: 1.581 | BH15: 0.16 | BI15: 1.2430528 | BJ15: 1.3464192 | BK15: 1.4457168 | BL15: 1.5255056 | BM15: 1.6054528 | BN15: 1.6742416 | BO15: 1.732688 | BP15: 1.787872 | BQ15: 1.8362784
B16: -0.001664584566 | C16: -24.70118677 | T16: Ai | U16: s' | V16: Ae | W16: ke | X16: ρx | Y16: ρy | Z16: f'lx | AA16: f'ly | AD16: 0.2 | AO16: 1.98 | AP16: 2.005 | AQ16: 2.03 | AR16: 2.058 | AS16: 2.081 | AT16: 2.102 | AV16: 0.2 | AW16: -1.25 | AX16: 1.862 | AY16: 1.656 | BA16: f'cc1/f'c | BB16: fcc1/f'c | BC16: f'cc/f'c | BH16: 0.18 | BI16: 1.2620512 | BJ16: 1.3650868 | BK16: 1.4664772 | BL16: 1.5486724 | BM16: 1.6322812 | BN16: 1.7025864 | BO16: 1.764412 | BP16: 1.818278 | BQ16: 1.8714236 | BR16: 1.9138596
B17: -0.001566667826 | C17: -23.87650486 | T17: [mm2] | U17: [mm] | V17: [mm2] | W17: - | X17: - | Y17: - | Z17: [N/mm2] | AA17: [N/mm2] | AD17: 0.22 | AP17: 2.044 | AQ17: 2.07 | AR17: 2.099 | AS17: 2.127 | AT17: 2.153 | AV17: 0.22 | AW17: -0.178 | AX17: 1.467 | AY17: 1.729 | BA17: =BB10*$BA$6^2+BC10*$BA$6+BD10 -> 1.164668638 | BB17: =BB14*$BA$6^2+BC14*$BA$6+BD14 -> 1.249303538 | BC17: =BA17+((BB17-BA17)/(BA14-BA10))*(BB6-BA10) -> 1.206756435 | BH17: 0.2 | BI17: 1.27852 | BJ17: 1.38128 | BK17: 1.48472 | BL17: 1.56964 | BM17: 1.65592 | BN17: 1.72764 | BO17: 1.793 | BP17: 1.846 | BQ17: 1.90276 | BR17: 1.94156 | BS17: 1.9784
B18: -0.001468751087 | C18: -22.97328181 | I18: Ritorna alla pagina "parametri del calcestruzzo" | T18: =V13+Y13 -> 6144 | U18: =10*$J$39-$J$38 -> 142 | V18: =(Y8-T18)*(1-U18/(2*X8))*(1-U18/(2*W8)) -> 22962.12247 | W18: =V18/AA8 -> 0.4397567862 | X18: =U8/(W8*10*J39) -> 0.004333231246 | Y18: =V8/(X8*10*J39) -> 0.004333231246 | Z18: =X18*$J$40*W18 -> 0.7456486984 | AA18: =Y18*$J$40*W18 -> 0.7456486984 | AD18: 0.24 | AQ18: 2.107 | AR18: 2.133 | AS18: 2.161 | AT18: 2.187 | AV18: 0.24 | AW18: 0 | AX18: 1.34 | AY18: 1.785 | BH18: 0.22 | BI18: 1.2924592 | BJ18: 1.3949988 | BK18: 1.5004452 | BL18: 1.5884084 | BM18: 1.6763692 | BN18: 1.7494024 | BO18: 1.818452 | BP18: 1.871038 | BQ18: 1.9302876 | BR18: 1.9674036 | BS18: 2.00514 | BT18: 2.0431248
B19: -0.001370834348 | C19: -21.99151763 | AD19: =AD18+0.02 -> 0.26 | AR19: 2.174 | AS19: 2.201 | AT19: 2.224 | AV19: =AV18+0.02 -> 0.26 | AW19: -5 | AX19: 4.05 | AY19: 1.459 | BH19: 0.24 | BI19: 1.3038688 | BJ19: 1.4062432 | BK19: 1.5136528 | BL19: 1.6049776 | BM19: 1.6936288 | BN19: 1.7678736 | BO19: 1.840768 | BP19: 1.893392 | BQ19: 1.9540064 | BR19: 1.9913904 | BS19: 2.03088 | BT19: 2.0708272 | BU19: 2.1066
B20: -0.001272917609 | C20: -20.93121232 | AD20: 0.28 | AS20: 2.234 | AT20: 2.259 | AV20: 0.28 | AW20: 0 | AX20: 1.25 | AY20: 1.884 | BH20: 0.26 | BI20: 1.3127488 | BJ20: 1.4150132 | BK20: 1.5243428 | BL20: 1.6193476 | BM20: 1.7076988 | BN20: 1.7830536 | BO20: 1.859948 | BP20: 1.913062 | BQ20: 1.9739164 | BR20: 2.0135204 | BS20: 2.05562 | BT20: 2.0983872 | BU20: 2.1334 | BV20: 2.174
B21: -0.00117500087 | C21: -19.79236587 | AD21: 0.3 | AT21: 2.3 | AV21: 0.3 | AW21: 0 | AX21: 0 | AY21: 2.3 | BH21: 0.28 | BI21: 1.3190992 | BJ21: 1.4213088 | BK21: 1.5325152 | BL21: 1.6315184 | BM21: 1.7185792 | BN21: 1.7949424 | BO21: 1.875992 | BP21: 1.930048 | BQ21: 1.9900176 | BR21: 2.0337936 | BS21: 2.07936 | BT21: 2.1258048 | BU21: 2.1602 | BV21: 2.201 | BW21: 2.234
B22: -0.001077084131 | C22: -18.57497829 | I22: Ec2 per calcestruzzo confinato | T22: CALCOLO DELLE PRESSIONI DI CONFINAMENTO SU NUCLEI CIRCOLARI | BH22: 0.3 | BI22: 1.32292 | BJ22: 1.42513 | BK22: 1.53817 | BL22: 1.64149 | BM22: 1.72627 | BN22: 1.80354 | BO22: 1.8889 | BP22: 1.94435 | BQ22: 2.00231 | BR22: 2.05221 | BS22: 2.1021 | BT22: 2.15308 | BU22: 2.187 | BV22: 2.224 | BW22: 2.259 | BX22: 2.3
B23: -0.0009791673915 | C23: -17.27904957
B24: -0.0008812506523 | C24: -15.90457972 | F24: DETERMINAZIONE DI f'cc PER NUCLEI CONFINATI AVENTI FORMA RETTANGOLARE | I24: f ck | J24: ='INPUT-2.1.1'!$F$6 -> 24.9 | K24: [N/mm2] | N24: Proprietà della sezione | T24: ds | U24: s' | V24: Ae | W24: Ac | X24: ρcc | Y24: Acc | Z24: ke | AV24: Intersezione con la curva per sezioni circolari | BI24: f'l,min/f'c | BJ24: 0 | BK24: =BJ24+0.02 -> 0.02 | BL24: 0.04 | BM24: 0.06 | BN24: 0.08 | BO24: 0.1 | BP24: 0.12 | BQ24: 0.14 | BR24: 0.16 | BS24: 0.18 | BT24: 0.2 | BU24: 0.22 | BV24: 0.24 | BW24: 0.26 | BX24: 0.28 | BY24: 0.3
B25: -0.0007833339132 | C25: -14.45156873 | I25: f ck,c | J25: =IF(J32<=0.05*J24,J24*(1+5*J32/J24),J24*(1.125+2.5*J32/J24)) -> 28.62824349 | K25: [N/mm2] | N25: Altezza | O25: LY | P25: =SezRett!C2 -> 0.3 | Q25: m | T25: [mm] | U25: [mm] | V25: [mm2] | W25: [mm2] | X25: - | Y25: [mm2] | Z25: - | BI25: a | BJ25: -3.162 | BK25: -3.093 | BL25: -3.147 | BM25: -2.749 | BN25: -3.987 | BO25: -4.114 | BP25: -3.92 | BQ25: -3.355 | BR25: -4.761 | BS25: -2.321 | BT25: -1.25 | BU25: -0.178 | BV25: 0 | BW25: -5 | BX25: 0 | BY25: 0
B26: -0.000685417174 | C26: -12.92001661 | I26: γc | J26: ='INPUT-2'!$J$20 -> 1 | K26: - | N26: Base | O26: LZ | P26: =SezRett!C3 -> 0.3 | Q26: m | T26: =300 -> 300 | U26: =10*$J$39-$J$38 -> 142 | V26: =(PI()/4)*(T26-U26/2)^2 -> 41187.06509 | W26: =PI()*T26^2/4 -> 70685.83471 | X26: =P36/W26 -> 0.02275555556 | Y26: =W26*(1-X26) -> 69077.33927 | Z26: =V26/Y26 -> 0.5962456795 | AV26: f' cc | AW26: f' co | AX26: f 'cc / f 'c | BI26: b | BJ26: 2.025 | BK26: 1.985 | BL26: 2.108 | BM26: 2.093 | BN26: 2.697 | BO26: 2.816 | BP26: 2.919 | BQ26: 2.661 | BR26: 3.376 | BS26: 2.267 | BT26: 1.862 | BU26: 1.467 | BV26: 1.34 | BW26: 4.05 | BX26: 1.25 | BY26: 0
B27: -0.0005875004349 | C27: -11.30992335 | I27: f 'cc,d | J27: =J25/J26 -> 28.62824349 | K27: [N/mm2] | N27: Copriferro | O27: c | P27: =SezRett!C4 -> 0.034 | Q27: m | AV27: =AW27*AX27 -> 30.04823523 | AW27: =$J$24 -> 24.9 | AX27: =$J$54 -> 1.206756435 | BI27: c | BJ27: 1 | BK27: 1.108 | BL27: 1.189 | BM27: 1.261 | BN27: 1.276 | BO27: 1.329 | BP27: 1.366 | BQ27: 1.448 | BR27: 1.418 | BS27: 1.581 | BT27: 1.656 | BU27: 1.729 | BV27: 1.785 | BW27: 1.459 | BX27: 1.884 | BY27: 2.3
B28: -0.0004895836957 | C28: -9.621288965 | I28: εc2 | J28: =IF(J24>50, 0.002+0.000085*(J24-50)^0.53,0.002) -> 0.002 | K28: - | N28: Diametro staffa | O28: fst | P28: =SezRett!C5 -> 8 | Q28: m | T28: Asp | U28: ρs | V28: fl | W28: f'l | Y28: f'cc
B29: -0.0003916669566 | C29: -7.854113441 | I29: εc2,c | J29: =J28*(J25/J24)^2 -> 0.002643751957 | K29: - | N29: n° fibre Y | O29: nY | P29: =SezRett!C6 -> 10 | T29: [mm2] | U29: - | V29: [N/mm2] | W29: [N/mm2] | Y29: [N/mm2] | AV29: c1 | AW29: c2 | AX29: c3
B30: -0.0002937502174 | C30: -6.008396782 | I30: εcu2 | J30: =IF(J24>50,0.0026+0.035*((90-J24)/100)^4,0.0035) -> 0.0035 | K30: - | N30: n° fibre Z | O30: nZ | P30: =SezRett!C7 -> 10 | T30: =PI()*J38^2/4 -> 50.26548246 | U30: =(PI()*T30*T26)/(PI()*T26^2/4*10*J39) -> 0.004468042885 | V30: =U30*J40/2 -> 0.8741725905 | W30: =Z26*V30 -> 0.5212216302 | Y30: =$J$24*(-1.254+2.254*SQRT(1+7.94*W30/$J$24)-2*W30/J24) -> 28.34245276 | AV30: =-1.254 -> -1.254 | AW30: =2.254 -> 2.254 | AX30: =7.94 -> 7.94
B31: -0.0001958334783 | C31: -4.084138989 | I31: εcu2,c | J31: =J30+0.2*J32/J24 -> 0.009489146172 | K31: - | N31: n° strati barre | O31: nL | P31: =SezRett!C8 -> 3
B32: -9.791673915e-05 | C32: -2.081340062 | I32: σ2 | J32: =IF(OR($W$44=2,$W$44=3),W30,AX40) -> 0.7456486984 | K32: [N/mm2] | AV32: a | AW32: b | AX32: c
B33: 0 | C33: 0 | AV33: =(2/AW27)^2 -> 0.006451508847 | AW33: =(4*AX27-4*AV30-AW30^2*AX30)/AW27 -> -1.224749851 | AX33: =(AX27-AV30)^2-AW30^2 -> 0.9748062325
N34: Armatura Longitudinale
I35: Tipo di armatura di confinamento | T35: Armatura di confinamento | AV35: x1 | AW35: x2 | AX35: fl eq/f'co
N36: Area totale | O36: As tot | P36: =SUM(SezRett!P4:P1003)*1000000 -> 1608.495439 | Q36: [mm2] | AV36: =(-AW33+SQRT(AW33^2-4*AV33*AX33))/(2*AV33) -> 189.0400008 | AW36: =(-AW33-SQRT(AW33^2-4*AV33*AX33))/(2*AV33) -> 0.7992879939 | AX36: =AX40/AW27 -> 0.02994573086
I38: φ | J38: ='INPUT-1.1.3'!G8 -> 8 | K38: [mm] | N38: Diametro rappresentativo f | P38: =SezRett!$M$4 -> 16 | Q38: [mm] | T38: Tipo di armatura | AV38: flx | AW38: fly | AX38: fl eq
I39: =IF($W$44=3,"Passo spirale","passo staffe") -> passo staffe | J39: ='INPUT-1.1.3'!G9 -> 15 | K39: [cm] | T39: staffe rettangolari + legature | W39: 1 | AV39: [N/mm2] | AW39: [N/mm2] | AX39: [N/mm2]
I40: fy | J40: ='INPUT-1.1.3'!G10 -> 391.3 | K40: [N/mm2] | T40: staffe circolari | W40: 2 | AV40: =$Z$18 -> 0.7456486984 | AW40: =$AA$18 -> 0.7456486984 | AX40: =IF(AV40=AW40,AV40,IF(AND(AV36<MAX(AV40,AW40),AV36>MIN(AV40,AW40)),AV36,IF(AND(AW36<MAX(AV40,AW40),AW36>MIN(AV40,AW40)),AW36,(AV40+AW40)/2))) -> 0.7456486984
T41: a spirale | W41: 3
I42: =IF(OR($W$44 = 2, $W$44 = 3),"Pressione di confinamento","Pressioni di confinamento") -> Pressioni di confinamento | T42: da sezione | W42: 4
I43: =IF(OR($W$44=2,$W$44=3),W28,Z16) -> f'lx | J43: =IF(OR($W$44=2,$W$44=3),W30,Z18) -> 0.7456486984 | K43: [N/mm2]
I44: fly | J44: =$AA$18 -> 0.7456486984 | K44: [N/mm2] | T44: Tipologia scelta | W44: ='INPUT-1.1.3'!$F$5 -> 1
I45: flx/f 'c | J45: =J43/$J$24 -> 0.02994573086 | K45: -
I46: fly/f 'c | J46: =J44/$J$24 -> 0.02994573086 | K46: -
I48: =IF($W$44=1, "numero bracci in direzione z","") -> numero bracci in direzione z | K48: ='INPUT-1.1.3'!G13 -> 3 | T48: DEFORMAZIONE ULTIMA CALCESTRUZZO
I49: =IF($W$44=1, "distanza netta tra i bracci [cm]","") -> distanza netta tra i bracci [cm] | K49: ='INPUT-1.1.3'!G14 -> 9.6 | T49: (Scott et al. 1982)
I51: =IF($W$44=1, "numero bracci in direzione y","") -> numero bracci in direzione y | K51: ='INPUT-1.1.3'!G16 -> 3 | T51: ρs | U51: εcu
I52: =IF($W$44=1, "distanza netta tra i bracci [cm]","") -> distanza netta tra i bracci [cm] | K52: ='INPUT-1.1.3'!G17 -> 9.6 | T52: - | U52: -
T53: =IF(OR(W44=2,W44=3),U30,AA13) -> 0.008666462493 | U53: =0.004+0.9*T53*(J40/300) -> 0.01417356032
I54: f 'cc / f 'c | J54: =$BC$17 -> 1.206756435 | K54: [N/mm2]
T55: TENSIONE MASSIMA CALCESTRUZZO (Nuclei rettangolari)
T56: Vedi grafico allegato
F57: EQUAZIONI MODELLO
T58: f'l max | U58: f'l min | V58: f'l max / f'c | W58: f'l min / f'c
T59: [N/mm2] | U59: [N/mm2] | V59: [N/mm2] | W59: [N/mm2]
T60: =MAX(Z18:AA18) -> 0.7456486984 | U60: =MIN(Z18:AA18) -> 0.7456486984 | V60: =T60/$J$24 -> 0.02994573086 | W60: =U60/$J$24 -> 0.02994573086

Sheet Braga-Gigliotti
B2: ε | C2: σ | N2: COLLEGAMENTI DAL FILE DI INPUT | T2: Conversione Input Geometria e Staffatura | Z2: Dati tabella input Geometria e staffatura | AO2: CALCOLO DELLA DEFORMAZIONE ULTIMA DEL CALCESTRUZZO CONFINATO (εcu) CON LA FORMULA DI MANDER
B3: - | C3: [N/mm2] | I3: Braga-Gigliotti-Laterza | Z3: Staffa esterna quadrata (LxL) - S1,S2,S3,S4-2,S5 / staffe rettangolari (axL) - S4-1 / Staffa circolare - C/ staffa esterna (axL) -R1,R2
B4: -0.01417356032 | C4: -9.066440672 | I4: info legame | T4: Geometria sezione | W4: codice identificativo | Z4: sezione | AC4: S1 | AD4: S2 | AE4: S3 | AF4: S4-1 | AG4: S4-2 | AH4: S5 | AI4: C | AJ4: R1 | AK4: R2 | AO4: armatura | AQ4: acciaio | AT4: calcestruzzo
B5: -0.0138101357 | C5: -9.449292904 | T5: =IF(AND($Q$49=1,$P$25=$P$26),"sezione quadrata",IF($Q$49=1,"sezione rettangolare",IF($Q$49=2,"sezione circolare","sezione non implementata"))) -> sezione quadrata | W5: =IF(AND($Q$49=1,$P$25=$P$26),"S",IF($Q$49=1,"R",IF($Q$49=2,"C",""))) -> S | Z5: lato/diametro [mm] | AC5: =($P$25-2*$P$27)*1000+AC8+AC7 -> 256 | AD5: =($P$25-2*$P$27)*1000+AD8+AD7 -> 256 | AE5: 256 | AF5: 256 | AG5: 256 | AH5: 256 | AI5: 256 | AJ5: =IF($P$25>=$P$26,($P$25-2*$P$27)*1000+AJ$8+AJ$7,($P$26-2*$P$27)*1000+AJ$8+AJ$7) -> 256 | AK5: =IF($P$25>=$P$26,($P$25-2*$P$27)*1000+AK8+AK7,($P$26-2*$P$27)*1000+AK8+AK7) -> 256 | AO5: ρs | AP5: ρcc | AQ5: fy | AR5: Es | AS5: εsy | AT5: f'co | AU5: εcu
B6: -0.01344671107 | C6: -9.841857926 | I6: NUMERO DI PUNTI DEL LEGAME COSTITUTIVO | Z6: passo [mm] | AC6: =$J$35*10 -> 150 | AD6: 150 | AE6: 150 | AF6: 150 | AG6: 150 | AH6: 150 | AI6: 150 | AJ6: 150 | AK6: 150 | AO6: - | AP6: - | AQ6: [N/mm2] | AR6: [N/mm2] | AS6: - | AT6: [N/mm2] | AU6: -
B7: -0.01308328645 | C7: -10.24540841 | I7: 40 | T7: Tipologia sezione e staffatura | W7: numero identificativo | Z7: diametro ferri staffa [mm] | AC7: =$J$34 -> 8 | AD7: =$J$34 -> 8 | AE7: 8 | AF7: 8 | AG7: 8 | AH7: 8 | AI7: 8 | AJ7: 8 | AK7: 8 | AO7: ='Mander confinato'!$CB$7 -> 0.008666462493 | AP7: ='Mander confinato'!$CC$7 -> 0.02988435342 | AQ7: ='Mander confinato'!$CD$7 -> 450 | AR7: ='Mander confinato'!$CE$7 -> 206000 | AS7: =AQ7/AR7 -> 0.002184466019 | AT7: =$J$24 -> 24.9 | AU7: 0.03208492376
B8: -0.01271986183 | C8: -10.66113946 | T8: =IF(W5="S",IF(AND(K38=2,K41=2),"S1",IF(AND(K38=3,K41=3),"S2",IF(AND(K38=4,K41=4),"S4-2","non implementata"))),IF(W5="R",IF(AND(K38=2,K41=2),"R1","R2"),IF(W5="C","C"))) -> S2 | W8: =INDEX(T12:X20,MATCH(T8,T12:T20,0),4) -> 2 | Z8: diametro barre longitudinali [mm] | AC8: =MAX(SezRett!$H$4:$H$23) -> 16 | AD8: =MAX(SezRett!$H$4:$H$23) -> 16 | AE8: =MAX(SezRett!$H$4:$H$23) -> 16 | AF8: =MAX(SezRett!$H$4:$H$23) -> 16 | AG8: =MAX(SezRett!$H$4:$H$23) -> 16 | AH8: =MAX(SezRett!$H$4:$H$23) -> 16 | AI8: =MAX(SezRett!$H$4:$H$23) -> 16 | AJ8: =MAX(SezRett!$H$4:$H$23) -> 16 | AK8: =MAX(SezRett!$H$4:$H$23) -> 16
B9: -0.0123564372 | C9: -11.09019718 | Z9: lato corto staffa [mm] | AF9: =AF5*(2/3) -> 170.6666667 | AJ9: =IF($P$25<=$P$26,($P$25-2*$P$27)*1000+AJ$8+AJ$7,($P$26-2*$P$27)*1000+AJ$8+AJ$7) -> 256 | AK9: =IF($P$25<=$P$26,($P$25-2*$P$27)*1000+AK$8+AK$7,($P$26-2*$P$27)*1000+AK$8+AK$7) -> 256
B10: -0.01199301258 | C10: -11.53369953 | I10: Passo di discretizzazione della ε nel tratto non lineare | T10: correlazione tra codice e indice | Z10: Staffa interna- S3 / Staffa rettangolare (bxL) - S4-1 / Staffe rettangolari (bxL) - S4-2 / staffa circolare equivalente - S5 / Legatura interna R2 | AO10: Ush | AP10: Ucc | AQ10: Usc | AR10: Uco | AT10: errore
B11: -0.01162958795 | C11: -11.99275136 | I11: =J27/(I7-1) -> 0.0003634246236 | T11: Tipologia sezione e staffatura | W11: numero identificativo | Z11: lato/diametro/lunghezza efficace | AE11: =AE5/SQRT(2) -> 181.019336 | AF11: =AF5*(1/3) -> 85.33333333 | AG11: =($P$25-2*$P$27)*1000/3+AG14+AG13 -> 101.3333333 | AH11: =$AH$5 -> 256 | AK11: =AK9/2 -> 128 | AO11: =110*AO7 -> 0.9533108742 | AP11: =AU19+BB19 -> 0.2877534176 | AQ11: =IF(AU7<AS7,AP7*0.5*AQ7*AS7,IF(AU7<AX23,AP7*(0.5*AQ7*AS7+AQ7*(AU7-AS7)),AP7*(0.5*AQ7*AS7+AQ7*(AX23-AS7)))) -> 0.2677188351 | AR11: =0.017*SQRT(AT7) -> 0.08482982966 | AT11: =AO11-AP11-AQ11+AR11 -> 0.4826684512
B12: -0.01126616333 | C12: -12.4684549 | T12: S1 | W12: 1 | Z12: passo | AE12: =$J$35*10 -> 150 | AF12: =$J$35*10 -> 150 | AG12: =$J$35*10 -> 150 | AH12: =$J$35*10 -> 150 | AK12: =$J$35*10 -> 150
B13: -0.01090273871 | C13: -12.96191623 | T13: S2 | W13: 2 | Z13: diametro ferri staffa | AE13: =$J$34 -> 8 | AF13: 8 | AG13: =$J$34 -> 8 | AH13: 8 | AK13: =$J$34 -> 8
B14: -0.01053931408 | C14: -13.47424803 | T14: S3 | W14: 3 | Z14: diametro barre longitudinali | AE14: =MAX(SezRett!$H$4:$H$23) -> 16 | AF14: =MAX(SezRett!$H$4:$H$23) -> 16 | AG14: =MAX(SezRett!$H$4:$H$23) -> 16 | AH14: =MAX(SezRett!$H$4:$H$23) -> 16 | AK14: =MAX(SezRett!$H$4:$H$23) -> 16 | AO14: intervalli | AP14: εcu max | AQ14: Δε
B15: -0.01017588946 | C15: -14.00656843 | T15: S4-1 | W15: 4 | AO15: 50 | AP15: 0.05 | AQ15: =AP15/AO15 -> 0.001
B16: -0.009812464837 | C16: -14.55999563 | T16: S4-2 | W16: 5
B17: -0.009449040213 | C17: -15.13563714 | T17: S5 | W17: 6 | AO17: ε | AP17: σimp | AQ17: σcorr | AR17: σin | AS17: σcalcolo | AT17: ai | AU17: ∑ai | AW17: iu | AX17: εiu | AY17: σiu | AZ17: σ(εcu)estr | BA17: σ(εcu) | BB17: Δai
B18: -0.00908561559 | C18: -15.73457248 | I18: Ritorna alla pagina "parametri del calcestruzzo" | T18: C | W18: 7 | AO18: - | AP18: [N/mm2] | AQ18: [N/mm2] | AR18: [N/mm2] | AS18: [N/mm2] | AT18: [N/mm2] | AU18: [N/mm2] | AW18: - | AX18: - | AY18: [N/mm2] | AZ18: [N/mm2] | BA18: [N/mm2] | BB18: [N/mm2]
B19: -0.008722190966 | C19: -16.35782662 | T19: R1 | W19: 8 | AO19: 0 | AP19: 0 | AQ19: =IFERROR(AP19,0) -> 0 | AR19: =IF(AQ19>0,AQ19,0) -> 0 | AS19: =IF(AO19<=$AU$7,AR19,0) -> 0 | AT19: =(AS20+AS19)*(AO20-AO19)/2 -> 0.01003628655 | AU19: =SUM(AT19:AT518) -> 0.2877534176 | AW19: =MATCH(0,AS20:AS519,0) -> 21 | AX19: =INDEX(AO19:AO519,$AW$19) -> 0.02 | AY19: =INDEX(AS19:AS519,$AW$19) -> 0.5589919788 | AZ19: =AY19+((AY23-AY19)/(AX23-AX19))*(AU7-AX19) -> -6.196383465 | BA19: =IF(AZ19>0,AZ19,0) -> 0 | BB19: =IF(BA19=0,0,(BA19+AY19)*(AU7-AX19)/2) -> 0
B20: -0.008358766343 | C20: -17.00633027 | I20: vai a parametri avanzati | T20: R2 | W20: 9 | AO20: 0.001 | AP20: 20.07257309 | AQ20: =IFERROR(AP20,0) -> 20.07257309 | AR20: =IF(AQ20>0,AQ20,0) -> 20.07257309 | AS20: =IF(AO20<=$AU$7,AR20,0) -> 20.07257309 | AT20: 0.02293757871
B21: -0.007995341719 | C21: -17.6808623 | AO21: 0.002 | AP21: 25.80258432 | AQ21: 25.80258432 | AR21: 25.80258432 | AS21: 25.80258432 | AT21: 0.02613951046 | AW21: iu+1 | AX21: εiu-1 | AY21: σiu-1
B22: -0.007631917095 | C22: -18.3819749 | I22: Braga - Gigliotti - Laterza | AO22: 0.003 | AP22: 26.4764366 | AQ22: 26.4764366 | AR22: 26.4764366 | AS22: 26.4764366 | AT22: 0.02595807825 | AW22: - | AX22: - | AY22: [N/mm2]
B23: -0.007268492472 | C23: -19.10992891 | AO23: 0.004 | AP23: 25.43971989 | AQ23: 25.43971989 | AR23: 25.43971989 | AS23: 25.43971989 | AT23: 0.02477513466 | AW23: =AW19+1 -> 22 | AX23: =INDEX(AO19:AO519,$AW$23) -> 0.021 | AY23: =INDEX(AR19:AR519,$AW$23) -> 0
B24: -0.006905067848 | C24: -19.86472283 | I24: f ck | J24: ='INPUT-2.1.1'!$F$6 -> 24.9 | K24: [N/mm2] | N24: Proprietà della sezione | T24: DEFORMAZIONE ULTIMA CALCESTRUZZO | AO24: 0.005 | AP24: 24.11054943 | AQ24: 24.11054943 | AR24: 24.11054943 | AS24: 24.11054943 | AT24: 0.02328432012
B25: -0.006541643225 | C25: -20.64625139 | I25: γc | J25: ='INPUT-2'!$J$20 -> 1 | K25: - | N25: Altezza | O25: LY | P25: =SezRett!C2 -> 0.3 | Q25: m | AO25: 0.006 | AP25: 22.45809082 | AQ25: 22.45809082 | AR25: 22.45809082 | AS25: 22.45809082 | AT25: 0.02139521153
B26: -0.006178218601 | C26: -21.45369071 | I26: εco | J26: ='INPUT-2.1.1'!$F$7 -> 0.002 | K26: - | N26: Base | O26: LZ | P26: =SezRett!C3 -> 0.3 | Q26: m | T26: (Scott et al. 1982) | W26: (Mander) | Y26: deformazione ultima | AA26: 2 | AO26: 0.007 | AP26: 20.33233225 | AQ26: 20.33233225 | AR26: 20.33233225 | AS26: 20.33233225 | AT26: 0.01928359398
B27: -0.005814793977 | C27: -22.27898582 | I27: εcu | J27: =IF(AA26=1,W29,IF(AA26=2,U29,J28)) -> 0.01417356032 | K27: - | N27: Copriferro | O27: c | P27: =SezRett!C4 -> 0.034 | Q27: m | T27: ρs | U27: εcu | W27: εcu | Y27: Mander | AA27: 1 | AO27: 0.008 | AP27: 18.23485571 | AQ27: 18.23485571 | AR27: 18.23485571 | AS27: 18.23485571 | AT27: 0.01728185382
B28: -0.005451369354 | C28: -23.08039066 | I28: εcu utente | J28: 0.02 | K28: - | N28: Diametro staffa | O28: fst | P28: =SezRett!C5 -> 8 | Q28: mm | T28: - | U28: - | W28: - | Y28: Scott | AA28: 2 | AO28: 0.009 | AP28: 16.32885192 | AQ28: 16.32885192 | AR28: 16.32885192 | AS28: 16.32885192 | AT28: 0.01547610746
B29: -0.00508794473 | C29: -23.73936741 | N29: n° fibre Y | O29: nY | P29: =SezRett!C6 -> 10 | T29: ='Mander confinato'!$CB$7 -> 0.008666462493 | U29: =0.004+0.9*T29*(J36/300) -> 0.01417356032 | W29: =$AU$7 -> 0.03208492376 | Y29: Utente | AA29: 3 | AO29: 0.01 | AP29: 14.623363 | AQ29: 14.623363 | AR29: 14.623363 | AS29: 14.623363 | AT29: 0.01385747869
B30: -0.004724520107 | C30: -24.25896104 | N30: n° fibre Z | O30: nZ | P30: =SezRett!C7 -> 10 | AO30: 0.011 | AP30: 13.09159437 | AQ30: 13.09159437 | AR30: 13.09159437 | AS30: 13.09159437 | AT30: 0.01239777031
B31: -0.004361095483 | C31: -24.77503302 | I31: Tipo di armatura di confinamento | N31: n° strati barre | O31: nL | P31: =SezRett!C8 -> 3 | AO31: 0.012 | AP31: 11.70394625 | AQ31: 11.70394625 | AR31: 11.70394625 | AS31: 11.70394625 | AT31: 0.01106842233
B32: -0.00399767086 | C32: -25.27665812 | AO32: 0.013 | AP32: 10.43289842 | AQ32: 10.43289842 | AR32: 10.43289842 | AS32: 10.43289842 | AT32: 0.009842260272
B33: -0.003634246236 | C33: -25.74608236 | T33: STATO DEL CALCOLO | V33: 2 | AO33: 0.014 | AP33: 9.251622121 | AQ33: 9.251622121 | AR33: 9.251622121 | AS33: 9.251622121 | AT33: 0.008691319205
B34: -0.003270821612 | C34: -26.15466526 | I34: φ | J34: ='INPUT-1.1.3'!G8 -> 8 | K34: [mm] | N34: Armatura Longitudinale | T34: deformazione ultima | V34: 1 | AO34: 0.015 | AP34: 8.131016289 | AQ34: 8.131016289 | AR34: 8.131016289 | AS34: 8.131016289 | AT34: 0.007582867295
B35: -0.002907396989 | C35: -26.45623467 | I35: =IF($Q$49=3,"Passo spirale","passo staffe") -> passo staffe | J35: ='INPUT-1.1.3'!G9 -> 15 | K35: [cm] | T35: legame costitutivo | V35: 2 | AO35: 0.016 | AP35: 7.034718301 | AQ35: 7.034718301 | AR35: 7.034718301 | AS35: 7.034718301 | AT35: 0.006471933883
B36: -0.002543972365 | C36: -26.57417112 | I36: fy | J36: ='INPUT-1.1.3'!G10 -> 391.3 | K36: [N/mm2] | N36: Area totale | O36: As tot | P36: =SUM(SezRett!P4:P1003)*1000000 -> 1608.495439 | Q36: [mm2] | AO36: 0.017 | AP36: 5.909149466 | AQ36: 5.909149466 | AR36: 5.909149466 | AS36: 5.909149466 | AT36: 0.005285014164
B37: -0.002180547742 | C37: -26.13719867 | AO37: 0.018 | AP37: 4.660878863 | AQ37: 4.660878863 | AR37: 4.660878863 | AS37: 4.660878863 | AT37: 0.003880061673
B38: -0.001817123118 | C38: -25.33347212 | I38: =IF($Q$49=1, "numero bracci in direzione z","") -> numero bracci in direzione z | K38: ='INPUT-1.1.3'!G13 -> 3 | AO38: 0.019 | AP38: 3.099244484 | AQ38: 3.099244484 | AR38: 3.099244484 | AS38: 3.099244484 | AT38: 0.001829118231
B39: -0.001453698494 | C39: -23.8518035 | I39: =IF($Q$49=1, "distanza netta tra i bracci [cm]","") -> distanza netta tra i bracci [cm] | K39: ='INPUT-1.1.3'!G14 -> 9.6 | AO39: 0.02 | AP39: 0.5589919788 | AQ39: 0.5589919788 | AR39: 0.5589919788 | AS39: 0.5589919788 | AT39: 0.0002794959894
B40: -0.001090273871 | C40: -21.04943668 | N40: Armatura di confinamento | AO40: 0.021 | AP40: -5.102103284 | AQ40: -5.102103284 | AR40: 0 | AS40: 0 | AT40: 0
B41: -0.0007268492472 | C41: -16.30408303 | I41: =IF($Q$49=1, "numero bracci in direzione y","") -> numero bracci in direzione y | K41: ='INPUT-1.1.3'!G16 -> 3 | AO41: 0.022 | AQ41: 0 | AR41: 0 | AS41: 0 | AT41: 0
B42: -0.0003634246236 | C42: -9.225410089 | I42: =IF($Q$49=1, "distanza netta tra i bracci [cm]","") -> distanza netta tra i bracci [cm] | K42: ='INPUT-1.1.3'!G17 -> 9.6 | AO42: 0.023 | AQ42: 0 | AR42: 0 | AS42: 0 | AT42: 0
B43: 0 | C43: 0 | N43: Tipo di armatura | AO43: 0.024 | AQ43: 0 | AR43: 0 | AS43: 0 | AT43: 0
N44: staffe rettangolari + legature | Q44: 1 | AO44: 0.025 | AQ44: 0 | AR44: 0 | AS44: 0 | AT44: 0
N45: staffe circolari | Q45: 2 | AO45: 0.026 | AQ45: 0 | AR45: 0 | AS45: 0 | AT45: 0
N46: a spirale | Q46: 3 | AO46: 0.027 | AQ46: 0 | AR46: 0 | AS46: 0 | AT46: 0
N47: da sezione | Q47: 4 | AO47: 0.028 | AQ47: 0 | AR47: 0 | AS47: 0 | AT47: 0
AO48: 0.029 | AQ48: 0 | AR48: 0 | AS48: 0 | AT48: 0
N49: Tipologia scelta | Q49: 1 | AO49: 0.03 | AQ49: 0 | AR49: 0 | AS49: 0 | AT49: 0
AO50: 0.031 | AQ50: 0 | AR50: 0 | AS50: 0 | AT50: 0
AO51: 0.032 | AQ51: 0 | AR51: 0 | AS51: 0 | AT51: 0
AO52: 0.033 | AQ52: 0 | AR52: 0 | AS52: 0 | AT52: 0
AO53: 0.034 | AQ53: 0 | AR53: 0 | AS53: 0 | AT53: 0
AO54: 0.035 | AQ54: 0 | AR54: 0 | AS54: 0 | AT54: 0
AO55: 0.036 | AQ55: 0 | AR55: 0 | AS55: 0 | AT55: 0
AO56: 0.037 | AQ56: 0 | AR56: 0 | AS56: 0 | AT56: 0
AO57: 0.038 | AQ57: 0 | AR57: 0 | AS57: 0 | AT57: 0
AO58: 0.039 | AQ58: 0 | AR58: 0 | AS58: 0 | AT58: 0
AO59: 0.04 | AQ59: 0 | AR59: 0 | AS59: 0 | AT59: 0
AO60: 0.041 | AQ60: 0 | AR60: 0 | AS60: 0 | AT60: 0
AO61: 0.042 | AQ61: 0 | AR61: 0 | AS61: 0 | AT61: 0
AO62: 0.043 | AQ62: 0 | AR62: 0 | AS62: 0 | AT62: 0
AO63: 0.044 | AQ63: 0 | AR63: 0 | AS63: 0 | AT63: 0
AO64: 0.045 | AQ64: 0 | AR64: 0 | AS64: 0 | AT64: 0
AO65: 0.046 | AQ65: 0 | AR65: 0 | AS65: 0 | AT65: 0
AO66: 0.047 | AQ66: 0 | AR66: 0 | AS66: 0 | AT66: 0
AO67: 0.048 | AQ67: 0 | AR67: 0 | AS67: 0 | AT67: 0
AO68: 0.049 | AQ68: 0 | AR68: 0 | AS68: 0 | AT68: 0
AO69: 0.05 | AQ69: 0 | AR69: 0 | AS69: 0 | AT69: 0
AQ70: 0 | AR70: 0 | AS70: 0 | AT70: 0
AQ71: 0 | AR71: 0 | AS71: 0 | AT71: 0
AQ72: 0 | AR72: 0 | AS72: 0 | AT72: 0
AQ73: 0 | AR73: 0 | AS73: 0 | AT73: 0
AQ74: 0 | AR74: 0 | AS74: 0 | AT74: 0
AQ75: 0 | AR75: 0 | AS75: 0 | AT75: 0
AQ76: 0 | AR76: 0 | AS76: 0 | AT76: 0
AQ77: 0 | AR77: 0 | AS77: 0 | AT77: 0
AQ78: 0 | AR78: 0 | AS78: 0 | AT78: 0
AQ79: 0 | AR79: 0 | AS79: 0 | AT79: 0
AQ80: 0 | AR80: 0 | AS80: 0 | AT80: 0
AQ81: 0 | AR81: 0 | AS81: 0 | AT81: 0
AQ82: 0 | AR82: 0 | AS82: 0 | AT82: 0
AQ83: 0 | AR83: 0 | AS83: 0 | AT83: =(AS84+AS83)*(AO84-AO83)/2 -> 0
AQ84: =IFERROR(AP84,0) -> 0 | AR84: =IF(AQ84>0,AQ84,0) -> 0 | AS84: =IF(AO84<=$AU$7,AR84,0) -> 0 | AT84: 0
AQ85: 0 | AR85: 0 | AS85: 0 | AT85: 0
AQ86: 0 | AR86: 0 | AS86: 0 | AT86: 0
AQ87: 0 | AR87: 0 | AS87: 0 | AT87: 0
AQ88: 0 | AR88: 0 | AS88: 0 | AT88: 0
AQ89: 0 | AR89: 0 | AS89: 0 | AT89: 0
AQ90: 0 | AR90: 0 | AS90: 0 | AT90: 0
AQ91: 0 | AR91: 0 | AS91: 0 | AT91: 0
AQ92: 0 | AR92: 0 | AS92: 0 | AT92: 0
AQ93: 0 | AR93: 0 | AS93: 0 | AT93: 0
AQ94: 0 | AR94: 0 | AS94: 0 | AT94: 0
AQ95: 0 | AR95: 0 | AS95: 0 | AT95: 0
AQ96: 0 | AR96: 0 | AS96: 0 | AT96: 0
AQ97: 0 | AR97: 0 | AS97: 0 | AT97: 0
AQ98: 0 | AR98: 0 | AS98: 0 | AT98: 0
AQ99: 0 | AR99: 0 | AS99: 0 | AT99: 0
AQ100: 0 | AR100: 0 | AS100: 0 | AT100: 0
AQ101: 0 | AR101: 0 | AS101: 0 | AT101: 0
AQ102: 0 | AR102: 0 | AS102: 0 | AT102: 0
AQ103: 0 | AR103: 0 | AS103: 0 | AT103: 0
AQ104: 0 | AR104: 0 | AS104: 0 | AT104: 0
AQ105: 0 | AR105: 0 | AS105: 0 | AT105: 0
AQ106: 0 | AR106: 0 | AS106: 0 | AT106: 0
AQ107: 0 | AR107: 0 | AS107: 0 | AT107: 0
AQ108: 0 | AR108: 0 | AS108: 0 | AT108: 0
AQ109: 0 | AR109: 0 | AS109: 0 | AT109: 0
AQ110: 0 | AR110: 0 | AS110: 0 | AT110: 0
AQ111: 0 | AR111: 0 | AS111: 0 | AT111: 0
AQ112: 0 | AR112: 0 | AS112: 0 | AT112: 0
AQ113: 0 | AR113: 0 | AS113: 0 | AT113: 0
AQ114: 0 | AR114: 0 | AS114: 0 | AT114: 0
AQ115: 0 | AR115: 0 | AS115: 0 | AT115: 0
AQ116: 0 | AR116: 0 | AS116: 0 | AT116: 0
AQ117: 0 | AR117: 0 | AS117: 0 | AT117: 0
AQ118: 0 | AR118: 0 | AS118: 0 | AT118: 0
AQ119: 0 | AR119: 0 | AS119: 0 | AT119: 0
AQ120: 0 | AR120: 0 | AS120: 0 | AT120: 0
AQ121: 0 | AR121: 0 | AS121: 0 | AT121: 0
AQ122: 0 | AR122: 0 | AS122: 0 | AT122: 0
AQ123: 0 | AR123: 0 | AS123: 0 | AT123: 0
AQ124: 0 | AR124: 0 | AS124: 0 | AT124: 0
AQ125: 0 | AR125: 0 | AS125: 0 | AT125: 0
AQ126: 0 | AR126: 0 | AS126: 0 | AT126: 0
AQ127: 0 | AR127: 0 | AS127: 0 | AT127: 0
AQ128: 0 | AR128: 0 | AS128: 0 | AT128: 0
AQ129: 0 | AR129: 0 | AS129: 0 | AT129: 0
AQ130: 0 | AR130: 0 | AS130: 0 | AT130: 0
AQ131: 0 | AR131: 0 | AS131: 0 | AT131: 0
AQ132: 0 | AR132: 0 | AS132: 0 | AT132: 0
AQ133: 0 | AR133: 0 | AS133: 0 | AT133: 0
AQ134: 0 | AR134: 0 | AS134: 0 | AT134: 0
AQ135: 0 | AR135: 0 | AS135: 0 | AT135: 0
AQ136: 0 | AR136: 0 | AS136: 0 | AT136: 0
AQ137: 0 | AR137: 0 | AS137: 0 | AT137: 0
AQ138: 0 | AR138: 0 | AS138: 0 | AT138: 0
AQ139: 0 | AR139: 0 | AS139: 0 | AT139: 0
AQ140: 0 | AR140: 0 | AS140: 0 | AT140: 0
AQ141: 0 | AR141: 0 | AS141: 0 | AT141: 0
AQ142: 0 | AR142: 0 | AS142: 0 | AT142: 0
AQ143: 0 | AR143: 0 | AS143: 0 | AT143: 0
AQ144: 0 | AR144: 0 | AS144: 0 | AT144: 0
AQ145: 0 | AR145: 0 | AS145: 0 | AT145: 0
AQ146: 0 | AR146: 0 | AS146: 0 | AT146: 0
AQ147: 0 | AR147: 0 | AS147: 0 | AT147: =(AS148+AS147)*(AO148-AO147)/2 -> 0
AQ148: =IFERROR(AP148,0) -> 0 | AR148: =IF(AQ148>0,AQ148,0) -> 0 | AS148: =IF(AO148<=$AU$7,AR148,0) -> 0 | AT148: 0
AQ149: 0 | AR149: 0 | AS149: 0 | AT149: 0
AQ150: 0 | AR150: 0 | AS150: 0 | AT150: 0
AQ151: 0 | AR151: 0 | AS151: 0 | AT151: 0
AQ152: 0 | AR152: 0 | AS152: 0 | AT152: 0
AQ153: 0 | AR153: 0 | AS153: 0 | AT153: 0
AQ154: 0 | AR154: 0 | AS154: 0 | AT154: 0
AQ155: 0 | AR155: 0 | AS155: 0 | AT155: 0
AQ156: 0 | AR156: 0 | AS156: 0 | AT156: 0
AQ157: 0 | AR157: 0 | AS157: 0 | AT157: 0
AQ158: 0 | AR158: 0 | AS158: 0 | AT158: 0
AQ159: 0 | AR159: 0 | AS159: 0 | AT159: 0
AQ160: 0 | AR160: 0 | AS160: 0 | AT160: 0
AQ161: 0 | AR161: 0 | AS161: 0 | AT161: 0
AQ162: 0 | AR162: 0 | AS162: 0 | AT162: 0
AQ163: 0 | AR163: 0 | AS163: 0 | AT163: 0
AQ164: 0 | AR164: 0 | AS164: 0 | AT164: 0
AQ165: 0 | AR165: 0 | AS165: 0 | AT165: 0
AQ166: 0 | AR166: 0 | AS166: 0 | AT166: 0
AQ167: 0 | AR167: 0 | AS167: 0 | AT167: 0
AQ168: 0 | AR168: 0 | AS168: 0 | AT168: 0
AQ169: 0 | AR169: 0 | AS169: 0 | AT169: 0
AQ170: 0 | AR170: 0 | AS170: 0 | AT170: 0
AQ171: 0 | AR171: 0 | AS171: 0 | AT171: 0
AQ172: 0 | AR172: 0 | AS172: 0 | AT172: 0
AQ173: 0 | AR173: 0 | AS173: 0 | AT173: 0
AQ174: 0 | AR174: 0 | AS174: 0 | AT174: 0
AQ175: 0 | AR175: 0 | AS175: 0 | AT175: 0
AQ176: 0 | AR176: 0 | AS176: 0 | AT176: 0
AQ177: 0 | AR177: 0 | AS177: 0 | AT177: 0
AQ178: 0 | AR178: 0 | AS178: 0 | AT178: 0
AQ179: 0 | AR179: 0 | AS179: 0 | AT179: 0
AQ180: 0 | AR180: 0 | AS180: 0 | AT180: 0
AQ181: 0 | AR181: 0 | AS181: 0 | AT181: 0
AQ182: 0 | AR182: 0 | AS182: 0 | AT182: 0
AQ183: 0 | AR183: 0 | AS183: 0 | AT183: 0
AQ184: 0 | AR184: 0 | AS184: 0 | AT184: 0
AQ185: 0 | AR185: 0 | AS185: 0 | AT185: 0
AQ186: 0 | AR186: 0 | AS186: 0 | AT186: 0
AQ187: 0 | AR187: 0 | AS187: 0 | AT187: 0
AQ188: 0 | AR188: 0 | AS188: 0 | AT188: 0
AQ189: 0 | AR189: 0 | AS189: 0 | AT189: 0
AQ190: 0 | AR190: 0 | AS190: 0 | AT190: 0
AQ191: 0 | AR191: 0 | AS191: 0 | AT191: 0
AQ192: 0 | AR192: 0 | AS192: 0 | AT192: 0
AQ193: 0 | AR193: 0 | AS193: 0 | AT193: 0
AQ194: 0 | AR194: 0 | AS194: 0 | AT194: 0
AQ195: 0 | AR195: 0 | AS195: 0 | AT195: 0
AQ196: 0 | AR196: 0 | AS196: 0 | AT196: 0
AQ197: 0 | AR197: 0 | AS197: 0 | AT197: 0
AQ198: 0 | AR198: 0 | AS198: 0 | AT198: 0
AQ199: 0 | AR199: 0 | AS199: 0 | AT199: 0
AQ200: 0 | AR200: 0 | AS200: 0 | AT200: 0
AQ201: 0 | AR201: 0 | AS201: 0 | AT201: 0
... 318 more rows

Sheet BGL Input
S1: Attenzione: qui sono riportati i riferimenti alle celle dove agiscono i pulsanti
B2: Input materiali | I2: Modello triassiale attivo | S2: Uno spostamento di celle potrebbe far perdere i riferimenti scritti qui, ma tutto dovrebbe funzionare
S3: Tipo modello: cella L4: 1-Attard-Set; 2- Ahamad-Shah
C4: Calcestruzzo | J4: Tipo modello | L4: 1 | S4: Attard-Setunge | V4: =L4 -> 1
C5: Peso dell'unità volume | D5: g | E5: 2306 | F5: [Kg/mc] | J5: Modulo di Poisson | K5: n0 | L5: 0.2 | S5: Ahamad-Shah
C6: Deformazione ultima | D6: ecu | E6: =IF('Braga-Gigliotti'!$V$33=2,'Braga-Gigliotti'!$J$27,'Braga-Gigliotti'!$AP$15) -> 0.01417356032 | J6: Limite modulo di Poisson | K6: n0,lim | L6: 0.5
C7: Resistenza cilindrica | D7: f ck | E7: ='Braga-Gigliotti'!$J$24 -> 24.9 | F7: [MPa]
C8: Coeff. riduzione resistenza "c" | D8: c | E8: 1 | J8: 1 | L8: 2 | S8: Modulo E0 e eps0: cella E9: 1-NTC08; 2- ACI318; 3-inserimento manuale | Y8: epsc0=4.26*fc/(Ec*fc^0.25) per inerti frantumati
C9: Ec ed ec0 | E9: 3 | S9: NTC 2008 | V9: =E9 -> 3 | Y9: epsc0=3.78*fc/(Ec*fc^0.25) per inerti ghiaia
C10: Deformazione di picco | D10: ec0 | E10: =IF(E9=1,0.002,IF(J8=1,4.26*E7/E11/E7^0.25,3.78*E7/E11/E7^0.25)) -> 0.001998490213 | S10: ACI 318 o ACI 363 (cls HR) | Y10: Ec=22000(fcm/10)^0.3 per NTC
C11: Modulo di elasticità | D11: E c | E11: =IF(E9=1,22000*((E7+8)/10)^0.3,IF(E7<=50,0.043*E5^1.5*E7^0.5,(3320*E7^0.5+6900)*(E5/2320)^1.5)) -> 23760.58251 | F11: [MPa] | S11: Inserimento manuale | Y11: Ec=0.043*gamma^1.5*fc^0.5 per cls normali secondo ACI 318
C12: Deformazione di picco | D12: ec0 | E12: ='Braga-Gigliotti'!$J$26 -> 0.002 | I12: Parametri di calcolo | Y12: Ec=(3320*fc^0.5+6900)*(gamma/2320)^1.5 per cls alta resistenza secondo aci 363
C13: Modulo di elasticità | D13: E c | E13: 30000 | F13: [MPa] | S13: Come considerare variabilità Esec: cella J17: 1-al passo prec; 2- variazione al passo prec
C14: N.B. La definizione del modulo di elasticità influisce solo sul modello di Ahamad-Shah | J14: TRUE | S14: Al passo precedente | V14: =J17 -> 1
C15: Acciaio staffe | J15: TRUE | S15: Variazione al passo precedente
C16: Tensione di snervamento acciaio staffe | D16: f yh | E16: ='Braga-Gigliotti'!$J$36 -> 391.3 | F16: [MPa] | J16: TRUE | S16: Considerare efficacia confinamento: cella J19: 1-calcolo automatico; 2-inserimento manuale
C17: Modulo elastico acciaio staffe | D17: Es | E17: 206000 | F17: [MPa] | J17: 1 | S17: Calcolo automatico | V17: =J19 -> 1
C18: Legame acciaio | E18: 1 | J18: TRUE | S18: Inserimento manuale
C19: Rapporto di incrudimento | D19: Esi/Es | E19: 0.2 | J19: 1 | L19: Ke | M19: 0.8 | S19: Legame acciaio: cella E18; 1-EP; 2-incrudente
S20: Elasto-plastico | V20: =E18 -> 1
S21: Incrudente
C22: Numero punti del legame (4-2500) | D22: =IF('Braga-Gigliotti'!V33=2,'Braga-Gigliotti'!$I$7,'Braga-Gigliotti'!AO15+1) -> 40
S23: Controlli con pulsanti
C24: Ritorna alla pagina principale | S24: Tipo di inerti: cella J8: 1-frantumati; 2-ghiaia | W24: =J8 -> 1
S25: Silica fume: cella L8: 1-si; 2-no | W25: =L8 -> 2
S27: Variabilità poisson: cella J14: VERO-si; FALSO-no | X27: =J14 -> TRUE
B28: Input geometria e staffatura | S28: Rigidezza flessionale staffa: cella J15: VERO-si; FALSO-no | X28: =J15 -> TRUE
S29: Variabilità modulo secante: cella j16: VERO-si; FALSO-no | X29: =J16 -> TRUE
J30: =IF(C31=7,"Staffa circolare",IF(C31=4,"Staffe rettangolari (a x L)",IF(OR(C31=8,C31=9),"Staffa esterna (a x L)","Staffa esterna quadrata (L x L)"))) -> Staffa esterna quadrata (L x L) | S30: Efficacia del confinamento: cella j18: VERO-si; FALSO-no | X30: =J18 -> TRUE
C31: =$W$32 -> 2 | J31: =IF(C31=7,"Diametro","Lato") -> Lato | K31: =IF(C31=7,"D","L") -> L | L31: =INDEX('Braga-Gigliotti'!$AC$5:$AK$14,1,'Braga-Gigliotti'!$W$8) -> 256 | M31: [mm]
J32: Passo | K32: s | L32: =INDEX('Braga-Gigliotti'!$AC$5:$AK$14,2,'Braga-Gigliotti'!$W$8) -> 150 | M32: [mm] | S32: Tipo di sezione: cella c31: da 1 a 7 in ordine | W32: ='Braga-Gigliotti'!$W$8 -> 2
J33: Diametro ferri staffa | K33: fst | L33: =INDEX('Braga-Gigliotti'!$AC$5:$AK$14,3,'Braga-Gigliotti'!$W$8) -> 8 | M33: [mm]
J34: Diametro barre longit. | K34: fsl | L34: =INDEX('Braga-Gigliotti'!$AC$5:$AK$14,4,'Braga-Gigliotti'!$W$8) -> 16 | M34: [mm] | S34: Rinforzo esterno: cella C47 :1-no; 2-si | W34: =C47 -> 1
J35: Lato corto staffa (a) | K35: a | L35: =INDEX('Braga-Gigliotti'!$AC$5:$AK$14,5,'Braga-Gigliotti'!$W$8) -> 0 | M35: [mm]
J37: =IF(C31=3,"Staffa interna",IF(C31=4,"Staffa rettangolare (b x L)",IF(C31=5,"Staffe rettangolari (b x L)",IF(C31=6,"Staffa interna circolare equivalente",IF(C31=9,"Legatura interna"))))) -> FALSE
J38: =IF(C31=6,"Diametro",IF(C31=9,"Lunghezza efficace","Lato")) -> Lato | K38: =IF(C31=6,"D","b") -> b | L38: =INDEX('Braga-Gigliotti'!$AC$5:$AK$14,7,'Braga-Gigliotti'!$W$8) -> 0 | M38: [mm]
J39: Passo | K39: s | L39: =INDEX('Braga-Gigliotti'!$AC$5:$AK$14,8,'Braga-Gigliotti'!$W$8) -> 0 | M39: [mm]
E40: S4-2 | J40: Diametro ferri staffa | K40: fst | L40: =INDEX('Braga-Gigliotti'!$AC$5:$AK$14,9,'Braga-Gigliotti'!$W$8) -> 0 | M40: [mm]
J41: Diametro barre longit. | K41: fsl | L41: =INDEX('Braga-Gigliotti'!$AC$5:$AK$14,10,'Braga-Gigliotti'!$W$8) -> 0 | M41: [mm]
J43: Rinforzo in FRP
J44: Resistenza a trazione | K44: ft | L44: 3900 | M44: [MPa]
J45: Modulo elastico | K45: EFRP | L45: 230000 | M45: [MPa]
J46: Dimensione sezione | K46: =IF(C31=7,"D","L") -> L | L46: 800 | M46: [mm]
C47: 1 | J47: Spessore fascia | K47: tFRP | L47: 0.166 | M47: [mm]
J48: Larghezza fascia | K48: bFRP | L48: 150 | M48: [mm]
J49: Passo fascia | K49: sFRP | L49: 150 | M49: [mm]

Sheet BGL Output (hidden)
J1: Punto | K1: ec | L1: sc | M1: fr
J2: - | K2: - | L2: MPa | M2: MPa
J3: 1 | K3: =BGL!G10 -> 0 | L3: =BGL!H10 -> 0 | M3: =BGL!CC10 -> 0
J4: 2 | K4: =BGL!G11 -> 0.0003634246236 | L4: =BGL!H11 -> 9.225410089 | M4: =BGL!CC11 -> 0.01737108655
J5: 3 | K5: =BGL!G12 -> 0.0007268492472 | L5: =BGL!H12 -> 16.30408303 | M5: =BGL!CC12 -> 0.0345449345
J6: 4 | K6: =BGL!G13 -> 0.001090273871 | L6: =BGL!H13 -> 21.04943668 | M6: =BGL!CC13 -> 0.05388479051
J7: 5 | K7: =BGL!G14 -> 0.001453698494 | L7: =BGL!H14 -> 23.8518035 | M7: =BGL!CC14 -> 0.08110778117
J8: 6 | K8: =BGL!G15 -> 0.001817123118 | L8: =BGL!H15 -> 25.33347212 | M8: =BGL!CC15 -> 0.1252831069
J9: 7 | K9: =BGL!G16 -> 0.002180547742 | L9: =BGL!H16 -> 26.13719867 | M9: =BGL!CC16 -> 0.1982285544
J10: 8 | K10: =BGL!G17 -> 0.002543972365 | L10: =BGL!H17 -> 26.57417112 | M10: =BGL!CC17 -> 0.2782827763
J11: 9 | K11: =BGL!G18 -> 0.002907396989 | L11: =BGL!H18 -> 26.45623467 | M11: =BGL!CC18 -> 0.3127794364
J12: 10 | K12: =BGL!G19 -> 0.003270821612 | L12: =BGL!H19 -> 26.15466526 | M12: =BGL!CC19 -> 0.3453083271
J13: 11 | K13: =BGL!G20 -> 0.003634246236 | L13: =BGL!H20 -> 25.74608236 | M13: =BGL!CC20 -> 0.3761628638
J14: 12 | K14: =BGL!G21 -> 0.00399767086 | L14: =BGL!H21 -> 25.27665812 | M14: =BGL!CC21 -> 0.405355277
J15: 13 | K15: =BGL!G22 -> 0.004361095483 | L15: =BGL!H22 -> 24.77503302 | M15: =BGL!CC22 -> 0.432905933
J16: 14 | K16: =BGL!G23 -> 0.004724520107 | L16: =BGL!H23 -> 24.25896104 | M16: =BGL!CC23 -> 0.458843192
J17: 15 | K17: =BGL!G24 -> 0.00508794473 | L17: =BGL!H24 -> 23.73936741 | M17: =BGL!CC24 -> 0.4832009436
J18: 16 | K18: =BGL!G25 -> 0.005451369354 | L18: =BGL!H25 -> 23.08039066 | M18: =BGL!CC25 -> 0.4952766259
J19: 17 | K19: =BGL!G26 -> 0.005814793977 | L19: =BGL!H26 -> 22.27898582 | M19: =BGL!CC26 -> 0.4956043099
J20: 18 | K20: =BGL!G27 -> 0.006178218601 | L20: =BGL!H27 -> 21.45369071 | M20: =BGL!CC27 -> 0.4932451139
J21: 19 | K21: =BGL!G28 -> 0.006541643225 | L21: =BGL!H28 -> 20.64625139 | M21: =BGL!CC28 -> 0.4909301094
J22: 20 | K22: =BGL!G29 -> 0.006905067848 | L22: =BGL!H29 -> 19.86472283 | M22: =BGL!CC29 -> 0.4889525641
J23: 21 | K23: =BGL!G30 -> 0.007268492472 | L23: =BGL!H30 -> 19.10992891 | M23: =BGL!CC30 -> 0.4872019223
J24: 22 | K24: =BGL!G31 -> 0.007631917095 | L24: =BGL!H31 -> 18.3819749 | M24: =BGL!CC31 -> 0.4855963481
J25: 23 | K25: =BGL!G32 -> 0.007995341719 | L25: =BGL!H32 -> 17.6808623 | M25: =BGL!CC32 -> 0.4840978446
J26: 24 | K26: =BGL!G33 -> 0.008358766343 | L26: =BGL!H33 -> 17.00633027 | M26: =BGL!CC33 -> 0.482685394
J27: 25 | K27: =BGL!G34 -> 0.008722190966 | L27: =BGL!H34 -> 16.35782662 | M27: =BGL!CC34 -> 0.4813427337
J28: 26 | K28: =BGL!G35 -> 0.00908561559 | L28: =BGL!H35 -> 15.73457248 | M28: =BGL!CC35 -> 0.4800553027
J29: 27 | K29: =BGL!G36 -> 0.009449040213 | L29: =BGL!H36 -> 15.13563714 | M29: =BGL!CC36 -> 0.478809764
J30: 28 | K30: =BGL!G37 -> 0.009812464837 | L30: =BGL!H37 -> 14.55999563 | M30: =BGL!CC37 -> 0.4775938246
J31: 29 | K31: =BGL!G38 -> 0.01017588946 | L31: =BGL!H38 -> 14.00656843 | M31: =BGL!CC38 -> 0.4763959627
J32: 30 | K32: =BGL!G39 -> 0.01053931408 | L32: =BGL!H39 -> 13.47424803 | M32: =BGL!CC39 -> 0.4752051019
J33: 31 | K33: =BGL!G40 -> 0.01090273871 | L33: =BGL!H40 -> 12.96191623 | M33: =BGL!CC40 -> 0.4740102822
J34: 32 | K34: =BGL!G41 -> 0.01126616333 | L34: =BGL!H41 -> 12.4684549 | M34: =BGL!CC41 -> 0.4728003349
J35: 33 | K35: =BGL!G42 -> 0.01162958795 | L35: =BGL!H42 -> 11.99275136 | M35: =BGL!CC42 -> 0.4715635488
J36: 34 | K36: =BGL!G43 -> 0.01199301258 | L36: =BGL!H43 -> 11.53369953 | M36: =BGL!CC43 -> 0.470287305
J37: 35 | K37: =BGL!G44 -> 0.0123564372 | L37: =BGL!H44 -> 11.09019718 | M37: =BGL!CC44 -> 0.4689576563
J38: 36 | K38: =BGL!G45 -> 0.01271986183 | L38: =BGL!H45 -> 10.66113946 | M38: =BGL!CC45 -> 0.4675588205
J39: 37 | K39: =BGL!G46 -> 0.01308328645 | L39: =BGL!H46 -> 10.24540841 | M39: =BGL!CC46 -> 0.4660725499
J40: 38 | K40: =BGL!G47 -> 0.01344671107 | L40: =BGL!H47 -> 9.841857926 | M40: =BGL!CC47 -> 0.4644773241
J41: 39 | K41: =BGL!G48 -> 0.0138101357 | L41: =BGL!H48 -> 9.449292904 | M41: =BGL!CC48 -> 0.4627472938
J42: 40 | K42: =BGL!G49 -> 0.01417356032 | L42: =BGL!H49 -> 9.066440672 | M42: =BGL!CC49 -> 0.4608508718

Sheet BGL (hidden)
A1: INPUT | G1: Elaborazioni | M1: Staffa esterna di lato L | U1: Staffa interna di lato b | AC1: Staffa di lato a | AK1: Staffa circolare | AR1: Rinforzo esterno sezione quadrata | AU1: Rinforzo esterno sezione circolare | AX1: SOLO PER R2: Staffa interna di lato b | BF1: SOLO PER R2: Staffa interna di lato a
A2: MATERIALI | B2: Peso unità di volume cls | C2: g | D2: ='BGL Input'!E5 -> 2306 | E2: [Kg/mc] | G2: ey,st | H2: =D9/D10 -> 0.001899514563 | M2: s | N2: =D23 -> 150 | O2: [mm] | Q2: xl | R2: =$D$25/N2 -> 0.1066666667 | U2: s | V2: =D28 -> 0 | W2: [mm] | Y2: xl | Z2: =$D$30/V2 ->  | AC2: s | AD2: =D23 -> 150 | AE2: [mm] | AG2: xl | AH2: =$D$25/AD2 -> 0.1066666667 | AK2: s | AL2: =IF(D21=6,D28,D23) -> 150 | AM2: [mm] | AN2: xl | AO2: =IF(D21=6,$D$30/AL2,$D$25/AL2) -> 0.1066666667 | AX2: s | AY2: =D28 -> 0 | AZ2: [mm] | BB2: xl | BC2: =$D$30/AY2 ->  | BF2: s | BG2: =D28 -> 0 | BH2: [mm] | BJ2: xl | BK2: =$D$30/BG2 ->  | BO2: Colonna iniziale tabella pressioni | BR2: =COLUMN(BO10:BO13) -> 67
B3: Deformazione ultima cls | C3: ecu | D3: ='BGL Input'!E6 -> 0.01417356032 | G3: npunti | H3: ='BGL Input'!D22 -> 40 | M3: L/2 | N3: =D22/2 -> 128 | O3: [mm] | Q3: xst | R3: =$D$24/N3 -> 0.0625 | U3: b/2 | V3: =D27/2 -> 0 | W3: [mm] | Y3: xst | Z3: =$D$29/V3 ->  | AC3: a/2 | AD3: =D26/2 -> 0 | AE3: [mm] | AG3: xst | AH3: =$D$24/AD3 ->  | AK3: R | AL3: =IF(D21=6,D27/2,D22/2) -> 128 | AM3: [mm] | AN3: xst | AO3: =IF(D21=6,$D$29/AL3,$D$24/AL3) -> 0.0625 | AX3: b/2 | AY3: =D27/2 -> 0 | AZ3: [mm] | BB3: xst | BC3: =$D$29/2/AY3 ->  | BF3: a/2 | BG3: =D26/2 -> 0 | BH3: [mm] | BJ3: xst | BK3: =$D$29/2/BG3 ->  | BO3: Colonna da prendere | BR3: =IF(OR(D21=1,D21=2),COLUMN(BO10),IF(D21=3,COLUMN(BP10),IF(D21=4,COLUMN(BS10),IF(D21=5,COLUMN(BU10),IF(D21=6,COLUMN(BV10),IF(D21=7,COLUMN(BW10),IF(D21=8,COLUMN(BX10),COLUMN(BZ10))))))))-BR2+1 -> 1
B4: Resistenza cilindrica del calcestruzzo | C4: f c' | D4: ='BGL Input'!E7 -> 24.9 | E4: [MPa] | G4: Dec | H4: =D3/(H3-1) -> 0.0003634246236 | M4: As | N4: =PI()*D24^2/4 -> 50.26548246 | O4: [mm2] | Q4: b | R4: =$D$24/$D$25 -> 0.5 | U4: As | V4: =PI()*D29^2/4 -> 0 | W4: [mm2] | Y4: b | Z4: =$D$29/$D$30 ->  | AC4: As | AD4: =PI()*D24^2/4 -> 50.26548246 | AE4: [mm2] | AG4: b | AH4: =$D$24/$D$25 -> 0.5 | AK4: As | AL4: =IF(D21=6,PI()*D29^2/4,PI()*D24^2/4) -> 50.26548246 | AM4: [mm2] | AN4: b | AO4: =IF(D21=6,$D$29/$D$30,$D$24/$D$25) -> 0.5 | AX4: As | AY4: =PI()*(D29/2)^2/4 -> 0 | AZ4: [mm2] | BB4: b | BC4: =$D$29/2/$D$30 ->  | BF4: As | BG4: =PI()*(D29/2)^2/4 -> 0 | BH4: [mm2] | BJ4: b | BK4: =$D$29/2/$D$30 ->  | BO4: Ai/Ae | BR4: =IF(OR(D31=1,D21>7),1,D22/D32) -> 1
B5: Coeff. riduz. resist. "c" | C5: c | D5: ='BGL Input'!E8 -> 1 | G5: Ke,man | H5: ='BGL Input'!M19 -> 0.8 | M5: Is | N5: =IF(D18=TRUE,PI()*D24^4/64,0) -> 201.0619298 | O5: [mm4] | Q5: Ksl | R5: =45*R2^3/(45*R2^3+R3*R4) -> 0.6360495361 | U5: Is | V5: =IF(D18=TRUE,PI()*D29^4/64,0) -> 0 | W5: [mm4] | Y5: Ksl | Z5: =45*Z2^3/(45*Z2^3+Z3*Z4) ->  | AC5: Is | AD5: =IF(D18=TRUE,PI()*D24^4/64,0) -> 201.0619298 | AE5: [mm4] | AG5: Ksl | AH5: =45*AH2^3/(45*AH2^3+AH3*AH4) ->  | AK5: Is | AL5: =IF(D18=TRUE,PI()/64*(4*AL4/PI())^2,0) -> 201.0619298 | AM5: [mm4] | AN5: Ksl | AO5: =45*AO2^3/(45*AO2^3+AO3*AO4) -> 0.6360495361 | AX5: Is | AY5: =IF(D18=TRUE,PI()*(D29/2)^4/64,0) -> 0 | AZ5: [mm4] | BB5: Ksl | BC5: =45*BC2^3/(45*BC2^3+BC3*BC4) ->  | BF5: Is | BG5: =IF(D18=TRUE,PI()*(D29/2)^4/64,0) -> 0 | BH5: [mm4] | BJ5: Ksl | BK5: =45*BK2^3/(45*BK2^3+BK3*BK4) -> 
B6: Calcolo automatico Ec e deformazione di picco cls non confinato | C6: 1-NTC 2-ACI 3-manuale | D6: ='BGL Input'!E9 -> 3 | M6: Ke | N6: =IF($D$20=1,1,IF($D$20=2,R7,$H$5)) -> 0.6360495361 | Q6: Kc | R6: =(1-N2/4/N3)^2 -> 0.4998931885 | U6: Ke | V6: =IF($D$20=1,1,IF($D$20=2,Z7,$H$5)) ->  | Y6: Kc | Z6: =(1-V2/4/V3)^2 ->  | AC6: Ke | AD6: =IF($D$20=1,1,IF($D$20=2,AH7,$H$5)) ->  | AG6: Kc | AH6: =(1-AD2/4/AD3)^2 ->  | AK6: Ke | AL6: =IF($D$20=1,1,IF($D$20=2,AO7,$H$5)) -> 0.6360495361 | AN6: Kc | AO6: =(1-AL2/4/AL3)^2 -> 0.4998931885 | AX6: Ke | AY6: =IF($D$20=1,1,IF($D$20=2,BC7,$H$5)) ->  | BB6: Kc | BC6: =(1-AY2/4/AY3)^2 ->  | BF6: Ke | BG6: =IF($D$20=1,1,IF($D$20=2,BK7,$H$5)) ->  | BJ6: Kc | BK6: =(1-BG2/4/BG3)^2 ->  | BO6: Combinazione pressioni di confinamento
B7: Deformazione di picco | C7: ec0 | D7: =IF(D6=3,'BGL Input'!E12,'BGL Input'!E10) -> 0.002 | G7: Calcestruzzo | Q7: Ke,auto | R7: =MAX(R5:R6) -> 0.6360495361 | Y7: Ke,auto | Z7: =MAX(Z5:Z6) ->  | AG7: Ke,auto | AH7: =MAX(AH5:AH6) ->  | AN7: Ke,auto | AO7: =MAX(AO5:AO6) -> 0.6360495361 | BB7: Ke,auto | BC7: =MAX(BC5:BC6) ->  | BJ7: Ke,auto | BK7: =MAX(BK5:BK6) ->  | BO7: S1, S2 | BP7: S3 | BQ7: S4-1 | BT7: S4-2 | BV7: S5 | BW7: C | BX7: R1 | BY7: R2 | CA7: RINF,quad | CB7: RINF,Circ | CC7: Pressioni combinate
B8: Modulo di elasticità cls | C8: E c | D8: =IF(D6=3,'BGL Input'!E13,'BGL Input'!E11) -> 30000 | E8: [MPa] | G8: ec | H8: sc | I8: n | J8: Ec,sec | K8: E*c,sec | M8: Es,sec | N8: E*s,sec | O8: est | P8: sst | Q8: A | R8: B | S8: fr | U8: Es,sec | V8: E*s,sec | W8: est | X8: sst | Y8: A | Z8: B | AA8: fr | AC8: Es,sec | AD8: E*s,sec | AE8: est | AF8: sst | AG8: A | AH8: B | AI8: fr | AK8: Es,sec | AL8: E*s,sec | AM8: est | AN8: sst | AO8: q | AP8: fr | AR8: E*s,sec | AS8: fr | AU8: E*s,sec | AV8: fr | AX8: Es,sec | AY8: E*s,sec | AZ8: est | BA8: sst | BB8: A | BC8: B | BD8: fr | BF8: Es,sec | BG8: E*s,sec | BH8: est | BI8: sst | BJ8: A | BK8: B | BL8: fr | BO8: fr | BP8: fr | BQ8: fr1 | BR8: fr2 | BS8: fr | BT8: fr2 | BU8: fr | BV8: fr | BW8: fr | BX8: fr,RECT | BY8: fr2 | BZ8: fr | CA8: fr | CB8: fr | CC8: fr
B9: Tensione di snervamento acciaio staffe | C9: f yh | D9: ='BGL Input'!E16 -> 391.3 | E9: [MPa] | G9: - | H9: MPa | I9: - | J9: MPa | K9: MPa | M9: MPa | N9: MPa | O9: - | P9: MPa | Q9: N/mm4 | R9: N/mm4 | S9: MPa | U9: MPa | V9: MPa | W9: - | X9: MPa | Y9: N/mm4 | Z9: N/mm4 | AA9: MPa | AC9: MPa | AD9: MPa | AE9: - | AF9: MPa | AG9: N/mm4 | AH9: N/mm4 | AI9: MPa | AK9: MPa | AL9: MPa | AM9: - | AN9: MPa | AO9: N/mm | AP9: MPa | AR9: MPa | AS9: MPa | AU9: MPa | AV9: MPa | AX9: MPa | AY9: MPa | AZ9: - | BA9: MPa | BB9: N/mm4 | BC9: N/mm4 | BD9: MPa | BF9: MPa | BG9: MPa | BH9: - | BI9: MPa | BJ9: N/mm4 | BK9: N/mm4 | BL9: MPa | BO9: MPa | BP9: MPa | BQ9: MPa | BR9: MPa | BS9: MPa | BT9: MPa | BU9: MPa | BV9: MPa | BW9: MPa | BX9: MPa | BY9: MPa | BZ9: MPa | CA9: MPa | CB9: MPa | CC9: MPa
B10: Modulo elastico acciaio staffe | C10: E s | D10: ='BGL Input'!E17 -> 206000 | E10: [MPa] | G10: 0 | H10: =IF($D$12=1,'Attard - Setunge'!I7,'Ahamad - Shah'!J7) -> 0 | I10: =IF($D$17=FALSE,$D$16,IF($D$15*(1+0.2*G10/$D$7-(G10/$D$7)^2+1.55*(G10/$D$7)^3)<$D$16,$D$15*(1+0.2*G10/$D$7-(G10/$D$7)^2+1.55*(G10/$D$7)^3),$D$16)) -> 0.2 | J10: =$D$8 -> 30000 | K10: =J10 -> 30000 | M10: =IF(O10<$H$2,$D$10,($H$2*$D$10+(O10-$H$2)*$D$10*$D$11)/O10) -> 206000 | N10: =$D$10 -> 206000 | O10: 0 | P10: 0 | Q10: =21*$N$2*K10^2*N10*$N$4*I10*$N$3/(25*$N$2^2*K10^2*$N$3^4+6*$N$2*K10*N10*$N$3*(315*$N$5*(I10+1)+2*$N$3^2*$N$4*(2*I10+5))-1890*N10^2*$N$5*$N$4*(I10^2-1))*G10 -> 0 | R10: =18*K10*N10*$N$4*I10*($N$2*K10*$N$3^3+105*N10*$N$5*(I10+1))/($N$3^2*(25*$N$2^2*K10^2*$N$3^4+6*$N$2*K10*N10*$N$3*(315*$N$5*(I10+1)+2*$N$3^2*$N$4*(2*I10+5))-1890*N10^2*$N$5*$N$4*(I10^2-1)))*G10 -> 0 | S10: =R10*$N$3^2*$N$6 -> 0 | U10: =IF(W10<$H$2,$D$10,($H$2*$D$10+(W10-$H$2)*$D$10*$D$11)/W10) -> 206000 | V10: =$D$10 -> 206000 | W10: 0 | X10: 0 | Y10: =21*V$2*$K10^2*V10*V$4*$I10*V$3/(25*V$2^2*$K10^2*V$3^4+6*V$2*$K10*V10*V$3*(315*V$5*($I10+1)+2*V$3^2*V$4*(2*$I10+5))-1890*V10^2*V$5*V$4*($I10^2-1))*$G10 ->  | Z10: =18*$K10*V10*V$4*$I10*(V$2*$K10*V$3^3+105*V10*V$5*($I10+1))/(V$3^2*(25*V$2^2*$K10^2*V$3^4+6*V$2*$K10*V10*V$3*(315*V$5*($I10+1)+2*V$3^2*V$4*(2*$I10+5))-1890*V10^2*V$5*V$4*($I10^2-1)))*$G10 ->  | AA10: =Z10*V$3^2*V$6 ->  | AC10: =IF(AE10<$H$2,$D$10,($H$2*$D$10+(AE10-$H$2)*$D$10*$D$11)/AE10) -> 206000 | AD10: =$D$10 -> 206000 | AE10: 0 | AF10: 0 | AG10: =21*AD$2*$K10^2*AD10*AD$4*$I10*AD$3/(25*AD$2^2*$K10^2*AD$3^4+6*AD$2*$K10*AD10*AD$3*(315*AD$5*($I10+1)+2*AD$3^2*AD$4*(2*$I10+5))-1890*AD10^2*AD$5*AD$4*($I10^2-1))*$G10 -> 0 | AH10: =18*$K10*AD10*AD$4*$I10*(AD$2*$K10*AD$3^3+105*AD10*AD$5*($I10+1))/(AD$3^2*(25*AD$2^2*$K10^2*AD$3^4+6*AD$2*$K10*AD10*AD$3*(315*AD$5*($I10+1)+2*AD$3^2*AD$4*(2*$I10+5))-1890*AD10^2*AD$5*AD$4*($I10^2-1)))*$G10 ->  | AI10: =AH10*AD$3^2*AD$6 ->  | AK10: =IF(AM10<$H$2,$D$10,($H$2*$D$10+(AM10-$H$2)*$D$10*$D$11)/AM10) -> 206000 | AL10: =$D$10 -> 206000 | AM10: =AO10*$AL$3/AL10/$AL$4 -> 0 | AN10: 0 | AO10: =K10*AL10*$AL$4*I10*$AL$2/($AL$3*K10*$AL$2+AL10*$AL$4*(1-I10)*(I10*G10+1))*G10 -> 0 | AP10: =$AL$6*AO10/$AL$2 -> 0 | AR10: =$D$37 -> 230000 | AS10: =36*$K10*AR10*$D$33*($D$34/$D$35)*$I10/(25*$K10*$D$32+24*AR10*$D$33*($D$34/$D$35)*(2*$I10+5))*$G10 -> 0 | AU10: =$D$37 -> 230000 | AV10: =$K10*AU10*$D$33*($D$34/$D$35)*$I10/($K10*$D$32/2+$AU10*$D$33*($D$34/$D$35)*(1-$I10)*($I10*$G10+1))*$G10 -> 0 | AX10: =IF(AZ10<$H$2,$D$10,($H$2*$D$10+(AZ10-$H$2)*$D$10*$D$11)/AZ10) -> 206000 | AY10: =$D$10 -> 206000 | AZ10: 0 | BA10: 0 | BB10: =21*AY$2*$K10^2*AY10*AY$4*$I10*AY$3/(25*AY$2^2*$K10^2*AY$3^4+6*AY$2*$K10*AY10*AY$3*(315*AY$5*($I10+1)+2*AY$3^2*AY$4*(2*$I10+5))-1890*AY10^2*AY$5*AY$4*($I10^2-1))*$G10 ->  | BC10: =18*$K10*AY10*AY$4*$I10*(AY$2*$K10*AY$3^3+105*AY10*AY$5*($I10+1))/(AY$3^2*(25*AY$2^2*$K10^2*AY$3^4+6*AY$2*$K10*AY10*AY$3*(315*AY$5*($I10+1)+2*AY$3^2*AY$4*(2*$I10+5))-1890*AY10^2*AY$5*AY$4*($I10^2-1)))*$G10 ->  | BD10: =BC10*AY$3^2*AY$6 ->  | BF10: =IF(BH10<$H$2,$D$10,($H$2*$D$10+(BH10-$H$2)*$D$10*$D$11)/BH10) -> 206000 | BG10: =$D$10 -> 206000 | BH10: 0 | BI10: 0 | BJ10: =21*BG$2*$K10^2*BG10*BG$4*$I10*BG$3/(25*BG$2^2*$K10^2*BG$3^4+6*BG$2*$K10*BG10*BG$3*(315*BG$5*($I10+1)+2*BG$3^2*BG$4*(2*$I10+5))-1890*BG10^2*BG$5*BG$4*($I10^2-1))*$G10 ->  | BK10: =18*$K10*BG10*BG$4*$I10*(BG$2*$K10*BG$3^3+105*BG10*BG$5*($I10+1))/(BG$3^2*(25*BG$2^2*$K10^2*BG$3^4+6*BG$2*$K10*BG10*BG$3*(315*BG$5*($I10+1)+2*BG$3^2*BG$4*(2*$I10+5))-1890*BG10^2*BG$5*BG$4*($I10^2-1)))*$G10 ->  | BL10: =BK10*BG$3^2*BG$6 ->  | BO10: =S10 -> 0 | BP10: =AA10/2+S10 ->  | BQ10: =1/($N$3*$AD$3)*(AI10*$AD$3^2+S10*($N$3-$AD$3)*$AD$3) ->  | BR10: =1/($V$3*$N$3)*(AA10*$V$3^2+S10*($N$3-$V$3)*$V$3) ->  | BS10: =(1+$D$27/$D$22)*BQ10+$D$27/$D$22*BR10 ->  | BT10: =1/($N$3*$V$3)*(AA10*$V$3^2+S10*($N$3-$V$3)*$V$3) ->  | BU10: =S10+2*$D$27/$D$22*BT10 ->  | BV10: =PI()/4*AP10+S10 -> 0 | BW10: =AP10 -> 0 | BX10: =1/($N$3*$AD$3)*(AI10*$AD$3^2+S10*($N$3-$AD$3)*$AD$3) ->  | BY10: =1/($AY$3*$BG$3)*(BD10*$AY$3^2+BL10*($BG$3-$AY$3)*$AY$3) ->  | BZ10: =BX10+BY10*$D$27/$D$22 ->  | CA10: =IF(AND($D$31=2,$D$21<7),AS10,0) -> 0 | CB10: =IF(AND($D$31=2,$D$21=7),AV10,0) -> 0 | CC10: =$BR$4*INDEX(BO10:CB10,1,$BR$3)+CA10+CB10 -> 0
B11: Incrudimento acciaio | C11: Esi / Es | D11: =IF('BGL Input'!E18=1,0,'BGL Input'!E19) -> 0 | G11: =G10+$H$4 -> 0.0003634246236 | H11: =IF($D$12=1,'Attard - Setunge'!I8,'Ahamad - Shah'!J8) -> 9.225410089 | I11: =IF($D$17=FALSE,$D$16,IF($D$15*(1+0.2*G11/$D$7-(G11/$D$7)^2+1.55*(G11/$D$7)^3)<$D$16,$D$15*(1+0.2*G11/$D$7-(G11/$D$7)^2+1.55*(G11/$D$7)^3),$D$16)) -> 0.2025246274 | J11: =H11/G11 -> 25384.65885 | K11: =J10 -> 30000 | M11: 206000 | N11: =N10 -> 206000 | O11: =$N$2*$N$3^3*(Q11+3*R11)/(3*$N$4*N11) -> 7.032347855e-05 | P11: =O11*M11 -> 14.48663658 | Q11: 1.943668923e-06 | R11: 1.666925171e-06 | S11: 0.01737108655 | V11: =V10 -> 206000 | W11: =V$2*V$3^3*(Y11+3*Z11)/(3*V$4*V11) ->  | X11: =W11*U11 ->  | AD11: =AD10 -> 206000 | AE11: =AD$2*AD$3^3*(AG11+3*AH11)/(3*AD$4*AD11) ->  | AF11: =AE11*AC11 ->  | AG11: 0 | AK11: 206000 | AL11: =AL10 -> 206000 | AM11: 7.256210034e-05 | AN11: =AM11*AK11 -> 14.94779267 | AO11: 5.869984455 | AP11: 0.0248906726 | AR11: =$D$37 -> 230000 | AS11: =36*$K11*AR11*$D$33*($D$34/$D$35)*$I11/(25*$K11*$D$32+24*AR11*$D$33*($D$34/$D$35)*(2*$I11+5))*$G11 -> 0.005016841865 | AU11: =$D$37 -> 230000 | AV11: =$K11*AU11*$D$33*($D$34/$D$35)*$I11/($K11*$D$32/2+$AU11*$D$33*($D$34/$D$35)*(1-$I11)*($I11*$G11+1))*$G11 -> 0.007007570937 | AY11: =AY10 -> 206000 | AZ11: =AY$2*AY$3^3*(BB11+3*BC11)/(3*AY$4*AY11) ->  | BA11: =AZ11*AX11 ->  | BG11: =BG10 -> 206000 | BH11: =BG$2*BG$3^3*(BJ11+3*BK11)/(3*BG$4*BG11) ->  | BI11: =BH11*BF11 ->  | BO11: =S11 -> 0.01737108655 | BQ11: =1/($N$3*$AD$3)*(AI11*$AD$3^2+S11*($N$3-$AD$3)*$AD$3) ->  | BR11: =1/($V$3*$N$3)*(AA11*$V$3^2+S11*($N$3-$V$3)*$V$3) ->  | BS11: =(1+$D$27/$D$22)*BQ11+$D$27/$D$22*BR11 ->  | BT11: =1/($N$3*$V$3)*(AA11*$V$3^2+S11*($N$3-$V$3)*$V$3) ->  | BU11: =S11+2*$D$27/$D$22*BT11 ->  | BV11: =PI()/4*AP11+S11 -> 0.03692017509 | BW11: =AP11 -> 0.0248906726 | BX11: =1/($N$3*$AD$3)*(AI11*$AD$3^2+S11*($N$3-$AD$3)*$AD$3) ->  | BY11: =1/($AY$3*$BG$3)*(BD11*$AY$3^2+BL11*($BG$3-$AY$3)*$AY$3) ->  | BZ11: =BX11+BY11*$D$27/$D$22 ->  | CA11: =IF(AND($D$31=2,$D$21<7),AS11,0) -> 0 | CB11: =IF(AND($D$31=2,$D$21=7),AV11,0) -> 0 | CC11: =$BR$4*INDEX(BO11:CB11,1,$BR$3)+CA11+CB11 -> 0.01737108655
A12: MODELLO | B12: Modello triassiale attivo | C12: 1-Att/Set 2-Ahamd/Shad | D12: ='BGL Input'!L4 -> 1 | G12: 0.0007268492472 | H12: =IF($D$12=1,'Attard - Setunge'!I9,'Ahamad - Shah'!J9) -> 16.30408303 | I12: =IF($D$17=FALSE,$D$16,IF($D$15*(1+0.2*G12/$D$7-(G12/$D$7)^2+1.55*(G12/$D$7)^3)<$D$16,$D$15*(1+0.2*G12/$D$7-(G12/$D$7)^2+1.55*(G12/$D$7)^3),$D$16)) -> 0.2030015556 | J12: =H12/G12 -> 22431.17551 | K12: =IF($D$19=1,$K$10,IF($D$19=2,J11, J11^2/J10)) -> 25384.65885 | M12: 206000 | N12: =M11 -> 206000 | O12: 0.0001398445235 | P12: =O12*M12 -> 28.80797183 | Q12: 3.864878416e-06 | R12: 3.314923375e-06 | S12: 0.0345449345 | V12: =U11 ->  | X12: =W12*U12 ->  | AD12: =AC11 ->  | AF12: =AE12*AC12 ->  | AK12: 206000 | AL12: =AK11 -> 206000 | AM12: 0.0001450943501 | AN12: =AM12*AK12 -> 29.88943613 | AO12: 11.73755412 | AP12: 0.04977110568 | AR12: =$D$37 -> 230000 | AS12: =36*$K12*AR12*$D$33*($D$34/$D$35)*$I12/(25*$K12*$D$32+24*AR12*$D$33*($D$34/$D$35)*(2*$I12+5))*$G12 -> 0.01004234671 | AU12: =$D$37 -> 230000 | AV12: =$K12*AU12*$D$33*($D$34/$D$35)*$I12/($K12*$D$32/2+$AU12*$D$33*($D$34/$D$35)*(1-$I12)*($I12*$G12+1))*$G12 -> 0.01404170652 | AY12: =AX11 ->  | BA12: =AZ12*AX12 ->  | BG12: =BF11 ->  | BI12: =BH12*BF12 ->  | BO12: 0.0345449345 | BQ12: =1/($N$3*$AD$3)*(AI12*$AD$3^2+S12*($N$3-$AD$3)*$AD$3) ->  | BU12: =S12+2*$D$27/$D$22*BT12 ->  | BV12: 0.07363506949 | BW12: 0.04977110568 | BX12: =1/($N$3*$AD$3)*(AI12*$AD$3^2+S12*($N$3-$AD$3)*$AD$3) ->  | CA12: 0 | CB12: 0 | CC12: 0.0345449345
B13: Tipo di inerti | C13: 1-Frantumati 2-Ghiaia | D13: ='BGL Input'!J8 -> 1 | G13: 0.001090273871 | H13: =IF($D$12=1,'Attard - Setunge'!I10,'Ahamad - Shah'!J10) -> 21.04943668 | I13: =IF($D$17=FALSE,$D$16,IF($D$15*(1+0.2*G13/$D$7-(G13/$D$7)^2+1.55*(G13/$D$7)^3)<$D$16,$D$15*(1+0.2*G13/$D$7-(G13/$D$7)^2+1.55*(G13/$D$7)^3),$D$16)) -> 0.2125908311 | J13: =H13/G13 -> 19306.55888 | K13: =IF($D$19=1,$K$10,IF($D$19=2,J12, J12^2/J11)) -> 22431.17551 | M13: =IF(O13<$H$2,$D$10,($H$2*$D$10+(O13-$H$2)*$D$10*$D$11)/O13) -> 206000 | N13: =M12 -> 206000 | O13: =$N$2*$N$3^3*(Q13+3*R13)/(3*$N$4*N13) -> 0.0002181303485 | P13: =O13*M13 -> 44.93485179 | Q13: =21*$N$2*K13^2*N13*$N$4*I13*$N$3/(25*$N$2^2*K13^2*$N$3^4+6*$N$2*K13*N13*$N$3*(315*$N$5*(I13+1)+2*$N$3^2*$N$4*(2*I13+5))-1890*N13^2*$N$5*$N$4*(I13^2-1))*G13 -> 6.028061266e-06 | R13: =18*K13*N13*$N$4*I13*($N$2*K13*$N$3^3+105*N13*$N$5*(I13+1))/($N$3^2*(25*$N$2^2*K13^2*$N$3^4+6*$N$2*K13*N13*$N$3*(315*$N$5*(I13+1)+2*$N$3^2*$N$4*(2*I13+5))-1890*N13^2*$N$5*$N$4*(I13^2-1)))*G13 -> 5.170771177e-06 | S13: =R13*$N$3^2*$N$6 -> 0.05388479051 | U13: =IF(W13<$H$2,$D$10,($H$2*$D$10+(W13-$H$2)*$D$10*$D$11)/W13) ->  | V13: =U12 ->  | W13: =V$2*V$3^3*(Y13+3*Z13)/(3*V$4*V13) ->  | X13: =W13*U13 ->  | Y13: =21*V$2*$K13^2*V13*V$4*$I13*V$3/(25*V$2^2*$K13^2*V$3^4+6*V$2*$K13*V13*V$3*(315*V$5*($I13+1)+2*V$3^2*V$4*(2*$I13+5))-1890*V13^2*V$5*V$4*($I13^2-1))*$G13 ->  | Z13: =18*$K13*V13*V$4*$I13*(V$2*$K13*V$3^3+105*V13*V$5*($I13+1))/(V$3^2*(25*V$2^2*$K13^2*V$3^4+6*V$2*$K13*V13*V$3*(315*V$5*($I13+1)+2*V$3^2*V$4*(2*$I13+5))-1890*V13^2*V$5*V$4*($I13^2-1)))*$G13 ->  | AA13: =Z13*V$3^2*V$6 ->  | AC13: =IF(AE13<$H$2,$D$10,($H$2*$D$10+(AE13-$H$2)*$D$10*$D$11)/AE13) ->  | AD13: =AC12 ->  | AE13: =AD$2*AD$3^3*(AG13+3*AH13)/(3*AD$4*AD13) ->  | AF13: =AE13*AC13 ->  | AG13: =21*AD$2*$K13^2*AD13*AD$4*$I13*AD$3/(25*AD$2^2*$K13^2*AD$3^4+6*AD$2*$K13*AD13*AD$3*(315*AD$5*($I13+1)+2*AD$3^2*AD$4*(2*$I13+5))-1890*AD13^2*AD$5*AD$4*($I13^2-1))*$G13 ->  | AH13: =18*$K13*AD13*AD$4*$I13*(AD$2*$K13*AD$3^3+105*AD13*AD$5*($I13+1))/(AD$3^2*(25*AD$2^2*$K13^2*AD$3^4+6*AD$2*$K13*AD13*AD$3*(315*AD$5*($I13+1)+2*AD$3^2*AD$4*(2*$I13+5))-1890*AD13^2*AD$5*AD$4*($I13^2-1)))*$G13 ->  | AI13: =AH13*AD$3^2*AD$6 ->  | AK13: =IF(AM13<$H$2,$D$10,($H$2*$D$10+(AM13-$H$2)*$D$10*$D$11)/AM13) -> 206000 | AL13: =AK12 -> 206000 | AM13: =AO13*$AL$3/AL13/$AL$4 -> 0.0002274747984 | AN13: =AM13*AK13 -> 46.85980847 | AO13: =K13*AL13*$AL$4*I13*$AL$2/($AL$3*K13*$AL$2+AL13*$AL$4*(1-I13)*(I13*G13+1))*G13 -> 18.40180376 | AP13: =$AL$6*AO13/$AL$2 -> 0.07802972495 | AR13: =$D$37 -> 230000 | AS13: =36*$K13*AR13*$D$33*($D$34/$D$35)*$I13/(25*$K13*$D$32+24*AR13*$D$33*($D$34/$D$35)*(2*$I13+5))*$G13 -> 0.01575442687 | AU13: =$D$37 -> 230000 | AV13: =$K13*AU13*$D$33*($D$34/$D$35)*$I13/($K13*$D$32/2+$AU13*$D$33*($D$34/$D$35)*(1-$I13)*($I13*$G13+1))*$G13 -> 0.02204971649 | AX13: =IF(AZ13<$H$2,$D$10,($H$2*$D$10+(AZ13-$H$2)*$D$10*$D$11)/AZ13) ->  | AY13: =AX12 ->  | AZ13: =AY$2*AY$3^3*(BB13+3*BC13)/(3*AY$4*AY13) ->  | BA13: =AZ13*AX13 ->  | BB13: =21*AY$2*$K13^2*AY13*AY$4*$I13*AY$3/(25*AY$2^2*$K13^2*AY$3^4+6*AY$2*$K13*AY13*AY$3*(315*AY$5*($I13+1)+2*AY$3^2*AY$4*(2*$I13+5))-1890*AY13^2*AY$5*AY$4*($I13^2-1))*$G13 ->  | BC13: =18*$K13*AY13*AY$4*$I13*(AY$2*$K13*AY$3^3+105*AY13*AY$5*($I13+1))/(AY$3^2*(25*AY$2^2*$K13^2*AY$3^4+6*AY$2*$K13*AY13*AY$3*(315*AY$5*($I13+1)+2*AY$3^2*AY$4*(2*$I13+5))-1890*AY13^2*AY$5*AY$4*($I13^2-1)))*$G13 ->  | BD13: =BC13*AY$3^2*AY$6 ->  | BF13: =IF(BH13<$H$2,$D$10,($H$2*$D$10+(BH13-$H$2)*$D$10*$D$11)/BH13) ->  | BG13: =BF12 ->  | BH13: =BG$2*BG$3^3*(BJ13+3*BK13)/(3*BG$4*BG13) ->  | BI13: =BH13*BF13 ->  | BJ13: =21*BG$2*$K13^2*BG13*BG$4*$I13*BG$3/(25*BG$2^2*$K13^2*BG$3^4+6*BG$2*$K13*BG13*BG$3*(315*BG$5*($I13+1)+2*BG$3^2*BG$4*(2*$I13+5))-1890*BG13^2*BG$5*BG$4*($I13^2-1))*$G13 ->  | BK13: =18*$K13*BG13*BG$4*$I13*(BG$2*$K13*BG$3^3+105*BG13*BG$5*($I13+1))/(BG$3^2*(25*BG$2^2*$K13^2*BG$3^4+6*BG$2*$K13*BG13*BG$3*(315*BG$5*($I13+1)+2*BG$3^2*BG$4*(2*$I13+5))-1890*BG13^2*BG$5*BG$4*($I13^2-1)))*$G13 ->  | BL13: =BK13*BG$3^2*BG$6 ->  | BO13: =S13 -> 0.05388479051 | BP13: =AA13/2+S13 ->  | BQ13: =1/($N$3*$AD$3)*(AI13*$AD$3^2+S13*($N$3-$AD$3)*$AD$3) ->  | BR13: =1/($V$3*$N$3)*(AA13*$V$3^2+S13*($N$3-$V$3)*$V$3) ->  | BS13: =(1+$D$27/$D$22)*BQ13+$D$27/$D$22*BR13 ->  | BT13: =1/($N$3*$V$3)*(AA13*$V$3^2+S13*($N$3-$V$3)*$V$3) ->  | BU13: =S13+2*$D$27/$D$22*BT13 ->  | BV13: =PI()/4*AP13+S13 -> 0.1151691932 | BW13: =AP13 -> 0.07802972495 | BX13: =1/($N$3*$AD$3)*(AI13*$AD$3^2+S13*($N$3-$AD$3)*$AD$3) ->  | BY13: =1/($AY$3*$BG$3)*(BD13*$AY$3^2+BL13*($BG$3-$AY$3)*$AY$3) ->  | BZ13: =BX13+BY13*$D$27/$D$22 ->  | CA13: =IF(AND($D$31=2,$D$21<7),AS13,0) -> 0 | CB13: =IF(AND($D$31=2,$D$21=7),AV13,0) -> 0 | CC13: =$BR$4*INDEX(BO13:CB13,1,$BR$3)+CA13+CB13 -> 0.05388479051
B14: Presenza di silica fume | C14: 1-si 2-no | D14: ='BGL Input'!L8 -> 2 | G14: 0.001453698494 | H14: =IF($D$12=1,'Attard - Setunge'!I11,'Ahamad - Shah'!J11) -> 23.8518035 | I14: 0.2424525005 | J14: 16407.66885 | K14: 19306.55888 | M14: 206000 | N14: 206000 | O14: 0.0003283183307 | P14: 67.63357613 | Q14: 9.072191605e-06 | R14: 7.783082631e-06 | S14: 0.08110778117 | AK14: 206000 | AL14: 206000 | AM14: 0.0003451465366 | AN14: 71.10018654 | AO14: 27.92097796 | AP14: 0.1183941672 | AR14: 230000 | AS14: 0.02391074362 | AU14: 230000 | AV14: 0.03351605283 | BO14: 0.08110778117 | BV14: 0.1740943427 | BW14: 0.1183941672 | CA14: 0 | CB14: 0 | CC14: 0.08110778117
B15: Modulo di Poisson | C15: n0 | D15: ='BGL Input'!L5 -> 0.2 | G15: 0.001817123118 | H15: =IF($D$12=1,'Attard - Setunge'!I12,'Ahamad - Shah'!J12) -> 25.33347212 | I15: 0.3037466103 | J15: 13941.52761 | K15: 16407.66885 | M15: 206000 | N15: 206000 | O15: 0.0005071071961 | P15: 104.4640824 | Q15: 1.401043442e-05 | R15: 1.202213596e-05 | S15: 0.1252831069 | AK15: 206000 | AL15: 206000 | AM15: 0.0005395895132 | AN15: 111.1554397 | AO15: 43.6506391 | AP15: 0.185093125 | AR15: 230000 | AS15: 0.03734708299 | AU15: 230000 | AV15: 0.05247050599 | BO15: 0.1252831069 | BV15: 0.2706549073 | BW15: 0.185093125 | CA15: 0 | CB15: 0 | CC15: 0.1252831069
B16: Limite modulo di Poisson | C16: nlim | D16: ='BGL Input'!L6 -> 0.5 | G16: 0.002180547742 | H16: =IF($D$12=1,'Attard - Setunge'!I13,'Ahamad - Shah'!J13) -> 26.13719867 | I16: 0.4076332071 | J16: 11986.52897 | K16: 13941.52761 | M16: 206000 | N16: 206000 | O16: 0.0008023011094 | P16: 165.2740285 | Q16: 2.216135593e-05 | R16: 1.902196308e-05 | S16: 0.1982285544 | AK16: 206000 | AL16: 206000 | AM16: 0.0008689345047 | AN16: 179.000508 | AO16: 70.2933351 | AP16: 0.2980669546 | AR16: 230000 | AS16: 0.05994075741 | AU16: 230000 | AV16: 0.08449903739 | BO16: 0.1982285544 | BV16: 0.4323297931 | BW16: 0.2980669546 | CA16: 0 | CB16: 0 | CC16: 0.1982285544
A17: Parametri | B17: Considerare variabilità n | C17: VERO/FALSO | D17: ='BGL Input'!J14 -> TRUE | G17: 0.002543972365 | H17: =IF($D$12=1,'Attard - Setunge'!I14,'Ahamad - Shah'!J14) -> 26.57417112 | I17: 0.5 | J17: 10445.93545 | K17: 11986.52897 | M17: 206000 | N17: 206000 | O17: 0.001126203768 | P17: 231.9979762 | Q17: 3.110079769e-05 | R17: 2.670394643e-05 | S17: 0.2782827763 | AK17: 206000 | AL17: 206000 | AM17: 0.001243965872 | AN17: 256.2569697 | AO17: 100.6318767 | AP17: 0.4267123898 | AR17: 230000 | AS17: 0.08545614888 | AU17: 230000 | AV17: 0.1209289835 | BO17: 0.2782827763 | BV17: 0.6134219036 | BW17: 0.4267123898 | CA17: 0 | CB17: 0 | CC17: 0.2782827763
B18: Considerare contributo flessionale della Staffa | C18: VERO/FALSO | D18: ='BGL Input'!J15 -> TRUE | G18: 0.002907396989 | H18: =IF($D$12=1,'Attard - Setunge'!I15,'Ahamad - Shah'!J15) -> 26.45623467 | I18: 0.5 | J18: 9099.629247 | K18: 10445.93545 | M18: 206000 | N18: 206000 | O18: 0.001265720787 | P18: 260.7384822 | Q18: 3.494723228e-05 | R18: 3.00142374e-05 | S18: 0.3127794364 | AK18: 206000 | AL18: 206000 | AM18: 0.001417064933 | AN18: 291.9153762 | AO18: 114.6349002 | AP18: 0.4860898339 | AR18: 230000 | AS18: 0.09734230804 | AU18: 230000 | AV18: 0.1381235502 | BO18: 0.3127794364 | BV18: 0.6945534992 | BW18: 0.4860898339 | CA18: 0 | CB18: 0 | CC18: 0.3127794364
B19: Variabilità modulo cls | C19: 1-nessuna 2-passo prec. 3-variazione passo prec | D19: =IF('BGL Input'!J16=FALSE,1,IF('BGL Input'!J17=1,2,3)) -> 2 | G19: 0.003270821612 | H19: =IF($D$12=1,'Attard - Setunge'!I16,'Ahamad - Shah'!J16) -> 26.15466526 | I19: 0.5 | J19: 7996.359434 | K19: 9099.629247 | M19: 206000 | N19: 206000 | O19: 0.001397240564 | P19: 287.8315561 | Q19: 3.857041902e-05 | R19: 3.313570171e-05 | S19: 0.3453083271 | AK19: 206000 | AL19: 206000 | AM19: 0.001588267981 | AN19: 327.1832041 | AO19: 128.4845438 | AP19: 0.5448168965 | AR19: 230000 | AS19: 0.109096221 | AU19: 230000 | AV19: 0.1552842075 | BO19: 0.3453083271 | BV19: 0.773206517 | BW19: 0.5448168965 | CA19: 0 | CB19: 0 | CC19: 0.3453083271
B20: Considerare efficacia del confinamento | C20: 1-no 2-calcolo autom. 3-inserimento man. | D20: =IF('BGL Input'!J18=FALSE,1,IF('BGL Input'!J19=1,2,3)) -> 2 | G20: 0.003634246236 | H20: =IF($D$12=1,'Attard - Setunge'!I17,'Ahamad - Shah'!J17) -> 25.74608236 | I20: 0.5 | J20: 7084.297729 | K20: 7996.359434 | M20: 206000 | N20: 206000 | O20: 0.001521955577 | P20: 313.5228488 | Q20: 4.200364708e-05 | R20: 3.609649542e-05 | S20: 0.3761628638 | AK20: 206000 | AL20: 206000 | AM20: 0.001757740842 | AN20: 362.0946135 | AO20: 142.1942222 | AP20: 0.6029504604 | AR20: 230000 | AS20: 0.1207295709 | AU20: 230000 | AV20: 0.1724135091 | BO20: 0.3761628638 | BV20: 0.849719048 | BW20: 0.6029504604 | CA20: 0 | CB20: 0 | CC20: 0.3761628638
B21: Tipo sezione | C21: 1-S1 2-S2 3-S3 4-S4-1 5-S4-2 6-S5 7-C 8-R1 9-R2 | D21: ='BGL Input'!C31 -> 2 | G21: 0.00399767086 | H21: =IF($D$12=1,'Attard - Setunge'!I18,'Ahamad - Shah'!J18) -> 25.27665812 | I21: 0.5 | J21: 6322.846228 | K21: 7084.297729 | M21: 206000 | N21: 206000 | O21: 0.001639915538 | P21: 337.8226008 | Q21: 4.524830449e-05 | R21: 3.889779218e-05 | S21: 0.405355277 | AK21: 203230.353 | AL21: 206000 | AM21: 0.00192540137 | AN21: 391.3 | AO21: 155.7572901 | AP21: 0.6604623472 | AR21: 230000 | AS21: 0.1322367104 | AU21: 230000 | AV21: 0.1895096148 | BO21: 0.405355277 | BV21: 0.9240811916 | BW21: 0.6604623472 | CA21: 0 | CB21: 0 | CC21: 0.405355277
A22: STAFFA A | B22: Dimensione Staffa esterna (lato L o diametro D) | C22: L/D | D22: ='BGL Input'!L31 -> 256 | E22: [mm] | G22: 0.004361095483 | H22: =IF($D$12=1,'Attard - Setunge'!I19,'Ahamad - Shah'!J19) -> 24.77503302 | I22: 0.5 | J22: 5680.91965 | K22: 6322.846228 | M22: 206000 | N22: 206000 | O22: 0.001751203221 | P22: 360.7478636 | Q22: 4.830670233e-05 | R22: 4.154154631e-05 | S22: 0.432905933 | AK22: 187016.9947 | AL22: 203230.353 | AM22: 0.002092323217 | AN22: 391.3 | AO22: 166.9849117 | AP22: 0.7080711709 | AR22: 230000 | AS22: 0.14361219 | AU22: 230000 | AV22: 0.2065706814 | BO22: 0.432905933 | BV22: 0.9890237301 | BW22: 0.7080711709 | CA22: 0 | CB22: 0 | CC22: 0.432905933
B23: Passo staffa est. | C23: s | D23: ='BGL Input'!L32 -> 150 | E23: [mm] | G23: 0.004724520107 | H23: =IF($D$12=1,'Attard - Setunge'!I20,'Ahamad - Shah'!J20) -> 24.25896104 | I23: 0.5 | J23: 5134.693152 | K23: 5680.91965 | M23: 206000 | N23: 206000 | O23: 0.001855933893 | P23: 382.322382 | Q23: 5.118205864e-05 | R23: 4.403047928e-05 | S23: 0.458843192 | AK23: 172801.4249 | AL23: 187016.9947 | AM23: 0.00226444892 | AN23: 391.3 | AO23: 166.3043036 | AP23: 0.7051851676 | AR23: 230000 | AS23: 0.1548508292 | AU23: 230000 | AV23: 0.2235948802 | BO23: 0.458843192 | BV23: 1.012694328 | BW23: 0.7051851676 | CA23: 0 | CB23: 0 | CC23: 0.458843192
B24: Diametro staffa | C24: fst | D24: ='BGL Input'!L33 -> 8 | E24: [mm] | G24: 0.00508794473 | H24: =IF($D$12=1,'Attard - Setunge'!I21,'Ahamad - Shah'!J21) -> 23.73936741 | I24: 0.5 | J24: 4665.806857 | K24: 5134.693152 | M24: 200230.7501 | N24: 206000 | O24: 0.001954245289 | P24: 391.3 | Q24: 5.38782188e-05 | R24: 4.63678431e-05 | S24: 0.4832009436 | AK24: 160607.7318 | AL24: 172801.4249 | AM24: 0.002436370875 | AN24: 391.3 | AO24: 165.3295959 | AP24: 0.7010520853 | AR24: 230000 | AS24: 0.1659476212 | AU24: 230000 | AV24: 0.2405803716 | BO24: 0.4832009436 | BV24: 1.033805964 | BW24: 0.7010520853 | CA24: 0 | CB24: 0 | CC24: 0.4832009436
B25: Diametro armatura long | C25: fsl | D25: ='BGL Input'!L34 -> 16 | E25: [mm] | G25: 0.005451369354 | H25: =IF($D$12=1,'Attard - Setunge'!I22,'Ahamad - Shah'!J22) -> 23.08039066 | I25: 0.5 | J25: 4233.870274 | K25: 4665.806857 | M25: 189892.6883 | N25: 200230.7501 | O25: 0.002060637529 | P25: 391.3 | Q25: 5.520921731e-05 | R25: 4.752662258e-05 | S25: 0.4952766259 | AK25: 150046.5248 | AL25: 160607.7318 | AM25: 0.002607857799 | AN25: 391.3 | AO25: 164.4789182 | AP25: 0.6974449309 | AR25: 230000 | AS25: 0.17689765 | AU25: 230000 | AV25: 0.2575252814 | BO25: 0.4952766259 | BV25: 1.043048594 | BW25: 0.6974449309 | CA25: 0 | CB25: 0 | CC25: 0.4952766259
B26: Lato staffa a) (solo per S4-1) | C26: a | D26: ='BGL Input'!L35 -> 0 | E26: [mm] | G26: 0.005814793977 | H26: =IF($D$12=1,'Attard - Setunge'!I23,'Ahamad - Shah'!J23) -> 22.27898582 | I26: 0.5 | J26: 3831.431673 | K26: 4233.870274 | M26: 179979.066 | N26: 189892.6883 | O26: 0.002174141742 | P26: 391.3 | Q26: 5.523502419e-05 | R26: 4.755806707e-05 | S26: 0.4956043099 | AK26: 140849.4595 | AL26: 150046.5248 | AM26: 0.002778143426 | AN26: 391.3 | AO26: 163.6969132 | AP26: 0.6941289714 | AR26: 230000 | AS26: 0.1876258141 | AU26: 230000 | AV26: 0.27440886 | BO26: 0.4956043099 | BV26: 1.040771929 | BW26: 0.6941289714 | CA26: 0 | CB26: 0 | CC26: 0.4956043099
A27: STAFFA B | B27: Lato staffa b) | C27: b | D27: ='BGL Input'!L38 -> 0 | E27: [mm] | G27: 0.006178218601 | H27: =IF($D$12=1,'Attard - Setunge'!I24,'Ahamad - Shah'!J24) -> 21.45369071 | I27: 0.5 | J27: 3472.471936 | K27: 3831.431673 | M27: 171409.0772 | N27: 179979.066 | O27: 0.00228284293 | P27: 391.3 | Q27: 5.496039615e-05 | R27: 4.73316792e-05 | S27: 0.4932451139 | AK27: 132785.1466 | AL27: 140849.4595 | AM27: 0.002946865746 | AN27: 391.3 | AO27: 162.9954274 | AP27: 0.6911544399 | AR27: 230000 | AS27: 0.1980839042 | AU27: 230000 | AV27: 0.2912168281 | BO27: 0.4932451139 | BV27: 1.036076542 | BW27: 0.6911544399 | CA27: 0 | CB27: 0 | CC27: 0.4932451139
B28: Passo staffa b) | C28: s | D28: ='BGL Input'!L39 -> 0 | E28: [mm] | G28: 0.006541643225 | H28: =IF($D$12=1,'Attard - Setunge'!I25,'Ahamad - Shah'!J25) -> 20.64625139 | I28: 0.5 | J28: 3156.126173 | K28: 3472.471936 | M28: 164027.9102 | N28: 171409.0772 | O28: 0.002385569623 | P28: 391.3 | Q28: 5.468935959e-05 | R28: 4.710953194e-05 | S28: 0.4909301094 | AK28: 125641.4201 | AL28: 132785.1466 | AM28: 0.003114418793 | AN28: 391.3 | AO28: 162.4001382 | AP28: 0.6886302169 | AR28: 230000 | AS28: 0.2082944489 | AU28: 230000 | AV28: 0.3079536227 | BO28: 0.4909301094 | BV28: 1.031779017 | BW28: 0.6886302169 | CA28: 0 | CB28: 0 | CC28: 0.4909301094
B29: Diametro staffa b) | C29: fst | D29: ='BGL Input'!L40 -> 0 | E29: [mm] | G29: 0.006905067848 | H29: =IF($D$12=1,'Attard - Setunge'!I26,'Ahamad - Shah'!J26) -> 19.86472283 | I29: 0.5 | J29: 2876.832389 | K29: 3156.126173 | M29: 157610.9139 | N29: 164027.9102 | O29: 0.002482696091 | P29: 391.3 | Q29: 5.445483062e-05 | R29: 4.691976718e-05 | S29: 0.4889525641 | AK29: 119263.3772 | AL29: 125641.4201 | AM29: 0.003280973667 | AN29: 391.3 | AO29: 161.8808466 | AP29: 0.6864282491 | AR29: 230000 | AS29: 0.2182615403 | AU29: 230000 | AV29: 0.3246187307 | BO29: 0.4889525641 | BV29: 1.02807205 | BW29: 0.6864282491 | CA29: 0 | CB29: 0 | CC29: 0.4889525641
B30: Diametro armatura longitudinale | C30: fsl | D30: ='BGL Input'!L41 -> 0 | E30: [mm] | G30: 0.007268492472 | H30: =IF($D$12=1,'Attard - Setunge'!I27,'Ahamad - Shah'!J27) -> 19.10992891 | I30: 0.5 | J30: 2629.146138 | K30: 2876.832389 | M30: 152001.0895 | N30: 157610.9139 | O30: 0.002574323653 | P30: 391.3 | Q30: 5.424456926e-05 | R30: 4.675177603e-05 | S30: 0.4872019223 | AK30: 113534.3053 | AL30: 119263.3772 | AM30: 0.003446535381 | AN30: 391.3 | AO30: 161.4171704 | AP30: 0.6844621091 | AR30: 230000 | AS30: 0.2279756982 | AU30: 230000 | AV30: 0.3412077902 | BO30: 0.4872019223 | BV30: 1.024777206 | BW30: 0.6844621091 | CA30: 0 | CB30: 0 | CC30: 0.4872019223
A31: RINFORZO EST. | B31: Presenza rinforzo | C31: 1-no 2-si | D31: ='BGL Input'!C47 -> 1 | G31: 0.007631917095 | H31: =IF($D$12=1,'Attard - Setunge'!I28,'Ahamad - Shah'!J28) -> 18.3819749 | I31: 0.5 | J31: 2408.565852 | K31: 2629.146138 | M31: 147088.0529 | N31: 152001.0895 | O31: 0.002660311237 | P31: 391.3 | Q31: 5.404942342e-05 | R31: 4.659770552e-05 | S31: 0.4855963481 | AK31: 108361.5462 | AL31: 113534.3053 | AM31: 0.003611059584 | AN31: 391.3 | AO31: 160.9984322 | AP31: 0.6826865209 | AR31: 230000 | AS31: 0.2374236025 | AU31: 230000 | AV31: 0.3577151196 | BO31: 0.4855963481 | BV31: 1.021777088 | BW31: 0.6826865209 | CA31: 0 | CB31: 0 | CC31: 0.4855963481
B32: Dimensione sezione | C32: L | D32: ='BGL Input'!L46 -> 800 | E32: [mm] | G32: 0.007995341719 | H32: =IF($D$12=1,'Attard - Setunge'!I29,'Ahamad - Shah'!J29) -> 17.6808623 | I32: 0.5 | J32: 2211.395451 | K32: 2408.565852 | M32: 142787.371 | N32: 147088.0529 | O32: 0.002740438439 | P32: 391.3 | Q32: 5.386508484e-05 | R32: 4.64539095e-05 | S32: 0.4840978446 | AK32: 103669.4928 | AL32: 108361.5462 | AM32: 0.003774495173 | AN32: 391.3 | AO32: 160.6179037 | AP32: 0.6810729542 | AR32: 230000 | AS32: 0.2465917613 | AU32: 230000 | AV32: 0.3741346824 | BO32: 0.4840978446 | BV32: 1.019011292 | BW32: 0.6810729542 | CA32: 0 | CB32: 0 | CC32: 0.4840978446
B33: Spessore fascia | C33: tFRP | D33: ='BGL Input'!L47 -> 0.166 | E33: [mm] | G33: 0.008358766343 | H33: =IF($D$12=1,'Attard - Setunge'!I30,'Ahamad - Shah'!J30) -> 17.00633027 | I33: 0.5 | J33: 2034.550264 | K33: 2211.395451 | M33: 139031.6165 | N33: 142787.371 | O33: 0.002814467744 | P33: 391.3 | Q33: 5.368912091e-05 | R33: 4.631837109e-05 | S33: 0.482685394 | AK33: 99395.67625 | AL33: 103669.4928 | AM33: 0.003936790963 | AN33: 391.3 | AO33: 160.2703607 | AP33: 0.6795992571 | AR33: 230000 | AS33: 0.2554671094 | AU33: 230000 | AV33: 0.3904602287 | BO33: 0.482685394 | BV33: 1.016441402 | BW33: 0.6795992571 | CA33: 0 | CB33: 0 | CC33: 0.482685394
B34: Larghezza fascia | C34: bFRP | D34: ='BGL Input'!L48 -> 150 | E34: [mm] | G34: 0.008722190966 | H34: =IF($D$12=1,'Attard - Setunge'!I31,'Ahamad - Shah'!J31) -> 16.35782662 | I34: 0.5 | J34: 1875.426333 | K34: 2034.550264 | M34: 135766.5132 | N34: 139031.6165 | O34: 0.002882154007 | P34: 391.3 | Q34: 5.351961557e-05 | R34: 4.618952974e-05 | S34: 0.4813427337 | AK34: 95488.07226 | AL34: 99395.67625 | AM34: 0.004097894017 | AN34: 391.3 | AO34: 159.9514203 | AP34: 0.6782468444 | AR34: 230000 | AS34: 0.2640368766 | AU34: 230000 | AV34: 0.4066852338 | BO34: 0.4813427337 | BV34: 1.01403656 | BW34: 0.6782468444 | CA34: 0 | CB34: 0 | CC34: 0.4813427337
B35: Passo fascia | C35: sFRP | D35: ='BGL Input'!L49 -> 150 | E35: [mm] | G35: 0.00908561559 | H35: =IF($D$12=1,'Attard - Setunge'!I32,'Ahamad - Shah'!J32) -> 15.73457248 | I35: 0.5 | J35: 1731.811381 | K35: 1875.426333 | M35: 132948.6617 | N35: 135766.5132 | O35: 0.002943241361 | P35: 391.3 | Q35: 5.33548266e-05 | R35: 4.606598818e-05 | S35: 0.4800553027 | AK35: 91903.04598 | AL35: 95488.07226 | AM35: 0.004257747889 | AN35: 391.3 | AO35: 159.6573637 | AP35: 0.6769999473 | AR35: 230000 | AS35: 0.27228846 | AU35: 230000 | AV35: 0.4228028316 | BO35: 0.4800553027 | BV35: 1.011769818 | BW35: 0.6769999473 | CA35: 0 | CB35: 0 | CC35: 0.4800553027
B36: Tensione di rottura FRP | C36: f t | D36: ='BGL Input'!L44 -> 3900 | E36: [MPa] | G36: 0.009449040213 | H36: =IF($D$12=1,'Attard - Setunge'!I33,'Ahamad - Shah'!J33) -> 15.13563714 | I36: 0.5 | J36: 1601.817412 | K36: 1731.811381 | M36: 130543.8554 | N36: 132948.6617 | O36: 0.002997460117 | P36: 391.3 | Q36: 5.319312931e-05 | R36: 4.594646659e-05 | S36: 0.478809764 | AK36: 88603.74922 | AL36: 91903.04598 | AM36: 0.004416291675 | AN36: 391.3 | AO36: 159.3850342 | AP36: 0.6758451805 | AR36: 230000 | AS36: 0.2802093819 | AU36: 230000 | AV36: 0.4388057687 | BO36: 0.478809764 | BV36: 1.009617327 | BW36: 0.6758451805 | CA36: 0 | CB36: 0 | CC36: 0.478809764
B37: Modulo elastico FRP | C37: E t | D37: ='BGL Input'!L45 -> 230000 | E37: [MPa] | G37: 0.009812464837 | H37: =IF($D$12=1,'Attard - Setunge'!I34,'Ahamad - Shah'!J34) -> 14.55999563 | I37: 0.5 | J37: 1483.826528 | K37: 1601.817412 | M37: 128525.7943 | N37: 130543.8554 | O37: 0.003044525047 | P37: 391.3 | Q37: 5.30329932e-05 | R37: 4.582978534e-05 | S37: 0.4775938246 | AK37: 85558.86576 | AL37: 88603.74922 | AM37: 0.004573459413 | AN37: 391.3 | AO37: 159.131741 | AP37: 0.6747711335 | AR37: 230000 | AS37: 0.2877872833 | AU37: 230000 | AV37: 0.4546863655 | BO37: 0.4775938246 | BV37: 1.007557834 | BW37: 0.6747711335 | CA37: 0 | CB37: 0 | CC37: 0.4775938246
G38: 0.01017588946 | H38: =IF($D$12=1,'Attard - Setunge'!I35,'Ahamad - Shah'!J35) -> 14.00656843 | I38: 0.5 | J38: 1376.446598 | K38: 1483.826528 | M38: 126875.1499 | N38: 128525.7943 | O38: 0.003084134287 | P38: 391.3 | Q38: 5.287294783e-05 | R38: 4.571483881e-05 | S38: 0.4763959627 | AK38: 82741.62615 | AL38: 85558.86576 | AM38: 0.004729179474 | AN38: 391.3 | AO38: 158.8951716 | AP38: 0.673768001 | AR38: 230000 | AS38: 0.2950099192 | AU38: 230000 | AV38: 0.4704364733 | BO38: 0.4763959627 | BV38: 1.005572113 | BW38: 0.673768001 | CA38: 0 | CB38: 0 | CC38: 0.4763959627
G39: 0.01053931408 | H39: =IF($D$12=1,'Attard - Setunge'!I36,'Ahamad - Shah'!J36) -> 13.47424803 | I39: 0.5 | J39: 1278.474853 | K39: 1376.446598 | M39: 125578.9407 | N39: 126875.1499 | O39: 0.003115968314 | P39: 391.3 | Q39: 5.27115418e-05 | R39: 4.560056411e-05 | S39: 0.4752051019 | AK39: 80129.02871 | AL39: 82741.62615 | AM39: 0.004883373807 | AN39: 391.3 | AO39: 158.6733194 | AP39: 0.6728272746 | AR39: 230000 | AS39: 0.3018651405 | AU39: 230000 | AV39: 0.4860474235 | BO39: 0.4752051019 | BV39: 1.003642408 | BW39: 0.6728272746 | CA39: 0 | CB39: 0 | CC39: 0.4752051019
G40: 0.01090273871 | H40: =IF($D$12=1,'Attard - Setunge'!I37,'Ahamad - Shah'!J37) -> 12.96191623 | I40: 0.5 | J40: 1188.867915 | K40: 1278.474853 | M40: 124630.1867 | N40: 125578.9407 | O40: 0.003139688788 | P40: 391.3 | Q40: 5.254730025e-05 | R40: 4.54859095e-05 | S40: 0.4740102822 | AK40: 77701.21937 | AL40: 80129.02871 | AM40: 0.005035957005 | AN40: 391.3 | AO40: 158.4644245 | AP40: 0.6719414913 | AR40: 230000 | AS40: 0.3083408574 | AU40: 230000 | AV40: 0.5015099647 | BO40: 0.4740102822 | BV40: 1.001751895 | BW40: 0.6719414913 | CA40: 0 | CB40: 0 | CC40: 0.4740102822
G41: 0.01126616333 | H41: =IF($D$12=1,'Attard - Setunge'!I38,'Ahamad - Shah'!J38) -> 12.4684549 | I41: 0.5 | J41: 1106.717037 | K41: 1188.867915 | M41: 124027.8227 | N41: 124630.1867 | O41: 0.003154937266 | P41: 391.3 | Q41: 5.237868117e-05 | R41: 4.536980326e-05 | S41: 0.4728003349 | AK41: 75440.99435 | AL41: 77701.21937 | AM41: 0.005186835133 | AN41: 391.3 | AO41: 158.2669248 | AP41: 0.6711040273 | AR41: 230000 | AS41: 0.3144249833 | AU41: 230000 | AV41: 0.5168141862 | BO41: 0.4728003349 | BV41: 0.9998842054 | BW41: 0.6711040273 | CA41: 0 | CB41: 0 | CC41: 0.4728003349
G42: 0.01162958795 | H42: =IF($D$12=1,'Attard - Setunge'!I39,'Ahamad - Shah'!J39) -> 11.99275136 | I42: 0.5 | J42: 1031.227538 | K42: 1106.717037 | M42: 123776.87 | N42: 124027.8227 | O42: 0.003161333779 | P42: 391.3 | Q42: 5.220402875e-05 | R42: 4.525112157e-05 | S42: 0.4715635488 | AK42: 73333.39938 | AL42: 75440.99435 | AM42: 0.005335904285 | AN42: 391.3 | AO42: 158.0794151 | AP42: 0.6703089243 | AR42: 230000 | AS42: 0.3201053511 | AU42: 230000 | AV42: 0.5319494232 | BO42: 0.4715635488 | BV42: 0.9980229469 | BW42: 0.6703089243 | CA42: 0 | CB42: 0 | CC42: 0.4715635488
G43: 0.01199301258 | H43: =IF($D$12=1,'Attard - Setunge'!I40,'Ahamad - Shah'!J40) -> 11.53369953 | I43: 0.5 | J43: 961.7016119 | K43: 1031.227538 | M43: 123888.8902 | N43: 123776.87 | O43: 0.003158475303 | P43: 391.3 | Q43: 5.202152055e-05 | R43: 4.512865353e-05 | S43: 0.470287305 | AK43: 71365.40584 | AL43: 73333.39938 | AM43: 0.00548304876 | AN43: 391.3 | AO43: 157.9006112 | AP43: 0.6695507365 | AR43: 230000 | AS43: 0.3253695964 | AU43: 230000 | AV43: 0.5469041382 | BO43: 0.470287305 | BV43: 0.9961512238 | BW43: 0.6695507365 | CA43: 0 | CB43: 0 | CC43: 0.470287305
G44: 0.0123564372 | H44: =IF($D$12=1,'Attard - Setunge'!I41,'Ahamad - Shah'!J41) -> 11.09019718 | I44: 0.5 | J44: 897.5238575 | K44: 961.7016119 | M44: 124382.7693 | N44: 123888.8902 | O44: 0.003145934137 | P44: 391.3 | Q44: 5.182910496e-05 | R44: 4.500106077e-05 | S44: 0.4689576563 | AK44: 69525.64908 | AL44: 71365.40584 | AM44: 0.005628138754 | AN44: 391.3 | AO44: 157.7293165 | AP44: 0.6688243906 | AR44: 230000 | AS44: 0.3302049964 | AU44: 230000 | AV44: 0.5616657706 | BO44: 0.4689576563 | BV44: 0.9942511043 | BW44: 0.6688243906 | CA44: 0 | CB44: 0 | CC44: 0.4689576563
G45: 0.01271986183 | H45: =IF($D$12=1,'Attard - Setunge'!I42,'Ahamad - Shah'!J42) -> 10.66113946 | I45: 0.5 | J45: 838.1489991 | K45: 897.5238575 | M45: 125285.9114 | N45: 124382.7693 | O45: 0.003123256204 | P45: 391.3 | Q45: 5.162442442e-05 | R45: 4.486682884e-05 | S45: 0.4675588205 | AK45: 67804.21815 | AL45: 69525.64908 | AM45: 0.005771027388 | AN45: 391.3 | AO45: 157.5643903 | AP45: 0.6681250489 | AR45: 230000 | AS45: 0.3345982484 | AU45: 230000 | AV45: 0.5762205436 | BO45: 0.4675588205 | BV45: 0.9923030068 | BW45: 0.6681250489 | CA45: 0 | CB45: 0 | CC45: 0.4675588205
G46: 0.01308328645 | H46: =IF($D$12=1,'Attard - Setunge'!I43,'Ahamad - Shah'!J43) -> 10.24540841 | I46: 0.5 | J46: 783.0913468 | K46: 838.1489991 | M46: 126635.9712 | N46: 125285.9114 | O46: 0.003089959324 | P46: 391.3 | Q46: 5.140471814e-05 | R46: 4.472420668e-05 | S46: 0.4660725499 | AK46: 66192.48925 | AL46: 67804.21815 | AM46: 0.00591154683 | AN46: 391.3 | AO46: 157.4047133 | AP46: 0.6674479656 | AR46: 230000 | AS46: 0.3385351684 | AU46: 230000 | AV46: 0.5905532115 | BO46: 0.4660725499 | BV46: 0.9902849563 | BW46: 0.6674479656 | CA46: 0 | CB46: 0 | CC46: 0.4660725499
G47: 0.01344671107 | H47: =IF($D$12=1,'Attard - Setunge'!I44,'Ahamad - Shah'!J44) -> 9.841857926 | I47: 0.5 | J47: 731.915624 | K47: 783.0913468 | M47: 128483.3188 | N47: 126635.9712 | O47: 0.003045531543 | P47: 391.3 | Q47: 5.116669625e-05 | R47: 4.45711292e-05 | S47: 0.4644773241 | AK47: 64682.99798 | AL47: 66192.48925 | AM47: 0.00604950315 | AN47: 391.3 | AO47: 157.24915 | AP47: 0.6667883259 | AR47: 230000 | AS47: 0.3420002773 | AU47: 230000 | AV47: 0.6046467247 | BO47: 0.4644773241 | BV47: 0.9881716506 | BW47: 0.6667883259 | CA47: 0 | CB47: 0 | CC47: 0.4644773241
G48: 0.0138101357 | H48: =IF($D$12=1,'Attard - Setunge'!I45,'Ahamad - Shah'!J45) -> 9.449292904 | I48: 0.5 | J48: 684.2288238 | K48: 731.915624 | M48: 130894.5336 | N48: 128483.3188 | O48: 0.002989429651 | P48: 391.3 | Q48: 5.090637338e-05 | R48: 4.440511592e-05 | S48: 0.4627472938 | AK48: 63269.34793 | AL48: 64682.99798 | AM48: 0.006184669398 | AN48: 391.3 | AO48: 157.0965023 | AP48: 0.6661410495 | AR48: 230000 | AS48: 0.3449762337 | AU48: 230000 | AV48: 0.6184817777 | BO48: 0.4627472938 | BV48: 0.9859332506 | BW48: 0.6661410495 | CA48: 0 | CB48: 0 | CC48: 0.4627472938
G49: 0.01417356032 | H49: =IF($D$12=1,'Attard - Setunge'!I46,'Ahamad - Shah'!J46) -> 9.066440672 | I49: 0.5 | J49: 639.6727758 | K49: 684.2288238 | M49: 133957.388 | N49: 130894.5336 | O49: 0.002921078156 | P49: 391.3 | Q49: 5.061884469e-05 | R49: 4.422313574e-05 | S49: 0.4608508718 | AK49: 61946.15617 | AL49: 63269.34793 | AM49: 0.006316776119 | AN49: 391.3 | AO49: 156.9454498 | AP49: 0.6655005369 | AR49: 230000 | AS49: 0.3474430459 | AU49: 230000 | AV49: 0.632036188 | BO49: 0.4608508718 | BV49: 0.9835337713 | BW49: 0.6655005369 | CA49: 0 | CB49: 0 | CC49: 0.4608508718

Sheet Attard - Setunge (hidden)
I1: Fr max | J1: =MAX(J7:J41) -> 0.4956043099
A2: Caratteristiche Calcestruzzo | K2: Modello triassiale di “ATTARD - SETUNGE”
A3: Resistenza cilindrica fc' [MPa] | D3: ='BGL Input'!E7 -> 24.9 | H3: Delta eps | I3: Modello di | L3: Parametri ramo ascendente | S3: Parametri ramo discendente
A4: Coefficiente di riduzione della resistenza | D4: ='BGL Input'!E8 -> 1 | H4: eps = eps cu | I4: Braga-Gigliotti-Laterza | K4: P. lat. B-L | AJ4: X | AK4: Y = f / f0 | AM4: f
A5: Tipo di inerti (Frant. = 0; ghiaia = 1) | D5: ='BGL Input'!J8-1 -> 0 | H5: eps c | I5: fc | J5: fr | K5: fr / fc | L5: k [eq(18)] | M5: fo [eq(17)] | N5: eps 0 [eq(20)] | O5: A | P5: B | Q5: C | R5: D | S5: f ic | T5: f i | U5: f i | V5: e ic | W5: e i | X5: e i | Y5: f i | Z5: e i | AA5: Ei | AB5: f 2ic | AC5: f 2i | AD5: eps 2i | AE5: E 2i | AF5: A | AG5: B | AH5: C | AI5: D | AK5: asc | AL5: disc | AM5: asc | AN5: disc | AO5: fc
A6: Presenza di "Silica fume" (s = Sì; n = No) | D6: =IF('BGL Input'!L8=1,"s","n") -> n | L6: k = 1,25 [1 +0,062 fr/fc] (fc)-0,21 | M6: f0 = [(fr/ft +1)k] fc | N6: e0 = [ 1+(17-0,06fc) (fr/fc) ] ec | O6: A = Eti e0 / f0 | Q6: C = A - 2 | R6: D = B + 1 | S6: eq(12) | T6: eq(22) | U6: eq(26) | V6: eq(11) | W6: eq(23) | X6: eq(27) | AA6: eq(16) | AB6: eq(25) | AC6: eq(24)
A7: Peso per unità di volume [Kg/mc] (*) | D7: ='BGL Input'!E5 -> 2306 | G7: 1 | H7: =BGL!G10 -> 0 | I7: =(IF(H7>N7,(AF7*(H7/N7)+AG7*(H7/N7)^2)/(1+AH7*(H7/N7)+AI7*(H7/N7)^2),(O7*(H7/N7)+P7*(H7/N7)^2)/(1+Q7*(H7/N7)+R7*(H7/N7)^2)))*M7 -> 0 | J7: =BGL!CC10 -> 0 | K7: =J7/$D$29 -> 0 | L7: =1.25*(1+0.062*K7)*$D$29^-0.21 -> 0.6363677322 | M7: =((K7*$D$29/$D$21+1)^L7)*$D$29 -> 24.9 | N7: =(1+(17-0.06*$D$29)*K7)*$D$30 -> 0.001998490213 | O7: =$D$24*N7/M7 -> 2.211379542 | P7: =IF($D$8="s",(O7-1)^2/(1-$D$22/M7)-1,IF($D$9="s",IF(((O7-1)^2/($D$25*(1-$D$22/M7))+O7^2*(1-$D$25)/($D$25^2*$D$22/M7*(1-$D$22/M7))-1)<-Q7,-Q7,(O7-1)^2/($D$25*(1-$D$22/M7))+O7^2*(1-$D$25)/($D$25^2*$D$22/M7*(1-$D$22/M7))-1),(O7-1)^2/($D$25*(1-$D$22/M7))+O7^2*(1-$D$25)/($D$25^2*$D$22/M7*(1-$D$22/M7))-1)) -> -0.2113795418 | Q7: =O7-2 -> 0.2113795418 | R7: =P7+1 -> 0.7886204582 | S7: =(1.41-0.17*LN($D$29))*$D$29 -> 21.50046459 | T7: =((S7/$D$29-1)/(5.06*K7^0.57+1)+1)*M7 -> 21.50046459 | U7: =M7*(0.9772-0.0014*$D$29+0.0586*K7) -> 23.464266 | V7: =(2.5-0.3*LN($D$29))*$D$30 -> 0.003068760981 | W7: =((V7/$D$30-2)/(1.12*K7^0.26+1)+2)*N7 -> 0.003068760981 | X7: =N7*(1.923-0.0046*$D$29+0.1964*K7) -> 0.003614189611 | Y7: =IF($D$10="s",U7,T7) -> 21.50046459 | Z7: =IF($D$10="s",X7,W7) -> 0.003068760981 | AA7: =Y7/Z7 -> 7006.236303 | AB7: =(1.45-0.25*LN($D$29))*$D$29 -> 16.09244792 | AC7: =((AB7/$D$29-1)/(6.35*K7^0.62+1)+1)*M7 -> 16.09244792 | AD7: =2*Z7-N7 -> 0.004139031748 | AE7: =AC7/AD7 -> 3887.974025 | AF7: =(AD7-Z7)/N7*(AD7*AA7/(M7-Y7)-4*Z7*AE7/(M7-AC7)) -> 1.666407846 | AG7: =(Z7-AD7)*(AA7/(M7-Y7)-4*AE7/(M7-AC7)) -> -0.3159372691 | AH7: =AF7-2 -> -0.333592154 | AI7: =AG7+1 -> 0.6840627309 | AJ7: =H7/N7 -> 0 | AK7: =(O7*AJ7+P7*AJ7^2)/(1+Q7*AJ7+R7*AJ7^2) -> 0 | AL7: =(AF7*AJ7+AG7*AJ7^2)/(1+AH7*AJ7+AI7*AJ7^2) -> 0 | AM7: =AK7*M7 -> 0 | AN7: =AL7*M7 -> 0 | AO7: =IF(H7<N7,AM7,AN7) -> 0
A8: B semplificato (a=1) ? (s= Si; n = No) | D8: n | G8: 2 | H8: =BGL!G11 -> 0.0003634246236 | I8: 9.225410089 | J8: =BGL!CC11 -> 0.01737108655 | K8: 0.0006976339981 | L8: 0.6363952572 | M8: 25.01075315 | N8: 0.002020108907 | O8: 2.22540276 | P8: -0.2254027603 | Q8: 0.2254027603 | R8: 0.7745972397 | S8: 21.50046459 | T8: 21.85007621 | U8: 23.56965559 | V8: 0.003068760981 | W8: 0.003237780099 | X8: 0.003653562939 | Y8: 21.85007621 | Z8: 0.003237780099 | AA8: 6748.474433 | AB8: 16.09244792 | AC8: 16.74368706 | AD8: =2*W8-N8 -> 0.00445545129 | AE8: 3758.022693 | AF8: 2.185484324 | AG8: -0.385789365 | AH8: 0.1854843241 | AI8: 0.614210635 | AJ8: 0.1799034806 | AK8: 0.3688577483 | AL8: 0.3614437732 | AM8: 9.225410089 | AN8: 9.039980989 | AO8: 9.225410089
A9: Imporre la limitazione: B>- C (s=Si; n=No) | D9: s | G9: 3 | H9: =BGL!G12 -> 0.0007268492472 | I9: =(IF(H9>N9,(AF9*(H9/N9)+AG9*(H9/N9)^2)/(1+AH9*(H9/N9)+AI9*(H9/N9)^2),(O9*(H9/N9)+P9*(H9/N9)^2)/(1+Q9*(H9/N9)+R9*(H9/N9)^2)))*M9 -> 16.30408303 | J9: =BGL!CC12 -> 0.0345449345 | K9: =J9/$D$29 -> 0.001387346767 | L9: =1.25*(1+0.062*K9)*$D$29^-0.21 -> 0.6364224697 | M9: =((K9*$D$29/$D$21+1)^L9)*$D$29 -> 25.11998343 | N9: =(1+(17-0.06*$D$29)*K9)*$D$30 -> 0.002041482132 | O9: =$D$24*N9/M9 -> 2.239168848 | P9: =IF($D$8="s",(O9-1)^2/(1-$D$22/M9)-1,IF($D$9="s",IF(((O9-1)^2/($D$25*(1-$D$22/M9))+O9^2*(1-$D$25)/($D$25^2*$D$22/M9*(1-$D$22/M9))-1)<-Q9,-Q9,(O9-1)^2/($D$25*(1-$D$22/M9))+O9^2*(1-$D$25)/($D$25^2*$D$22/M9*(1-$D$22/M9))-1),(O9-1)^2/($D$25*(1-$D$22/M9))+O9^2*(1-$D$25)/($D$25^2*$D$22/M9*(1-$D$22/M9))-1)) -> -0.2391688476 | Q9: =O9-2 -> 0.2391688476 | R9: =P9+1 -> 0.7608311524 | S9: 21.50046459 | T9: =((S9/$D$29-1)/(5.06*K9^0.57+1)+1)*M9 -> 22.05486827 | U9: =M9*(0.9772-0.0014*$D$29+0.0586*K9) -> 23.6736074 | V9: 0.003068760981 | W9: =((V9/$D$30-2)/(1.12*K9^0.26+1)+2)*N9 -> 0.003294377732 | X9: =N9*(1.923-0.0046*$D$29+0.1964*K9) -> 0.00369249503 | Y9: =IF($D$10="s",U9,T9) -> 22.05486827 | Z9: =IF($D$10="s",X9,W9) -> 0.003294377732 | AA9: =Y9/Z9 -> 6694.699291 | AB9: 16.09244792 | AC9: =((AB9/$D$29-1)/(6.35*K9^0.62+1)+1)*M9 -> 17.09622109 | AD9: =2*W9-N9 -> 0.004547273332 | AE9: =AC9/AD9 -> 3759.664273 | AF9: =(AD9-Z9)/N9*(AD9*AA9/(M9-Y9)-4*Z9*AE9/(M9-AC9)) -> 2.306005783 | AG9: =(Z9-AD9)*(AA9/(M9-Y9)-4*AE9/(M9-AC9)) -> -0.3882649798 | AH9: =AF9-2 -> 0.3060057826 | AI9: =AG9+1 -> 0.6117350202 | AJ9: =H9/N9 -> 0.3560399749 | AK9: =(O9*AJ9+P9*AJ9^2)/(1+Q9*AJ9+R9*AJ9^2) -> 0.6490483195 | AL9: =(AF9*AJ9+AG9*AJ9^2)/(1+AH9*AJ9+AI9*AJ9^2) -> 0.6504966551 | AM9: =AK9*M9 -> 16.30408303 | AN9: =AL9*M9 -> 16.3404652 | AO9: =IF(H9<N9,AM9,AN9) -> 16.30408303
A10: Utilizzare formule regressione? (s=Si; n=No) | D10: n | G10: 4 | H10: =BGL!G13 -> 0.001090273871 | I10: 21.04943668 | J10: =BGL!CC13 -> 0.05388479051 | K10: 0.002164047812 | L10: 0.6364531143 | M10: 25.24267749 | N10: 0.002065551002 | O10: 2.254556446 | P10: -0.2545564462 | Q10: 0.2545564462 | R10: 0.7454435538 | S10: 21.50046459 | T10: 22.25418738 | U10: 23.79038581 | V10: 0.003068760981 | W10: 0.00334934265 | X10: 0.003736344264 | Y10: 22.25418738 | Z10: 0.00334934265 | AA10: 6644.344788 | AB10: 16.09244792 | AC10: 17.42045959 | AD10: 0.004633134298 | AE10: 3759.97294 | AF10: 2.399752669 | AG10: -0.3859040741 | AH10: 0.3997526686 | AI10: 0.6140959259 | AJ10: 0.5278368192 | AK10: 0.833882883 | AL10: 0.8386959608 | AM10: 21.04943668 | AN10: 21.17093165 | AO10: 21.04943668
A11: (*) Il peso "normale" del cls dedotto dalle Norme ACI 318 è 2306 kg/mc | G11: 5 | H11: =BGL!G14 -> 0.001453698494 | I11: 23.8518035 | J11: =BGL!CC14 -> 0.08110778117 | K11: 0.003257340609 | L11: 0.6364962499 | M11: 25.41482854 | N11: 0.002099430604 | O11: 2.276014101 | P11: -0.2760141006 | Q11: 0.2760141006 | R11: 0.7239858994 | S11: 21.50046459 | T11: 22.50734576 | U11: 23.95426071 | V11: 0.003068760981 | W11: 0.003420445277 | X11: 0.003798079363 | Y11: 22.50734576 | Z11: 0.003420445277 | AA11: 6580.238519 | AB11: 16.09244792 | AC11: 17.81119475 | AD11: 0.00474145995 | AE11: 3756.479005 | AF11: 2.49903071 | AG11: -0.3792087901 | AH11: 0.4990307103 | AI11: 0.6207912099 | AJ11: 0.6924251232 | AK11: 0.9384994853 | AL11: 0.9424273493 | AM11: 23.8518035 | AN11: 23.95162949 | AO11: 23.8518035
G12: 6 | H12: =BGL!G15 -> 0.001817123118 | I12: 25.33347212 | J12: =BGL!CC15 -> 0.1252831069 | K12: 0.005031450075 | L12: 0.6365662471 | M12: 25.69282519 | N12: 0.002154407753 | O12: 2.310344004 | P12: -0.3103440042 | Q12: 0.3103440042 | R12: 0.6896559958 | S12: 21.50046459 | T12: 22.88167364 | U12: 24.21895224 | V12: 0.003068760981 | W12: 0.003528845044 | X12: 0.003898289181 | Y12: 22.88167364 | Z12: 0.003528845044 | AA12: 6484.182034 | AB12: 16.09244792 | AC12: 18.35601689 | AD12: 0.004903282335 | AE12: 3743.618179 | AF12: 2.620429902 | AG12: -0.3650319016 | AH12: 0.6204299022 | AI12: 0.6349680984 | AJ12: 0.843444383 | AK12: 0.9860134858 | AL12: 0.9875901293 | AM12: 25.33347212 | AN12: 25.37398055 | AO12: 25.33347212
G13: 7 | H13: =BGL!G16 -> 0.002180547742 | I13: 26.13719867 | J13: =BGL!CC16 -> 0.1982285544 | K13: 0.00796098612 | L13: 0.6366818313 | M13: 26.14829456 | N13: 0.002245189942 | O13: 2.365758059 | P13: -0.3657580588 | Q13: 0.3657580588 | R13: 0.6342419412 | S13: 21.50046459 | T13: 23.44763588 | U13: 24.65278243 | V13: 0.003068760981 | W13: 0.003699638247 | X13: 0.004063846642 | Y13: 23.44763588 | Z13: 0.003699638247 | AA13: 6337.818542 | AB13: 16.09244792 | AC13: 19.12666546 | AD13: 0.005154086552 | AE13: 3710.970948 | AF13: 2.768934453 | AG13: -0.3385154665 | AH13: 0.7689344531 | AI13: 0.6614845335 | AJ13: 0.9712085826 | AK13: 0.9995756555 | AL13: 0.9996503428 | AM13: 26.13719867 | AN13: 26.13915162 | AO13: 26.13719867
A14: Ec (ACI 318 cls normale) [Mpa] | D14: =0.043*D7^1.5*SQRT(D3) -> 23760.58251 | G14: 8 | H14: =BGL!G17 -> 0.002543972365 | I14: 26.57417112 | J14: =BGL!CC17 -> 0.2782827763 | K14: 0.01117601511 | L14: 0.6368086797 | M14: 26.64319913 | N14: 0.002344819155 | O14: 2.424842813 | P14: -0.4248428132 | Q14: 0.4248428132 | R14: 0.5751571868 | S14: 21.50046459 | T14: 24.02730177 | U14: 25.12440128 | V14: 0.003068760981 | W14: 0.003881811685 | X14: 0.004245658456 | Y14: 24.02730177 | Z14: 0.003881811685 | AA14: 6189.713391 | AB14: 16.09244792 | AC14: 19.87045464 | AD14: 0.005418804215 | AE14: 3666.94456 | AF14: 2.89400415 | AG14: -0.3081432016 | AH14: 0.89400415 | AI14: 0.6918567984 | AJ14: 1.084933292 | AK14: 0.9966258688 | AL14: 0.9974091696 | AM14: 26.55330147 | AN14: 26.57417112 | AO14: 26.57417112
A15: Ec (ACI 363 cls alta resistenza) [MPa] | D15: =(3320*SQRT(D3)+6900)*(D7/2320)^1.5 -> 23254.67281 | G15: 9 | H15: =BGL!G18 -> 0.002907396989 | I15: 26.45623467 | J15: =BGL!CC18 -> 0.3127794364 | K15: 0.01256142315 | L15: 0.6368633407 | M15: 26.85491597 | N15: 0.002387750996 | O15: 2.449773011 | P15: -0.449773011 | Q15: 0.449773011 | R15: 0.550226989 | S15: 21.50046459 | T15: 24.26827112 | U15: 25.3262294 | V15: 0.003068760981 | W15: 0.003959386574 | X15: 0.004324042899 | Y15: 24.26827112 | Z15: 0.003959386574 | AA15: 6129.300755 | AB15: 16.09244792 | AC15: 20.16968392 | AD15: 0.005531022153 | AE15: 3646.646743 | AF15: 2.940377449 | AG15: -0.2949695596 | AH15: 0.9403774488 | AI15: 0.7050304404 | AJ15: 1.217629893 | AK15: 0.9799602062 | AL15: 0.9851542525 | AM15: 26.31674899 | AN15: 26.45623467 | AO15: 26.45623467
A16: ec frantumati | D16: =D3*4.26/(D23*D3^0.25) -> 0.001998490213 | G16: 10 | H16: =BGL!G19 -> 0.003270821612 | I16: 26.15466526 | J16: =BGL!CC19 -> 0.3453083271 | K16: 0.0138678043 | L16: 0.6369148837 | M16: 27.05372473 | N16: 0.002428233905 | O16: 2.472999682 | P16: -0.4729996824 | Q16: 0.4729996824 | R16: 0.5270003176 | S16: 21.50046459 | T16: 24.49170574 | U16: 25.51579227 | V16: 0.003068760981 | W16: 0.004032188434 | X16: 0.004397977514 | Y16: 24.49170574 | Z16: 0.004032188434 | AA16: 6074.047913 | AB16: 16.09244792 | AC16: 20.44288703 | AD16: 0.005636142963 | AE16: 3627.105836 | AF16: 2.98102439 | AG16: -0.282557431 | AH16: 0.9810243901 | AI16: 0.717442569 | AJ16: 1.346996105 | AK16: 0.9535705499 | AL16: 0.9667676268 | AM16: 25.79763517 | AN16: 26.15466526 | AO16: 26.15466526
A17: ec ghiaia | D17: =D3*3.78/(D23*D3^0.25) -> 0.001773308218 | G17: 11 | H17: =BGL!G20 -> 0.003634246236 | I17: 25.74608236 | J17: =BGL!CC20 -> 0.3761628638 | K17: 0.01510694232 | L17: 0.6369637736 | M17: 27.24156695 | N17: 0.002466633044 | O17: 2.494784683 | P17: -0.4947846831 | Q17: 0.4947846831 | R17: 0.5052153169 | S17: 21.50046459 | T17: 24.70067456 | U17: 25.69493426 | V17: 0.003068760981 | W17: 0.004100992117 | X17: 0.004468125703 | Y17: 24.70067456 | Z17: 0.004100992117 | AA17: 6023.097301 | AB17: 16.09244792 | AC17: 20.69512362 | AD17: 0.005735351191 | AE17: 3608.34462 | AF17: 3.017236721 | AG17: -0.2708114851 | AH17: 1.017236721 | AI17: 0.7291885149 | AJ17: 1.473363152 | AK17: 0.9207024053 | AL17: 0.9451028423 | AM17: 25.08137622 | AN17: 25.74608236 | AO17: 25.74608236
A18: fsp (silica fume) | D18: =0.62*SQRT(D29) -> 3.093793788 | G18: 12 | H18: =BGL!G21 -> 0.00399767086 | I18: 25.27665812 | J18: =BGL!CC21 -> 0.405355277 | K18: 0.01627932839 | L18: 0.6370100299 | M18: 27.41864309 | N18: 0.002502963634 | O18: 2.51518069 | P18: -0.51518069 | Q18: 0.51518069 | R18: 0.48481931 | S18: 21.50046459 | T18: 24.89601913 | U18: 25.86384065 | V18: 0.003068760981 | W18: 0.004165903795 | X18: 0.00453451224 | Y18: 24.89601913 | Z18: 0.004165903795 | AA18: 5976.138758 | AB18: 16.09244792 | AC18: 20.92834291 | AD18: 0.005828843956 | AE18: 3590.479186 | AF18: 3.04967725 | AG18: -0.2597330904 | AH18: 1.04967725 | AI18: 0.7402669096 | AJ18: 1.597174967 | AK18: 0.8834426553 | AL18: 0.9218785202 | AM18: 24.22279886 | AN18: 25.27665812 | AO18: 25.27665812
A19: fsp (no silica fume) | D19: =0.32*(D29)^0.67 -> 2.758058927 | G19: 13 | H19: =BGL!G22 -> 0.004361095483 | I19: 24.77503302 | J19: =BGL!CC22 -> 0.432905933 | K19: 0.01738578044 | L19: 0.6370536847 | M19: 27.5851919 | N19: 0.002537251022 | O19: 2.534241715 | P19: -0.5342417148 | Q19: 0.5342417148 | R19: 0.4657582852 | S19: 21.50046459 | T19: 25.07846636 | U19: 26.02273371 | V19: 0.003068760981 | W19: 0.004227025383 | X19: 0.004597180598 | Y19: 25.07846636 | Z19: 0.004227025383 | AA19: 5932.88757 | AB19: 16.09244792 | AC19: 21.14412671 | AD19: 0.005916799745 | AE19: 3573.574842 | AF19: 3.078858797 | AG19: -0.2493147479 | AH19: 1.078858797 | AI19: 0.7506852521 | AJ19: 1.718826969 | AK19: 0.8431491226 | AL19: 0.8981279925 | AM19: 23.25843035 | AN19: 24.77503302 | AO19: 24.77503302
G20: 14 | H20: =BGL!G23 -> 0.004724520107 | I20: 24.25896104 | J20: =BGL!CC23 -> 0.458843192 | K20: 0.01842743743 | L20: 0.6370947831 | M20: 27.7414896 | N20: 0.002569530503 | O20: 2.552023147 | P20: -0.552023147 | Q20: 0.552023147 | R20: 0.447976853 | S20: 21.50046459 | T20: 25.24867302 | U20: 26.1718719 | V20: 0.003068760981 | W20: 0.004284461396 | X20: 0.004656192646 | Y20: 25.24867302 | Z20: 0.004284461396 | AA20: 5893.079828 | AB20: 16.09244792 | AC20: 21.34380706 | AD20: 0.005999392288 | AE20: 3557.661516 | AF20: 3.105189887 | AG20: -0.239542848 | AH20: 1.105189887 | AI20: 0.760457152 | AJ20: 1.838670567 | AK20: 0.8007155012 | AL20: 0.8744649761 | AM20: 22.21304075 | AN20: 24.25896104 | AO20: 24.25896104
A21: ft = 0,9 fsp [Mpa] | D21: =0.9*(IF(D6="s",D18,D19)) -> 2.482253035 | G21: 15 | H21: =BGL!G24 -> 0.00508794473 | I21: 23.73936741 | J21: =BGL!CC24 -> 0.4832009436 | K21: 0.01940566038 | L21: 0.6371333787 | M21: 27.88783517 | N21: 0.002599844252 | O21: 2.568580241 | P21: -0.568580241 | Q21: 0.568580241 | R21: 0.431419759 | S21: 21.50046459 | T21: 25.40723973 | U21: 26.31153586 | V21: 0.003068760981 | W21: 0.004338318 | X21: 0.004711623049 | Y21: 25.40723973 | Z21: 0.004338318 | AA21: 5856.472422 | AB21: 16.09244792 | AC21: 21.52852605 | AD21: 0.006076791748 | AE21: 3542.745407 | AF21: 3.12900208 | AG21: -0.2304001501 | AH21: 1.12900208 | AI21: 0.7695998499 | AJ21: 1.957019051 | AK21: 0.7567386774 | AL21: 0.8512445394 | AM21: 21.10380351 | AN21: 23.73936741 | AO21: 23.73936741
A22: fpl = 0,45 fc [Mpa] | D22: =0.45*D29 -> 11.205 | G22: 16 | H22: =BGL!G25 -> 0.005451369354 | I22: 23.08039066 | J22: =BGL!CC25 -> 0.4952766259 | K22: 0.01989062754 | L22: 0.6371525129 | M22: 27.96023366 | N22: 0.0026148727 | O22: 2.576738599 | P22: -0.5767385993 | Q22: 0.5767385993 | R22: 0.4232614007 | S22: 21.50046459 | T22: 25.48541869 | U22: 26.38063678 | V22: 0.003068760981 | W22: 0.004364991778 | X22: 0.004739107734 | Y22: 25.48541869 | Z22: 0.004364991778 | AA22: 5838.59489 | AB22: 16.09244792 | AC22: 21.61916287 | AD22: 0.006115110855 | AE22: 3535.367286 | AF22: 3.140501894 | AG22: -0.2258802154 | AH22: 1.140501894 | AI22: 0.7741197846 | AJ22: 2.08475516 | AK22: 0.708878907 | AL22: 0.8254720236 | AM22: 19.82041988 | AN22: 23.08039066 | AO22: 23.08039066
A23: Ec [Mpa] | D23: =IF(D3>50,D15,D14) -> 23760.58251 | G23: 17 | H23: =BGL!G26 -> 0.005814793977 | I23: 22.27898582 | J23: =BGL!CC26 -> 0.4956043099 | K23: 0.01990378755 | L23: 0.6371530322 | M23: 27.96219684 | N23: 0.00261528051 | O23: 2.576959525 | P23: -0.5769595252 | Q23: 0.5769595252 | R23: 0.4230404748 | S23: 21.50046459 | T23: 25.48753627 | U23: 26.38251062 | V23: 0.003068760981 | W23: 0.004365715365 | X23: 0.004739853595 | Y23: 25.48753627 | Z23: 0.004365715365 | AA23: 5838.112231 | AB23: 16.09244792 | AC23: 21.62161402 | AD23: 0.00611615022 | AE23: 3535.167261 | AF23: 3.140811247 | AG23: -0.225757682 | AH23: 1.140811247 | AI23: 0.774242318 | AJ23: 2.223392082 | AK23: 0.6578291512 | AL23: 0.7967537723 | AM23: 18.39434821 | AN23: 22.27898582 | AO23: 22.27898582
A24: Eti [Mpa] | D24: =(1.17-0.17/80*(D3-20))*D23 -> 27552.47447 | G24: 18 | H24: =BGL!G27 -> 0.006178218601 | I24: 21.45369071 | J24: =BGL!CC27 -> 0.4932451139 | K24: 0.01980904072 | L24: 0.6371492939 | M24: 27.94806106 | N24: 0.00261234444 | O24: 2.575368407 | P24: -0.5753684067 | Q24: 0.5753684067 | R24: 0.4246315933 | S24: 21.50046459 | T24: 25.47228598 | U24: 26.36901824 | V24: 0.003068760981 | W24: 0.004360505557 | X24: 0.00473448374 | Y24: 25.47228598 | Z24: 0.004360505557 | AA24: 5841.590074 | AB24: 16.09244792 | AC24: 21.60395694 | AD24: 0.006108666675 | AE24: 3536.607591 | AF24: 3.138580877 | AG24: -0.2266400147 | AH24: 1.138580877 | AI24: 0.7733599853 | AJ24: 2.365009188 | AK24: 0.6065631459 | AL24: 0.7676271588 | AM24: 16.95226384 | AN24: 21.45369071 | AO24: 21.45369071
A25: alpha | D25: =D24/D15 -> 1.18481454 | G25: 19 | H25: =BGL!G28 -> 0.006541643225 | I25: 20.64625139 | J25: =BGL!CC28 -> 0.4909301094 | K25: 0.01971606865 | L25: 0.6371456258 | M25: 27.9341863 | N25: 0.002609463366 | O25: 2.573805874 | P25: -0.5738058743 | Q25: 0.5738058743 | R25: 0.4261941257 | S25: 21.50046459 | T25: 25.4573111 | U25: 26.3557752 | V25: 0.003068760981 | W25: 0.004355392734 | X25: 0.004729214577 | Y25: 25.4573111 | Z25: 0.004355392734 | AA25: 5845.009314 | AB25: 16.09244792 | AC25: 21.58660848 | AD25: 0.006101322103 | AE25: 3538.021451 | AF25: 3.136385131 | AG25: -0.2275061372 | AH25: 1.136385131 | AI25: 0.7724938628 | AJ25: 2.506892148 | AK25: 0.5562296679 | AL25: 0.7391033758 | AM25: 15.53782317 | AN25: 20.64625139 | AO25: 20.64625139
G26: 20 | H26: =BGL!G29 -> 0.006905067848 | I26: 19.86472283 | J26: =BGL!CC29 -> 0.4889525641 | K26: 0.01963664916 | L26: 0.6371424923 | M26: 27.92233111 | N26: 0.002607002268 | O26: 2.572470156 | P26: -0.5724701559 | Q26: 0.5724701559 | R26: 0.4275298441 | S26: 21.50046459 | T26: 25.44451103 | U26: 26.34445994 | V26: 0.003068760981 | W26: 0.004351024731 | X26: 0.004724713586 | Y26: 25.44451103 | Z26: 0.004351024731 | AA26: 5847.935279 | AB26: 16.09244792 | AC26: 21.57177145 | AD26: 0.006095047194 | AE26: 3539.229601 | AF26: 3.134503804 | AG26: -0.2282462531 | AH26: 1.134503804 | AI26: 0.7717537469 | AJ26: 2.648662002 | AK26: 0.5071982012 | AL26: 0.7114278087 | AM26: 14.16215611 | AN26: 19.86472283 | AO26: 19.86472283
G27: 21 | H27: =BGL!G30 -> 0.007268492472 | I27: 19.10992891 | J27: =BGL!CC30 -> 0.4872019223 | K27: 0.01956634226 | L27: 0.6371397183 | M27: 27.9118339 | N27: 0.002604823557 | O27: 2.571286961 | P27: -0.5712869606 | Q27: 0.5712869606 | R27: 0.4287130394 | S27: 21.50046459 | T27: 25.43317338 | U27: 26.33444092 | V27: 0.003068760981 | W27: 0.004347157541 | X27: 0.004720729103 | Y27: 25.43317338 | Z27: 0.004347157541 | AA27: 5850.529487 | AB27: 16.09244792 | AC27: 21.55862331 | AD27: 0.006089491525 | AE27: 3540.299419 | AF27: 3.132833963 | AG27: -0.2289016387 | AH27: 1.132833963 | AI27: 0.7710983613 | AJ27: 2.790397243 | AK27: 0.4596414121 | AL27: 0.6846532899 | AM27: 12.82943475 | AN27: 19.10992891 | AO27: 19.10992891
A28: Picco cls non conf. | G28: 22 | H28: =BGL!G31 -> 0.007631917095 | I28: 18.3819749 | J28: =BGL!CC31 -> 0.4855963481 | K28: 0.01950186137 | L28: 0.6371371743 | M28: 27.90220467 | N28: 0.002602825385 | O28: 2.570201202 | P28: -0.5702012021 | Q28: 0.5702012021 | R28: 0.4297987979 | S28: 21.50046459 | T28: 25.42277004 | U28: 26.32525044 | V28: 0.003068760981 | W28: 0.004343610498 | X28: 0.004717074848 | Y28: 25.42277004 | Z28: 0.004343610498 | AA28: 5852.912009 | AB28: 16.09244792 | AC28: 21.54655348 | AD28: 0.00608439561 | AE28: 3541.28082 | AF28: 3.131298858 | AG28: -0.2295028726 | AH28: 1.131298858 | AI28: 0.7704971274 | AJ28: 2.932166383 | AK28: 0.4136686868 | AL28: 0.6588000883 | AM28: 11.54226837 | AN28: 18.3819749 | AO28: 18.3819749
A29: fc [MPa] | D29: =D4*D3 -> 24.9 | G29: 23 | H29: =BGL!G32 -> 0.007995341719 | I29: 17.6808623 | J29: =BGL!CC32 -> 0.4840978446 | K29: 0.01944168051 | L29: 0.6371347998 | M29: 27.89321595 | N29: 0.002600960465 | O29: 2.569187323 | P29: -0.5691873228 | Q29: 0.5691873228 | R29: 0.4308126772 | S29: 21.50046459 | T29: 25.41305598 | U29: 26.31667137 | V29: 0.003068760981 | W29: 0.004340299726 | X29: 0.004713664329 | Y29: 25.41305598 | Z29: 0.004340299726 | AA29: 5855.13849 | AB29: 16.09244792 | AC29: 21.53527881 | AD29: 0.006079638986 | AE29: 3542.196972 | AF29: 3.129862969 | AG29: -0.2300641473 | AH29: 1.129862969 | AI29: 0.7699358527 | AJ29: 3.073995867 | AK29: 0.369345129 | AL29: 0.6338767941 | AM29: 10.30222344 | AN29: 17.6808623 | AO29: 17.6808623
A30: ec | D30: =IF(D5=0,D16,D17) -> 0.001998490213 | G30: 24 | H30: =BGL!G33 -> 0.008358766343 | I30: 17.00633027 | J30: =BGL!CC33 -> 0.482685394 | K30: 0.01938495558 | L30: 0.6371325618 | M30: 27.88474198 | N30: 0.00259920264 | O30: 2.5682312 | P30: -0.5682312005 | Q30: 0.5682312005 | R30: 0.4317687995 | S30: 21.50046459 | T30: 25.40389577 | U30: 26.30858367 | V30: 0.003068760981 | W30: 0.004337178838 | X30: 0.004710449703 | Y30: 25.40389577 | Z30: 0.004337178838 | AA30: 5857.239629 | AB30: 16.09244792 | AC30: 21.52464296 | AD30: 0.006075155036 | AE30: 3543.060684 | AF30: 3.128506732 | AG30: -0.2305933096 | AH30: 1.128506732 | AI30: 0.7694066904 | AJ30: 3.215896374 | AK30: 0.3266989495 | AL30: 0.6098794202 | AM30: 9.109915913 | AN30: 17.00633027 | AO30: 17.00633027
A31: Parametri ramo ascendente uniaxial | G31: 25 | H31: =BGL!G34 -> 0.008722190966 | I31: 16.35782662 | J31: =BGL!CC34 -> 0.4813427337 | K31: 0.01933103348 | L31: 0.6371304343 | M31: 27.87668542 | N31: 0.00259753167 | O31: 2.567321901 | P31: -0.5673219013 | Q31: 0.5673219013 | R31: 0.4326780987 | S31: 21.50046459 | T31: 25.39518457 | U31: 26.30089441 | V31: 0.003068760981 | W31: 0.004334211938 | X31: 0.004707393951 | Y31: 25.39518457 | Z31: 0.004334211938 | AA31: 5859.239218 | AB31: 16.09244792 | AC31: 21.51452482 | AD31: 0.006070892207 | AE31: 3543.881868 | AF31: 3.127214974 | AG31: -0.2310964328 | AH31: 1.127214974 | AI31: 0.7689035672 | AJ31: 3.35787666 | AK31: 0.2857301147 | AL31: 0.5867923813 | AM31: 7.965208522 | AN31: 16.35782662 | AO31: 16.35782662
A32: fo | D32: =D29 -> 24.9 | G32: 26 | H32: =BGL!G35 -> 0.00908561559 | I32: 15.73457248 | J32: =BGL!CC35 -> 0.4800553027 | K32: 0.01927932943 | L32: 0.6371283943 | M32: 27.86895908 | N32: 0.002595929434 | O32: 2.566449621 | P32: -0.5664496209 | Q32: 0.5664496209 | R32: 0.4335503791 | S32: 21.50046459 | T32: 25.38682838 | U32: 26.29352038 | V32: 0.003068760981 | W32: 0.004331366879 | X32: 0.004704463928 | Y32: 25.38682838 | Z32: 0.004331366879 | AA32: 5861.158635 | AB32: 16.09244792 | AC32: 21.5048157 | AD32: 0.006066804325 | AE32: 3544.669409 | AF32: 3.125974019 | AG32: -0.2315789584 | AH32: 1.125974019 | AI32: 0.7684210416 | AJ32: 3.49994706 | AK32: 0.2464183547 | AL32: 0.5645913232 | AM32: 6.867423042 | AN32: 15.73457248 | AO32: 15.73457248
A33: e 0 | D33: =D30 -> 0.001998490213 | G33: 27 | H33: =BGL!G36 -> 0.009449040213 | I33: 15.13563714 | J33: =BGL!CC36 -> 0.478809764 | K33: 0.01922930779 | L33: 0.6371264207 | M33: 27.86148304 | N33: 0.002594379334 | O33: 2.565605365 | P33: -0.5656053655 | Q33: 0.5656053655 | R33: 0.4343946345 | S33: 21.50046459 | T33: 25.37874101 | U33: 26.28638529 | V33: 0.003068760981 | W33: 0.004328614209 | X33: 0.004701629277 | Y33: 25.37874101 | Z33: 0.004328614209 | AA33: 5863.017536 | AB33: 16.09244792 | AC33: 21.49541579 | AD33: 0.006062849084 | AE33: 3545.431446 | AF33: 3.124771264 | AG33: -0.232045874 | AH33: 1.124771264 | AI33: 0.767954126 | AJ33: 3.642119751 | AK33: 0.2087294688 | AL33: 0.5432459254 | AM33: 5.815512554 | AN33: 15.13563714 | AO33: 15.13563714
A34: A | D34: =$D$24*D33/D32 -> 2.211379542 | G34: 28 | H34: =BGL!G37 -> 0.009812464837 | I34: 14.55999563 | J34: =BGL!CC37 -> 0.4775938246 | K34: 0.01918047488 | L34: 0.637124494 | M34: 27.85418361 | N34: 0.002592866071 | O34: 2.564780833 | P34: -0.5647808326 | Q34: 0.5647808326 | R34: 0.4352191674 | S34: 21.50046459 | T34: 25.37084289 | U34: 26.27941882 | V34: 0.003068760981 | W34: 0.004325926775 | X34: 0.004698862019 | Y34: 25.37084289 | Z34: 0.004325926775 | AA34: 5864.834107 | AB34: 16.09244792 | AC34: 21.48623287 | AD34: 0.006058987478 | AE34: 3546.175487 | AF34: 3.123595012 | AG34: -0.2325017799 | AH34: 1.123595012 | AI34: 0.7674982201 | AJ34: 3.784408669 | AK34: 0.1726200538 | AL34: 0.522722038 | AM34: 4.808190675 | AN34: 14.55999563 | AO34: 14.55999563
A35: B | D35: =(D34-1)^2/($D$25*(1-$D$22/D32))+D34^2*(1-$D$25)/($D$25^2*$D$22/D32*(1-$D$22/D32))-1 -> -1.34938673 | G35: 29 | H35: =BGL!G38 -> 0.01017588946 | I35: 14.00656843 | J35: =BGL!CC38 -> 0.4763959627 | K35: 0.01913236798 | L35: 0.637122596 | M35: 27.84699169 | N35: 0.002591375306 | O35: 2.563968229 | P35: -0.563968229 | Q35: 0.563968229 | R35: 0.436031771 | S35: 21.50046459 | T35: 25.36305934 | U35: 26.272555 | V35: 0.003068760981 | W35: 0.00432327912 | X35: 0.00469613593 | Y35: 25.36305934 | Z35: 0.00432327912 | AA35: 5866.625455 | AB35: 16.09244792 | AC35: 21.47718027 | AD35: 0.006055182934 | AE35: 3546.908574 | AF35: 3.122434231 | AG35: -0.2329509911 | AH35: 1.122434231 | AI35: 0.7670490089 | AJ35: 3.926829679 | AK35: 0.1380410438 | AL35: 0.50298318 | AM35: 3.844027799 | AN35: 14.00656843 | AO35: 14.00656843
A36: C | D36: =D34-2 -> 0.2113795418 | G36: 30 | H36: =BGL!G39 -> 0.01053931408 | I36: 13.47424803 | J36: =BGL!CC39 -> 0.4752051019 | K36: 0.01908454225 | L36: 0.637120709 | M36: 27.83984081 | N36: 0.002589893254 | O36: 2.563160051 | P36: -0.5631600505 | Q36: 0.5631600505 | R36: 0.4368399495 | S36: 21.50046459 | T36: 25.35531846 | U36: 26.26573039 | V36: 0.003068760981 | W36: 0.004320646768 | X36: 0.004693425803 | Y36: 25.35531846 | Z36: 0.004320646768 | AA36: 5868.408093 | AB36: 16.09244792 | AC36: 21.46817444 | AD36: 0.006051400282 | AE36: 3547.637479 | AF36: 3.121278243 | AG36: -0.2333976585 | AH36: 1.121278243 | AI36: 0.7666023415 | AJ36: 4.069400956 | AK36: 0.1049403838 | AL36: 0.4839915617 | AM36: 2.921523579 | AN36: 13.47424803 | AO36: 13.47424803
A37: D | D37: =D35+1 -> -0.3493867299 | G37: 31 | H37: =BGL!G40 -> 0.01090273871 | I37: 12.96191623 | J37: =BGL!CC40 -> 0.4740102822 | K37: 0.01903655752 | L37: 0.6371188158 | M37: 27.83266515 | N37: 0.002588406275 | O37: 2.56234886 | P37: -0.5623488602 | Q37: 0.5623488602 | R37: 0.4376511398 | S37: 21.50046459 | T37: 25.34754902 | U37: 26.25888219 | V37: 0.003068760981 | W37: 0.004318005491 | X37: 0.004690706693 | Y37: 25.34754902 | Z37: 0.004318005491 | AA37: 5870.198422 | AB37: 16.09244792 | AC37: 21.45913252 | AD37: 0.006047604706 | AE37: 3548.36891 | AF37: 3.120116407 | AG37: -0.2338458925 | AH37: 1.120116407 | AI37: 0.7661541075 | AJ37: 4.212143516 | AK37: 0.07326507113 | AL37: 0.4657087694 | AM37: 2.039162192 | AN37: 12.96191623 | AO37: 12.96191623
A38: Parametri ramo discendente uniaxial | G38: 32 | H38: =BGL!G41 -> 0.01126616333 | I38: 12.4684549 | J38: =BGL!CC41 -> 0.4728003349 | K38: 0.01898796526 | L38: 0.6371168986 | M38: 27.82539762 | N38: 0.002586900469 | O38: 2.561527067 | P38: -0.5615270672 | Q38: 0.5615270672 | R38: 0.4384729328 | S38: 21.50046459 | T38: 25.33967831 | U38: 26.25194636 | V38: 0.003068760981 | W38: 0.004315330593 | X38: 0.004687953186 | Y38: 25.33967831 | Z38: 0.004315330593 | AA38: 5872.013224 | AB38: 16.09244792 | AC38: 21.4499698 | AD38: 0.006043760717 | AE38: 3549.109702 | AF38: 3.118937807 | AG38: -0.234299885 | AH38: 1.118937807 | AI38: 0.765700115 | AJ38: 4.355081869 | AK38: 0.04296273375 | AL38: 0.4480961987 | AM38: 1.195455149 | AN38: 12.4684549 | AO38: 12.4684549
A39: fr / fc | D39: 0 | G39: 33 | H39: =BGL!G42 -> 0.01162958795 | I39: 11.99275136 | J39: =BGL!CC42 -> 0.4715635488 | K39: 0.01893829513 | L39: 0.6371149389 | M39: 27.81796781 | N39: 0.002585361262 | O39: 2.5606867 | P39: -0.5606866995 | Q39: 0.5606866995 | R39: 0.4393133005 | S39: 21.50046459 | T39: 25.33162999 | U39: 26.24485573 | V39: 0.003068760981 | W39: 0.004312596175 | X39: 0.004685138631 | Y39: 25.33162999 | Z39: 0.004312596175 | AA39: 5873.870161 | AB39: 16.09244792 | AC39: 21.44059724 | AD39: 0.006039831088 | AE39: 3549.867028 | AF39: 3.117730917 | AG39: -0.2347640343 | AH39: 1.117730917 | AI39: 0.7652359657 | AJ39: 4.498244839 | AK39: 0.0139828806 | AL39: 0.4311152935 | AM39: 0.3889753224 | AN39: 11.99275136 | AO39: 11.99275136
A40: f i | D40: =IF($D$10="s",D32*(0.9772-0.0014*D29+0.0586*D39),(1.41-0.17*LN(D29))*D29) -> 21.50046459 | G40: 34 | H40: =BGL!G43 -> 0.01199301258 | I40: 11.53369953 | J40: =BGL!CC43 -> 0.470287305 | K40: 0.01888704036 | L40: 0.6371129166 | M40: 27.81029984 | N40: 0.002583772949 | O40: 2.559819154 | P40: -0.5598191545 | Q40: 0.5598191545 | R40: 0.4401808455 | S40: 21.50046459 | T40: 25.32332168 | U40: 26.23753785 | V40: 0.003068760981 | W40: 0.00430977432 | X40: 0.004682234313 | Y40: 25.32332168 | Z40: 0.00430977432 | AA40: 5875.788336 | AB40: 16.09244792 | AC40: 21.43091864 | AD40: 0.006035775691 | AE40: 3550.648622 | AF40: 3.11648324 | AG40: -0.235243083 | AH40: 1.11648324 | AI40: 0.764756917 | AJ40: 4.641666591 | AK40: -0.01372206806 | AL40: 0.4147276223 | AM40: -0.3816148272 | AN40: 11.53369953 | AO40: 11.53369953
A41: e i | D41: =IF($D$10="s",D33*(1.923-0.0046*D29+0.1964*D39),(2.5-0.3*LN(D29))*D30) -> 0.003068760981 | G41: 35 | H41: =BGL!G44 -> 0.0123564372 | I41: 11.09019718 | J41: =BGL!CC44 -> 0.4689576563 | K41: 0.01883364082 | L41: 0.6371108097 | M41: 27.80230979 | N41: 0.002582118173 | O41: 2.55891491 | P41: -0.55891491 | Q41: 0.55891491 | R41: 0.44108509 | S41: 21.50046459 | T41: 25.31466222 | U41: 26.22991266 | V41: 0.003068760981 | W41: 0.004306834166 | X41: 0.004679208497 | Y41: 25.31466222 | Z41: 0.004306834166 | AA41: 5877.788938 | AB41: 16.09244792 | AC41: 21.42082743 | AD41: 0.00603155016 | AE41: 3551.463034 | AF41: 3.115180874 | AG41: -0.2357422764 | AH41: 1.115180874 | AI41: 0.7642577236 | AJ41: 4.785387955 | AK41: -0.04019587732 | AL41: 0.3988948137 | AM41: -1.117538233 | AN41: 11.09019718 | AO41: 11.09019718
G42: 36 | H42: =BGL!G45 -> 0.01271986183 | I42: 10.66113946 | J42: =BGL!CC45 -> 0.4675588205 | K42: 0.01877746267 | L42: 0.6371085932 | M42: 27.79390263 | N42: 0.002580377291 | O42: 2.557963177 | P42: -0.5579631766 | Q42: 0.5579631766 | R42: 0.4420368234 | S42: 21.50046459 | T42: 25.30554832 | U42: 26.22188948 | V42: 0.003068760981 | W42: 0.004303740784 | X42: 0.004676025273 | Y42: 25.30554832 | Z42: 0.004303740784 | AA42: 5879.896024 | AB42: 16.09244792 | AC42: 21.41020271 | AD42: 0.006027104277 | AE42: 3552.319941 | AF42: 3.113807997 | AG42: -0.2362675533 | AH42: 1.113807997 | AI42: 0.7637324467 | AJ42: 4.929458133 | AK42: -0.0654776374 | AL42: 0.3835783554 | AM42: -1.819879078 | AN42: 10.66113946 | AO42: 10.66113946
G43: 37 | H43: =BGL!G46 -> 0.01308328645 | I43: 10.24540841 | J43: =BGL!CC46 -> 0.4660725499 | K43: 0.01871777309 | L43: 0.6371062382 | M43: 27.78496846 | N43: 0.002578527595 | O43: 2.556951463 | P43: -0.5569514628 | Q43: 0.5569514628 | R43: 0.4430485372 | S43: 21.50046459 | T43: 25.29586041 | U43: 26.21336344 | V43: 0.003068760981 | W43: 0.004300453776 | X43: 0.004672643122 | Y43: 25.29586041 | Z43: 0.004300453776 | AA43: 5882.137496 | AB43: 16.09244792 | AC43: 21.39890438 | AD43: 0.006022379957 | AE43: 3553.230539 | AF43: 3.112346211 | AG43: -0.2368257843 | AH43: 1.112346211 | AI43: 0.7631742157 | AJ43: 5.073936953 | AK43: -0.08960086329 | AL43: 0.3687392491 | AM43: -2.489557161 | AN43: 10.24540841 | AO43: 10.24540841
G44: 38 | H44: =BGL!G47 -> 0.01344671107 | I44: 9.841857926 | J44: =BGL!CC47 -> 0.4644773241 | K44: 0.0186537078 | L44: 0.6371037105 | M44: 27.77537762 | N44: 0.002576542302 | O44: 2.555865018 | P44: -0.5558650179 | Q44: 0.5558650179 | R44: 0.4441349821 | S44: 21.50046459 | T44: 25.28545729 | U44: 26.20421081 | V44: 0.003068760981 | W44: 0.004296925491 | X44: 0.004669013082 | Y44: 25.28545729 | Z44: 0.004296925491 | AA44: 5884.546368 | AB44: 16.09244792 | AC44: 21.38676685 | AD44: 0.006017308679 | AE44: 3554.208034 | AF44: 3.110773695 | AG44: -0.2374250771 | AH44: 1.110773695 | AI44: 0.7625749229 | AJ44: 5.218897847 | AK44: -0.1125924645 | AL44: 0.3543375021 | AM44: -3.127298219 | AN44: 9.841857926 | AO44: 9.841857926
G45: 39 | H45: =BGL!G48 -> 0.0138101357 | I45: 9.449292904 | J45: =BGL!CC48 -> 0.4627472938 | K45: 0.01858422867 | L45: 0.6371009692 | M45: 27.76497427 | N45: 0.002574389242 | O45: 2.554686102 | P45: -0.5546861016 | Q45: 0.5546861016 | R45: 0.4453138984 | S45: 21.50046459 | T45: 25.27416918 | U45: 26.1942829 | V45: 0.003068760981 | W45: 0.004293098676 | X45: 0.004665076341 | Y45: 25.27416918 | Z45: 0.004293098676 | AA45: 5887.162416 | AB45: 16.09244792 | AC45: 21.37359075 | AD45: 0.006011808111 | AE45: 3555.268292 | AF45: 3.109064092 | AG45: -0.2380751753 | AH45: 1.109064092 | AI45: 0.7619248247 | AJ45: 5.36443187 | AK45: -0.1344714774 | AL45: 0.3403314122 | AM45: -3.73359711 | AN45: 9.449292904 | AO45: 9.449292904
G46: 40 | H46: =BGL!G49 -> 0.01417356032 | I46: 9.066440672 | J46: =BGL!CC49 -> 0.4608508718 | K46: 0.01850806714 | L46: 0.6370979643 | M46: 27.75356791 | N46: 0.002572029104 | O46: 2.553393007 | P46: -0.5533930073 | Q46: 0.5533930073 | R46: 0.4466069927 | S46: 21.50046459 | T46: 25.26178832 | U46: 26.18339795 | V46: 0.003068760981 | W46: 0.004288903357 | X46: 0.004660761039 | Y46: 25.26178832 | Z46: 0.004288903357 | AA46: 5890.034402 | AB46: 16.09244792 | AC46: 21.35913192 | AD46: 0.006005777611 | AE46: 3556.430708 | AF46: 3.107185009 | AG46: -0.2387879923 | AH46: 1.107185009 | AI46: 0.7612120077 | AJ46: 5.510653164 | AK46: -0.1552474219 | AL46: 0.3266765809 | AM46: -4.308669865 | AN46: 9.066440672 | AO46: 9.066440672

Sheet Ahamad - Shah (hidden)
J1: Fr max | K1: =MAX(K7:K12) -> 0.1252831069
A2: Caratteristiche Calcestruzzo | L2: Modello triassiale di “Ahamad - Shah"
A3: Resistenza cilindrica fc' | D3: ='BGL Input'!E7 -> 24.9 | H3: Delta eps | R3: TENSIONE DI PICCO
A4: Peso per unità di volume [Kg/mc] (*) | D4: ='BGL Input'!E5 -> 2306 | H4: eps = eps cu | J4: Modello di | R4: calcolo parametri caso 1 | X4: calcolo parametri caso 2 | AK4: Stato di tensione triassiale
A5: Coefficiente di riduzione della resistenza | D5: ='BGL Input'!E8 -> 1 | I5: epso | J5: Braga-Gigliotti-Laterza | M5: sl (psi) | N5: E1 (psi) | O5: sp (psi) | P5: sott (psi) | Q5: tott | R5: A1 | S5: B1 | T5: s1 | U5: sott1 | V5: tott1 | W5: sott1/so | X5: A2 | Y5: B2 | Z5: s2 | AA5: sott2 | AB5: tott2 | AC5: sott2/so | AD5: (gott)0 | AE5: e0 | AF5: gott | AG5: eott | AH5: elat | AI5: e1p | AK5: A1 | AL5: B1 | AM5: C1 | AN5: D1 | AO5: X1 | AP5: Y=s1/sp | AQ5: s1
A6: (*) Il peso "normale" del cls dedotto dalle Norme ACI 318 è 2306 kg/mc | H6: eps c | J6: fc | K6: fr | L6: fr/fc' | N6: E1=(27,55w1.5so0,5)(1+0,31(sl/s0+sl/s0)) | P6: sott=1/3(s+2sl) | Q6: tott=21/2/3(s-sl) | T6: s1=(3A1s0+sl(21/2+2B1)/(21/2-B1) | U6: sott1=1/3(s1+2sl) | V6: tott1=21/2/3(s1-sl) | Z6: s1=(3A2s0+sl(21/2+2B2)/(21/2-B2) | AA6: sott2=1/3(s2+2sl) | AB6: tott2=21/2/3(s2-sl) | AD6: (gott)0=0,002355(s0)0,12817 | AE6: e0=0,001648+0,000114(s0) | AF6: (gott)=(gott)0(-4,8629+12,756(tott/s0)) | AG6: eott=e0 0,197877 e^(0.9475(sott/s0)) | AH6: elat=eott-1/2(gott/20,5) | AI6: eip=3eott-2elat | AK6: Ai=Ei(si/eip) | AL6: Bi=Di-1 | AM6: Ci=Ai-2 | AN6: D1=1,111+0,876A1-4,0883(tott/s0) | AO6: Xi=ei/eip | AP6: Y=(AiXi + Bi Xi2) / (1 + CiXi + DiXi2) | AQ6: psi | AR6: Mpa
G7: 1 | H7: =BGL!G10 -> 0 | J7: =(AK7*(H7/O7)+AL7*(H7/O7)^2)/(1+AM7*(H7/O7)+AN7*(H7/O7)^2)*AE7 -> 0 | K7: =BGL!CC10 -> 0 | N7: =27.55*$B$9^1.5*B10^0.5 -> 2830337.26 | O7: =B10 -> 3611.438252 | AE7: =0.001648+0.000114*$B$11 -> 0.002059703961
G8: 2 | H8: =BGL!G11 -> 0.0003634246236 | I8: =AI8 -> 0.002846332862 | J8: =(AK8*(H8/I8)+AL8*(H8/I8)^2)/(1+AM8*(H8/I8)+AN8*(H8/I8)^2)*O8/$D$11 -> 6.825817841 | K8: =BGL!CC11 -> 0.01737108655 | L8: =K8/$D$3 -> 0.0006976339981 | M8: =L8*$B$10 -> 2.519462106 | N8: =27.55*$B$9^1.5*$B$10^0.5*(1+0.62*L8) -> 2831561.475 | O8: =IF(AND(W8<=1.75,AC8<1.75),T8,IF(AND(W8>1.75,AC8>1.75),Z8,"?")) -> 3622.620378 | P8: =1/3*(O8+2*M8) -> 1209.219767 | Q8: =2^0.5/3*(O8-M8) -> 1706.531938 | R8: 0.2261 | S8: 0.736 | T8: =(3*R8*$B$10+2*S8*M8+2^0.5*M8)/(2^0.5-S8) -> 3622.620378 | U8: =1/3*(T8+2*M8) -> 1209.219767 | V8: =2^0.5/3*(T8-M8) -> 1706.531938 | W8: =U8/$B$10 -> 0.3348305255 | X8: 0.49076 | Y8: 0.5851 | Z8: =(3*X8*$B$10+2*Y8*M8+2^0.5*M8)/(2^0.5-Y8) -> 6420.784658 | AA8: =1/3*(Z8+2*M8) -> 2141.941194 | AB8: =2^0.5/3*(Z8-M8) -> 3025.599229 | AC8: =AA8/$B$10 -> 0.5930992156 | AD8: =0.002355*$B$11^0.12817 -> 0.002776315271 | AE8: 0.002059703961 | AF8: =AD8*(-4.8629+12.756*(Q8/$B$10)) -> 0.003233740593 | AG8: =AE8*0.197877*EXP(0.9475*P8/$B$10) -> 0.0005597329598 | AH8: =AG8-1/2*AF8/SQRT(2) -> -0.0005835669912 | AI8: =3*AG8-2*AH8 -> 0.002846332862 | AK8: =N8*AI8/O8 -> 2.22478914 | AL8: =AN8-1 -> 0.1280493557 | AM8: =AK8-2 -> 0.22478914 | AN8: =1.111+0.876*AK8-4.0883*Q8/$B$10 -> 1.128049356 | AO8: =H8/AI8 -> 0.1276817018 | AP8: =(AK8*AO8+AL8*AO8^2)/(1+AM8*AO8+AN8*AO8^2) -> 0.2732830619 | AQ8: =AP8*O8 -> 990.0007891 | AR8: =AQ8/$D$11 -> 6.825817841
A9: w (lb/cu ft) | B9: =D10*D4 -> 142.972 | C9: Conversioni | G9: 3 | H9: =BGL!G12 -> 0.0007268492472 | I9: =AI9 -> 0.002873603264 | J9: =(AK9*(H9/I9)+AL9*(H9/I9)^2)/(1+AM9*(H9/I9)+AN9*(H9/I9)^2)*O9/$D$11 -> 12.71747718 | K9: =BGL!CC12 -> 0.0345449345 | L9: =K9/$D$3 -> 0.001387346767 | M9: =L9*$B$10 -> 5.010317182 | N9: =27.55*$B$9^1.5*$B$10^0.5*(1+0.62*L9) -> 2832771.789 | O9: =IF(AND(W9<=1.75,AC9<1.75),T9,IF(AND(W9>1.75,AC9>1.75),Z9,"?")) -> 3633.22049 | P9: =1/3*(O9+2*M9) -> 1214.413708 | Q9: =2^0.5/3*(O9-M9) -> 1710.354678 | R9: 0.2261 | S9: 0.736 | T9: =(3*R9*$B$10+2*S9*M9+2^0.5*M9)/(2^0.5-S9) -> 3633.22049 | U9: =1/3*(T9+2*M9) -> 1214.413708 | V9: =2^0.5/3*(T9-M9) -> 1710.354678 | W9: =U9/$B$10 -> 0.3362687172 | X9: 0.49076 | Y9: 0.5851 | Z9: =(3*X9*$B$10+2*Y9*M9+2^0.5*M9)/(2^0.5-Y9) -> 6428.548854 | AA9: =1/3*(Z9+2*M9) -> 2146.189829 | AB9: =2^0.5/3*(Z9-M9) -> 3028.085106 | AC9: =AA9/$B$10 -> 0.5942756541 | AD9: 0.002776315271 | AE9: 0.002059703961 | AF9: =AD9*(-4.8629+12.756*(Q9/$B$10)) -> 0.003271227353 | AG9: =AE9*0.197877*EXP(0.9475*P9/$B$10) -> 0.0005604962204 | AH9: =AG9-1/2*AF9/SQRT(2) -> -0.0005960573016 | AI9: =3*AG9-2*AH9 -> 0.002873603264 | AK9: =N9*AI9/O9 -> 2.240508739 | AL9: =AN9-1 -> 0.1374922217 | AM9: =AK9-2 -> 0.2405087392 | AN9: =1.111+0.876*AK9-4.0883*Q9/$B$10 -> 1.137492222 | AO9: =H9/AI9 -> 0.2529400131 | AP9: =(AK9*AO9+AL9*AO9^2)/(1+AM9*AO9+AN9*AO9^2) -> 0.5076800046 | AQ9: =AP9*O9 -> 1844.513395 | AR9: =AQ9/$D$11 -> 12.71747718
A10: so (psi) | B10: =D11*D3*D5 -> 3611.438252 | C10: kg/mc->lb/cu ft | D10: 0.062 | G10: 4 | H10: =BGL!G13 -> 0.001090273871 | I10: 0.002904314323 | J10: 17.34271858 | K10: =BGL!CC13 -> 0.05388479051 | L10: 0.002164047812 | M10: 7.815325046 | N10: 2834134.751 | O10: 3645.157514 | P10: 1220.262721 | Q10: 1714.659552 | R10: 0.2261 | S10: 0.736 | T10: 3645.157514 | U10: 1220.262721 | V10: 1714.659552 | W10: 0.3378882973 | X10: 0.49076 | Y10: 0.5851 | Z10: 6437.292288 | AA10: 2150.974313 | AB10: 3030.884507 | AC10: 0.595600468 | AD10: 0.002776315271 | AE10: 0.002059703961 | AF10: 0.003313442035 | AG10: 0.0005613569913 | AH10: -0.0006101216747 | AI10: 0.002904314323 | AK10: 2.258124133 | AL10: 0.1480500083 | AM10: 0.2581241329 | AN10: 1.148050008 | AO10: 0.3753980284 | AP10: 0.6900518485 | AQ10: 2515.347681 | AR10: 17.34271858
A11: so (ksi) | B11: =B10*D12 -> 3.611438252 | C11: Mpa->psi | D11: =1000000/6894.76 -> 145.0376808 | G11: 5 | H11: =BGL!G14 -> 0.001453698494 | I11: 0.002947545783 | J11: 20.68862733 | K11: =BGL!CC14 -> 0.08110778117 | L11: 0.003257340609 | M11: 11.76368448 | N11: 2836053.271 | O11: 3661.960199 | P11: 1228.495856 | Q11: 1720.719139 | R11: 0.2261 | S11: 0.736 | T11: 3661.960199 | U11: 1228.495856 | V11: 1720.719139 | W11: 0.3401680357 | X11: 0.49076 | Y11: 0.5851 | Z11: 6449.599642 | AA11: 2157.709004 | AB11: 3034.824974 | AC11: 0.5974652903 | AD11: 0.002776315271 | AE11: 0.002059703961 | AF11: 0.003372863878 | AG11: 0.0005625708622 | AH11: -0.000629916598 | AI11: 0.002947545783 | AK11: 2.282765624 | AL11: 0.1627762473 | AM11: 0.2827656241 | AN11: 1.162776247 | AO11: 0.4931894537 | AP11: 0.8194055542 | AQ11: 3000.630526 | AR11: 20.68862733
A12: so (MPa) | B12: =B10/D11 -> 24.9 | C12: psi->ksi | D12: =1/1000 -> 0.001 | G12: 6 | H12: =BGL!G15 -> 0.001817123118 | I12: 0.003017703979 | J12: 22.95762601 | K12: =BGL!CC15 -> 0.1252831069 | L12: 0.005031450075 | M12: 18.17077126 | N12: 2839166.495 | O12: 3689.226272 | P12: 1241.855938 | Q12: 1730.552159 | R12: 0.2261 | S12: 0.736 | T12: 3689.226272 | U12: 1241.855938 | V12: 1730.552159 | W12: 0.3438674156 | X12: 0.49076 | Y12: 0.5851 | Z12: 6469.571046 | AA12: 2168.637529 | AB12: 3041.219255 | AC12: 0.6004913772 | AD12: 0.002776315271 | AE12: 0.002059703961 | AF12: 0.003469288967 | AG12: 0.0005645462245 | AH12: -0.0006620326528 | AI12: 0.003017703979 | AK12: 2.322374231 | AL12: 0.1863419943 | AM12: 0.3223742312 | AN12: 1.186341994 | AO12: 0.6021541976 | AP12: 0.9025526188 | AQ12: 3329.720833 | AR12: 22.95762601
G13: 7 | H13: =BGL!G16 -> 0.002180547742 | I13: 0.00313356939 | J13: 24.46778066 | K13: =BGL!CC16 -> 0.1982285544 | L13: 0.00796098612 | M13: 28.7506098 | N13: 2844307.271 | O13: 3734.249957 | P13: 1263.917059 | Q13: 1746.789144 | R13: 0.2261 | S13: 0.736 | T13: 3734.249957 | U13: 1263.917059 | V13: 1746.789144 | W13: 0.3499760956 | X13: 0.49076 | Y13: 0.5851 | Z13: 6502.549252 | AA13: 2186.683491 | AB13: 3051.777947 | AC13: 0.6054882676 | AD13: 0.002776315271 | AE13: 0.002059703961 | AF13: 0.003628512949 | AG13: 0.0005678232781 | AH13: -0.0007150497778 | AI13: 0.00313356939 | AK13: 2.386780292 | AL13: 0.2243807534 | AM13: 0.3867802915 | AN13: 1.224380753 | AO13: 0.6958670673 | AP13: 0.9503247513 | AQ13: 3548.750162 | AR13: 24.46778066
G14: 8 | H14: =BGL!G17 -> 0.002543972365 | I14: 0.003260748165 | J14: 25.4944421 | K14: =BGL!CC17 -> 0.2782827763 | L14: 0.01117601511 | M14: 40.36148848 | N14: 2849949.033 | O14: 3783.661348 | P14: 1288.128108 | Q14: 1764.608476 | R14: 0.2261 | S14: 0.736 | T14: 3783.661348 | U14: 1288.128108 | V14: 1764.608476 | W14: 0.3566800866 | X14: 0.49076 | Y14: 0.5851 | Z14: 6538.741294 | AA14: 2206.48809 | AB14: 3063.365618 | AC14: 0.6109721215 | AD14: 0.002776315271 | AE14: 0.002059703961 | AF14: 0.003803253833 | AG14: 0.0005714415891 | AH14: -0.0007732116989 | AI14: 0.003260748165 | AK14: 2.456077652 | AL14: 0.2649130077 | AM14: 0.4560776523 | AN14: 1.264913008 | AO14: 0.780180571 | AP14: 0.9772689508 | AQ14: 3697.654756 | AR14: 25.4944421
G15: 9 | H15: =BGL!G18 -> 0.002907396989 | I15: 0.003315558658 | J15: 26.06937655 | K15: =BGL!CC18 -> 0.3127794364 | L15: 0.01256142315 | M15: 45.36480406 | N15: 2852380.16 | O15: 3804.953516 | P15: 1298.561041 | Q15: 1772.287115 | R15: 0.2261 | S15: 0.736 | T15: 3804.953516 | U15: 1298.561041 | V15: 1772.287115 | W15: 0.3595689448 | X15: 0.49076 | Y15: 0.5851 | Z15: 6554.33703 | AA15: 2215.022213 | AB15: 3068.358933 | AC15: 0.6133352029 | AD15: 0.002776315271 | AE15: 0.002059703961 | AF15: 0.003878552508 | AG15: 0.0005730078777 | AH15: -0.0007982675122 | AI15: 0.003315558658 | AK15: 2.485505721 | AL15: 0.2819994542 | AM15: 0.4855057214 | AN15: 1.281999454 | AO15: 0.8768950542 | AP15: 0.9937156652 | AQ15: 3781.041914 | AR15: 26.06937655
G16: 10 | H16: =BGL!G19 -> 0.003270821612 | I16: 0.003367246565 | J16: 26.36472944 | K16: =BGL!CC19 -> 0.3453083271 | L16: 0.0138678043 | M16: 50.08271892 | N16: 2854672.609 | O16: 3825.03113 | P16: 1308.398856 | Q16: 1779.527747 | R16: 0.2261 | S16: 0.736 | T16: 3825.03113 | U16: 1308.398856 | V16: 1779.527747 | W16: 0.3622930159 | X16: 0.49076 | Y16: 0.5851 | Z16: 6569.04315 | AA16: 2223.069529 | AB16: 3073.067418 | AC16: 0.6155634886 | AD16: 0.002776315271 | AE16: 0.002059703961 | AF16: 0.003949555973 | AG16: 0.0005744887542 | AH16: -0.0008218901514 | AI16: 0.003367246565 | AK16: 2.51302178 | AL16: 0.2979068224 | AM16: 0.5130217803 | AN16: 1.297906822 | AO16: 0.9713638573 | AP16: 0.9996988475 | AQ16: 3823.879212 | AR16: 26.36472944
G17: 11 | H17: =BGL!G20 -> 0.003634246236 | I17: 0.003416277487 | J17: 26.46870568 | K17: =BGL!CC20 -> 0.3761628638 | L17: 0.01510694232 | M17: 54.55778936 | N17: 2856847.06 | O17: 3844.075292 | P17: 1317.73029 | Q17: 1786.395682 | R17: 0.2261 | S17: 0.736 | T17: 3844.075292 | U17: 1317.73029 | V17: 1786.395682 | W17: 0.3648768713 | X17: 0.49076 | Y17: 0.5851 | Z17: 6582.992304 | AA17: 2230.702627 | AB17: 3077.533544 | AC17: 0.6176770782 | AD17: 0.002776315271 | AE17: 0.002059703961 | AF17: 0.004016904688 | AG17: 0.0005758969424 | AH17: -0.0008442933299 | AI17: 0.003416277487 | AK17: 2.538915488 | AL17: 0.3128149183 | AM17: 0.5389154879 | AN17: 1.312814918 | AO17: 1.063802999 | AP17: 0.9986692231 | AQ17: 3838.959685 | AR17: 26.46870568
G18: 12 | H18: =BGL!G21 -> 0.00399767086 | I18: 0.003462670307 | J18: 26.44226896 | K18: =BGL!CC21 -> 0.405355277 | L18: 0.01627932839 | M18: 58.79178928 | N18: 2858904.374 | O18: 3862.093551 | P18: 1326.559043 | Q18: 1792.893645 | R18: 0.2261 | S18: 0.736 | T18: 3862.093551 | U18: 1326.559043 | V18: 1792.893645 | W18: 0.3673215353 | X18: 0.49076 | Y18: 0.5851 | Z18: 6596.190021 | AA18: 2237.924533 | AB18: 3081.759081 | AC18: 0.6196768094 | AD18: 0.002776315271 | AE18: 0.002059703961 | AF18: 0.004080625351 | AG18: 0.0005772324496 | AH18: -0.0008654864791 | AI18: 0.003462670307 | AK18: 2.563232391 | AL18: 0.3267605584 | AM18: 0.5632323905 | AN18: 1.326760558 | AO18: 1.154505195 | AP18: 0.9930172104 | AQ18: 3835.125365 | AR18: 26.44226896
G19: 13 | H19: =BGL!G22 -> 0.004361095483 | I19: 0.003506456874 | J19: 26.32748503 | K19: =BGL!CC22 -> 0.432905933 | L19: 0.01738578044 | M19: 62.78767252 | N19: 2860845.986 | O19: 3879.098479 | P19: 1334.891275 | Q19: 1799.026167 | R19: 0.2261 | S19: 0.736 | T19: 3879.098479 | U19: 1334.891275 | V19: 1799.026167 | W19: 0.3696287134 | X19: 0.49076 | Y19: 0.5851 | Z19: 6608.64551 | AA19: 2244.740285 | AB19: 3085.746977 | AC19: 0.6215640774 | AD19: 0.002776315271 | AE19: 0.002059703961 | AF19: 0.004140762417 | AG19: 0.0005784956896 | AH19: -0.0008854849024 | AI19: 0.003506456874 | AK19: 2.586021759 | AL19: 0.3397817722 | AM19: 0.5860217592 | AN19: 1.339781772 | AO19: 1.243732816 | AP19: 0.9843723718 | AQ19: 3818.47737 | AR19: 26.32748503
G20: 14 | H20: =BGL!G23 -> 0.004724520107 | I20: 0.003547681777 | J20: 26.1532899 | K20: =BGL!CC23 -> 0.458843192 | L20: 0.01842743743 | M20: 66.54955242 | N20: 2862673.895 | O20: 3895.107579 | P20: 1342.735561 | Q20: 1804.799562 | R20: 0.2261 | S20: 0.736 | T20: 3895.107579 | U20: 1342.735561 | V20: 1804.799562 | W20: 0.3718007806 | X20: 0.49076 | Y20: 0.5851 | Z20: 6620.371592 | AA20: 2251.156899 | AB20: 3089.501338 | AC20: 0.6233408249 | AD20: 0.002776315271 | AE20: 0.002059703961 | AF20: 0.004197377789 | AG20: 0.0005796874792 | AH20: -0.0009043096697 | AI20: 0.003547681777 | AK20: 2.607336461 | AL20: 0.3519177253 | AM20: 0.6073364613 | AN20: 1.351917725 | AO20: 1.331720375 | AP20: 0.9738402433 | AQ20: 3793.212512 | AR20: 26.1532899
G21: 15 | H21: =BGL!G24 -> 0.00508794473 | I21: 0.003586398433 | J21: 25.93957557 | K21: =BGL!CC24 -> 0.4832009436 | L21: 0.01940566038 | M21: 70.08234421 | N21: 2864390.49 | O21: 3910.141769 | P21: 1350.102152 | Q21: 1810.221373 | R21: 0.2261 | S21: 0.736 | T21: 3910.141769 | U21: 1350.102152 | V21: 1810.221373 | W21: 0.373840575 | X21: 0.49076 | Y21: 0.5851 | Z21: 6631.383588 | AA21: 2257.182759 | AB21: 3093.027069 | AC21: 0.6250093734 | AD21: 0.002776315271 | AE21: 0.002059703961 | AF21: 0.004250545441 | AG21: 0.0005808089275 | AH21: -0.0009219858251 | AI21: 0.003586398433 | AK21: 2.627230973 | AL21: 0.363207599 | AM21: 0.6272309727 | AN21: 1.363207599 | AO21: 1.418678049 | AP21: 0.9621686639 | AQ21: 3762.215881 | AR21: 25.93957557
G22: 16 | H22: =BGL!G25 -> 0.005451369354 | I22: 0.003605593539 | J22: 25.62076076 | K22: =BGL!CC25 -> 0.4952766259 | L22: 0.01989062754 | M22: 71.83377316 | N22: 2865241.515 | O22: 3917.59517 | P22: 1353.754239 | Q22: 1812.909309 | R22: 0.2261 | S22: 0.736 | T22: 3917.59517 | U22: 1353.754239 | V22: 1812.909309 | W22: 0.3748518304 | X22: 0.49076 | Y22: 0.5851 | Z22: 6636.842933 | AA22: 2260.17016 | AB22: 3094.774997 | AC22: 0.6258365787 | AD22: 0.002776315271 | AE22: 0.002059703961 | AF22: 0.004276904018 | AG22: 0.0005813657047 | AH22: -0.0009307482123 | AI22: 0.003605593539 | AK22: 2.637050497 | AL22: 0.3687666461 | AM22: 0.637050497 | AN22: 1.368766646 | AO22: 1.511920103 | AP22: 0.9485348944 | AQ22: 3715.975721 | AR22: 25.62076076
G23: 17 | H23: =BGL!G26 -> 0.005814793977 | I23: 0.003606114422 | J23: 25.19855207 | K23: =BGL!CC26 -> 0.4956043099 | L23: 0.01990378755 | M23: 71.8812997 | N23: 2865264.608 | O23: 3917.797425 | P23: 1353.853341 | Q23: 1812.982248 | R23: 0.2261 | S23: 0.736 | T23: 3917.797425 | U23: 1353.853341 | V23: 1812.982248 | W23: 0.3748792717 | X23: 0.49076 | Y23: 0.5851 | Z23: 6636.991077 | AA23: 2260.251225 | AB23: 3094.822428 | AC23: 0.6258590256 | AD23: 0.002776315271 | AE23: 0.002059703961 | AF23: 0.004277619281 | AG23: 0.0005813808207 | AH23: -0.0009309859798 | AI23: 0.003606114422 | AK23: 2.637316559 | AL23: 0.3689171461 | AM23: 0.6373165593 | AN23: 1.368917146 | AO23: 1.612481829 | AP23: 0.9328556723 | AQ23: 3654.739551 | AR23: 25.19855207
G24: 18 | H24: =BGL!G27 -> 0.006178218601 | I24: 0.003602364277 | J24: 24.74379394 | K24: =BGL!CC27 -> 0.4932451139 | L24: 0.01980904072 | M24: 71.53912738 | N24: 2865098.345 | O24: 3916.341272 | P24: 1353.139842 | Q24: 1812.457113 | R24: 0.2261 | S24: 0.736 | T24: 3916.341272 | U24: 1353.139842 | V24: 1812.457113 | W24: 0.3746817052 | X24: 0.49076 | Y24: 0.5851 | Z24: 6635.924498 | AA24: 2259.667584 | AB24: 3094.48094 | AC24: 0.6256974166 | AD24: 0.002776315271 | AE24: 0.002059703961 | AF24: 0.004272469671 | AG24: 0.0005812719998 | AH24: -0.0009292741387 | AI24: 0.003602364277 | AK24: 2.635400546 | AL24: 0.367833194 | AM24: 0.6354005463 | AN24: 1.367833194 | AO24: 1.715045489 | AP24: 0.916361021 | AQ24: 3588.782487 | AR24: 24.74379394
G25: 19 | H25: =BGL!G28 -> 0.006541643225 | I25: 0.003598684398 | J25: 24.28509733 | K25: =BGL!CC28 -> 0.4909301094 | L25: 0.01971606865 | M25: 71.2033645 | N25: 2864935.197 | O25: 3914.912396 | P25: 1352.439708 | Q25: 1811.941814 | R25: 0.2261 | S25: 0.736 | T25: 3914.912396 | U25: 1352.439708 | V25: 1811.941814 | W25: 0.3744878395 | X25: 0.49076 | Y25: 0.5851 | Z25: 6634.877898 | AA25: 2259.094876 | AB25: 3094.145848 | AC25: 0.6255388347 | AD25: 0.002776315271 | AE25: 0.002059703961 | AF25: 0.004267416522 | AG25: 0.000581165237 | AH25: -0.0009275943434 | AI25: 0.003598684398 | AK25: 2.633519362 | AL25: 0.3667686163 | AM25: 0.6335193619 | AN25: 1.366768616 | AO25: 1.817787419 | AP25: 0.8997019187 | AQ25: 3522.254194 | AR25: 24.28509733
G26: 20 | H26: =BGL!G29 -> 0.006905067848 | I26: 0.003595540952 | J26: 23.83107313 | K26: =BGL!CC29 -> 0.4889525641 | L26: 0.01963664916 | M26: 70.91654592 | N26: 2864795.831 | O26: 3913.691807 | P26: 1351.841633 | Q26: 1811.501631 | R26: 0.2261 | S26: 0.736 | T26: 3913.691807 | U26: 1351.841633 | V26: 1811.501631 | W26: 0.3743222337 | X26: 0.49076 | Y26: 0.5851 | Z26: 6633.983862 | AA26: 2258.605651 | AB26: 3093.859603 | AC26: 0.6254033694 | AD26: 0.002776315271 | AE26: 0.002059703961 | AF26: 0.004263099973 | AG26: 0.0005810740527 | AH26: -0.0009261593971 | AI26: 0.003595540952 | AK26: 2.631911565 | AL26: 0.3658584923 | AM26: 0.6319115651 | AN26: 1.365858492 | AO26: 1.920453122 | AP26: 0.8831568114 | AQ26: 3456.403577 | AR26: 23.83107313
G27: 21 | H27: =BGL!G30 -> 0.007268492472 | I27: 0.003592758197 | J27: 23.38520429 | K27: =BGL!CC30 -> 0.4872019223 | L27: 0.01956634226 | M27: 70.66263689 | N27: 2864672.456 | O27: 3912.611269 | P27: 1351.312181 | Q27: 1811.111954 | R27: 0.2261 | S27: 0.736 | T27: 3912.611269 | U27: 1351.312181 | V27: 1811.111954 | W27: 0.3741756294 | X27: 0.49076 | Y27: 0.5851 | Z27: 6633.192407 | AA27: 2258.17256 | AB27: 3093.606201 | AC27: 0.6252834474 | AD27: 0.002776315271 | AE27: 0.002059703961 | AF27: 0.004259278704 | AG27: 0.0005809933427 | AH27: -0.0009248890845 | AI27: 0.003592758197 | AK27: 2.630487605 | AL27: 0.365052234 | AM27: 0.6304876053 | AN27: 1.365052234 | AO27: 2.023095369 | AP27: 0.8668726743 | AQ27: 3391.735794 | AR27: 23.38520429
G28: 22 | H28: =BGL!G31 -> 0.007631917095 | I28: 0.003590206046 | J28: 22.94978653 | K28: =BGL!CC31 -> 0.4855963481 | L28: 0.01950186137 | M28: 70.42976813 | N28: 2864559.304 | O28: 3911.62027 | P28: 1350.826602 | Q28: 1810.754568 | R28: 0.2261 | S28: 0.736 | T28: 3911.62027 | U28: 1350.826602 | V28: 1810.754568 | W28: 0.3740411736 | X28: 0.49076 | Y28: 0.5851 | Z28: 6632.466536 | AA28: 2257.775357 | AB28: 3093.373798 | AC28: 0.6251734628 | AD28: 0.002776315271 | AE28: 0.002059703961 | AF28: 0.004255774086 | AG28: 0.0005809193307 | AH28: -0.000923724027 | AI28: 0.003590206046 | AK28: 2.629181112 | AL28: 0.3643123223 | AM28: 0.6291811124 | AN28: 1.364312322 | AO28: 2.125760192 | AP28: 0.8509475824 | AQ28: 3328.583812 | AR28: 22.94978653
G29: 23 | H29: =BGL!G32 -> 0.007995341719 | I29: 0.003587824099 | J29: 22.52648182 | K29: =BGL!CC32 -> 0.4840978446 | L29: 0.01944168051 | M29: 70.21242865 | N29: 2864453.698 | O29: 3910.695358 | P29: 1350.373405 | Q29: 1810.421015 | R29: 0.2261 | S29: 0.736 | T29: 3910.695358 | U29: 1350.373405 | V29: 1810.421015 | W29: 0.3739156843 | X29: 0.49076 | Y29: 0.5851 | Z29: 6631.789072 | AA29: 2257.404643 | AB29: 3093.156893 | AC29: 0.6250708127 | AD29: 0.002776315271 | AE29: 0.002059703961 | AF29: 0.00425250318 | AG29: 0.0005808502628 | AH29: -0.000922636655 | AI29: 0.003587824099 | AK29: 2.627961288 | AL29: 0.3636213518 | AM29: 0.6279612875 | AN29: 1.363621352 | AO29: 2.228465359 | AP29: 0.8354495506 | AQ29: 3267.188679 | AR29: 22.52648182
G30: 24 | H30: =BGL!G33 -> 0.008358766343 | I30: 0.003585578944 | J30: 22.11637347 | K30: =BGL!CC33 -> 0.482685394 | L30: 0.01938495558 | M30: 70.0075701 | N30: 2864354.157 | O30: 3909.823559 | P30: 1349.946233 | Q30: 1810.106616 | R30: 0.2261 | S30: 0.736 | T30: 3909.823559 | U30: 1349.946233 | V30: 1810.106616 | W30: 0.3737974012 | X30: 0.49076 | Y30: 0.5851 | Z30: 6631.150511 | AA30: 2257.055217 | AB30: 3092.952444 | AC30: 0.6249740574 | AD30: 0.002776315271 | AE30: 0.002059703961 | AF30: 0.004249420109 | AG30: 0.0005807851687 | AH30: -0.0009216117188 | AI30: 0.003585578944 | AK30: 2.626811107 | AL30: 0.3629697061 | AM30: 0.6268111071 | AN30: 1.362969706 | AO30: 2.331218047 | AP30: 0.8204225759 | AQ30: 3207.707516 | AR30: 22.11637347
G31: 25 | H31: =BGL!G34 -> 0.008722190966 | I31: 0.003583444731 | J31: 21.72005638 | K31: =BGL!CC34 -> 0.4813427337 | L31: 0.01933103348 | M31: 69.81283376 | N31: 2864259.534 | O31: 3908.994837 | P31: 1349.540168 | Q31: 1809.807752 | R31: 0.2261 | S31: 0.736 | T31: 3908.994837 | U31: 1349.540168 | V31: 1809.807752 | W31: 0.3736849627 | X31: 0.49076 | Y31: 0.5851 | Z31: 6630.543502 | AA31: 2256.723057 | AB31: 3092.758097 | AC31: 0.6248820828 | AD31: 0.002776315271 | AE31: 0.002059703961 | AF31: 0.004246489375 | AG31: 0.0005807232978 | AH31: -0.0009206374188 | AI31: 0.003583444731 | AK31: 2.625717393 | AL31: 0.3623499393 | AM31: 0.6257173934 | AN31: 1.362349939 | AO31: 2.434024136 | AP31: 0.8058917279 | AQ31: 3150.226603 | AR31: 21.72005638
G32: 26 | H32: =BGL!G35 -> 0.00908561559 | I32: 0.003581398313 | J32: 21.33775388 | K32: =BGL!CC35 -> 0.4800553027 | L32: 0.01927932943 | M32: 69.62610775 | N32: 2864168.803 | O32: 3908.200204 | P32: 1349.150806 | Q32: 1809.521182 | R32: 0.2261 | S32: 0.736 | T32: 3908.200204 | U32: 1349.150806 | V32: 1809.521182 | W32: 0.3735771492 | X32: 0.49076 | Y32: 0.5851 | Z32: 6629.961462 | AA32: 2256.404559 | AB32: 3092.571744 | AC32: 0.6247938915 | AD32: 0.002776315271 | AE32: 0.002059703961 | AF32: 0.004243679194 | AG32: 0.000580663978 | AH32: -0.0009197031896 | AI32: 0.003581398313 | AK32: 2.624668335 | AL32: 0.3617553734 | AM32: 0.6246683347 | AN32: 1.361755373 | AO32: 2.536890565 | AP32: 0.7918679123 | AQ32: 3094.778336 | AR32: 21.33775388
G33: 27 | H33: =BGL!G36 -> 0.009449040213 | I33: 0.003579418491 | J33: 20.96942066 | K33: =BGL!CC36 -> 0.478809764 | L33: 0.01922930779 | M33: 69.4454577 | N33: 2864081.025 | O33: 3907.431427 | P33: 1348.774114 | Q33: 1809.243937 | R33: 0.2261 | S33: 0.736 | T33: 3907.431427 | U33: 1348.774114 | V33: 1809.243937 | W33: 0.3734728438 | X33: 0.49076 | Y33: 0.5851 | Z33: 6629.398361 | AA33: 2256.096426 | AB33: 3092.391455 | AC33: 0.6247085699 | AD33: 0.002776315271 | AE33: 0.002059703961 | AF33: 0.004240960455 | AG33: 0.0005806065942 | AH33: -0.000918799354 | AI33: 0.003579418491 | AK33: 2.6236531 | AL33: 0.3611798817 | AM33: 0.6236531003 | AN33: 1.361179882 | AO33: 2.639825502 | AP33: 0.7783517628 | AQ33: 3041.356139 | AR33: 20.96942066
G34: 28 | H34: =BGL!G37 -> 0.009812464837 | I34: 0.003577485723 | J34: 20.61482083 | K34: =BGL!CC37 -> 0.4775938246 | L34: 0.01918047488 | M34: 69.26910068 | N34: 2863995.332 | O34: 3906.68092 | P34: 1348.406374 | Q34: 1808.97328 | R34: 0.2261 | S34: 0.736 | T34: 3906.68092 | U34: 1348.406374 | V34: 1808.97328 | W34: 0.3733710173 | X34: 0.49076 | Y34: 0.5851 | Z34: 6628.848642 | AA34: 2255.795615 | AB34: 3092.21545 | AC34: 0.624625276 | AD34: 0.002776315271 | AE34: 0.002059703961 | AF34: 0.004238306325 | AG34: 0.0005805505796 | AH34: -0.0009179169919 | AI34: 0.003577485723 | AK34: 2.622661697 | AL34: 0.3606178071 | AM34: 0.6226616967 | AN34: 1.360617807 | AO34: 2.742838294 | AP34: 0.765336577 | AQ34: 2989.925803 | AR34: 20.61482083
G35: 29 | H35: =BGL!G38 -> 0.01017588946 | I35: 0.003575581695 | J35: 20.27358471 | K35: =BGL!CC38 -> 0.4763959627 | L35: 0.01913236798 | M35: 69.09536557 | N35: 2863910.914 | O35: 3905.941571 | P35: 1348.044101 | Q35: 1808.706647 | R35: 0.2261 | S35: 0.736 | T35: 3905.941571 | U35: 1348.044101 | V35: 1808.706647 | W35: 0.3732707046 | X35: 0.49076 | Y35: 0.5851 | Z35: 6628.307096 | AA35: 2255.499276 | AB35: 3092.042063 | AC35: 0.6245432203 | AD35: 0.002776315271 | AE35: 0.002059703961 | AF35: 0.004235691654 | AG35: 0.0005804954031 | AH35: -0.0009170477427 | AI35: 0.003575581695 | AK35: 2.621684747 | AL35: 0.3600638387 | AM35: 0.6216847467 | AN35: 1.360063839 | AO35: 2.845939578 | AP35: 0.7528104693 | AQ35: 2940.433707 | AR35: 20.27358471
G36: 30 | H36: =BGL!G39 -> 0.01053931408 | I36: 0.0035736888 | J36: 19.94524965 | K36: =BGL!CC39 -> 0.4752051019 | L36: 0.01908454225 | M36: 68.92264588 | N36: 2863826.989 | O36: 3905.206543 | P36: 1347.683945 | Q36: 1808.441572 | R36: 0.2261 | S36: 0.736 | T36: 3905.206543 | U36: 1347.683945 | V36: 1808.441572 | W36: 0.3731709782 | X36: 0.49076 | Y36: 0.5851 | Z36: 6627.768715 | AA36: 2255.204669 | AB36: 3091.869688 | AC36: 0.6244616443 | AD36: 0.002776315271 | AE36: 0.002059703961 | AF36: 0.004233092265 | AG36: 0.0005804405542 | AH36: -0.0009161835688 | AI36: 0.0035736888 | AK36: 2.620713225 | AL36: 0.3595128616 | AM36: 0.6207132253 | AN36: 1.359512862 | AO36: 2.949141538 | AP36: 0.7407579394 | AQ36: 2892.812752 | AR36: 19.94524965
G37: 31 | H37: =BGL!G40 -> 0.01090273871 | I37: 0.003571789618 | J37: 19.62928947 | K37: =BGL!CC40 -> 0.4740102822 | L37: 0.01903655752 | M37: 68.749352 | N37: 2863742.785 | O37: 3904.469072 | P37: 1347.322592 | Q37: 1808.175616 | R37: 0.2261 | S37: 0.736 | T37: 3904.469072 | U37: 1347.322592 | V37: 1808.175616 | W37: 0.3730709202 | X37: 0.49076 | Y37: 0.5851 | Z37: 6627.228544 | AA37: 2254.909083 | AB37: 3091.696741 | AC37: 0.6243797971 | AD37: 0.002776315271 | AE37: 0.002059703961 | AF37: 0.004230484234 | AG37: 0.0005803855282 | AH37: -0.0009153165167 | AI37: 0.003571789618 | AK37: 2.619738192 | AL37: 0.3589598058 | AM37: 0.6197381922 | AN37: 1.358959806 | AO37: 3.052458256 | AP37: 0.729161012 | AQ37: 2846.98662 | AR37: 19.62928947
G38: 32 | H38: =BGL!G41 -> 0.01126616333 | I38: 0.003569866396 | J38: 19.3251353 | K38: =BGL!CC41 -> 0.4728003349 | L38: 0.01898796526 | M38: 68.57386405 | N38: 2863657.515 | O38: 3903.722263 | P38: 1346.956664 | Q38: 1807.906293 | R38: 0.2261 | S38: 0.736 | T38: 3903.722263 | U38: 1346.956664 | V38: 1807.906293 | W38: 0.3729695955 | X38: 0.49076 | Y38: 0.5851 | Z38: 6626.681534 | AA38: 2254.609754 | AB38: 3091.521603 | AC38: 0.6242969136 | AD38: 0.002776315271 | AE38: 0.002059703961 | AF38: 0.004227843184 | AG38: 0.0005803298108 | AH38: -0.0009144384817 | AI38: 0.003569866396 | AK38: 2.618750526 | AL38: 0.3583994954 | AM38: 0.6187505261 | AN38: 1.358399495 | AO38: 3.155906155 | AP38: 0.7180000564 | AQ38: 2802.872805 | AR38: 19.3251353
G39: 33 | H39: =BGL!G42 -> 0.01162958795 | I39: 0.003567900519 | J39: 19.03219001 | K39: =BGL!CC42 -> 0.4715635488 | L39: 0.01893829513 | M39: 68.39448346 | N39: 2863570.353 | O39: 3902.958889 | P39: 1346.582619 | Q39: 1807.630996 | R39: 0.2261 | S39: 0.736 | T39: 3902.958889 | U39: 1346.582619 | V39: 1807.630996 | W39: 0.3728660231 | X39: 0.49076 | Y39: 0.5851 | Z39: 6626.12239 | AA39: 2254.303786 | AB39: 3091.342581 | AC39: 0.6242121916 | AD39: 0.002776315271 | AE39: 0.002059703961 | AF39: 0.00422514355 | AG39: 0.0005802728631 | AH39: -0.0009135409647 | AI39: 0.003567900519 | AK39: 2.617740652 | AL39: 0.3578264938 | AM39: 0.6177406522 | AN39: 1.357826494 | AO39: 3.259504545 | AP39: 0.707254362 | AQ39: 2760.384699 | AR39: 19.03219001
G40: 34 | H40: =BGL!G43 -> 0.01199301258 | I40: 0.003565871929 | J40: 18.74983742 | K40: =BGL!CC43 -> 0.470287305 | L40: 0.01888704036 | M40: 68.20938003 | N40: 2863480.411 | O40: 3902.171161 | P40: 1346.19664 | Q40: 1807.346916 | R40: 0.2261 | S40: 0.736 | T40: 3902.171161 | U40: 1346.19664 | V40: 1807.346916 | W40: 0.3727591465 | X40: 0.49076 | Y40: 0.5851 | Z40: 6625.545408 | AA40: 2253.988056 | AB40: 3091.157848 | AC40: 0.6241247666 | AD40: 0.002776315271 | AE40: 0.002059703961 | AF40: 0.004222357788 | AG40: 0.0005802141044 | AH40: -0.000912614808 | AI40: 0.003565871929 | AK40: 2.616698242 | AL40: 0.3572349331 | AM40: 0.6166982419 | AN40: 1.357234933 | AO40: 3.363276309 | AP40: 0.6969025251 | AQ40: 2719.432935 | AR40: 18.74983742
G41: 35 | H41: =BGL!G44 -> 0.0123564372 | I41: 0.003563758459 | J41: 18.47744746 | K41: =BGL!CC44 -> 0.4689576563 | L41: 0.01883364082 | M41: 68.01653086 | N41: 2863386.705 | O41: 3901.350469 | P41: 1345.79451 | Q41: 1807.050948 | R41: 0.2261 | S41: 0.736 | T41: 3901.350469 | U41: 1345.79451 | V41: 1807.050948 | W41: 0.3726477975 | X41: 0.49076 | Y41: 0.5851 | Z41: 6624.944282 | AA41: 2253.659114 | AB41: 3090.965384 | AC41: 0.6240336834 | AD41: 0.002776315271 | AE41: 0.002059703961 | AF41: 0.004219455456 | AG41: 0.0005801528932 | AH41: -0.0009116498896 | AI41: 0.003563758459 | AK41: 2.615611868 | AL41: 0.3566183173 | AM41: 0.615611868 | AN41: 1.356618317 | AO41: 3.46724879 | AP41: 0.6869226816 | AQ41: 2679.926126 | AR41: 18.47744746
G42: 36 | H42: =BGL!G45 -> 0.01271986183 | I42: 0.003561535023 | J42: 18.21437757 | K42: =BGL!CC45 -> 0.4675588205 | L42: 0.01877746267 | M42: 67.81364696 | N42: 2863288.123 | O42: 3900.487074 | P42: 1345.371456 | Q42: 1806.73958 | R42: 0.2261 | S42: 0.736 | T42: 3900.487074 | U42: 1345.371456 | V42: 1806.73958 | W42: 0.3725306546 | X42: 0.49076 | Y42: 0.5851 | Z42: 6624.311876 | AA42: 2253.313057 | AB42: 3090.762906 | AC42: 0.6239378607 | AD42: 0.002776315271 | AE42: 0.002059703961 | AF42: 0.004216402102 | AG42: 0.0005800885039 | AH42: -0.0009106347555 | AI42: 0.003561535023 | AK42: 2.614468587 | AL42: 0.3559692846 | AM42: 0.6144685868 | AN42: 1.355969285 | AO42: 3.571454933 | AP42: 0.6772926124 | AQ42: 2641.77108 | AR42: 18.21437757
G43: 37 | H43: =BGL!G46 -> 0.01308328645 | I43: 0.003559172618 | J43: 17.95997093 | K43: =BGL!CC46 -> 0.4660725499 | L43: 0.01871777309 | M43: 67.59808172 | N43: 2863183.379 | O43: 3899.569712 | P43: 1344.921959 | Q43: 1806.40875 | R43: 0.2261 | S43: 0.736 | T43: 3899.569712 | U43: 1344.921959 | V43: 1806.40875 | W43: 0.3724061897 | X43: 0.49076 | Y43: 0.5851 | Z43: 6623.639942 | AA43: 2252.945369 | AB43: 3090.547772 | AC43: 0.6238360486 | AD43: 0.002776315271 | AE43: 0.002059703961 | AF43: 0.004213157898 | AG43: 0.0005800200978 | AH43: -0.0009095561623 | AI43: 0.003559172618 | AK43: 2.613253419 | AL43: 0.3552793109 | AM43: 0.6132534187 | AN43: 1.355279311 | AO43: 3.67593479 | AP43: 0.6679897328 | AQ43: 2604.87253 | AR43: 17.95997093
G44: 38 | H44: =BGL!G47 -> 0.01344671107 | I44: 0.003556637039 | J44: 17.71355115 | K44: =BGL!CC47 -> 0.4644773241 | L44: 0.0186537078 | M44: 67.36671387 | N44: 2863070.956 | O44: 3898.585101 | P44: 1344.439509 | Q44: 1806.053668 | R44: 0.2261 | S44: 0.736 | T44: 3898.585101 | U44: 1344.439509 | V44: 1806.053668 | W44: 0.3722726005 | X44: 0.49076 | Y44: 0.5851 | Z44: 6622.91875 | AA44: 2252.550726 | AB44: 3090.316866 | AC44: 0.6237267728 | AD44: 0.002776315271 | AE44: 0.002059703961 | AF44: 0.004209675869 | AG44: 0.000579946686 | AH44: -0.0009083984907 | AI44: 0.003556637039 | AK44: 2.611948681 | AL44: 0.3545383289 | AM44: 0.6119486807 | AN44: 1.354538329 | AO44: 3.780737512 | AP44: 0.6589909701 | AQ44: 2569.132377 | AR44: 17.71355115
G45: 39 | H45: =BGL!G48 -> 0.0138101357 | I45: 0.003553887202 | J45: 17.47441335 | K45: =BGL!CC48 -> 0.4627472938 | L45: 0.01858422867 | M45: 67.11579428 | N45: 2862949.034 | O45: 3897.517284 | P45: 1343.916291 | Q45: 1805.668579 | R45: 0.2261 | S45: 0.736 | T45: 3897.517284 | U45: 1343.916291 | V45: 1805.668579 | W45: 0.3721277223 | X45: 0.49076 | Y45: 0.5851 | Z45: 6622.136613 | AA45: 2252.122734 | AB45: 3090.066448 | AC45: 0.6236082627 | AD45: 0.002776315271 | AE45: 0.002059703961 | AF45: 0.00420589959 | AG45: 0.000579867081 | AH45: -0.0009071429797 | AI45: 0.003553887202 | AK45: 2.610533114 | AL45: 0.353734229 | AM45: 0.6105331138 | AN45: 1.353734229 | AO45: 3.885924035 | AP45: 0.6502725197 | AQ45: 2534.448385 | AR45: 17.47441335
G46: 40 | H46: =BGL!G49 -> 0.01417356032 | I46: 0.003550872903 | J46: 17.24181048 | K46: =BGL!CC49 -> 0.4608508718 | L46: 0.01850806714 | M46: 66.84074164 | N46: 2862815.385 | O46: 3896.346767 | P46: 1343.34275 | Q46: 1805.246453 | R46: 0.2261 | S46: 0.736 | T46: 3896.346767 | U46: 1343.34275 | V46: 1805.246453 | W46: 0.37196891 | X46: 0.49076 | Y46: 0.5851 | Z46: 6621.279252 | AA46: 2251.653579 | AB46: 3089.791945 | AC46: 0.6234783545 | AD46: 0.002776315271 | AE46: 0.002059703961 | AF46: 0.004201760115 | AG46: 0.0005797798322 | AH46: -0.000905766703 | AI46: 0.003550872903 | AK46: 2.608980715 | AL46: 0.3528521925 | AM46: 0.6089807154 | AN46: 1.352852192 | AO46: 3.991570723 | AP46: 0.6418094576 | AQ46: 2500.712205 | AR46: 17.24181048

Sheet Kent-Park conf
B2: ε | C2: σ | N2: COLLEGAMENTI DAL FILE DI INPUT | T2: RAPPORTO VOLUMETRICO DI ARMATURA TRASVERSALE, DEFORMAZIONE ULTIMA | AD2: CALCOLO DELLA DEFORMAZIONE ULTIMA DEL CALCESTRUZZO CONFINATO (εcu) CON LA FORMULA DI MANDER
B3: - | C3: [N/mm2] | I3: Kent-Park per calcestruzzo confinato
B4: =-$J$33-$J$33/1000000 -> -0.04429120187 | C4: =-0.2*$J$29 -> -5.658237355 | I4: info legame | T4: CALCOLO DEL RAPPORTO VOLUMETRICO DI ARMATURA TRASVERSALE - nuclei rettangolari | AD4: armatura | AF4: acciaio | AI4: calcestruzzo
B5: =-$J$32 -> -0.01783477725 | C5: =-0.2*$J$29 -> -5.658237355 | AD5: ρs | AE5: ρcc | AF5: fy | AG5: Es | AH5: εsy | AI5: f'co | AJ5: fcc | AK5: εcc | AL5: Z | AM5: εcu
B6: =-$J$31 -> -0.00227238448 | C6: =-$J$29 -> -28.29118677 | I6: NUMERO DI PUNTI DEL LEGAME COSTITUTIVO | T6: Ast | U6: Astx | V6: Asty | W6: hc | X6: bc | Y6: ρx | Z6: ρy | AA6: ρs | AD6: - | AE6: - | AF6: [N/mm2] | AG6: [N/mm2] | AH6: - | AI6: [N/mm2] | AJ6: [N/mm2] | AK6: - | AL6: - | AM6: -
B7: =B6+ $I$11 -> -0.002224035874 | C7: =-$J$29*(2*(ABS(B7)/$J$31)-(ABS(B7)/$J$31)^2) -> -28.27837954 | I7: 50 | T7: [mm2] | U7: [mm2] | V7: [mm2] | W7: [mm] | X7: [mm] | Y7: - | Z7: - | AA7: - | AD7: =$J$37 -> 0.008666462493 | AE7: =P36/(W8*X8) -> 0.02988435342 | AF7: =$P$42 -> 450 | AG7: =$Q$42 -> 206000 | AH7: =AF7/AG7 -> 0.002184466019 | AI7: =$J$24 -> 24.9 | AJ7: =$J$28 -> 28.29118677 | AK7: =$J$31 -> 0.00227238448 | AL7: =$J$36 -> 51.4059767 | AM7: 0.04429115758
B8: -0.002175687268 | C8: -28.23995782 | T8: =PI()*J44^2/4 -> 50.26548246 | U8: =T8*K48 -> 150.7964474 | V8: =T8*K51 -> 150.7964474 | W8: =P25*1000-2*P27*1000 -> 232 | X8: =P26*1000-2*P27*1000 -> 232 | Y8: =U8/(W8*10*J45) -> 0.004333231246 | Z8: =V8/(X8*10*J45) -> 0.004333231246 | AA8: =Y8+Z8 -> 0.008666462493
B9: -0.002127338662 | C9: -28.17592164
B10: -0.002078990056 | C10: -28.08627098 | I10: Passo di discretizzazione della ε nel tratto non lineare | AD10: Ush | AE10: Ucc | AF10: Usc | AG10: Uco | AI10: errore
B11: -0.00203064145 | C11: -27.97100585 | I11: =J31/(I7-3) -> 4.834860595e-05 | T11: CALCOLO DEL RAPPORTO VOLUMETRICO DI ARMATURA TRASVERSALE - nuclei circolari | AD11: =110*AD7 -> 0.9533108742 | AE11: =AG19+AM19 -> 0.4572033357 | AF11: =IF(AM7<AH7,AE7*0.5*AF7*AH7,AE7*(0.5*AF7*AH7+AF7*(AM7-AH7))) -> 0.5809373682 | AG11: =0.017*SQRT(AI7) -> 0.08482982966 | AI11: =AD11-AE11-AF11+AG11 -> 0
B12: -0.001982292844 | C12: -27.83012624
B13: -0.001933944238 | C13: -27.66363216 | T13: ds | U13: Asp | V13: ρs
B14: -0.001885595632 | C14: -27.4715236 | T14: [mm] | U14: [mm2] | V14: - | AD14: intervalli | AE14: εcu max | AF14: Δε
B15: -0.001837247026 | C15: -27.25380057 | T15: =300 -> 300 | U15: =PI()*J44^2/4 -> 50.26548246 | V15: =(PI()*U15*T15)/(PI()*T15^2/4*10*J45) -> 0.004468042885 | AD15: 500 | AE15: 0.1 | AF15: =AE15/AD15 -> 0.0002
B16: -0.00178889842 | C16: -27.01046306
B17: -0.001740549814 | C17: -26.74151108 | AD17: ε | AE17: σ | AF17: ai | AG17: ∑ai | AI17: aiu | AJ17: εiu | AK17: σiu | AL17: σ(εcu) | AM17: Δai
B18: -0.001692201208 | C18: -26.44694463 | I18: Ritorna alla pagina "parametri del calcestruzzo" | AD18: - | AE18: [N/mm2] | AF18: [N/mm2] | AG18: [N/mm2] | AI18: - | AJ18: - | AK18: [N/mm2] | AL18: [N/mm2] | AM18: [N/mm2]
B19: -0.001643852602 | C19: -26.1267637 | AD19: 0 | AE19: 0 | AF19: =(AE20+AE19)*(AD20-AD19)/2 -> 0.0004760846945 | AG19: =SUM(AF19:AF518) -> 0.4566875445 | AI19: =MATCH(0,AF19:AF518,0)-1 -> 222 | AJ19: =INDEX(AD19:AD519,$AI$19) -> 0.0442 | AK19: =INDEX(AE19:AE519,$AI$19) -> 5.658237355 | AL19: =IF(AM7>$AM$7,0,IF(AM7<$AK$7,$AJ$7*(2*AM7/$AK$7-(AM7/$AK$7)^2),MAX($AJ$7*(1-$AL$7*(AM7-$AK$7)),0.2*$AJ$7))) -> 5.658237355 | AM19: =(AL19+AK19)*(AM7-AJ19)/2 -> 0.0005157912134
B20: -0.001595503996 | C20: -25.7809683 | AD20: =AD19+$AF$15 -> 0.0002 | AE20: =IF(AD20>$AM$7,0,IF(AD20<$AK$7,$AJ$7*(2*AD20/$AK$7-(AD20/$AK$7)^2),MAX($AJ$7*(1-$AL$7*(AD20-$AK$7)),0.2*$AJ$7))) -> 4.760846945 | AF20: =(AE21+AE20)*(AD21-AD20)/2 -> 0.001384423473
B21: -0.00154715539 | C21: -25.40955842 | F21: EQUAZIONI MODELLO | T21: Armatura di confinamento | Y21: Rapporto volumetrico di armatura | AD21: =AD20+$AF$15 -> 0.0004 | AE21: =IF(AD21>$AM$7,0,IF(AD21<$AK$7,$AJ$7*(2*AD21/$AK$7-(AD21/$AK$7)^2),MAX($AJ$7*(1-$AL$7*(AD21-$AK$7)),0.2*$AJ$7))) -> 9.083387782 | AF21: 0.002205101029
B22: -0.001498806785 | C22: -25.01253407 | I22: Kent-Park per calcestruzzo confinato | AD22: 0.0006 | AE22: 12.96762251 | AF22: 0.002938117363
B23: -0.001450458179 | C23: -24.58989525 | AD23: 0.0008 | AE23: 16.41355113 | AF23: 0.003583472476
B24: -0.001402109573 | C24: -24.14164195 | I24: f' c | J24: ='INPUT-2.1.1'!$F$6 -> 24.9 | K24: [N/mm2] | N24: Proprietà della sezione | T24: Tipo di armatura | Y24: ρs | AA24: 1 | AD24: 0.001 | AE24: 19.42117363 | AF24: 0.004141166367
B25: -0.001353760967 | C25: -23.66777418 | I25: γc | J25: ='INPUT-2'!$J$20 -> 1 | K25: - | N25: Altezza | O25: LY | P25: =SezRett!C2 -> 0.3 | Q25: m | T25: staffe rettangolari + legature | W25: 1 | Y25: da sezione | AA25: 1 | AD25: 0.0012 | AE25: 21.99049003 | AF25: 0.004611199036
B26: -0.001305412361 | C26: -23.16829193 | I26: E | J26: =5000*SQRT(J24) -> 24949.9499 | K26: [N/mm2] | N26: Base | O26: LZ | P26: =SezRett!C3 -> 0.3 | Q26: m | T26: staffe circolari | W26: 2 | Y26: da utente | AA26: 2 | AD26: 0.0014 | AE26: 24.12150032 | AF26: 0.004993570483
B27: -0.001257063755 | C27: -22.64319521 | I27: K | J27: =1+J37*J46/J24 -> 1.13619224 | K27: - | N27: Copriferro | O27: c | P27: =SezRett!C4 -> 0.034 | Q27: m | T27: a spirale | W27: 3 | AD27: 0.0016 | AE27: 25.8142045 | AF27: 0.005288280708
B28: -0.001208715149 | C28: -22.09248401 | I28: f cc | J28: =J27*J24 -> 28.29118677 | K28: [N/mm2] | N28: Diametro staffa | O28: fst | P28: =SezRett!C5 -> 8 | Q28: mm | T28: da sezione | W28: 4 | AD28: 0.0018 | AE28: 27.06860258 | AF28: 0.005495329712
B29: -0.001160366543 | C29: -21.51615834 | I29: f cc,d | J29: =J28/J25 -> 28.29118677 | K29: [N/mm2] | N29: n° fibre Y | O29: nY | P29: =SezRett!C6 -> 10 | AD29: 0.002 | AE29: 27.88469454 | AF29: 0.005614717493
B30: -0.001112017937 | C30: -20.9142182 | I30: εc0 | J30: ='INPUT-2.1.1'!$F$7 -> 0.002 | K30: - | N30: n° fibre Z | O30: nZ | P30: =SezRett!C7 -> 10 | T30: Tipologia scelta | W30: ='INPUT-1.1.3'!$F$5 -> 1 | AD30: 0.0022 | AE30: 28.26248039 | AF30: 0.005636807131
B31: -0.001063669331 | C31: -20.28666358 | I31: εcc | J31: =J27*J30 -> 0.00227238448 | K31: - | N31: n° strati barre | O31: nL | P31: =SezRett!C8 -> 3 | AD31: 0.0024 | AE31: 28.10559092 | AF31: 0.005592031462
B32: -0.001015320725 | C32: -19.63349449 | I32: ε20c | J32: =(0.8/J36)+J31 -> 0.01783477725 | K32: - | AD32: 0.0026 | AE32: 27.8147237 | AF32: 0.005533858018
B33: -0.0009669721191 | C33: -18.95471092 | I33: εcu | J33: =IF(AA36=1,IF(W39>J32,W39,J32),IF(AA36=2,IF(U39>J32,U39,J32),J34)) -> 0.04429115758 | K33: - | AD33: 0.0028 | AE33: 27.52385648 | AF33: 0.005475684575
B34: -0.0009186235131 | C34: -18.25031288 | I34: εcu utente | J34: 0.04 | K34: - | N34: Armatura Longitudinale | T34: DEFORMAZIONE ULTIMA CALCESTRUZZO | AD34: 0.003 | AE34: 27.23298926 | AF34: 0.005417511131
B35: -0.0008702749072 | C35: -17.52030036 | I35: r | J35: =(P26-2*P27)/(J45/100) -> 1.546666667 | K35: - | AD35: 0.0032 | AE35: 26.94212205 | AF35: 0.005359337688
B36: -0.0008219263012 | C36: -16.76467338 | I36: Z | J36: =0.5/((3+0.29*J24)/(145*J24-1000)+0.75*J37*J35^0.5-J31) -> 51.4059767 | K36: - | N36: Area totale | O36: As tot | P36: =SUM(SezRett!P4:P1003)*1000000 -> 1608.495439 | Q36: [mm2] | T36: (Scott et al. 1982) | W36: (Mander) | Y36: deformazione ultima | AA36: 1 | AD36: 0.0034 | AE36: 26.65125483 | AF36: 0.005301164244
B37: -0.0007735776952 | C37: -15.98343191 | I37: ρs | J37: =IF(AA24=2,J38,IF(W30=1,AA8,IF(W30<4,V15,""))) -> 0.008666462493 | K37: - | T37: ρs | U37: εcu | W37: εcu | Y37: Mander | AA37: 1 | AD37: 0.0036 | AE37: 26.36038761 | AF37: 0.005242990801
B38: -0.0007252290893 | C38: -15.17657597 | I38: ρs,utente | J38: 0 | K38: - | N38: Diametro rappresentativo f | P38: =SezRett!$M$4 -> 16 | Q38: [mm] | T38: - | U38: - | W38: - | Y38: Scott | AA38: 2 | AD38: 0.0038 | AE38: 26.06952039 | AF38: 0.005184817357
B39: -0.0006768804833 | C39: -14.34410556 | T39: =$J$37 -> 0.008666462493 | U39: =0.004+0.9*T39*(J46/300) -> 0.01417356032 | W39: =$AM$7 -> 0.04429115758 | Y39: Utente | AA39: 3 | AD39: 0.004 | AE39: 25.77865318 | AF39: 0.005126643913
B40: -0.0006285318774 | C40: -13.48602068 | P40: fy | Q40: Es | AD40: 0.0042 | AE40: 25.48778596 | AF40: 0.00506847047
B41: -0.0005801832714 | C41: -12.60232132 | I41: Tipo di armatura di confinamento | P41: [N/mm2] | Q41: [N/mm2] | AD41: 0.0044 | AE41: 25.19691874 | AF41: 0.005010297026
B42: -0.0005318346655 | C42: -11.69300748 | P42: ='INPUT-2.2.1'!$F$6 -> 450 | Q42: ='INPUT-2.2.1'!$F$7 -> 206000 | AD42: 0.0046 | AE42: 24.90605152 | AF42: 0.004952123583
B43: -0.0004834860595 | C43: -10.75807917 | AD43: 0.0048 | AE43: 24.61518431 | AF43: 0.004893950139
B44: -0.0004351374536 | C44: -9.797536388 | I44: φ | J44: ='INPUT-1.1.3'!G8 -> 8 | K44: [mm] | AD44: 0.005 | AE44: 24.32431709 | AF44: 0.004835776696
B45: -0.0003867888476 | C45: -8.811379131 | I45: =IF($W$30=3,"Passo spirale","passo staffe") -> passo staffe | J45: ='INPUT-1.1.3'!G9 -> 15 | K45: [cm] | AD45: 0.0052 | AE45: 24.03344987 | AF45: 0.004777603252
B46: -0.0003384402417 | C46: -7.799607399 | I46: fy | J46: ='INPUT-1.1.3'!G10 -> 391.3 | K46: [N/mm2] | AD46: 0.0054 | AE46: 23.74258265 | AF46: 0.004719429809
B47: -0.0002900916357 | C47: -6.762221193 | AD47: 0.0056 | AE47: 23.45171544 | AF47: 0.004661256365
B48: -0.0002417430298 | C48: -5.699220513 | I48: =IF($W$30=1, "numero bracci in direzione z","") -> numero bracci in direzione z | K48: ='INPUT-1.1.3'!G13 -> 3 | AD48: 0.0058 | AE48: 23.16084822 | AF48: 0.004603082922
B49: -0.0001933944238 | C49: -4.610605359 | I49: =IF($W$30=1, "distanza netta tra i bracci [cm]","") -> distanza netta tra i bracci [cm] | K49: ='INPUT-1.1.3'!G14 -> 9.6 | AD49: 0.006 | AE49: 22.869981 | AF49: 0.004544909478
B50: -0.0001450458179 | C50: -3.496375731 | AD50: 0.0062 | AE50: 22.57911378 | AF50: 0.004486736035
B51: -9.669721191e-05 | C51: -2.356531628 | I51: =IF($W$30=1, "numero bracci in direzione y","") -> numero bracci in direzione y | K51: ='INPUT-1.1.3'!G16 -> 3 | AD51: 0.0064 | AE51: 22.28824657 | AF51: 0.004428562591
B52: -4.834860595e-05 | C52: -1.191073051 | I52: =IF($W$30=1, "distanza netta tra i bracci [cm]","") -> distanza netta tra i bracci [cm] | K52: ='INPUT-1.1.3'!G17 -> 9.6 | AD52: 0.0066 | AE52: 21.99737935 | AF52: 0.004370389148
B53: 0 | C53: 0 | AD53: 0.0068 | AE53: 21.70651213 | AF53: 0.004312215704
AD54: 0.007 | AE54: 21.41564491 | AF54: 0.004254042261
AD55: 0.0072 | AE55: 21.12477769 | AF55: 0.004195868817
AD56: 0.0074 | AE56: 20.83391048 | AF56: 0.004137695374
AD57: 0.0076 | AE57: 20.54304326 | AF57: 0.00407952193
AD58: 0.0078 | AE58: 20.25217604 | AF58: 0.004021348487
AD59: 0.008 | AE59: 19.96130882 | AF59: 0.003963175043
AD60: 0.0082 | AE60: 19.67044161 | AF60: 0.0039050016
AD61: 0.0084 | AE61: 19.37957439 | AF61: 0.003846828156
AD62: 0.0086 | AE62: 19.08870717 | AF62: 0.003788654713
AD63: 0.0088 | AE63: 18.79783995 | AF63: 0.003730481269
AD64: 0.009 | AE64: 18.50697274 | AF64: 0.003672307826
AD65: 0.0092 | AE65: 18.21610552 | AF65: 0.003614134382
AD66: 0.0094 | AE66: 17.9252383 | AF66: 0.003555960939
AD67: 0.0096 | AE67: 17.63437108 | AF67: 0.003497787495
AD68: 0.0098 | AE68: 17.34350387 | AF68: 0.003439614051
AD69: 0.01 | AE69: 17.05263665 | AF69: 0.003381440608
AD70: 0.0102 | AE70: 16.76176943 | AF70: 0.003323267164
AD71: 0.0104 | AE71: 16.47090221 | AF71: 0.003265093721
AD72: 0.0106 | AE72: 16.180035 | AF72: 0.003206920277
AD73: 0.0108 | AE73: 15.88916778 | AF73: 0.003148746834
AD74: 0.011 | AE74: 15.59830056 | AF74: 0.00309057339
AD75: 0.0112 | AE75: 15.30743334 | AF75: 0.003032399947
AD76: 0.0114 | AE76: 15.01656613 | AF76: 0.002974226503
AD77: 0.0116 | AE77: 14.72569891 | AF77: 0.00291605306
AD78: 0.0118 | AE78: 14.43483169 | AF78: 0.002857879616
AD79: 0.012 | AE79: 14.14396447 | AF79: 0.002799706173
AD80: 0.0122 | AE80: 13.85309726 | AF80: 0.002741532729
AD81: 0.0124 | AE81: 13.56223004 | AF81: 0.002683359286
AD82: 0.0126 | AE82: 13.27136282 | AF82: 0.002625185842
AD83: 0.0128 | AE83: 12.9804956 | AF83: 0.002567012399
AD84: 0.013 | AE84: 12.68962838 | AF84: =(AE85+AE84)*(AD85-AD84)/2 -> 0.002508838955
AD85: =AD84+$AF$15 -> 0.0132 | AE85: =IF(AD85>$AM$7,0,IF(AD85<$AK$7,$AJ$7*(2*AD85/$AK$7-(AD85/$AK$7)^2),MAX($AJ$7*(1-$AL$7*(AD85-$AK$7)),0.2*$AJ$7))) -> 12.39876117 | AF85: 0.002450665512
AD86: 0.0134 | AE86: 12.10789395 | AF86: 0.002392492068
AD87: 0.0136 | AE87: 11.81702673 | AF87: 0.002334318625
AD88: 0.0138 | AE88: 11.52615951 | AF88: 0.002276145181
AD89: 0.014 | AE89: 11.2352923 | AF89: 0.002217971738
AD90: 0.0142 | AE90: 10.94442508 | AF90: 0.002159798294
AD91: 0.0144 | AE91: 10.65355786 | AF91: 0.002101624851
AD92: 0.0146 | AE92: 10.36269064 | AF92: 0.002043451407
AD93: 0.0148 | AE93: 10.07182343 | AF93: 0.001985277964
AD94: 0.015 | AE94: 9.780956209 | AF94: 0.00192710452
AD95: 0.0152 | AE95: 9.490088991 | AF95: 0.001868931076
AD96: 0.0154 | AE96: 9.199221774 | AF96: 0.001810757633
AD97: 0.0156 | AE97: 8.908354556 | AF97: 0.001752584189
AD98: 0.0158 | AE98: 8.617487338 | AF98: 0.001694410746
AD99: 0.016 | AE99: 8.326620121 | AF99: 0.001636237302
AD100: 0.0162 | AE100: 8.035752903 | AF100: 0.001578063859
AD101: 0.0164 | AE101: 7.744885686 | AF101: 0.001519890415
AD102: 0.0166 | AE102: 7.454018468 | AF102: 0.001461716972
AD103: 0.0168 | AE103: 7.16315125 | AF103: 0.001403543528
AD104: 0.017 | AE104: 6.872284033 | AF104: 0.001345370085
AD105: 0.0172 | AE105: 6.581416815 | AF105: 0.001287196641
AD106: 0.0174 | AE106: 6.290549598 | AF106: 0.001229023198
AD107: 0.0176 | AE107: 5.99968238 | AF107: 0.001170849754
AD108: 0.0178 | AE108: 5.708815163 | AF108: 0.001136705252
AD109: 0.018 | AE109: 5.658237355 | AF109: 0.001131647471
AD110: 0.0182 | AE110: 5.658237355 | AF110: 0.001131647471
AD111: 0.0184 | AE111: 5.658237355 | AF111: 0.001131647471
AD112: 0.0186 | AE112: 5.658237355 | AF112: 0.001131647471
AD113: 0.0188 | AE113: 5.658237355 | AF113: 0.001131647471
AD114: 0.019 | AE114: 5.658237355 | AF114: 0.001131647471
AD115: 0.0192 | AE115: 5.658237355 | AF115: 0.001131647471
AD116: 0.0194 | AE116: 5.658237355 | AF116: 0.001131647471
AD117: 0.0196 | AE117: 5.658237355 | AF117: 0.001131647471
AD118: 0.0198 | AE118: 5.658237355 | AF118: 0.001131647471
AD119: 0.02 | AE119: 5.658237355 | AF119: 0.001131647471
AD120: 0.0202 | AE120: 5.658237355 | AF120: 0.001131647471
AD121: 0.0204 | AE121: 5.658237355 | AF121: 0.001131647471
AD122: 0.0206 | AE122: 5.658237355 | AF122: 0.001131647471
AD123: 0.0208 | AE123: 5.658237355 | AF123: 0.001131647471
AD124: 0.021 | AE124: 5.658237355 | AF124: 0.001131647471
AD125: 0.0212 | AE125: 5.658237355 | AF125: 0.001131647471
AD126: 0.0214 | AE126: 5.658237355 | AF126: 0.001131647471
AD127: 0.0216 | AE127: 5.658237355 | AF127: 0.001131647471
AD128: 0.0218 | AE128: 5.658237355 | AF128: 0.001131647471
AD129: 0.022 | AE129: 5.658237355 | AF129: 0.001131647471
AD130: 0.0222 | AE130: 5.658237355 | AF130: 0.001131647471
AD131: 0.0224 | AE131: 5.658237355 | AF131: 0.001131647471
AD132: 0.0226 | AE132: 5.658237355 | AF132: 0.001131647471
AD133: 0.0228 | AE133: 5.658237355 | AF133: 0.001131647471
AD134: 0.023 | AE134: 5.658237355 | AF134: 0.001131647471
AD135: 0.0232 | AE135: 5.658237355 | AF135: 0.001131647471
AD136: 0.0234 | AE136: 5.658237355 | AF136: 0.001131647471
AD137: 0.0236 | AE137: 5.658237355 | AF137: 0.001131647471
AD138: 0.0238 | AE138: 5.658237355 | AF138: 0.001131647471
AD139: 0.024 | AE139: 5.658237355 | AF139: 0.001131647471
AD140: 0.0242 | AE140: 5.658237355 | AF140: 0.001131647471
AD141: 0.0244 | AE141: 5.658237355 | AF141: 0.001131647471
AD142: 0.0246 | AE142: 5.658237355 | AF142: 0.001131647471
AD143: 0.0248 | AE143: 5.658237355 | AF143: 0.001131647471
AD144: 0.025 | AE144: 5.658237355 | AF144: 0.001131647471
AD145: 0.0252 | AE145: 5.658237355 | AF145: 0.001131647471
AD146: 0.0254 | AE146: 5.658237355 | AF146: 0.001131647471
AD147: 0.0256 | AE147: 5.658237355 | AF147: 0.001131647471
AD148: 0.0258 | AE148: 5.658237355 | AF148: =(AE149+AE148)*(AD149-AD148)/2 -> 0.001131647471
AD149: =AD148+$AF$15 -> 0.026 | AE149: =IF(AD149>$AM$7,0,IF(AD149<$AK$7,$AJ$7*(2*AD149/$AK$7-(AD149/$AK$7)^2),MAX($AJ$7*(1-$AL$7*(AD149-$AK$7)),0.2*$AJ$7))) -> 5.658237355 | AF149: 0.001131647471
AD150: 0.0262 | AE150: 5.658237355 | AF150: 0.001131647471
AD151: 0.0264 | AE151: 5.658237355 | AF151: 0.001131647471
AD152: 0.0266 | AE152: 5.658237355 | AF152: 0.001131647471
AD153: 0.0268 | AE153: 5.658237355 | AF153: 0.001131647471
AD154: 0.027 | AE154: 5.658237355 | AF154: 0.001131647471
AD155: 0.0272 | AE155: 5.658237355 | AF155: 0.001131647471
AD156: 0.0274 | AE156: 5.658237355 | AF156: 0.001131647471
AD157: 0.0276 | AE157: 5.658237355 | AF157: 0.001131647471
AD158: 0.0278 | AE158: 5.658237355 | AF158: 0.001131647471
AD159: 0.028 | AE159: 5.658237355 | AF159: 0.001131647471
AD160: 0.0282 | AE160: 5.658237355 | AF160: 0.001131647471
AD161: 0.0284 | AE161: 5.658237355 | AF161: 0.001131647471
AD162: 0.0286 | AE162: 5.658237355 | AF162: 0.001131647471
AD163: 0.0288 | AE163: 5.658237355 | AF163: 0.001131647471
AD164: 0.029 | AE164: 5.658237355 | AF164: 0.001131647471
AD165: 0.0292 | AE165: 5.658237355 | AF165: 0.001131647471
AD166: 0.0294 | AE166: 5.658237355 | AF166: 0.001131647471
AD167: 0.0296 | AE167: 5.658237355 | AF167: 0.001131647471
AD168: 0.0298 | AE168: 5.658237355 | AF168: 0.001131647471
AD169: 0.03 | AE169: 5.658237355 | AF169: 0.001131647471
AD170: 0.0302 | AE170: 5.658237355 | AF170: 0.001131647471
AD171: 0.0304 | AE171: 5.658237355 | AF171: 0.001131647471
AD172: 0.0306 | AE172: 5.658237355 | AF172: 0.001131647471
AD173: 0.0308 | AE173: 5.658237355 | AF173: 0.001131647471
AD174: 0.031 | AE174: 5.658237355 | AF174: 0.001131647471
AD175: 0.0312 | AE175: 5.658237355 | AF175: 0.001131647471
AD176: 0.0314 | AE176: 5.658237355 | AF176: 0.001131647471
AD177: 0.0316 | AE177: 5.658237355 | AF177: 0.001131647471
AD178: 0.0318 | AE178: 5.658237355 | AF178: 0.001131647471
AD179: 0.032 | AE179: 5.658237355 | AF179: 0.001131647471
AD180: 0.0322 | AE180: 5.658237355 | AF180: 0.001131647471
AD181: 0.0324 | AE181: 5.658237355 | AF181: 0.001131647471
AD182: 0.0326 | AE182: 5.658237355 | AF182: 0.001131647471
AD183: 0.0328 | AE183: 5.658237355 | AF183: 0.001131647471
AD184: 0.033 | AE184: 5.658237355 | AF184: 0.001131647471
AD185: 0.0332 | AE185: 5.658237355 | AF185: 0.001131647471
AD186: 0.0334 | AE186: 5.658237355 | AF186: 0.001131647471
AD187: 0.0336 | AE187: 5.658237355 | AF187: 0.001131647471
AD188: 0.0338 | AE188: 5.658237355 | AF188: 0.001131647471
AD189: 0.034 | AE189: 5.658237355 | AF189: 0.001131647471
AD190: 0.0342 | AE190: 5.658237355 | AF190: 0.001131647471
AD191: 0.0344 | AE191: 5.658237355 | AF191: 0.001131647471
AD192: 0.0346 | AE192: 5.658237355 | AF192: 0.001131647471
AD193: 0.0348 | AE193: 5.658237355 | AF193: 0.001131647471
AD194: 0.035 | AE194: 5.658237355 | AF194: 0.001131647471
AD195: 0.0352 | AE195: 5.658237355 | AF195: 0.001131647471
AD196: 0.0354 | AE196: 5.658237355 | AF196: 0.001131647471
AD197: 0.0356 | AE197: 5.658237355 | AF197: 0.001131647471
AD198: 0.0358 | AE198: 5.658237355 | AF198: 0.001131647471
AD199: 0.036 | AE199: 5.658237355 | AF199: 0.001131647471
AD200: 0.0362 | AE200: 5.658237355 | AF200: 0.001131647471
AD201: 0.0364 | AE201: 5.658237355 | AF201: 0.001131647471
... 318 more rows

Sheet PROG-VER-0
B2: HOME | C2: 1) | D2: Stato Limite | H2: Scegli Stato Limite | AB2: STATI LIMITE | AC2: 1 | AE2: DOMINI DI INTERAZIONE | AF2: 1
D3: Scegli lo Stato Limite rispetto al quale effettuare le verifiche. | H3: Menu a tendina Stato Limite | AB3: Prima Plasticizzazione | AC3: 1 | AE3: Mx-N | AF3: 1
B4: INPUT | AB4: Salvaguardia della vita | AC4: 2 | AE4: My-N | AF4: 2
AB5: Prevenzione del collasso | AC5: 3 | AE5: Ma-N | AF5: 3
B6: PROGETTO/VERIFICA | AB6: Decompressione | AC6: 4 | AE6: Mx-My | AF6: 4
C7: 2) | D7: Domini di interazione | H7: Scegli tipologia di dominio di interazione | AB7: Fessurazione | AC7: 5 | AE7: pressoflessione retta | AF7: 5
D8: Scegli il tipo di dominio di interazione da costruire per lo stato limite selezionato | H8: Menu a tendina Stato Limite | AB8: Limitazione delle tensioni: calcestruzzo | AC8: 6 | AE8: Tutti i domini | AF8: 6
B9: Calcola sezione | AB9: Limitazione delle tensioni: acciaio | AC9: 7
AB10: Tutti gli Stati Limite | AC10: 8
B11: Domini di interazione M-N
C12: 3) | D12: Verifica della Sezione | H12: N [kN] | I12: -1000
B13: Domini di interazione N-c
D14: Specifica il valore del Carico Assiale N e dell'angolo di sollecitazione a per i quali effettuare le verifiche.
B15: Momento curvatura | H15: a [°] | I15: 0
B17: Verifica Sezione
B19: Parametri Stati Limite | C19: 4) | D19: Calcolo Sezione
D21: Parametri avanzati

Sheet PROG-VER-0.1
B2: Calcola sezione | D2: Parametri avanzati | AC2: Numero di quadranti | AD2: 4 | AF2: ntrattiq | AG2: npunti
AC3: 1 | AD3: 1 | AF3: =$E$7 -> 6 | AG3: =AF3*Numero_di_quadranti+1 -> 25
AC4: 2 | AD4: 2
B5: Ritorna al precedente | D5: Domini di interazione | AC5: 3 | AD5: 3
AC6: 4 | AD6: 4
D7: ntrattiq | E7: 6 | G7: Numero di tratti per quadrante dei domini del tipo Mx-My
D9: nq | G9: Numero di quadranti dei domini del tipo Mx-My
AC10: OPZIONI DI CALCOLO | AD10: 1
D11: ninterp | E11: 50 | G11: Numero di punti delle generatrici dei domini del tipo Mx-My | AC11: variabile indipendente: curvatura | AD11: 1
AC12: variabile indipendente: sforzo normale | AD12: 2
D13: DNmax | E13: 0.005 | F13: [kN] | G13: Errore massimo per la convergenza sullo sforzo normale
D15: niter | E15: 3 | G15: Numero massimo di iterazioni del ciclo interno di calcolo
D18: Diagrammi Momento-Curvatura
D20: npunti | E20: 60 | G20: Numero di punti dei diagrammi Momento-Curvatura
D22: cmax | E22: 0.05 | F22: [rad/m] | G22: Valore della curvatura al quale si interrompe il diagramma
D24: DNmax | E24: 1 | F24: [kN] | G24: Errore massimo per la convergenza sullo sforzo normale
D26: niter | E26: 300 | G26: Numero massimo di iterazioni del ciclo interno di calcolo
D29: Opzioni di calcolo

Sheet PROG-VER-1
AB1: celle di supporto per il calcolo dei dati necessari al grafico: sezione ruotata con indicazione delle barre snervate | AU1: celle di supporto per il calcolo dei dati necessari al grafico delle risultanti di acciaio e calcestruzzo | BE1: celle di supporto per il calcolo dei dati necessari al grafico: domini
B2: HOME | G2: angolo di flessione a [°] | I2: N [kN] | L2: Ma [kNm] | M2: c [rad/m] | AB2: numero barre | AD2: =TrasfGeo!$C$3 -> 8 | AI2: tensione di snervamento [N/mm2] | AL2: =('INPUT-2.2.1'!$F$6/'INPUT-2'!$L$20) -> 450 | AP2: numero vertici sezione | AR2: numero vertici nucleo | BE2: Mom SL max | BF2: =Mchi!$BL$25 -> 133.6988877
G3: 0 | I3: -1500 | L3: ='PROG-VER-3'!J4 -> 1.602121928e-05 | M3: ='PROG-VER-3'!K4 -> 1e-09 | AP3: =TrasfGeo!$AH$3 -> 5 | AR3: =TrasfGeo!$AJ$3 -> 5
B4: INPUT | AB4: tutte le barre | AI4: Barre non snervate | AK4: Barre snervate (traz.) | AM4: Barre snervate (comp.) | AP4: Vertici sezione | AR4: Vertici nucleo | AV4: risultanti acciaio | BA4: Ld [m] | BB4: =Mchi!$C$8 -> 0.3 | BE4: linea
AB5: ID | AC5: f | AD5: h | AE5: z | AF5: W | AG5: s | AI5: h | AJ5: z | AK5: h | AL5: z | AM5: h | AN5: z | AP5: h | AQ5: z | AR5: h | AS5: z | AV5: C' | AW5: e C' | AX5: T | AY5: e T | BE5: M | BF5: N
B6: PROGETTO/VERIFICA | AB6: - | AC6: mm | AD6: m | AE6: m | AF6: m2 | AG6: Mpa | AI6: m | AJ6: m | AK6: m | AL6: m | AM6: m | AN6: m | AP6: m | AQ6: m | AR6: m | AS6: m | AV6: kN | AW6: m | AX6: kN | AY6: m | BA6: profilo sezione | BE6: kNm | BF6: kN
AB7: S1 | AC7: 20 | AD7: 0.15 | AE7: 0.1 | AF7: 0.0003141592654 | AG7: =Mchi!Q4 -> -305.9446469 | AI7: 0.15 | AJ7: 0.1 | AP7: 0.2 | AQ7: 0.15 | AR7: 0.165 | AS7: 0.115 | AV7: =Mchi!$B$67 -> -211.1489243 | AW7: =Mchi!$D$67 -> 0.0908946719 | AX7: =Mchi!$B$66 -> 104.7190808 | AY7: =Mchi!$D$66 -> -0.104 | BA7: h | BB7: z | BE7: 0 | BF7: =$I$3 -> -1500
AB8: S2 | AC8: 20 | AD8: 0.15 | AE8: 0 | AF8: 0.0003141592654 | AG8: =Mchi!Q5 -> -305.9446469 | AI8: 0.15 | AJ8: 0 | AP8: 0.2 | AQ8: -0.15 | AR8: 0.165 | AS8: -0.115 | BA8: m | BB8: m | BE8: =BF2 -> 133.6988877 | BF8: =$I$3 -> -1500
B9: Calcola sezione | AB9: S3 | AC9: 20 | AD9: 0.15 | AE9: -0.1 | AF9: 0.0003141592654 | AG9: =Mchi!Q6 -> -305.9446469 | AI9: 0.15 | AJ9: -0.1 | AP9: -0.2 | AQ9: -0.15 | AR9: -0.165 | AS9: -0.115 | AV9: punti grafico C' | AX9: punti grafico T | BA9: =BB4/2 -> 0.15 | BB9: =-10 -> -10
AB10: S4 | AC10: 20 | AD10: -1.387778781e-17 | AE10: 0.1 | AF10: 0.0003141592654 | AG10: =Mchi!Q7 -> -66.16732688 | AI10: -1.387778781e-17 | AJ10: 0.1 | AP10: -0.2 | AQ10: 0.15 | AR10: -0.165 | AS10: 0.115 | AV10: C' = | AW10: =$AV$7 -> -211.1489243 | AX10: T = | AY10: =$AX$7 -> 104.7190808 | BA10: =BA9 -> 0.15 | BB10: 0
B11: Domini di interazione M-N | AB11: S5 | AC11: 20 | AD11: -1.387778781e-17 | AE11: -0.1 | AF11: 0.0003141592654 | AG11: =Mchi!Q8 -> -66.16732688 | AI11: -1.387778781e-17 | AJ11: -0.1 | AP11: 0.2 | AQ11: 0.15 | AR11: 0.165 | AS11: 0.115 | AV11: =$AW$7 -> 0.0908946719 | AW11: 0 | AX11: =$AY$7 -> -0.104 | AY11: 0 | BA11: =-BB4/2 -> -0.15 | BB11: 0
AB12: S6 | AC12: 20 | AD12: -0.15 | AE12: 0.1 | AF12: 0.0003141592654 | AG12: =Mchi!Q9 -> 173.6099932 | AI12: -0.15 | AJ12: 0.1 | AV12: =$AW$7 -> 0.0908946719 | AW12: =-AV7/AX24 -> 0.2639361553 | AX12: =$AY$7 -> -0.104 | AY12: =AX7/AX24 -> 0.130898851 | BA12: =BA11 -> -0.15 | BB12: =BB9 -> -10
B13: Domini di interazione N-c | AB13: S7 | AC13: 20 | AD13: -0.15 | AE13: 0 | AF13: 0.0003141592654 | AG13: =Mchi!Q10 -> 173.6099932 | AI13: -0.15 | AJ13: 0
AB14: S8 | AC14: 20 | AD14: -0.15 | AE14: -0.1 | AF14: 0.0003141592654 | AG14: =Mchi!Q11 -> 173.6099932 | AI14: -0.15 | AJ14: -0.1 | AV14: risultanti cls
B15: Momento curvatura | AV15: C | AW15: ec | AX15: Tcls | AY15: eTcls
AV16: kN | AW16: m | AX16: kN | AY16: m
B17: Verifica Sezione | AV17: =Mchi!$B$58 -> -910.6570142 | AW17: =Mchi!$D$58 -> 0.08141702776 | AX17: =Mchi!$B$53 -> 17.08685849 | AY17: =Mchi!$D$53 -> -0.08556324724
B19: Parametri Stati Limite | AV19: punti grafico C | AX19: punti grafico Tcls
AV20: C = | AW20: =$AV$17 -> -910.6570142 | AX20: Tcls = | AY20: =$AX$17 -> 17.08685849
AV21: =$AW$17 -> 0.08141702776 | AW21: 0 | AX21: =$AY$17 -> -0.08556324724 | AY21: 0
AV22: =$AW$17 -> 0.08141702776 | AW22: =-AW20/AX24 -> 1.138321268 | AX22: =$AY$17 -> -0.08556324724 | AY22: =AY20/AX24 -> 0.02135857311
AV24: fattore di scala frecce | AX24: 800

Sheet PROG-VER-2
B2: HOME | D2: Domini di interazione M-N | H2: a | I2: N | J2: Mx | K2: My | L2: Ma | AB2: STATI LIMITE | AC2: 6 | AE2: =IF($AC$2=1,"Stato Limite di Prima Plasticizzazione",IF($AC$2=2,"Stato Limite di Salvaguardia della Vita",IF($AC$2=3,"Stato Limite di Prevenzione del Collasso",IF($AC$2=4,"Stato Limite di Decompressione",IF($AC$2=5,"Stato Limite di Fessurazione",IF($AC$2=6,"Limitazione delle Tensioni: cls",IF($AC$2=7,"Limitazione delle Tensioni: acciaio",""))))))) -> Limitazione delle Tensioni: cls | AI2: =IF($AC$2=1,"Stato Limite di Prima Plasticizzazione",IF($AC$2=2,"Stato Limite di Salvaguardia della Vita",IF($AC$2=3,"Stato Limite di Prevenzione del Collasso",IF($AC$2=4,"Stato Limite di Decompressione",IF($AC$2=5,"Stato Limite di Fessurazione",IF($AC$2=6,"Limitazione delle Tensioni: cls",IF($AC$2=7,"Limitazione delle Tensioni: acciaio",""))))))) -> Limitazione delle Tensioni: cls | AM2: =IF($AC$2=1,"Stato Limite di Prima Plasticizzazione",IF($AC$2=2,"Stato Limite di Salvaguardia della Vita",IF($AC$2=3,"Stato Limite di Prevenzione del Collasso",IF($AC$2=4,"Stato Limite di Decompressione",IF($AC$2=5,"Stato Limite di Fessurazione",IF($AC$2=6,"Limitazione delle Tensioni: cls",IF($AC$2=7,"Limitazione delle Tensioni: acciaio",""))))))) -> Limitazione delle Tensioni: cls | AQ2: =IF($AC$2=1,"Stato Limite di Prima Plasticizzazione",IF($AC$2=2,"Stato Limite di Salvaguardia della Vita",IF($AC$2=3,"Stato Limite di Prevenzione del Collasso",IF($AC$2=4,"Stato Limite di Decompressione",IF($AC$2=5,"Stato Limite di Fessurazione",IF($AC$2=6,"Limitazione delle Tensioni: cls",IF($AC$2=7,"Limitazione delle Tensioni: acciaio",""))))))) -> Limitazione delle Tensioni: cls
D3: =IF(AC2=1,"Stato Limite di Prima Plasticizzazione",IF(AC2=2,"Stato Limite di Salvaguardia della Vita",IF(AC2=3,"Stato Limite di Prevenzione del Collasso",IF(AC2=4,"Stato Limite di Decompressione",IF(AC2=5,"Stato Limite di Fessurazione",IF(AC2=6,"Limitazione delle Tensioni: calcestruzzo",IF(AC2=7,"Limitazione delle tensioni: acciaio",""))))))) -> Limitazione delle Tensioni: calcestruzzo | H3: ='PROG-VER-0'!$I$15 -> 0 | I3: -1000 | J3: 100 | K3: 150 | L3: 200 | AB3: Prima Plasticizzazione | AC3: 1 | AE3: Punto | AF3: M1 | AG3: N | AI3: Punto | AJ3: M2 | AK3: N | AM3: Punto | AN3: M1 | AO3: M2 | AQ3: Punto | AR3: Ma | AS3: N
B4: INPUT | AB4: Salvaguardia della vita | AC4: 2 | AE4: n | AF4: kNm | AG4: kN | AI4: n | AJ4: kNm | AK4: kN | AM4: n | AN4: kNm | AO4: kNm | AQ4: n | AR4: kNm | AS4: kN
I5: My - N | AB5: Prevenzione del collasso | AC5: 3 | AE5: 1 | AF5: -2.953193246e-14 | AG5: -3013.138212 | AI5: 1 | AJ5: 1.099120794e-14 | AK5: -3013.138212 | AM5: 1 | AN5: 165.6708744 | AO5: 2.42912521e-15 | AQ5: 1 | AR5: -3.264055692e-14 | AS5: -3011.998347
B6: PROGETTO/VERIFICA | AB6: Decompressione | AC6: 4 | AE6: 2 | AF6: 0.6120911162 | AG6: -3000.536416 | AI6: 2 | AJ6: 0.4148060858 | AK6: -3000.536416 | AM6: 2 | AN6: 146.4901372 | AO6: 17.99773319 | AQ6: 2 | AR6: 0.7031199391 | AS6: -2997.319728
AB7: Fessurazione | AC7: 5 | AE7: 3 | AF7: 3.394852017 | AG7: -2973.463489 | AI7: 3 | AJ7: 2.11493334 | AK7: -2975.081409 | AM7: 3 | AN7: 127.5009883 | AO7: 34.53304466 | AQ7: 3 | AR7: 3.576909663 | AS7: -2968.169977
AB8: Limitazione delle tensioni: calcestruzzo | AC8: 6 | AE8: 4 | AF8: 6.776127263 | AG8: -2936.178417 | AI8: 4 | AJ8: 4.332268763 | AK8: -2938.455044 | AM8: 4 | AN8: 103.5401986 | AO8: 50.76914115 | AQ8: 4 | AR8: 7.049213732 | AS8: -2928.808081
B9: Calcola sezione | AB9: Limitazione delle tensioni: acciaio | AC9: 7 | AE9: 5 | AF9: 10.4209974 | AG9: -2896.711006 | AI9: 5 | AJ9: 6.70856633 | AK9: -2900.031033 | AM9: 5 | AN9: 76.38347035 | AO9: 69.12418227 | AQ9: 5 | AR9: 10.58152151 | AS9: -2888.791909
AE10: 6 | AF10: 14.48500943 | AG10: -2853.656618 | AI10: 6 | AJ10: 9.428720727 | AK10: -2857.704861 | AM10: 6 | AN10: 44.48148166 | AO10: 90.17220133 | AQ10: 6 | AR10: 14.34811207 | AS10: -2847.275892
B11: Domini di interazione M-N | AE11: 7 | AF11: 18.67931046 | AG11: -2808.696177 | AI11: 7 | AJ11: 12.25596671 | AK11: -2813.488035 | AM11: 7 | AN11: 8.998669907e-15 | AO11: 112.1318596 | AQ11: 7 | AR11: 18.29314725 | AS11: -2804.421329
AE12: 8 | AF12: 23.12964255 | AG12: -2761.48222 | AI12: 8 | AJ12: 14.96822284 | AK12: -2763.688558 | AM12: 8 | AN12: -44.48148166 | AO12: 90.17220133 | AQ12: 8 | AR12: 22.8062448 | AS12: -2757.46765
B13: Domini di interazione N-c | F13: Mx - N | I13: My - N | L13: Mx - My | AE13: 9 | AF13: 27.71115526 | AG13: -2712.728482 | AI13: 9 | AJ13: 17.79651162 | AK13: -2712.092056 | AM13: 9 | AN13: -76.38347035 | AO13: 69.12418227 | AQ13: 9 | AR13: 27.61031564 | AS13: -2707.709258
AE14: 10 | AF14: 32.42704637 | AG14: -2658.058487 | AI14: 10 | AJ14: 20.92890813 | AK14: -2657.624708 | AM14: 10 | AN14: -103.5401986 | AO14: 50.76914115 | AQ14: 10 | AR14: 32.40340958 | AS14: -2652.590361
B15: Momento curvatura | D15: STATO LIMITE DI VERIFICA | AE15: 11 | AF15: 37.51357822 | AG15: -2600.015599 | AI15: 11 | AJ15: 24.38817529 | AK15: -2599.174005 | AM15: 11 | AN15: -127.5009883 | AO15: 34.53304466 | AQ15: 11 | AR15: 37.40306593 | AS15: -2595.063129
D16: Prevenzione del collasso | AE16: 12 | AF16: 42.96903633 | AG16: -2538.650659 | AI16: 12 | AJ16: 28.12652014 | AK16: -2537.812749 | AM16: 12 | AN16: -146.4901372 | AO16: 17.99773319 | AQ16: 12 | AR16: 42.68593634 | AS16: -2535.195912
B17: Verifica Sezione | AE17: 13 | AF17: 48.72829839 | AG17: -2474.658156 | AI17: 13 | AJ17: 32.16266087 | AK17: -2473.125272 | AM17: 13 | AN17: -165.6708744 | AO17: 1.634306618e-14 | AQ17: 13 | AR17: 48.38601091 | AS17: -2471.885024
AE18: 14 | AF18: 54.79921297 | AG18: -2407.664152 | AI18: 14 | AJ18: 36.38177106 | AK18: -2405.927886 | AM18: 14 | AN18: -146.4901372 | AO18: -17.99773319 | AQ18: 14 | AR18: 54.63131747 | AS18: -2404.22893
B19: Parametri Stati Limite | AE19: 15 | AF19: 61.39822037 | AG19: -2336.537891 | AI19: 15 | AJ19: 40.98884051 | AK19: -2334.345246 | AM19: 15 | AN19: -127.5009883 | AO19: -34.53304466 | AQ19: 15 | AR19: 61.32258667 | AS19: -2332.712856
AE20: 16 | AF20: 68.40859616 | AG20: -2261.78869 | AI20: 16 | AJ20: 45.91190349 | AK20: -2259.696548 | AM20: 16 | AN20: -103.5401986 | AO20: -50.76914115 | AQ20: 16 | AR20: 68.33158429 | AS20: -2258.234008
AE21: 17 | AF21: 75.85588198 | AG21: -2183.517978 | AI21: 17 | AJ21: 51.19394475 | AK21: -2180.731414 | AM21: 17 | AN21: -76.38347035 | AO21: -69.12418227 | AQ21: 17 | AR21: 75.7134306 | AS21: -2180.037345
AE22: 18 | AF22: 83.5490069 | AG22: -2102.116373 | AI22: 18 | AJ22: 56.71150183 | AK22: -2098.712193 | AM22: 18 | AN22: -44.48148166 | AO22: -90.17220133 | AQ22: 18 | AR22: 83.33832042 | AS22: -2099.408823
L23: Ma - N | AE23: 19 | AF23: 91.61677647 | AG23: -2017.542029 | AI23: 19 | AJ23: 62.44807841 | AK23: -2014.289336 | AM23: 19 | AN23: -2.789877429e-14 | AO23: -112.1318596 | AQ23: 19 | AR23: 91.44837507 | AS23: -2014.991984
AE24: 20 | AF24: 100.0061266 | AG24: -1929.287571 | AI24: 20 | AJ24: 68.40523241 | AK24: -1925.849898 | AM24: 20 | AN24: 44.48148166 | AO24: -90.17220133 | AQ24: 20 | AR24: 99.94308516 | AS24: -1925.968651
AE25: 21 | AF25: 108.7628838 | AG25: -1837.767327 | AI25: 21 | AJ25: 74.63988533 | AK25: -1833.794286 | AM25: 21 | AN25: 76.38347035 | AO25: -69.12418227 | AQ25: 21 | AR25: 108.7238022 | AS25: -1834.575243
AE26: 22 | AF26: 156.2482215 | AG26: -1109.893753 | AI26: 22 | AJ26: 107.599853 | AK26: -1077.028386 | AM26: 22 | AN26: 103.5401986 | AO26: -50.76914115 | AQ26: 22 | AR26: 156.1792966 | AS26: -1108.539266
AE27: 23 | AF27: 169.3276229 | AG27: -646.8270239 | AI27: 23 | AJ27: 114.0428358 | AK27: -604.2469634 | AM27: 23 | AN27: 127.5009883 | AO27: -34.53304466 | AQ27: 23 | AR27: 169.1971379 | AS27: -645.1245566
AE28: 24 | AF28: 168.7379635 | AG28: -346.8875333 | AI28: 24 | AJ28: 113.4259789 | AK28: -281.239453 | AM28: 24 | AN28: 146.4901372 | AO28: -17.99773319 | AQ28: 24 | AR28: 168.6260582 | AS28: -345.6445712
AE29: 25 | AF29: 156.8957509 | AG29: -174.925578 | AI29: 25 | AJ29: 103.6144778 | AK29: -93.629158 | AM29: 25 | AN29: 165.6708744 | AO29: -2.214180072e-14 | AQ29: 25 | AR29: 156.8296824 | AS29: -174.3436249
AE30: 26 | AF30: 146.6030997 | AG30: -27.88173055 | AI30: 26 | AJ30: 95.32995412 | AK30: 64.48944231 | AQ30: 26 | AR30: 146.3764633 | AS30: -26.14982375
AE31: 27 | AF31: 136.9995746 | AG31: 103.3083791 | AI31: 27 | AJ31: 87.75288117 | AK31: 182.9781302 | AQ31: 27 | AR31: 136.9774317 | AS31: 103.5599949
AE32: 28 | AF32: 129.0505503 | AG32: 159.1192716 | AI32: 28 | AJ32: 80.54454369 | AK32: 256.2951003 | AQ32: 28 | AR32: 129.2207435 | AS32: 157.9374234
AE33: 29 | AF33: 121.5167586 | AG33: 212.1277737 | AI33: 29 | AJ33: 75.54118565 | AK33: 302.7410714 | AQ33: 29 | AR33: 121.3228307 | AS33: 213.4525182
AE34: 30 | AF34: 115.001566 | AG34: 255.0226374 | AI34: 30 | AJ34: 69.98877421 | AK34: 355.094451 | AQ34: 30 | AR34: 114.8895241 | AS34: 255.7837081
AE35: 31 | AF35: 108.1248426 | AG35: 301.4617722 | AI35: 31 | AJ35: 64.25032602 | AK35: 409.241042 | AQ35: 31 | AR35: 108.1114368 | AS35: 301.5516941
AE36: 32 | AF36: 101.9754958 | AG36: 342.2310847 | AI36: 32 | AJ36: 57.38083278 | AK36: 475.1964992 | AQ36: 32 | AR36: 102.0793915 | AS36: 341.5535892
AE37: 33 | AF37: 97.27212546 | AG37: 372.4379463 | AI37: 33 | AJ37: 52.73609374 | AK37: 519.7590875 | AQ37: 33 | AR37: 97.18950892 | AS37: 372.9724366
AE38: 34 | AF38: 92.15545615 | AG38: 405.5055307 | AI38: 34 | AJ38: 48.87323274 | AK38: 556.7131536 | AQ38: 34 | AR38: 92.09322684 | AS38: 405.9085035
AE39: 35 | AF39: 86.96248584 | AG39: 439.0188977 | AI39: 35 | AJ39: 44.93869199 | AK39: 594.2379935 | AQ39: 35 | AR39: 86.92064377 | AS39: 439.2903531
AE40: 36 | AF40: 81.77967743 | AG40: 472.3973802 | AI40: 36 | AJ40: 40.90217827 | AK40: 632.5748269 | AQ40: 36 | AR40: 81.76180755 | AS40: 472.5134184
AE41: 37 | AF41: 75.66497366 | AG41: 512.1156039 | AI41: 37 | AJ41: 36.88333586 | AK41: 670.693211 | AQ41: 37 | AR41: 75.66497366 | AS41: 512.1156039
AE42: 38 | AF42: 70.31902373 | AG42: 546.9615022 | AI42: 38 | AJ42: 32.54874977 | AK42: 711.718431 | AQ42: 38 | AR42: 70.31902373 | AS42: 546.9615022
AE43: 39 | AF43: 66.25198471 | AG43: 573.4148792 | AI43: 39 | AJ43: 28.02469987 | AK43: 754.5229103 | AQ43: 39 | AR43: 66.25198471 | AS43: 573.4148792
AE44: 40 | AF44: 62.18494568 | AG44: 599.8682563 | AI44: 40 | AJ44: 23.38231718 | AK44: 798.2307343 | AQ44: 40 | AR44: 62.18494568 | AS44: 599.8682563
AE45: 41 | AF45: 58.08213228 | AG45: 626.527529 | AI45: 41 | AJ45: 18.73743084 | AK45: 841.9577592 | AQ45: 41 | AR45: 58.08213228 | AS45: 626.527529
AE46: 42 | AF46: 53.8846692 | AG46: 653.731548 | AI46: 42 | AJ46: 14.45738101 | AK46: 881.2414386 | AQ46: 42 | AR46: 53.8846692 | AS46: 653.731548
AE47: 43 | AF47: 49.6984639 | AG47: 680.8605152 | AI47: 43 | AJ47: 14.05705785 | AK47: 884.2547782 | AQ47: 43 | AR47: 49.6984639 | AS47: 680.8605152
AE48: 44 | AF48: 45.52742916 | AG48: 707.8730497 | AI48: 44 | AJ48: 13.93296493 | AK48: 885.027655 | AQ48: 44 | AR48: 45.52742916 | AS48: 707.8730497
AE49: 45 | AF49: 41.21626798 | AG49: 735.7327189 | AI49: 45 | AJ49: 13.80887201 | AK49: 885.8005317 | AQ49: 45 | AR49: 41.21626798 | AS49: 735.7327189
AE50: 46 | AF50: 36.6743527 | AG50: 765.0907912 | AI50: 46 | AJ50: 13.66837935 | AK50: 886.6895129 | AQ50: 46 | AR50: 36.6743527 | AS50: 765.0907912
AE51: 47 | AF51: 32.127228 | AG51: 794.4777419 | AI51: 47 | AJ51: 13.46833399 | AK51: 888.0082637 | AQ51: 47 | AR51: 32.127228 | AS51: 794.4777419
AE52: 48 | AF52: 27.49119584 | AG52: 824.3575505 | AI52: 48 | AJ52: 13.2607102 | AK52: 889.3831511 | AQ52: 48 | AR52: 27.49119584 | AS52: 824.3575505
AE53: 49 | AF53: 22.85516369 | AG53: 854.237359 | AI53: 49 | AJ53: 13.05308641 | AK53: 890.7580384 | AQ53: 49 | AR53: 22.85516369 | AS53: 854.237359
AE54: 50 | AF54: 18.21913153 | AG54: 884.1171676 | AI54: 50 | AJ54: 12.84546262 | AK54: 892.1329258 | AQ54: 50 | AR54: 18.21913153 | AS54: 884.1171676
AE55: 51 | AF55: 13.86573278 | AG55: 911.683725 | AI55: 51 | AJ55: 12.61541532 | AK55: 893.6739133 | AQ55: 51 | AR55: 13.86573278 | AS55: 911.683725
AE56: 52 | AF56: 13.3544297 | AG56: 914.5727537 | AI56: 52 | AJ56: 12.28165532 | AK56: 896.0510118 | AQ56: 52 | AR56: 13.3544297 | AS56: 914.5727537
AE57: 53 | AF57: 13.39880383 | AG57: 914.2636401 | AI57: 53 | AJ57: 11.84993939 | AK57: 899.1816459 | AQ57: 53 | AR57: 13.39880383 | AS57: 914.2636401
AE58: 54 | AF58: 13.44317796 | AG58: 913.9545265 | AI58: 54 | AJ58: 11.39915742 | AK58: 902.4472722 | AQ58: 54 | AR58: 13.44317796 | AS58: 913.9545265
AE59: 55 | AF59: 13.48755209 | AG59: 913.645413 | AI59: 55 | AJ59: 10.93440774 | AK59: 905.8163629 | AQ59: 55 | AR59: 13.48755209 | AS59: 913.645413
AE60: 56 | AF60: 13.53192622 | AG60: 913.3362994 | AI60: 56 | AJ60: 10.46965807 | AK60: 909.1854537 | AQ60: 56 | AR60: 13.53192622 | AS60: 913.3362994
AE61: 57 | AF61: 13.5437044 | AG61: 913.1976222 | AI61: 57 | AJ61: 10.00490839 | AK61: 912.5545444 | AQ61: 57 | AR61: 13.5437044 | AS61: 913.1976222
AE62: 58 | AF62: 13.5432384 | AG62: 913.1229669 | AI62: 58 | AJ62: 9.525241177 | AK62: 916.0341355 | AQ62: 58 | AR62: 13.5432384 | AS62: 913.1229669
AE63: 59 | AF63: 13.54277241 | AG63: 913.0483115 | AI63: 59 | AJ63: 8.935923283 | AK63: 920.325737 | AQ63: 59 | AR63: 13.54277241 | AS63: 913.0483115
AE64: 60 | AF64: 13.54230641 | AG64: 912.9736561 | AI64: 60 | AJ64: 8.492289892 | AK64: 923.5191139 | AQ64: 60 | AR64: 13.54230641 | AS64: 912.9736561
AE65: 61 | AF65: 13.54184041 | AG65: 912.8990007 | AI65: 61 | AJ65: 8.245609132 | AK65: 925.2535824 | AQ65: 61 | AR65: 13.54184041 | AS65: 912.8990007
AE66: 62 | AF66: 13.54137442 | AG66: 912.8243454 | AI66: 62 | AJ66: 7.998928372 | AK66: 926.9880509 | AQ66: 62 | AR66: 13.54137442 | AS66: 912.8243454
AE67: 63 | AF67: 13.54090842 | AG67: 912.74969 | AI67: 63 | AJ67: 7.752247612 | AK67: 928.7225195 | AQ67: 63 | AR67: 13.54090842 | AS67: 912.74969
AE68: 64 | AF68: 13.54044243 | AG68: 912.6750346 | AI68: 64 | AJ68: 7.505566852 | AK68: 930.456988 | AQ68: 64 | AR68: 13.54044243 | AS68: 912.6750346
AE69: 65 | AF69: 13.43088824 | AG69: 913.2282249 | AI69: 65 | AJ69: 7.258886093 | AK69: 932.1914565 | AQ69: 65 | AR69: 13.43088824 | AS69: 913.2282249
AE70: 66 | AF70: 13.26408434 | AG70: 914.1004022 | AI70: 66 | AJ70: 6.992790741 | AK70: 934.0633734 | AQ70: 66 | AR70: 13.26408434 | AS70: 914.1004022
AE71: 67 | AF71: 13.06716668 | AG71: 915.130037 | AI71: 67 | AJ71: 6.691615232 | AK71: 936.1836455 | AQ71: 67 | AR71: 13.06716668 | AS71: 915.130037
AE72: 68 | AF72: 12.87024902 | AG72: 916.1596718 | AI72: 68 | AJ72: 6.390439723 | AK72: 938.3039175 | AQ72: 68 | AR72: 12.87024902 | AS72: 916.1596718
AE73: 69 | AF73: 12.67333137 | AG73: 917.1893066 | AI73: 69 | AJ73: 6.089264214 | AK73: 940.4241896 | AQ73: 69 | AR73: 12.67333137 | AS73: 917.1893066
AE74: 70 | AF74: 12.47641371 | AG74: 918.2189415 | AI74: 70 | AJ74: 5.788088704 | AK74: 942.5444616 | AQ74: 70 | AR74: 12.47641371 | AS74: 918.2189415
AE75: 71 | AF75: 12.27949605 | AG75: 919.2485763 | AI75: 71 | AJ75: 5.486913195 | AK75: 944.6647337 | AQ75: 71 | AR75: 12.27949605 | AS75: 919.2485763
AE76: 72 | AF76: 12.08257839 | AG76: 920.2782111 | AI76: 72 | AJ76: 5.185737686 | AK76: 946.7850057 | AQ76: 72 | AR76: 12.08257839 | AS76: 920.2782111
AE77: 73 | AF77: 11.88566073 | AG77: 921.3078459 | AI77: 73 | AJ77: 4.8547219 | AK77: 949.1165364 | AQ77: 73 | AR77: 11.88566073 | AS77: 921.3078459
AE78: 74 | AF78: 11.68874308 | AG78: 922.3374807 | AI78: 74 | AJ78: 4.510996367 | AK78: 951.5380475 | AQ78: 74 | AR78: 11.68874308 | AS78: 922.3374807
AE79: 75 | AF79: 11.48820071 | AG79: 923.3860682 | AI79: 75 | AJ79: 4.167270834 | AK79: 953.9595587 | AQ79: 75 | AR79: 11.48820071 | AS79: 923.3860682
AE80: 76 | AF80: 11.23958325 | AG80: 924.6860288 | AI80: 76 | AJ80: 3.809283501 | AK80: 956.4867128 | AQ80: 76 | AR80: 11.23958325 | AS80: 924.6860288
AE81: 77 | AF81: 10.99096579 | AG81: 925.9859894 | AI81: 77 | AJ81: 3.429116987 | AK81: 959.1781571 | AQ81: 77 | AR81: 10.99096579 | AS81: 925.9859894
AE82: 78 | AF82: 10.74234833 | AG82: 927.28595 | AI82: 78 | AJ82: 3.048950473 | AK82: 961.8696015 | AQ82: 78 | AR82: 10.74234833 | AS82: 927.28595
AE83: 79 | AF83: 10.49373086 | AG83: 928.5859106 | AI83: 79 | AJ83: 2.667695082 | AK83: 964.5687547 | AQ83: 79 | AR83: 10.49373086 | AS83: 928.5859106
AE84: 80 | AF84: 10.2451134 | AG84: 929.8858711 | AI84: 80 | AJ84: 2.264026966 | AK84: 967.4265821 | AQ84: 80 | AR84: 10.2451134 | AS84: 929.8858711
AE85: 81 | AF85: 9.996495943 | AG85: 931.1858317 | AI85: 81 | AJ85: 1.86035885 | AK85: 970.2844094 | AQ85: 81 | AR85: 9.996495943 | AS85: 931.1858317
AE86: 82 | AF86: 9.747878482 | AG86: 932.4857923 | AI86: 82 | AJ86: 1.456690734 | AK86: 973.1422368 | AQ86: 82 | AR86: 9.747878482 | AS86: 932.4857923
AE87: 83 | AF87: 9.499261021 | AG87: 933.7857529 | AI87: 83 | AJ87: 1.053022618 | AK87: 976.0000642 | AQ87: 83 | AR87: 9.499261021 | AS87: 933.7857529
AE88: 84 | AF88: 9.250643559 | AG88: 935.0857135 | AI88: 84 | AJ88: 0.6493545018 | AK88: 978.8578915 | AQ88: 84 | AR88: 9.250643559 | AS88: 935.0857135
AE89: 85 | AF89: 8.966533333 | AG89: 936.5712571 | AI89: 85 | AJ89: 0.2456863858 | AK89: 981.7157189 | AQ89: 85 | AR89: 8.966533333 | AS89: 936.5712571
AE90: 86 | AF90: 8.670062443 | AG90: 938.1214317 | AI90: 86 | AJ90: -0.2393738214 | AK90: 985.1497735 | AQ90: 86 | AR90: 8.670062443 | AS90: 938.1214317
AE91: 87 | AF91: 8.373591552 | AG91: 939.6716063 | AI91: 87 | AJ91: -0.8510115049 | AK91: 989.4799518 | AQ91: 87 | AR91: 8.373591552 | AS91: 939.6716063
AE92: 88 | AF92: 8.077120662 | AG92: 941.2217809 | AI92: 88 | AJ92: -1.462649189 | AK92: 993.8101301 | AQ92: 88 | AR92: 8.077120662 | AS92: 941.2217809
AE93: 89 | AF93: 7.780649771 | AG93: 942.7719555 | AI93: 89 | AJ93: -1.651498241 | AK93: 995.1471145 | AQ93: 89 | AR93: 7.780649771 | AS93: 942.7719555
AE94: 90 | AF94: 7.48417888 | AG94: 944.3221301 | AI94: 90 | AJ94: -1.590334473 | AK94: 994.7140967 | AQ94: 90 | AR94: 7.48417888 | AS94: 944.3221301
AE95: 91 | AF95: 7.18770799 | AG95: 945.8723047 | AI95: 91 | AJ95: -1.529170705 | AK95: 994.2810788 | AQ95: 91 | AR95: 7.18770799 | AS95: 945.8723047
AE96: 92 | AF96: 6.891237099 | AG96: 947.4224793 | AI96: 92 | AJ96: -1.468006936 | AK96: 993.848061 | AQ96: 92 | AR96: 6.891237099 | AS96: 947.4224793
AE97: 93 | AF97: 6.594766209 | AG97: 948.9726539 | AI97: 93 | AJ97: -1.406843168 | AK97: 993.4150432 | AQ97: 93 | AR97: 6.594766209 | AS97: 948.9726539
AE98: 94 | AF98: 6.282853197 | AG98: 950.6035716 | AI98: 94 | AJ98: -1.345679399 | AK98: 992.9820254 | AQ98: 94 | AR98: 6.282853197 | AS98: 950.6035716
AE99: 95 | AF99: 5.94901789 | AG99: 952.3491157 | AI99: 95 | AJ99: -1.284515631 | AK99: 992.5490075 | AQ99: 95 | AR99: 5.94901789 | AS99: 952.3491157
AE100: 96 | AF100: 5.615182582 | AG100: 954.0946598 | AI100: 96 | AJ100: -1.223351863 | AK100: 992.1159897 | AQ100: 96 | AR100: 5.615182582 | AS100: 954.0946598
AE101: 97 | AF101: 5.281347274 | AG101: 955.8402039 | AI101: 97 | AJ101: -1.162188094 | AK101: 991.6829719 | AQ101: 97 | AR101: 5.281347274 | AS101: 955.8402039
AE102: 98 | AF102: 4.947511966 | AG102: 957.5857479 | AI102: 98 | AJ102: -1.101024326 | AK102: 991.249954 | AQ102: 98 | AR102: 4.947511966 | AS102: 957.5857479
AE103: 99 | AF103: 4.613676658 | AG103: 959.331292 | AI103: 99 | AJ103: -1.039860558 | AK103: 990.8169362 | AQ103: 99 | AR103: 4.613676658 | AS103: 959.331292
AE104: 100 | AF104: 4.279841351 | AG104: 961.0768361 | AI104: 100 | AJ104: -0.9786967893 | AK104: 990.3839184 | AQ104: 100 | AR104: 4.279841351 | AS104: 961.0768361

Sheet PROG-VER-2 N-chi
B2: HOME | D2: Domini di interazione N-c | H2: a | I2: N | J2: Mx | K2: My | L2: Ma | AB2: STATI LIMITE | AC2: 2 | AE2: =IF($AC$2=1,"Stato Limite di Prima Plasticizzazione",IF($AC$2=2,"Stato Limite di Salvaguardia della Vita",IF($AC$2=3,"Stato Limite di Prevenzione del Collasso",IF($AC$2=4,"Stato Limite di Decompressione",IF($AC$2=5,"Stato Limite di Fessurazione",IF($AC$2=6,"Limitazione delle Tensioni: cls",IF($AC$2=7,"Limitazione delle Tensioni: acciaio",""))))))) -> Stato Limite di Salvaguardia della Vita | AI2: =IF($AC$2=1,"Stato Limite di Prima Plasticizzazione",IF($AC$2=2,"Stato Limite di Salvaguardia della Vita",IF($AC$2=3,"Stato Limite di Prevenzione del Collasso",IF($AC$2=4,"Stato Limite di Decompressione",IF($AC$2=5,"Stato Limite di Fessurazione",IF($AC$2=6,"Limitazione delle Tensioni: cls",IF($AC$2=7,"Limitazione delle Tensioni: acciaio",""))))))) -> Stato Limite di Salvaguardia della Vita | AM2: =IF($AC$2=1,"Stato Limite di Prima Plasticizzazione",IF($AC$2=2,"Stato Limite di Salvaguardia della Vita",IF($AC$2=3,"Stato Limite di Prevenzione del Collasso",IF($AC$2=4,"Stato Limite di Decompressione",IF($AC$2=5,"Stato Limite di Fessurazione",IF($AC$2=6,"Limitazione delle Tensioni: cls",IF($AC$2=7,"Limitazione delle Tensioni: acciaio",""))))))) -> Stato Limite di Salvaguardia della Vita | AQ2: =IF($AC$2=1,"Stato Limite di Prima Plasticizzazione",IF($AC$2=2,"Stato Limite di Salvaguardia della Vita",IF($AC$2=3,"Stato Limite di Prevenzione del Collasso",IF($AC$2=4,"Stato Limite di Decompressione",IF($AC$2=5,"Stato Limite di Fessurazione",IF($AC$2=6,"Limitazione delle Tensioni: cls",IF($AC$2=7,"Limitazione delle Tensioni: acciaio",""))))))) -> Stato Limite di Salvaguardia della Vita
D3: =IF(AC2=1,"Stato Limite di Prima Plasticizzazione",IF(AC2=2,"Stato Limite di Salvaguardia della Vita",IF(AC2=3,"Stato Limite di Prevenzione del Collasso",IF(AC2=4,"Stato Limite di Decompressione",IF(AC2=5,"Stato Limite di Fessurazione",IF(AC2=6,"Limitazione delle Tensioni: calcestruzzo",IF(AC2=7,"Limitazione delle tensioni: acciaio",""))))))) -> Stato Limite di Salvaguardia della Vita | H3: ='PROG-VER-1'!$G$3 -> 0 | I3: -3000 | AB3: Prima Plasticizzazione | AC3: 1 | AE3: Punto | AF3: N | AG3: c1 | AI3: Punto | AJ3: N | AK3: c2 | AM3: Punto | AN3: N | AO3: ca | AQ3: Punto | AR3: c1 | AS3: c2
B4: INPUT | AB4: Salvaguardia della vita | AC4: 2 | AE4: n | AF4: kN | AG4: rad/m | AI4: n | AJ4: kN | AK4: rad/m | AM4: n | AN4: kN | AO4: rad/m | AQ4: n | AR4: rad/m | AS4: rad/m
I5: My - N | AB5: Prevenzione del collasso | AC5: 3 | AE5: 1 | AF5: -3011.998347 | AG5: 1e-20 | AI5: 1 | AJ5: -3013.138212 | AK5: 1e-20 | AM5: 1 | AN5: 0.02525803696 | AO5: 0 | AQ5: 1 | AR5: -3011.998347 | AS5: 1e-20
B6: PROGETTO/VERIFICA | AB6: Decompressione | AC6: 4 | AE6: 2 | AF6: -3010.13963 | AG6: 0.0003333333333 | AI6: 2 | AJ6: -3012.282322 | AK6: 0.0004444444444 | AM6: 2 | AN6: 0.01997212324 | AO6: 0.005351514293 | AQ6: 2 | AR6: -3010.13963 | AS6: 0.0003333333333
AB7: Fessurazione | AC7: 5 | AE7: 3 | AF7: -3007.719237 | AG7: 0.0006666666667 | AI7: 3 | AJ7: -3011.426432 | AK7: 0.0008888888889 | AM7: 3 | AN7: 0.01559882691 | AO7: 0.009005986918 | AQ7: 3 | AR7: -3007.719237 | AS7: 0.0006666666667
AB8: Limitazione delle tensioni: calcestruzzo | AC8: 6 | AE8: 4 | AF8: -2995.652481 | AG8: 0.001 | AI8: 4 | AJ8: -3004.189012 | AK8: 0.001333333333 | AM8: 4 | AN8: 0.01227062037 | AO8: 0.01227062037 | AQ8: 4 | AR8: -2995.652481 | AS8: 0.001
B9: Calcola sezione | AB9: Limitazione delle tensioni: acciaio | AC9: 7 | AE9: 5 | AF9: -2982.703312 | AG9: 0.001333333333 | AI9: 5 | AJ9: -2993.610372 | AK9: 0.001777777778 | AM9: 5 | AN9: 0.009309030234 | AO9: 0.01612371333 | AQ9: 5 | AR9: -2982.703312 | AS9: 0.001333333333
AE10: 6 | AF10: -2969.26602 | AG10: 0.001666666667 | AI10: 6 | AJ10: -2982.021047 | AK10: 0.002222222222 | AM10: 6 | AN10: 0.005893019408 | AO10: 0.02199304784 | AQ10: 6 | AR10: -2969.26602 | AS10: 0.001666666667
B11: Domini di interazione M-N | AE11: 7 | AF11: -2955.712835 | AG11: 0.002 | AI11: 7 | AJ11: -2970.27547 | AK11: 0.002666666667 | AM11: 7 | AN11: 2.044200114e-18 | AO11: 0.03337065162 | AQ11: 7 | AR11: -2955.712835 | AS11: 0.002
AE12: 8 | AF12: -2941.600256 | AG12: 0.002333333333 | AI12: 8 | AJ12: -2957.110154 | AK12: 0.003111111111 | AM12: 8 | AN12: -0.005893019408 | AO12: 0.02199304784 | AQ12: 8 | AR12: -2941.600256 | AS12: 0.002333333333
B13: Domini di interazione N-c | F13: N-c1 | I13: N-c2 | L13: c1-c2 | AE13: 9 | AF13: -2926.714717 | AG13: 0.002666666667 | AI13: 9 | AJ13: -2942.975521 | AK13: 0.003555555556 | AM13: 9 | AN13: -0.009309030234 | AO13: 0.01612371333 | AQ13: 9 | AR13: -2926.714717 | AS13: 0.002666666667
AE14: 10 | AF14: -2911.713403 | AG14: 0.003 | AI14: 10 | AJ14: -2928.245056 | AK14: 0.004 | AM14: 10 | AN14: -0.01227062037 | AO14: 0.01227062037 | AQ14: 10 | AR14: -2911.713403 | AS14: 0.003
B15: Momento curvatura | D15: STATO LIMITE DI VERIFICA | AE15: 11 | AF15: -2895.876408 | AG15: 0.003333333333 | AI15: 11 | AJ15: -2913.082027 | AK15: 0.004444444444 | AM15: 11 | AN15: -0.01559882691 | AO15: 0.009005986918 | AQ15: 11 | AR15: -2895.876408 | AS15: 0.003333333333
D16: Prevenzione del collasso | AE16: 12 | AF16: -2878.803121 | AG16: 0.003666666667 | AI16: 12 | AJ16: -2896.916541 | AK16: 0.004888888889 | AM16: 12 | AN16: -0.01997212324 | AO16: 0.005351514293 | AQ16: 12 | AR16: -2878.803121 | AS16: 0.003666666667
B17: Verifica Sezione | AE17: 13 | AF17: -2860.815302 | AG17: 0.004 | AI17: 13 | AJ17: -2879.859023 | AK17: 0.005333333333 | AM17: 13 | AN17: -0.02525803696 | AO17: 3.094484496e-18 | AQ17: 13 | AR17: -2860.815302 | AS17: 0.004
AE18: 14 | AF18: -2842.112684 | AG18: 0.004333333333 | AI18: 14 | AJ18: -2862.354194 | AK18: 0.005777777778 | AM18: 14 | AN18: -0.01997212324 | AO18: -0.005351514293 | AQ18: 14 | AR18: -2842.112684 | AS18: 0.004333333333
B19: Parametri Stati Limite | AE19: 15 | AF19: -2822.483344 | AG19: 0.004666666667 | AI19: 15 | AJ19: -2843.691463 | AK19: 0.006222222222 | AM19: 15 | AN19: -0.01559882691 | AO19: -0.009005986918 | AQ19: 15 | AR19: -2822.483344 | AS19: 0.004666666667
AE20: 16 | AF20: -2801.731083 | AG20: 0.005 | AI20: 16 | AJ20: -2824.611628 | AK20: 0.006666666667 | AM20: 16 | AN20: -0.01227062037 | AO20: -0.01227062037 | AQ20: 16 | AR20: -2801.731083 | AS20: 0.005
AE21: 17 | AF21: -2780.647799 | AG21: 0.005333333333 | AI21: 17 | AJ21: -2804.507309 | AK21: 0.007111111111 | AM21: 17 | AN21: -0.009309030234 | AO21: -0.01612371333 | AQ21: 17 | AR21: -2780.647799 | AS21: 0.005333333333
AE22: 18 | AF22: -2758.736549 | AG22: 0.005666666667 | AI22: 18 | AJ22: -2783.09375 | AK22: 0.007555555556 | AM22: 18 | AN22: -0.005893019408 | AO22: -0.02199304784 | AQ22: 18 | AR22: -2758.736549 | AS22: 0.005666666667
L23: N-ca | AE23: 19 | AF23: -2735.862087 | AG23: 0.006 | AI23: 19 | AJ23: -2761.201971 | AK23: 0.008 | AM23: 19 | AN23: -6.132600341e-18 | AO23: -0.03337065162 | AQ23: 19 | AR23: -2735.862087 | AS23: 0.006
AE24: 20 | AF24: -2712.390633 | AG24: 0.006333333333 | AI24: 20 | AJ24: -2738.292644 | AK24: 0.008444444444 | AM24: 20 | AN24: 0.005893019408 | AO24: -0.02199304784 | AQ24: 20 | AR24: -2712.390633 | AS24: 0.006333333333
AE25: 21 | AF25: -2687.457032 | AG25: 0.006666666667 | AI25: 21 | AJ25: -2714.283645 | AK25: 0.008888888889 | AM25: 21 | AN25: 0.009309030234 | AO25: -0.01612371333 | AQ25: 21 | AR25: -2687.457032 | AS25: 0.006666666667
AE26: 22 | AF26: -2661.842192 | AG26: 0.007 | AI26: 22 | AJ26: -2689.234984 | AK26: 0.009333333333 | AM26: 22 | AN26: 0.01227062037 | AO26: -0.01227062037 | AQ26: 22 | AR26: -2661.842192 | AS26: 0.007
AE27: 23 | AF27: -2635.605429 | AG27: 0.007333333333 | AI27: 23 | AJ27: -2663.908152 | AK27: 0.009777777778 | AM27: 23 | AN27: 0.01559882691 | AO27: -0.009005986918 | AQ27: 23 | AR27: -2635.605429 | AS27: 0.007333333333
AE28: 24 | AF28: -2607.969971 | AG28: 0.007666666667 | AI28: 24 | AJ28: -2637.08874 | AK28: 0.01022222222 | AM28: 24 | AN28: 0.01997212324 | AO28: -0.005351514293 | AQ28: 24 | AR28: -2607.969971 | AS28: 0.007666666667
AE29: 25 | AF29: -2579.256944 | AG29: 0.008 | AI29: 25 | AJ29: -2609.691807 | AK29: 0.01066666667 | AM29: 25 | AN29: 0.02525803696 | AO29: -6.188968991e-18 | AQ29: 25 | AR29: -2579.256944 | AS29: 0.008
AE30: 26 | AF30: -2549.855978 | AG30: 0.008333333333 | AI30: 26 | AJ30: -2581.719275 | AK30: 0.01111111111 | AQ30: 26 | AR30: -2549.855978 | AS30: 0.008333333333
AE31: 27 | AF31: -2519.819088 | AG31: 0.008666666667 | AI31: 27 | AJ31: -2552.102087 | AK31: 0.01155555556 | AQ31: 27 | AR31: -2519.819088 | AS31: 0.008666666667
AE32: 28 | AF32: -2489.725829 | AG32: 0.009 | AI32: 28 | AJ32: -2521.706357 | AK32: 0.012 | AQ32: 28 | AR32: -2489.725829 | AS32: 0.009
AE33: 29 | AF33: -2458.252183 | AG33: 0.009333333333 | AI33: 29 | AJ33: -2490.99843 | AK33: 0.01244444444 | AQ33: 29 | AR33: -2458.252183 | AS33: 0.009333333333
AE34: 30 | AF34: -2425.84517 | AG34: 0.009666666667 | AI34: 30 | AJ34: -2459.74726 | AK34: 0.01288888889 | AQ34: 30 | AR34: -2425.84517 | AS34: 0.009666666667
AE35: 31 | AF35: -2392.335044 | AG35: 0.01 | AI35: 31 | AJ35: -2427.713124 | AK35: 0.01333333333 | AQ35: 31 | AR35: -2392.335044 | AS35: 0.01
AE36: 32 | AF36: -2152.43153 | AG36: 0.01092959672 | AI36: 32 | AJ36: -2177.988931 | AK36: 0.01463795853 | AQ36: 32 | AR36: -2152.43153 | AS36: 0.01092959672
AE37: 33 | AF37: -1940.247654 | AG37: 0.01185919344 | AI37: 33 | AJ37: -1949.463196 | AK37: 0.01594258373 | AQ37: 33 | AR37: -1940.247654 | AS37: 0.01185919344
AE38: 34 | AF38: -1747.04707 | AG38: 0.01278879016 | AI38: 34 | AJ38: -1760.792853 | AK38: 0.01724720893 | AQ38: 34 | AR38: -1747.04707 | AS38: 0.01278879016
AE39: 35 | AF39: -1568.486169 | AG39: 0.01371838688 | AI39: 35 | AJ39: -1572.749416 | AK39: 0.01855183413 | AQ39: 35 | AR39: -1568.486169 | AS39: 0.01371838688
AE40: 36 | AF40: -1401.403006 | AG40: 0.0146479836 | AI40: 36 | AJ40: -1399.308504 | AK40: 0.01985645933 | AQ40: 36 | AR40: -1401.403006 | AS40: 0.0146479836
AE41: 37 | AF41: -1241.635347 | AG41: 0.01557758031 | AI41: 37 | AJ41: -1242.885927 | AK41: 0.02116108453 | AQ41: 37 | AR41: -1241.635347 | AS41: 0.01557758031
AE42: 38 | AF42: -1094.161667 | AG42: 0.01650717703 | AI42: 38 | AJ42: -1088.759492 | AK42: 0.02246570973 | AQ42: 38 | AR42: -1094.161667 | AS42: 0.01650717703
AE43: 39 | AF43: -994.8741375 | AG43: 0.01743677375 | AI43: 39 | AJ43: -960.0941113 | AK43: 0.02377033493 | AQ43: 39 | AR43: -994.8741375 | AS43: 0.01743677375
AE44: 40 | AF44: -914.6761596 | AG44: 0.01836637047 | AI44: 40 | AJ44: -874.1508641 | AK44: 0.02507496013 | AQ44: 40 | AR44: -914.6761596 | AS44: 0.01836637047
AE45: 41 | AF45: -855.5096458 | AG45: 0.01929596719 | AI45: 41 | AJ45: -815.0932769 | AK45: 0.02637958533 | AQ45: 41 | AR45: -855.5096458 | AS45: 0.01929596719
AE46: 42 | AF46: -787.0565702 | AG46: 0.02022556391 | AI46: 42 | AJ46: -752.5024185 | AK46: 0.02768421053 | AQ46: 42 | AR46: -787.0565702 | AS46: 0.02022556391
AE47: 43 | AF47: -728.7985751 | AG47: 0.02115516063 | AI47: 43 | AJ47: -682.6895288 | AK47: 0.02898883573 | AQ47: 43 | AR47: -728.7985751 | AS47: 0.02115516063
AE48: 44 | AF48: -675.5947891 | AG48: 0.02208475735 | AI48: 44 | AJ48: -619.740057 | AK48: 0.03029346093 | AQ48: 44 | AR48: -675.5947891 | AS48: 0.02208475735
AE49: 45 | AF49: -608.5215266 | AG49: 0.02301435407 | AI49: 45 | AJ49: -570.9712831 | AK49: 0.03159808612 | AQ49: 45 | AR49: -608.5215266 | AS49: 0.02301435407
